Workbook

Sheet navi
B2: smooth global paths: RM scenario types + SPM Formula from Raupach
B4: contents and navigation | E4: summary | F4: imprint
B6: input frame data | D6: base data | E6: Political determination on the basis of scientific findings
B7: determination and input of parameters for global paths | D7: goal seek
B8: global emission paths and important results | D8: graphs
B10: calculation of global paths compatible with a given CO2 budget | D10: scenarios RM 1-6 and Raupach
B12: comparison: IPCC SR15 P1 - P4 ill. model paths | D12: IPCC SR15 results | F12: info
D13: IPCC SR15 graphs
D14: IPCC SR15 AFOLU
D16: hidden sheets
B17: data base IPCC SR15 | D17: paths P1-P4 | E17: data
B18: data base global emissions | D18: Global Carbon Project
B20: version: | C20: 2014 - 2021 | D20: 20.0
B21: DOI | C21: 10.5281/zenodo.4584562
B23: Suggestions and feedback: | D23: save-the-climate@online.ms
B25: Here you can download the most recent version of the tool: | D25: http://www.save-the-climate.info

Sheet summary
R13: You can download a comprehensive mathematical description of the Regensburg Model Scenario Types from our website or use this direct link to zenodo:
R18: Mathematical Description RM 1 - 6
R20: Detailed instruction to the tool:

Sheet base data
B2: base data | Z2: source:
Z3: http://www.ipcc.ch/report/sr15/
B4: input fields | Z4: > Chapter 2
Z5: SPM >
B6: A. Budget from 2018 to 2100
B8: A
B9: CO2 budget from 2018 to 2100 in Gt
B10: 420 | D10: see Table 2.2
B13: B. Emissions 2018 - 2019
C15: see sheet: | D15: Global Carbon Project
B16: annual change rate: | E16: =E18/D18-1 -> 0.02083388753 | F16: =F18/E18-1 -> 0.0237209174 | G16: 0.009999485483 | H16: 0.01675129328 | I16: 0.004161259494 | J16: -0.01296615055 | K16: 0.008497752747 | L16: 0.02046748591 | M16: 0.02215331989
C17: year: | D17: 2010 | E17: =D17+1 -> 2011 | F17: 2012 | G17: 2013 | H17: 2014 | I17: 2015 | J17: 2016 | K17: 2017 | L17: 2018 | M17: 2019 | N17: sum 2018 - 2019
B18: anthropogenic CO2 emissions in Gt | D18: ='Global Carbon Budget'!N76 -> 38.47076147 | E18: ='Global Carbon Budget'!O76 -> 39.27225698 | F18: ='Global Carbon Budget'!P76 -> 40.20383095 | G18: ='Global Carbon Budget'!Q76 -> 40.60584857 | H18: ='Global Carbon Budget'!R76 -> 41.28604905 | I18: ='Global Carbon Budget'!S76 -> 41.45785101 | J18: ='Global Carbon Budget'!T76 -> 40.92030228 | K18: ='Global Carbon Budget'!U76 -> 41.26803289 | L18: ='Global Carbon Budget'!V76 -> 42.11268577 | M18: ='Global Carbon Budget'!W76 -> 43.04562157 | N18: =SUM(L18:M18) -> 85.15830734 | O18: B
B19: anthropogenic CO2 emissions exclusive FOLU in Gt | D19: ='Global Carbon Budget'!N77 -> 33.133552 | E19: ='Global Carbon Budget'!O77 -> 34.210768 | F19: ='Global Carbon Budget'!P77 -> 34.760368 | G19: ='Global Carbon Budget'!Q77 -> 34.987536 | H19: ='Global Carbon Budget'!R77 -> 35.244016 | I19: ='Global Carbon Budget'!S77 -> 35.21104 | J19: ='Global Carbon Budget'!T77 -> 35.222032 | K19: ='Global Carbon Budget'!U77 -> 35.694688 | L19: ='Global Carbon Budget'!V77 -> 36.42016 | M19: ='Global Carbon Budget'!W77 -> 36.4407598 | N19: info
B20: FOLU (LUC) CO2 in Gt | D20: =D18-D19 -> 5.337209467 | E20: =E18-E19 -> 5.061488984 | F20: 5.443462948 | G20: 5.618312572 | H20: 6.042033051 | I20: 6.246811014 | J20: 5.698270277 | K20: 5.573344888 | L20: 5.692525769 | M20: 6.604861769 | N20: info
B21: share FOLU CO2: | D21: =D20/D18 -> 0.1387341779 | E21: =E20/E18 -> 0.1288820499 | F21: 0.1353966232 | G21: 0.1383621515 | H21: 0.1463456347 | I21: 0.1506786016 | J21: 0.1392528882 | K21: 0.1350523516 | L21: =L20/L18 -> 0.1351736577 | M21: =M20/M18 -> 0.1534386432 | N21: info
B23: C. Budget 2020 - 2100
B25: CO2 cumulative budget 2020 - 2100 in Gt | L25: =B10-N18 -> 334.8416927 | M25: = A - B
B27: D. Emissions in the base year 2019 and minimum emissions 2020 - 2100 (potential global negative emissions)
B29: CO2 emissions in the base year 2019 in Gt (see B.) | L29: =M18 -> 43.04562157 | Q29: illustrative model paths IPCC SR15
Q30: in Gt | R30: P1 | S30: P2 | T30: average
B31: Minimum CO2 emissions in Gt (a negative value stands for global net negative emissions); Emin: | N31: -3.5 | Q31: year 2100 | R31: ='IPCC SR15 data'!Y76/1000 -> -3.524486354 | S31: ='IPCC SR15 data'!Y4/1000 -> -4.4748741 | T31: =AVERAGE(R31:S31) -> -3.999680227
B33: proportion of minimum emissions on global emissions in 2019: | N33: =N31/M18 -> -0.08130908261 | R33: =R31/$M$18 -> -0.08187792917 | S33: =S31/$M$18 -> -0.1039565451 | T33: -0.09291723714

Sheet goal seek
A1: Determination of the free parameters for the global scenarios 2020 - 2100
E2: target is met | F2: target is not met
A3: input values | B3: determination via "goal seek" | E3: target value of "goal seek"
C5: =scenarios!$E$2 -> RM-1 const | D5: =scenarios!$L$2 -> RM-2 exp | E5: =scenarios!T2 -> RM-3 lin | F5: =scenarios!$AB$2 -> RM-4 quadr | G5: =scenarios!AJ2 -> RM-5 rad | H5: =scenarios!AR2 -> RM-6 abs | I5: =scenarios!AX2 -> SPM-R | J5: average global change rates last three years
A6: characteristics of the scenario | C6: RRt const | D6: RRt exp | E6: RRt lin | F6: RRt quadr | G6: RRt rad | H6: RA const | I6: Raupach
A7: A corona effect should not be considered here. | D7: only a negative RR_20 possible | E7: a positive RR_20 is also possible (= increasing emissions after 2019)
H8: info | I8: info
A9: change rate 2020 (RR20) | C9: =C12 -> -0.08731152545 | D9: -0.01 | E9: -0.01 | F9: -0.01 | G9: -0.01 | H9: =scenarios!AV9 -> -0.03922000621 | I9: =scenarios!AZ16 -> -0.001175496901 | J9: =AVERAGE('base data'!J16:L16) -> 0.005333029368
A10: Initial values for free parameter (cells shaded in grey) if Goal Seek does not converge: | C10: -0.1 | D10: 0.01 | E10: -0.01 | F10: 0 | G10: 0 | H10: -3
C11: RRt constant | D11: a | E11: a | F11: a | G11: a | H11: RA
A12: Free parameters are determined by Goal Seek in such a way as that the budget is adhered to. | C12: -0.08731152545 | D12: 0.2246061398 | E12: -0.008831590603 | F12: -8.244686486e+303
D13: -3.777870668e+16 | F13: -0.0008287823447 | G13: -0.02933402209 | H13: -1.688249545
A15: scenario ∑ 2020 - 2100 | B15: Gt | C15: =scenarios!J6 -> 335 | D15: =scenarios!$R$6 -> 335 | E15: =scenarios!$Z$6 -> 335 | F15: =scenarios!$AH$6 -> 335 | G15: =scenarios!AP6 -> 335 | H15: =scenarios!AV6 -> 335 | I15: =ROUND(scenarios!AX97,0) -> 335
A16: budget ∑ 2020 - 2100 | B16: Gt | C16: =ROUND('base data'!$L$25,0) -> 335 | D16: =ROUND('base data'!$L$25,0) -> 335 | E16: =ROUND('base data'!$L$25,0) -> 335 | F16: =ROUND('base data'!$L$25,0) -> 335 | G16: =ROUND('base data'!$L$25,0) -> 335 | H16: =ROUND('base data'!$L$25,0) -> 335 | I16: =ROUND('base data'!$L$25,0) -> 335
A18: emissions 2100 scenario; E2100 | B18: Gt | C18: =scenarios!J8 -> -3.5 | D18: =scenarios!R8 -> -3.5 | E18: =scenarios!T96 -> -3.5 | F18: =scenarios!$AH$8 -> -3.5 | G18: =scenarios!AP8 -> -3.5 | H18: =scenarios!AR96 -> -3.5 | I18: =scenarios!AX96 -> 4.622045004e-07
A19: minimum emissions; Emin | B19: Gt | C19: =ROUND('base data'!$N$31,5) -> -3.5 | D19: =ROUND('base data'!$N$31,2) -> -3.5 | E19: =ROUND('base data'!$N$31,2) -> -3.5 | F19: =ROUND('base data'!$N$31,2) -> -3.5 | G19: =ROUND('base data'!$N$31,2) -> -3.5 | H19: =ROUND('base data'!$N$31,2) -> -3.5 | I19: -
A21: values from the scenarios | C21: =scenarios!$E$2 -> RM-1 const | D21: =scenarios!$L$2 -> RM-2 exp | E21: =scenarios!T2 -> RM-3 lin | F21: =scenarios!$AB$2 -> RM-4 quadr | G21: =G5 -> RM-5 rad | H21: =H5 -> RM-6 abs | I21: =I5 -> SPM-R
A22: year Emin is achieved | C22: =IF(ISNA(INDEX(scenarios!$C$16:$C$96,MATCH('goal seek'!C$19,scenarios!$E$16:$E$96,0))),"-",INDEX(scenarios!$C$16:$C$96,MATCH('goal seek'!C$19,scenarios!$E$16:$E$96,0))) -> 2080 | D22: =IF(ISNA(INDEX(scenarios!$C$16:$C$96,MATCH('goal seek'!D$19,scenarios!$L$16:$L$96,0))),"-",INDEX(scenarios!$C$16:$C$96,MATCH('goal seek'!D$19,scenarios!$L$16:$L$96,0))) -> 2044 | E22: =IF(ISNA(INDEX(scenarios!$C$16:$C$96,MATCH('goal seek'!E$19,scenarios!$T$16:$T$96,0))),"-",INDEX(scenarios!$C$16:$C$96,MATCH('goal seek'!E$19,scenarios!$T$16:$T$96,0))) -> 2055 | F22: =IF(ISNA(INDEX(scenarios!$C$16:$C$96,MATCH('goal seek'!F$19,scenarios!$AB$16:$AB$96,0))),"-",INDEX(scenarios!$C$16:$C$96,MATCH('goal seek'!F$19,scenarios!$AB$16:$AB$96,0))) -> 2047 | G22: =IF(ISNA(INDEX(scenarios!$C$16:$C$96,MATCH('goal seek'!G$19,scenarios!$AJ$16:$AJ$96,0))),"-",INDEX(scenarios!$C$16:$C$96,MATCH('goal seek'!G$19,scenarios!$AJ$16:$AJ$96,0))) -> 2063 | H22: =IF(ISNA(INDEX(scenarios!$C$16:$C$96,MATCH('goal seek'!H$19,scenarios!$AR$16:$AR$96,0))),"-",INDEX(scenarios!$C$16:$C$96,MATCH('goal seek'!H$19,scenarios!$AR$16:$AR$96,0))) -> 2047 | I22: -
A23: maximum RRt | C23: =MIN(graphs!CM10:CM90) -> -0.08731152545 | D23: =MIN(graphs!CN10:CN90) -> -0.575345407 | E23: =MIN(graphs!CO10:CO90) -> -0.2219581745 | F23: =MIN(graphs!CP10:CP90) -> -0.375493014 | G23: =MIN(graphs!CQ10:CQ90) -> -0.161006121 | H23: =MIN(graphs!CR10:CR90) -> -0.6679173316 | I23: =MIN(graphs!CS10:CS90) -> -0.1982434083
A24: year maximum RRt | C24: =INDEX(graphs!$CL$10:$CL$90,MATCH(C23,graphs!CM10:CM90,0)) -> 2020 | D24: =INDEX(graphs!$CL$10:$CL$90,MATCH(D23,graphs!CN10:CN90,0)) -> 2040 | E24: =INDEX(graphs!$CL$10:$CL$90,MATCH(E23,graphs!CO10:CO90,0)) -> 2044 | F24: =INDEX(graphs!$CL$10:$CL$90,MATCH(F23,graphs!CP10:CP90,0)) -> 2041 | G24: =INDEX(graphs!$CL$10:$CL$90,MATCH(G23,graphs!CQ10:CQ90,0)) -> 2047 | H24: =INDEX(graphs!$CL$10:$CL$90,MATCH(H23,graphs!CR10:CR90,0)) -> 2044 | I24: -
A25: overshoot | B25: Gt | C25: =graphs!J5 -> 103.0583442 | D25: =graphs!K5 -> 204.599281 | E25: =graphs!L5 -> 173.8718714 | F25: =graphs!M5 -> 195.5133272 | G25: =graphs!N5 -> 150.3190477 | H25: =graphs!O5 -> 192.3859828 | I25: -
A26: reduction 2030 vs. 2010 | C26: =graphs!CD101 -> -0.5904127492 | D26: =graphs!CE101 -> -0.2332120056 | E26: =graphs!CF101 -> -0.3964422212 | F26: =graphs!CG101 -> -0.2809193562 | G26: =graphs!CH101 -> -0.4766869586 | H26: =graphs!CI101 -> -0.3638057673 | I26: =graphs!CJ101 -> -0.7273078348
A28: At which level of global emissions (threshold value; TV) shall the annual percentage reduction be change into a constant annual reduction amount in scenarios 2 - 5? in Gt | F28: 2 | G28: =F28/'base data'!$M$18 -> 0.04646233292
A31: Opportunity for its own TV in scenario 1 to get there earlier to global negative emissions: in Gt | F31: 2.2 | G31: =F31/'base data'!$M$18 -> 0.05110856621

Sheet graphs
B2: Global pathways determined 2020 - 2100
J3: =scenarios!$E$2 -> RM-1 const | K3: =scenarios!$L$2 -> RM-2 exp | L3: =scenarios!$T$2 -> RM-3 lin | M3: =scenarios!$AB$2 -> RM-4 quadr | N3: =scenarios!AJ2 -> RM-5 rad | O3: ='goal seek'!H5 -> RM-6 abs | P3: =scenarios!AX2 -> SPM-R
B4: budget 2018 - 2100 in Gt: | D4: ='base data'!B10 -> 420 | F4: Is the budget 2020 - 2100 complied with? | J4: =IF('goal seek'!C15='goal seek'!C16,"yes","no") -> yes | K4: =IF('goal seek'!D15='goal seek'!D16,"yes","no") -> yes | L4: =IF('goal seek'!E15='goal seek'!E16,"yes","no") -> yes | M4: =IF('goal seek'!F15='goal seek'!F16,"yes","no") -> yes | N4: =IF('goal seek'!G15='goal seek'!G16,"yes","no") -> yes | O4: =IF('goal seek'!H15='goal seek'!H16,"yes","no") -> yes | P4: - | BV4: A | BW4: B
B5: budget 2020 - 2100 in Gt: | D5: ='base data'!L25 -> 334.8416927 | F5: overshoot 2020 - 2100 in Gt | J5: =scenarios!BK97 -> 103.0583442 | K5: =scenarios!BL97 -> 204.599281 | L5: =scenarios!BM97 -> 173.8718714 | M5: =scenarios!BN97 -> 195.5133272 | N5: =scenarios!BO97 -> 150.3190477 | O5: =-scenarios!AR98 -> 192.3859828 | P5: - | T5: Underlying world population: UN forecast
BT7: Et | BU7: ='goal seek'!C6 -> RRt const | BV7: ='goal seek'!D6 -> RRt exp | BW7: ='goal seek'!E6 -> RRt lin | BX7: ='goal seek'!F6 -> RRt quadr | BY7: ='goal seek'!G6 -> RRt rad | BZ7: ='goal seek'!H6 -> RA const | CA7: Raupach | CD7: without period with absolute reduction | CM7: period with absolute reduction = 0% | CU7: t / capita | CV7: =BU7 -> RRt const | CW7: RRt exp | CX7: RRt lin | CY7: RRt quadr | CZ7: RRt rad | DA7: RA const | DB7: =CA7 -> Raupach | DE7: =BU8 -> RM-1 const | DF7: RM-2 exp | DG7: RM-3 lin | DH7: RM-4 quadr | DI7: RM-5 rad | DJ7: RM-6 abs | DK7: =CA8 -> SPM-R
BU8: =scenarios!E2 -> RM-1 const | BV8: =scenarios!L2 -> RM-2 exp | BW8: =scenarios!T2 -> RM-3 lin | BX8: =scenarios!AB2 -> RM-4 quadr | BY8: ='goal seek'!G5 -> RM-5 rad | BZ8: ='goal seek'!H5 -> RM-6 abs | CA8: =scenarios!AX2 -> SPM-R | CC8: RR_t | CD8: =BU7 -> RRt const | CE8: RRt exp | CF8: RRt lin | CG8: RRt quadr | CH8: RRt rad | CI8: RA const | CJ8: =CA7 -> Raupach | CL8: RR_t | CM8: =CD8 -> RRt const | CN8: RRt exp | CO8: RRt lin | CP8: RRt quadr | CQ8: RRt rad | CR8: RA const | CS8: =CJ8 -> Raupach | CV8: RM-1 const | CW8: RM-2 exp | CX8: RM-3 lin | CY8: RM-4 quadr | CZ8: RM-5 rad | DA8: RM-6 abs | DB8: SPM-R | DD8: 2010 | DE8: ='base data'!$D$18 -> 38.47076147 | DF8: ='base data'!$D$18 -> 38.47076147 | DG8: ='base data'!$D$18 -> 38.47076147 | DH8: ='base data'!$D$18 -> 38.47076147 | DI8: ='base data'!$D$18 -> 38.47076147 | DJ8: ='base data'!$D$18 -> 38.47076147 | DK8: ='base data'!$D$18 -> 38.47076147
BS9: 2019 | BT9: 2019 | BU9: =scenarios!E15 -> 43.04562157 | BV9: =scenarios!L15 -> 43.04562157 | BW9: =scenarios!T15 -> 43.04562157 | BX9: =scenarios!AB15 -> 43.04562157 | BY9: =scenarios!AJ15 -> 43.04562157 | BZ9: =scenarios!AR15 -> 43.04562157 | CA9: =BX9 -> 43.04562157 | CD9: =graphs!BU8 -> RM-1 const | CE9: =graphs!BV8 -> RM-2 exp | CF9: =graphs!BW8 -> RM-3 lin | CG9: =graphs!BX8 -> RM-4 quadr | CH9: =graphs!BY8 -> RM-5 rad | CI9: =graphs!BZ8 -> RM-6 abs | CJ9: =graphs!CA8 -> SPM-R | CM9: RM-1 const | CN9: RM-2 exp | CO9: RM-3 lin | CP9: RM-4 quadr | CQ9: RM-5 rad | CR9: RM-6 abs | CS9: SPM-R | CU9: =BT9 -> 2019 | CV9: =scenarios!J15 -> 5.58057945 | CW9: =scenarios!R15 -> 5.58057945 | CX9: =scenarios!Z15 -> 5.58057945 | CY9: =scenarios!AH15 -> 5.58057945 | CZ9: =scenarios!AP15 -> 5.58057945 | DA9: =scenarios!AV15 -> 5.58057945 | DB9: =CY9 -> 5.58057945 | DD9: =DD8+1 -> 2011 | DE9: ='base data'!$E$18 -> 39.27225698 | DF9: ='base data'!$E$18 -> 39.27225698 | DG9: ='base data'!$E$18 -> 39.27225698 | DH9: ='base data'!$E$18 -> 39.27225698 | DI9: ='base data'!$E$18 -> 39.27225698 | DJ9: ='base data'!$E$18 -> 39.27225698 | DK9: ='base data'!$E$18 -> 39.27225698
BR10: 2020 | BT10: =BT9+1 -> 2020 | BU10: =scenarios!E16 -> 39.28724269 | BV10: =scenarios!L16 -> 42.61516535 | BW10: =scenarios!T16 -> 42.61516535 | BX10: =scenarios!AB16 -> 42.61516535 | BY10: =scenarios!AJ16 -> 42.61516535 | BZ10: =scenarios!AR16 -> 41.35737202 | CA10: =scenarios!AX16 -> 42.99502157 | CC10: 2020 | CD10: =IF($BU9>'goal seek'!$F$31,$BU10/$BU9-1,#N/A) -> -0.08731152545 | CE10: =IF(BV9>'goal seek'!$F$28,BV10/BV9-1,#N/A) -> -0.01 | CF10: =IF(BW9>'goal seek'!$F$28,BW10/BW9-1,#N/A) -> -0.01 | CG10: =IF(BX9>'goal seek'!$F$28,BX10/BX9-1,#N/A) -> -0.01 | CH10: =IF(BY9>'goal seek'!$F$28,BY10/BY9-1,#N/A) -> -0.01 | CI10: =IF(BZ9>'goal seek'!$F$28,BZ10/BZ9-1,#N/A) -> -0.03922000621 | CJ10: =IF(CA9>'goal seek'!$F$28,CA10/CA9-1,#N/A) -> -0.001175496901 | CL10: 2020 | CM10: =IF(ISNA(CD10),0,CD10) -> -0.08731152545 | CN10: =IF(ISNA(CE10),0,CE10) -> -0.01 | CO10: =IF(ISNA(CF10),0,CF10) -> -0.01 | CP10: =IF(ISNA(CG10),0,CG10) -> -0.01 | CQ10: =IF(ISNA(CH10),0,CH10) -> -0.01 | CR10: =IF(ISNA(CI10),0,CI10) -> -0.03922000621 | CS10: =IF(ISNA(CJ10),0,CJ10) -> -0.001175496901 | CU10: 2020 | CV10: =scenarios!J16 -> 5.040186925 | CW10: =scenarios!R16 -> 5.467128374 | CX10: =scenarios!Z16 -> 5.467128374 | CY10: =scenarios!AH16 -> 5.467128374 | CZ10: =scenarios!AP16 -> 5.467128374 | DA10: =scenarios!AV16 -> 5.305765217 | DB10: =scenarios!BB16 -> 5.515860385 | DD10: =DD9+1 -> 2012 | DE10: ='base data'!$F$18 -> 40.20383095 | DF10: ='base data'!$F$18 -> 40.20383095 | DG10: ='base data'!$F$18 -> 40.20383095 | DH10: ='base data'!$F$18 -> 40.20383095 | DI10: ='base data'!$F$18 -> 40.20383095 | DJ10: ='base data'!$F$18 -> 40.20383095 | DK10: ='base data'!$F$18 -> 40.20383095
BT11: =BT10+1 -> 2021 | BU11: =scenarios!E17 -> 35.8570136 | BV11: =scenarios!L17 -> 42.09329742 | BW11: =scenarios!T17 -> 41.81265401 | BX11: =scenarios!AB17 -> 42.153695 | BY11: =scenarios!AJ17 -> 41.30507775 | BZ11: =scenarios!AR17 -> 39.66912248 | CA11: =scenarios!AX17 -> 41.2738495 | CC11: =CC10+1 -> 2021 | CD11: =IF($BU10>'goal seek'!$F$31,$BU11/$BU10-1,#N/A) -> -0.08731152545 | CE11: =IF(BV10>'goal seek'!$F$28,BV11/BV10-1,#N/A) -> -0.0122460614 | CF11: =IF(BW10>'goal seek'!$F$28,BW11/BW10-1,#N/A) -> -0.0188315906 | CG11: =IF(BX10>'goal seek'!$F$28,BX11/BX10-1,#N/A) -> -0.01082878234 | CH11: =IF(BY10>'goal seek'!$F$28,BY11/BY10-1,#N/A) -> -0.03074228594 | CI11: =IF(BZ10>'goal seek'!$F$28,BZ11/BZ10-1,#N/A) -> -0.04082100633 | CJ11: =IF(CA10>'goal seek'!$F$28,CA11/CA10-1,#N/A) -> -0.04003189224 | CL11: =CL10+1 -> 2021 | CM11: -0.08731152545 | CN11: -0.0122460614 | CO11: -0.0188315906 | CP11: =IF(ISNA(CG11),0,CG11) -> -0.01082878234 | CQ11: =IF(ISNA(CH11),0,CH11) -> -0.03074228594 | CR11: =IF(ISNA(CI11),0,CI11) -> -0.04082100633 | CS11: -0.04003189224 | CU11: 2021 | CV11: =scenarios!J17 -> 4.553291328 | CW11: =scenarios!R17 -> 5.345203821 | CX11: =scenarios!Z17 -> 5.309566408 | CY11: =scenarios!AH17 -> 5.352873389 | CZ11: =scenarios!AP17 -> 5.245112001 | DA11: =scenarios!AV17 -> 5.037370747 | DB11: =scenarios!BB17 -> 5.241146491 | DD11: =DD10+1 -> 2013 | DE11: ='base data'!$G$18 -> 40.60584857 | DF11: ='base data'!$G$18 -> 40.60584857 | DG11: ='base data'!$G$18 -> 40.60584857 | DH11: ='base data'!$G$18 -> 40.60584857 | DI11: ='base data'!$G$18 -> 40.60584857 | DJ11: ='base data'!$G$18 -> 40.60584857 | DK11: ='base data'!$G$18 -> 40.60584857
BT12: 2022 | BU12: =scenarios!E18 -> 32.72628304 | BV12: =scenarios!L18 -> 41.46204099 | BW12: =scenarios!T18 -> 40.65598298 | BX12: =scenarios!AB18 -> 41.5924131 | BY12: =scenarios!AJ18 -> 39.40807212 | BZ12: =scenarios!AR18 -> 37.98087293 | CA12: =scenarios!AX18 -> 37.99048762 | CC12: 2022 | CD12: =IF($BU11>'goal seek'!$F$31,$BU12/$BU11-1,#N/A) -> -0.08731152545 | CE12: =IF(BV11>'goal seek'!$F$28,BV12/BV11-1,#N/A) -> -0.01499660198 | CF12: =IF(BW11>'goal seek'!$F$28,BW12/BW11-1,#N/A) -> -0.02766318121 | CG12: =IF(BX11>'goal seek'!$F$28,BX12/BX11-1,#N/A) -> -0.01331512938 | CH12: =IF(BY11>'goal seek'!$F$28,BY12/BY11-1,#N/A) -> -0.04592669311 | CI12: =IF(BZ11>'goal seek'!$F$28,BZ12/BZ11-1,#N/A) -> -0.04255827807 | CJ12: =IF(CA11>'goal seek'!$F$28,CA12/CA11-1,#N/A) -> -0.07955065798 | CL12: 2022 | CM12: -0.08731152545 | CN12: -0.01499660198 | CO12: -0.02766318121 | CP12: -0.01331512938 | CQ12: -0.04592669311 | CR12: -0.04255827807 | CS12: -0.07955065798 | CU12: 2022 | CV12: =scenarios!J18 -> 4.114467966 | CW12: =scenarios!R18 -> 5.212759398 | CX12: =scenarios!Z18 -> 5.111418837 | CY12: =scenarios!AH18 -> 5.229150256 | CZ12: =scenarios!AP18 -> 4.954526921 | DA12: =scenarios!AV18 -> 4.775094221 | DB12: =scenarios!BB18 -> 4.776303014 | DD12: =DD11+1 -> 2014 | DE12: ='base data'!$H$18 -> 41.28604905 | DF12: ='base data'!$H$18 -> 41.28604905 | DG12: ='base data'!$H$18 -> 41.28604905 | DH12: ='base data'!$H$18 -> 41.28604905 | DI12: ='base data'!$H$18 -> 41.28604905 | DJ12: ='base data'!$H$18 -> 41.28604905 | DK12: ='base data'!$H$18 -> 41.28604905
BT13: 2023 | BU13: =scenarios!E19 -> 29.86890135 | BV13: =scenarios!L19 -> 40.70059348 | BW13: =scenarios!T19 -> 39.17225216 | BX13: =scenarios!AB19 -> 40.86624945 | BY13: =scenarios!AJ19 -> 37.18619925 | BZ13: =scenarios!AR19 -> 36.29262339 | CA13: =scenarios!AX19 -> 33.97345185 | CC13: 2023 | CD13: =IF($BU12>'goal seek'!$F$31,$BU13/$BU12-1,#N/A) -> -0.08731152545 | CE13: =IF(BV12>'goal seek'!$F$28,BV13/BV12-1,#N/A) -> -0.01836493086 | CF13: =IF(BW12>'goal seek'!$F$28,BW13/BW12-1,#N/A) -> -0.03649477181 | CG13: =IF(BX12>'goal seek'!$F$28,BX13/BX12-1,#N/A) -> -0.0174590411 | CH13: =IF(BY12>'goal seek'!$F$28,BY13/BY12-1,#N/A) -> -0.05638116137 | CI13: =IF(BZ12>'goal seek'!$F$28,BZ13/BZ12-1,#N/A) -> -0.04444999324 | CJ13: =IF(CA12>'goal seek'!$F$28,CA13/CA12-1,#N/A) -> -0.1057379364 | CL13: 2023 | CM13: -0.08731152545 | CN13: -0.01836493086 | CO13: -0.03649477181 | CP13: -0.0174590411 | CQ13: -0.05638116137 | CR13: -0.04444999324 | CS13: -0.1057379364 | CU13: 2023 | CV13: =scenarios!J19 -> 3.718830119 | CW13: =scenarios!R19 -> 5.067430875 | CX13: =scenarios!Z19 -> 4.877144609 | CY13: =scenarios!AH19 -> 5.088055886 | CZ13: =scenarios!AP19 -> 4.629870921 | DA13: =scenarios!AV19 -> 4.518616182 | DB13: =scenarios!BB19 -> 4.229867532 | DD13: 2015 | DE13: ='base data'!$I$18 -> 41.45785101 | DF13: ='base data'!$I$18 -> 41.45785101 | DG13: ='base data'!$I$18 -> 41.45785101 | DH13: ='base data'!$I$18 -> 41.45785101 | DI13: ='base data'!$I$18 -> 41.45785101 | DJ13: ='base data'!$I$18 -> 41.45785101 | DK13: ='base data'!$I$18 -> 41.45785101
BT14: 2024 | BU14: =scenarios!E20 -> 27.26100201 | BV14: =scenarios!L20 -> 39.78524498 | BW14: =scenarios!T20 -> 37.39671646 | BX14: =scenarios!AB20 -> 39.91567934 | BY14: =scenarios!AJ20 -> 34.77359842 | BZ14: =scenarios!AR20 -> 34.60437384 | CA14: =scenarios!AX20 -> 29.74830715 | CC14: 2024 | CD14: =IF($BU13>'goal seek'!$F$31,$BU14/$BU13-1,#N/A) -> -0.08731152545 | CE14: =IF(BV13>'goal seek'!$F$28,BV14/BV13-1,#N/A) -> -0.02248980708 | CF14: =IF(BW13>'goal seek'!$F$28,BW14/BW13-1,#N/A) -> -0.04532636241 | CG14: =IF(BX13>'goal seek'!$F$28,BX14/BX13-1,#N/A) -> -0.02326051752 | CH14: =IF(BY13>'goal seek'!$F$28,BY14/BY13-1,#N/A) -> -0.06487893022 | CI14: =IF(BZ13>'goal seek'!$F$28,BZ14/BZ13-1,#N/A) -> -0.04651770491 | CJ14: =IF(CA13>'goal seek'!$F$28,CA14/CA13-1,#N/A) -> -0.1243660705 | CL14: 2024 | CM14: -0.08731152545 | CN14: -0.02248980708 | CO14: -0.04532636241 | CP14: -0.02326051752 | CQ14: -0.06487893022 | CR14: -0.04651770491 | CS14: -0.1243660705 | CU14: 2024 | CV14: =scenarios!J20 -> 3.361984053 | CW14: =scenarios!R20 -> 4.906545957 | CX14: =scenarios!Z20 -> 4.611978839 | CY14: =scenarios!AH20 -> 4.922631874 | CZ14: =scenarios!AP20 -> 4.288480788 | DA14: =scenarios!AV20 -> 4.267611036 | DB14: =scenarios!BB20 -> 3.668732874 | DD14: 2016 | DE14: ='base data'!$J$18 -> 40.92030228 | DF14: ='base data'!$J$18 -> 40.92030228 | DG14: ='base data'!$J$18 -> 40.92030228 | DH14: ='base data'!$J$18 -> 40.92030228 | DI14: ='base data'!$J$18 -> 40.92030228 | DJ14: ='base data'!$J$18 -> 40.92030228 | DK14: ='base data'!$J$18 -> 40.92030228
BR15: 2025 | BT15: 2025 | BU15: =scenarios!E21 -> 24.88080234 | BV15: =scenarios!L21 -> 38.68951335 | BW15: =scenarios!T21 -> 35.37138685 | BX15: =scenarios!AB21 -> 38.68948729 | BY15: =scenarios!AJ21 -> 32.26201067 | BZ15: =scenarios!AR21 -> 32.9161243 | CA15: =scenarios!AX21 -> 25.63425746 | CC15: 2025 | CD15: =IF($BU14>'goal seek'!$F$31,$BU15/$BU14-1,#N/A) -> -0.08731152545 | CE15: =IF(BV14>'goal seek'!$F$28,BV15/BV14-1,#N/A) -> -0.02754115584 | CF15: =IF(BW14>'goal seek'!$F$28,BW15/BW14-1,#N/A) -> -0.05415795301 | CG15: =IF(BX14>'goal seek'!$F$28,BX15/BX14-1,#N/A) -> -0.03071955862 | CH15: =IF(BY14>'goal seek'!$F$28,BY15/BY14-1,#N/A) -> -0.07222685782 | CI15: =IF(BZ14>'goal seek'!$F$28,BZ15/BZ14-1,#N/A) -> -0.04878717219 | CJ15: =IF(CA14>'goal seek'!$F$28,CA15/CA14-1,#N/A) -> -0.1382952539 | CL15: 2025 | CM15: -0.08731152545 | CN15: -0.02754115584 | CO15: -0.05415795301 | CP15: -0.03071955862 | CQ15: -0.07222685782 | CR15: -0.04878717219 | CS15: -0.1382952539 | CU15: 2025 | CV15: =scenarios!J21 -> 3.04001374 | CW15: =scenarios!R21 -> 4.727204959 | CX15: =scenarios!Z21 -> 4.321785953 | CY15: =scenarios!AH21 -> 4.727201775 | CZ15: =scenarios!AP21 -> 3.941872711 | DA15: =scenarios!AV21 -> 4.021794345 | DB15: =scenarios!BB21 -> 3.132073228 | DD15: 2017 | DE15: ='base data'!$K$18 -> 41.26803289 | DF15: ='base data'!$K$18 -> 41.26803289 | DG15: ='base data'!$K$18 -> 41.26803289 | DH15: ='base data'!$K$18 -> 41.26803289 | DI15: ='base data'!$K$18 -> 41.26803289 | DJ15: ='base data'!$K$18 -> 41.26803289 | DK15: ='base data'!$K$18 -> 41.26803289
BT16: 2026 | BU16: =scenarios!E22 -> 22.70842153 | BV16: =scenarios!L22 -> 37.38462948 | BW16: =scenarios!T22 -> 33.14335933 | BX16: =scenarios!AB22 -> 37.14824651 | BY16: =scenarios!AJ22 -> 29.71994555 | BZ16: =scenarios!AR22 -> 31.22787475 | CA16: =scenarios!AX22 -> 21.81207886 | CC16: 2026 | CD16: =IF($BU15>'goal seek'!$F$31,$BU16/$BU15-1,#N/A) -> -0.08731152545 | CE16: =IF(BV15>'goal seek'!$F$28,BV16/BV15-1,#N/A) -> -0.03372706853 | CF16: =IF(BW15>'goal seek'!$F$28,BW16/BW15-1,#N/A) -> -0.06298954362 | CG16: =IF(BX15>'goal seek'!$F$28,BX16/BX15-1,#N/A) -> -0.03983616441 | CH16: =IF(BY15>'goal seek'!$F$28,BY16/BY15-1,#N/A) -> -0.07879437976 | CI16: =IF(BZ15>'goal seek'!$F$28,BZ16/BZ15-1,#N/A) -> -0.05128943887 | CJ16: =IF(CA15>'goal seek'!$F$28,CA16/CA15-1,#N/A) -> -0.1491043227 | CL16: 2026 | CM16: -0.08731152545 | CN16: -0.03372706853 | CO16: -0.06298954362 | CP16: -0.03983616441 | CQ16: -0.07879437976 | CR16: -0.05128943887 | CS16: -0.1491043227 | CU16: 2026 | CV16: =scenarios!J22 -> 2.749444322 | CW16: =scenarios!R22 -> 4.526380538 | CX16: =scenarios!Z22 -> 4.012864611 | CY16: =scenarios!AH22 -> 4.497760239 | CZ16: =scenarios!AP22 -> 3.598371443 | DA16: =scenarios!AV22 -> 3.780945444 | DB16: =scenarios!BB22 -> 2.640918758 | DD16: 2018 | DE16: ='base data'!$L$18 -> 42.11268577 | DF16: ='base data'!$L$18 -> 42.11268577 | DG16: ='base data'!$L$18 -> 42.11268577 | DH16: ='base data'!$L$18 -> 42.11268577 | DI16: ='base data'!$L$18 -> 42.11268577 | DJ16: ='base data'!$L$18 -> 42.11268577 | DK16: ='base data'!$L$18 -> 42.11268577
BT17: 2027 | BU17: =scenarios!E23 -> 20.72571461 | BV17: =scenarios!L23 -> 35.84055549 | BW17: =scenarios!T23 -> 30.76296567 | BX17: =scenarios!AB23 -> 35.26816131 | BY17: =scenarios!AJ23 -> 27.20006937 | BZ17: =scenarios!AR23 -> 29.53962521 | CA17: =scenarios!AX23 -> 18.37152794 | CC17: 2027 | CD17: =IF($BU16>'goal seek'!$F$31,$BU17/$BU16-1,#N/A) -> -0.08731152545 | CE17: =IF(BV16>'goal seek'!$F$28,BV17/BV16-1,#N/A) -> -0.0413023752 | CF17: =IF(BW16>'goal seek'!$F$28,BW17/BW16-1,#N/A) -> -0.07182113422 | CG17: =IF(BX16>'goal seek'!$F$28,BX17/BX16-1,#N/A) -> -0.05061033489 | CH17: =IF(BY16>'goal seek'!$F$28,BY17/BY16-1,#N/A) -> -0.08478737553 | CI17: =IF(BZ16>'goal seek'!$F$28,BZ17/BZ16-1,#N/A) -> -0.05406226195 | CJ17: =IF(CA16>'goal seek'!$F$28,CA17/CA16-1,#N/A) -> -0.1577360392 | CL17: 2027 | CM17: -0.08731152545 | CN17: -0.0413023752 | CO17: -0.07182113422 | CP17: -0.05061033489 | CQ17: -0.08478737553 | CR17: -0.05406226195 | CS17: -0.1577360392 | CU17: 2027 | CV17: =scenarios!J23 -> 2.487161865 | CW17: =scenarios!R23 -> 4.300998278 | CX17: =scenarios!Z23 -> 3.691668854 | CY17: =scenarios!AH23 -> 4.232308875 | CZ17: =scenarios!AP23 -> 3.264108213 | DA17: =scenarios!AV23 -> 3.544863505 | DB17: =scenarios!BB23 -> 2.204650819 | DD17: =BT9 -> 2019 | DE17: =BU9 -> 43.04562157 | DF17: =BV9 -> 43.04562157 | DG17: =BW9 -> 43.04562157 | DH17: =BX9 -> 43.04562157 | DI17: =BY9 -> 43.04562157 | DJ17: 43.04562157 | DK17: =CA9 -> 43.04562157
BT18: 2028 | BU18: =scenarios!E24 -> 18.91612085 | BV18: =scenarios!L24 -> 34.02777093 | BW18: =scenarios!T24 -> 28.28184867 | BX18: =scenarios!AB24 -> 33.04478342 | BY18: =scenarios!AJ24 -> 24.74296394 | BZ18: =scenarios!AR24 -> 27.85137566 | CA18: =scenarios!AX24 -> 15.34411867 | CC18: 2028 | CD18: =IF($BU17>'goal seek'!$F$31,$BU18/$BU17-1,#N/A) -> -0.08731152545 | CE18: =IF(BV17>'goal seek'!$F$28,BV18/BV17-1,#N/A) -> -0.05057914226 | CF18: =IF(BW17>'goal seek'!$F$28,BW18/BW17-1,#N/A) -> -0.08065272482 | CG18: =IF(BX17>'goal seek'!$F$28,BX18/BX17-1,#N/A) -> -0.06304207006 | CH18: =IF(BY17>'goal seek'!$F$28,BY18/BY17-1,#N/A) -> -0.09033452801 | CI18: =IF(BZ17>'goal seek'!$F$28,BZ18/BZ17-1,#N/A) -> -0.05715202997 | CJ18: =IF(CA17>'goal seek'!$F$28,CA18/CA17-1,#N/A) -> -0.1647881044 | CL18: 2028 | CM18: -0.08731152545 | CN18: -0.05057914226 | CO18: -0.08065272482 | CP18: -0.06304207006 | CQ18: -0.09033452801 | CR18: -0.05715202997 | CS18: -0.1647881044 | CU18: 2028 | CV18: =scenarios!J24 -> 2.25034838 | CW18: =scenarios!R24 -> 4.048099492 | CX18: =scenarios!Z24 -> 3.364538261 | CY18: =scenarios!AH24 -> 3.931158795 | CZ18: =scenarios!AP24 -> 2.943536324 | DA18: =scenarios!AV24 -> 3.31332722 | DB18: =scenarios!BB24 -> 1.82540664 | DD18: 2020 | DE18: 39.28724269 | DF18: 42.61516535 | DG18: 42.61516535 | DH18: 42.61516535 | DI18: 42.61516535 | DJ18: 41.35737202 | DK18: 42.99502157
BT19: 2029 | BU19: =scenarios!E25 -> 17.26452548 | BV19: =scenarios!L25 -> 31.92010686 | BW19: =scenarios!T25 -> 25.7510668 | BX19: =scenarios!AB25 -> 30.495994 | BY19: =scenarios!AJ25 -> 22.37945081 | BZ19: =scenarios!AR25 -> 26.16312612 | CA19: =scenarios!AX25 -> 12.72552523 | CC19: 2029 | CD19: =IF($BU18>'goal seek'!$F$31,$BU19/$BU18-1,#N/A) -> -0.08731152545 | CE19: =IF(BV18>'goal seek'!$F$28,BV19/BV18-1,#N/A) -> -0.06193952816 | CF19: =IF(BW18>'goal seek'!$F$28,BW19/BW18-1,#N/A) -> -0.08948431542 | CG19: =IF(BX18>'goal seek'!$F$28,BX19/BX18-1,#N/A) -> -0.07713136992 | CH19: =IF(BY18>'goal seek'!$F$28,BY19/BY18-1,#N/A) -> -0.09552263585 | CI19: =IF(BZ18>'goal seek'!$F$28,BZ19/BZ18-1,#N/A) -> -0.06061637908 | CJ19: =IF(CA18>'goal seek'!$F$28,CA19/CA18-1,#N/A) -> -0.1706577938 | CL19: 2029 | CM19: -0.08731152545 | CN19: -0.06193952816 | CO19: -0.08948431542 | CP19: -0.07713136992 | CQ19: -0.09552263585 | CR19: -0.06061637908 | CS19: -0.1706577938 | CU19: 2029 | CV19: =scenarios!J25 -> 2.036472808 | CW19: =scenarios!R25 -> 3.765202219 | CX19: =scenarios!Z25 -> 3.037520341 | CY19: =scenarios!AH25 -> 3.597218043 | CZ19: =scenarios!AP25 -> 2.639814404 | DA19: =scenarios!AV25 -> 3.08612565 | DB19: =scenarios!BB25 -> 1.501065647 | DD19: 2021 | DE19: 35.8570136 | DF19: 42.09329742 | DG19: 41.81265401 | DH19: 42.153695 | DI19: 41.30507775 | DJ19: 39.66912248 | DK19: 41.2738495
BR20: 2030 | BS20: 2030 | BT20: 2030 | BU20: =scenarios!E26 -> 15.75713342 | BV20: =scenarios!L26 -> 29.49891803 | BW20: =scenarios!T26 -> 23.21932734 | BX20: =scenarios!AB26 -> 27.66357992 | BY20: =scenarios!AJ26 -> 20.13225119 | BZ20: =scenarios!AR26 -> 24.47487657 | CA20: =scenarios!AX26 -> 10.49067524 | CC20: 2030 | CD20: =IF($BU19>'goal seek'!$F$31,$BU20/$BU19-1,#N/A) -> -0.08731152545 | CE20: =IF(BV19>'goal seek'!$F$28,BV20/BV19-1,#N/A) -> -0.07585152648 | CF20: =IF(BW19>'goal seek'!$F$28,BW20/BW19-1,#N/A) -> -0.09831590603 | CG20: =IF(BX19>'goal seek'!$F$28,BX20/BX19-1,#N/A) -> -0.09287823447 | CH20: =IF(BY19>'goal seek'!$F$28,BY20/BY19-1,#N/A) -> -0.1004135283 | CI20: =IF(BZ19>'goal seek'!$F$28,BZ20/BZ19-1,#N/A) -> -0.064527822 | CJ20: =IF(CA19>'goal seek'!$F$28,CA20/CA19-1,#N/A) -> -0.1756194695 | CL20: 2030 | CM20: -0.08731152545 | CN20: -0.07585152648 | CO20: -0.09831590603 | CP20: -0.09287823447 | CQ20: -0.1004135283 | CR20: -0.064527822 | CS20: -0.1756194695 | CU20: 2030 | CV20: =scenarios!J26 -> 1.843265678 | CW20: =scenarios!R26 -> 3.450776336 | CX20: =scenarios!Z26 -> 2.716191327 | CY20: =scenarios!AH26 -> 3.236078926 | CZ20: =scenarios!AP26 -> 2.355065902 | DA20: =scenarios!AV26 -> 2.863065175 | DB20: =scenarios!BB26 -> 1.227196666 | DD20: 2022 | DE20: 32.72628304 | DF20: 41.46204099 | DG20: 40.65598298 | DH20: 41.5924131 | DI20: 39.40807212 | DJ20: 37.98087293 | DK20: 37.99048762
BT21: 2031 | BU21: =scenarios!E27 -> 14.38135407 | BV21: =scenarios!L27 -> 26.7588153 | BW21: =scenarios!T27 -> 20.73143454 | BX21: =scenarios!AB27 -> 24.61276664 | BY21: =scenarios!AJ27 -> 18.01729589 | BZ21: =scenarios!AR27 -> 22.78662703 | CA21: =scenarios!AX27 -> 8.603731095 | CC21: 2031 | CD21: =IF($BU20>'goal seek'!$F$31,$BU21/$BU20-1,#N/A) -> -0.08731152545 | CE21: =IF(BV20>'goal seek'!$F$28,BV21/BV20-1,#N/A) -> -0.09288824504 | CF21: =IF(BW20>'goal seek'!$F$28,BW21/BW20-1,#N/A) -> -0.1071474966 | CG21: =IF(BX20>'goal seek'!$F$28,BX21/BX20-1,#N/A) -> -0.1102826637 | CH21: =IF(BY20>'goal seek'!$F$28,BY21/BY20-1,#N/A) -> -0.1050530954 | CI21: =IF(BZ20>'goal seek'!$F$28,BZ21/BZ20-1,#N/A) -> -0.06897887882 | CJ21: =IF(CA20>'goal seek'!$F$28,CA21/CA20-1,#N/A) -> -0.1798687027 | CL21: 2031 | CM21: -0.08731152545 | CN21: -0.09288824504 | CO21: -0.1071474966 | CP21: -0.1102826637 | CQ21: -0.1050530954 | CR21: -0.06897887882 | CS21: -0.1798687027 | CU21: 2031 | CV21: =scenarios!J27 -> 1.668690053 | CW21: =scenarios!R27 -> 3.104865419 | CX21: =scenarios!Z27 -> 2.405499402 | CY21: =scenarios!AH27 -> 2.855856179 | CZ21: =scenarios!AP27 -> 2.090573828 | DA21: =scenarios!AV27 -> 2.643966464 | DB21: =scenarios!BB27 -> 0.9983038058 | DD21: 2023 | DE21: 29.86890135 | DF21: 40.70059348 | DG21: 39.17225216 | DH21: 40.86624945 | DI21: 37.18619925 | DJ21: 36.29262339 | DK21: 33.97345185
BT22: 2032 | BU22: =scenarios!E28 -> 13.12569611 | BV22: =scenarios!L28 -> 23.71495952 | BW22: =scenarios!T28 -> 18.32702169 | BX22: =scenarios!AB28 -> 21.42923677 | BY22: =scenarios!AJ28 -> 16.04482523 | BZ22: =scenarios!AR28 -> 21.09837748 | CA22: =scenarios!AX28 -> 7.024527754 | CC22: 2032 | CD22: =IF($BU21>'goal seek'!$F$31,$BU22/$BU21-1,#N/A) -> -0.08731152545 | CE22: =IF(BV21>'goal seek'!$F$28,BV22/BV21-1,#N/A) -> -0.1137515152 | CF22: =IF(BW21>'goal seek'!$F$28,BW22/BW21-1,#N/A) -> -0.1159790872 | CG22: =IF(BX21>'goal seek'!$F$28,BX22/BX21-1,#N/A) -> -0.1293446576 | CH22: =IF(BY21>'goal seek'!$F$28,BY22/BY21-1,#N/A) -> -0.1094765088 | CI22: =IF(BZ21>'goal seek'!$F$28,BZ22/BZ21-1,#N/A) -> -0.07408948868 | CJ22: =IF(CA21>'goal seek'!$F$28,CA22/CA21-1,#N/A) -> -0.1835486631 | CL22: 2032 | CM22: -0.08731152545 | CN22: -0.1137515152 | CO22: -0.1159790872 | CP22: -0.1293446576 | CQ22: -0.1094765088 | CR22: -0.07408948868 | CS22: -0.1835486631 | CU22: 2032 | CV22: =scenarios!J28 -> 1.510918826 | CW22: =scenarios!R28 -> 2.72986503 | CX22: =scenarios!Z28 -> 2.109651318 | CY22: =scenarios!AH28 -> 2.466752011 | CZ22: =scenarios!AP28 -> 1.846944216 | DA22: =scenarios!AV28 -> 2.428666296 | DB22: =scenarios!BB28 -> 0.8086040651 | DD22: 2024 | DE22: 27.26100201 | DF22: 39.78524498 | DG22: 37.39671646 | DH22: 39.91567934 | DI22: 34.77359842 | DJ22: 34.60437384 | DK22: 29.74830715
BT23: 2033 | BU23: =scenarios!E29 -> 11.97967156 | BV23: =scenarios!L29 -> 20.41144659 | BW23: =scenarios!T29 -> 16.03961369 | BX23: =scenarios!AB29 -> 18.21347515 | BY23: =scenarios!AJ29 -> 14.22034522 | BZ23: =scenarios!AR29 -> 19.41012794 | CA23: =scenarios!AX29 -> 5.712580816 | CC23: 2033 | CD23: =IF($BU22>'goal seek'!$F$31,$BU23/$BU22-1,#N/A) -> -0.08731152545 | CE23: =IF(BV22>'goal seek'!$F$28,BV23/BV22-1,#N/A) -> -0.1393008039 | CF23: =IF(BW22>'goal seek'!$F$28,BW23/BW22-1,#N/A) -> -0.1248106778 | CG23: =IF(BX22>'goal seek'!$F$28,BX23/BX22-1,#N/A) -> -0.1500642163 | CH23: =IF(BY22>'goal seek'!$F$28,BY23/BY22-1,#N/A) -> -0.1137114297 | CI23: =IF(BZ22>'goal seek'!$F$28,BZ23/BZ22-1,#N/A) -> -0.08001797989 | CJ23: =IF(CA22>'goal seek'!$F$28,CA23/CA22-1,#N/A) -> -0.1867665676 | CL23: 2033 | CM23: -0.08731152545 | CN23: -0.1393008039 | CO23: -0.1248106778 | CP23: -0.1500642163 | CQ23: -0.1137114297 | CR23: -0.08001797989 | CS23: -0.1867665676 | CU23: 2033 | CV23: =scenarios!J29 -> 1.368310382 | CW23: =scenarios!R29 -> 2.331382305 | CX23: =scenarios!Z29 -> 1.832034362 | CY23: =scenarios!AH29 -> 2.08033142 | CZ23: =scenarios!AP29 -> 1.624238687 | DA23: =scenarios!AV29 -> 2.217012332 | DB23: =scenarios!BB29 -> 0.6524873077 | DD23: 2025 | DE23: 24.88080234 | DF23: 38.68951335 | DG23: 35.37138685 | DH23: 38.68948729 | DI23: 32.26201067 | DJ23: 32.9161243 | DK23: 25.63425746
BT24: 2034 | BU24: =scenarios!E30 -> 10.93370816 | BV24: =scenarios!L30 -> 16.92948609 | BW24: =scenarios!T30 -> 13.89604333 | BX24: =scenarios!AB30 -> 15.07271909 | BY24: =scenarios!AJ30 -> 12.54547183 | BZ24: =scenarios!AR30 -> 17.72187839 | CA24: =scenarios!AX30 -> 4.629450934 | CC24: 2034 | CD24: =IF($BU23>'goal seek'!$F$31,$BU24/$BU23-1,#N/A) -> -0.08731152545 | CE24: =IF(BV23>'goal seek'!$F$28,BV24/BV23-1,#N/A) -> -0.1705886198 | CF24: =IF(BW23>'goal seek'!$F$28,BW24/BW23-1,#N/A) -> -0.1336422684 | CG24: =IF(BX23>'goal seek'!$F$28,BX24/BX23-1,#N/A) -> -0.1724413396 | CH24: =IF(BY23>'goal seek'!$F$28,BY24/BY23-1,#N/A) -> -0.1177800793 | CI24: =IF(BZ23>'goal seek'!$F$28,BZ24/BZ23-1,#N/A) -> -0.08697776494 | CJ24: =IF(CA23>'goal seek'!$F$28,CA24/CA23-1,#N/A) -> -0.1896042991 | CL24: 2034 | CM24: -0.08731152545 | CN24: -0.1705886198 | CO24: -0.1336422684 | CP24: -0.1724413396 | CQ24: -0.1177800793 | CR24: -0.08697776494 | CS24: -0.1896042991 | CU24: 2034 | CV24: =scenarios!J30 -> 1.23938771 | CW24: =scenarios!R30 -> 1.919037593 | CX24: =scenarios!Z30 -> 1.57518246 | CY24: =scenarios!AH30 -> 1.708564242 | CZ24: =scenarios!AP30 -> 1.422088771 | DA24: =scenarios!AV30 -> 2.008859021 | DB24: =scenarios!BB30 -> 0.5247702342 | DD24: 2026 | DE24: 22.70842153 | DF24: 37.38462948 | DG24: 33.14335933 | DH24: 37.14824651 | DI24: 29.71994555 | DJ24: 31.22787475 | DK24: 21.81207886
BR25: 2035 | BT25: 2035 | BU25: =scenarios!E31 -> 9.979069421 | BV25: =scenarios!L31 -> 13.39285091 | BW25: =scenarios!T31 -> 11.91622041 | BX25: =scenarios!AB31 -> 12.11129112 | BY25: =scenarios!AJ31 -> 11.01868003 | BZ25: =scenarios!AR31 -> 16.03362885 | CA25: =scenarios!AX31 -> 3.740015488 | CC25: 2035 | CD25: =IF($BU24>'goal seek'!$F$31,$BU25/$BU24-1,#N/A) -> -0.08731152545 | CE25: =IF(BV24>'goal seek'!$F$28,BV25/BV24-1,#N/A) -> -0.2089038711 | CF25: =IF(BW24>'goal seek'!$F$28,BW25/BW24-1,#N/A) -> -0.142473859 | CG25: =IF(BX24>'goal seek'!$F$28,BX25/BX24-1,#N/A) -> -0.1964760276 | CH25: =IF(BY24>'goal seek'!$F$28,BY25/BY24-1,#N/A) -> -0.1217006283 | CI25: =IF(BZ24>'goal seek'!$F$28,BZ25/BZ24-1,#N/A) -> -0.09526357804 | CJ25: =IF(CA24>'goal seek'!$F$28,CA25/CA24-1,#N/A) -> -0.1921254721 | CL25: 2035 | CM25: -0.08731152545 | CN25: -0.2089038711 | CO25: -0.142473859 | CP25: -0.1964760276 | CQ25: -0.1217006283 | CR25: -0.09526357804 | CS25: -0.1921254721 | CU25: 2035 | CV25: =scenarios!J31 -> 1.122817692 | CW25: =scenarios!R31 -> 1.50692708 | CX25: =scenarios!Z31 -> 1.340780641 | CY25: =scenarios!AH31 -> 1.362729466 | CZ25: =scenarios!AP31 -> 1.239791843 | DA25: =scenarios!AV31 -> 1.804060215 | DB25: =scenarios!BB31 -> 0.4208163487 | DD25: 2027 | DE25: 20.72571461 | DF25: 35.84055549 | DG25: 30.76296567 | DH25: 35.26816131 | DI25: 27.20006937 | DJ25: 29.53962521 | DK25: 18.37152794
BT26: 2036 | BU26: =scenarios!E32 -> 9.107781648 | BV26: =scenarios!L32 -> 9.966625318 | BW26: =scenarios!T32 -> 10.11323132 | BX26: =scenarios!AB32 -> 9.420546401 | BY26: =scenarios!AJ32 -> 9.635966139 | BZ26: =scenarios!AR32 -> 14.3453793 | CA26: =scenarios!AX32 -> 3.013030313 | CC26: 2036 | CD26: =IF($BU25>'goal seek'!$F$31,$BU26/$BU25-1,#N/A) -> -0.08731152545 | CE26: =IF(BV25>'goal seek'!$F$28,BV26/BV25-1,#N/A) -> -0.2558249632 | CF26: =IF(BW25>'goal seek'!$F$28,BW26/BW25-1,#N/A) -> -0.1513054496 | CG26: =IF(BX25>'goal seek'!$F$28,BX26/BX25-1,#N/A) -> -0.2221682803 | CH26: =IF(BY25>'goal seek'!$F$28,BY26/BY25-1,#N/A) -> -0.1254881605 | CI26: =IF(BZ25>'goal seek'!$F$28,BZ26/BZ25-1,#N/A) -> -0.1052942887 | CJ26: =IF(CA25>'goal seek'!$F$28,CA26/CA25-1,#N/A) -> -0.1943802579 | CL26: 2036 | CM26: -0.08731152545 | CN26: -0.2558249632 | CO26: -0.1513054496 | CP26: -0.2221682803 | CQ26: -0.1254881605 | CR26: -0.1052942887 | CS26: -0.1943802579 | CU26: 2036 | CV26: =scenarios!J32 -> 1.01739632 | CW26: =scenarios!R32 -> 1.113334543 | CX26: =scenarios!Z32 -> 1.129711353 | CY26: =scenarios!AH32 -> 1.052334104 | CZ26: =scenarios!AP32 -> 1.07639784 | DA26: =scenarios!AV32 -> 1.60246882 | DB26: =scenarios!BB32 -> 0.336574379 | DD26: 2028 | DE26: 18.91612085 | DF26: 34.02777093 | DG26: 28.28184867 | DH26: 33.04478342 | DI26: 24.74296394 | DJ26: 27.85137566 | DK26: 15.34411867
BT27: 2037 | BU27: =scenarios!E33 -> 8.312567338 | BV27: =scenarios!L33 -> 6.844232892 | BW27: =scenarios!T33 -> 8.493728392 | BX27: =scenarios!AB33 -> 7.069949585 | BY27: =scenarios!AJ33 -> 8.391429453 | BZ27: =scenarios!AR33 -> 12.65712976 | CA27: =scenarios!AX33 -> 2.421244772 | CC27: 2037 | CD27: =IF($BU26>'goal seek'!$F$31,$BU27/$BU26-1,#N/A) -> -0.08731152545 | CE27: =IF(BV26>'goal seek'!$F$28,BV27/BV26-1,#N/A) -> -0.3132848207 | CF27: =IF(BW26>'goal seek'!$F$28,BW27/BW26-1,#N/A) -> -0.1601370402 | CG27: =IF(BX26>'goal seek'!$F$28,BX27/BX26-1,#N/A) -> -0.2495180976 | CH27: =IF(BY26>'goal seek'!$F$28,BY27/BY26-1,#N/A) -> -0.129155361 | CI27: =IF(BZ26>'goal seek'!$F$28,BZ27/BZ26-1,#N/A) -> -0.1176859468 | CJ27: =IF(CA26>'goal seek'!$F$28,CA27/CA26-1,#N/A) -> -0.1964087577 | CL27: 2037 | CM27: -0.08731152545 | CN27: -0.3132848207 | CO27: -0.1601370402 | CP27: -0.2495180976 | CQ27: -0.129155361 | CR27: -0.1176859468 | CS27: -0.1964087577 | CU27: 2037 | CV27: =scenarios!J33 -> 0.9220370279 | CW27: =scenarios!R33 -> 0.7591681243 | CX27: =scenarios!Z33 -> 0.9421315657 | CY27: =scenarios!AH33 -> 0.7842048114 | CZ27: =scenarios!AP33 -> 0.9307844806 | DA27: =scenarios!AV33 -> 1.40393958 | DB27: =scenarios!BB33 -> 0.2685665261 | DD27: 2029 | DE27: 17.26452548 | DF27: 31.92010686 | DG27: 25.7510668 | DH27: 30.495994 | DI27: 22.37945081 | DJ27: 26.16312612 | DK27: 12.72552523
BT28: 2038 | BU28: =scenarios!E34 -> 7.586784404 | BV28: =scenarios!L34 -> 4.218439419 | BW28: =scenarios!T34 -> 7.058554735 | BX28: =scenarios!AB34 -> 5.100788485 | BY28: =scenarios!AJ34 -> 7.277777521 | BZ28: =scenarios!AR34 -> 10.96888021 | CA28: =scenarios!AX34 -> 1.941248956 | CC28: 2038 | CD28: =IF($BU27>'goal seek'!$F$31,$BU28/$BU27-1,#N/A) -> -0.08731152545 | CE28: =IF(BV27>'goal seek'!$F$28,BV28/BV27-1,#N/A) -> -0.3836505149 | CF28: =IF(BW27>'goal seek'!$F$28,BW28/BW27-1,#N/A) -> -0.1689686308 | CG28: =IF(BX27>'goal seek'!$F$28,BX28/BX27-1,#N/A) -> -0.2785254797 | CH28: =IF(BY27>'goal seek'!$F$28,BY28/BY27-1,#N/A) -> -0.1327130185 | CI28: =IF(BZ27>'goal seek'!$F$28,BZ28/BZ27-1,#N/A) -> -0.133383285 | CJ28: =IF(CA27>'goal seek'!$F$28,CA28/CA27-1,#N/A) -> -0.1982434083 | CL28: 2038 | CM28: -0.08731152545 | CN28: -0.3836505149 | CO28: -0.1689686308 | CP28: -0.2785254797 | CQ28: -0.1327130185 | CR28: -0.133383285 | CS28: -0.1982434083 | CU28: 2038 | CV28: =scenarios!J34 -> 0.8357612269 | CW28: =scenarios!R34 -> 0.4647038741 | CX28: =scenarios!Z34 -> 0.7775713729 | CY28: =scenarios!AH34 -> 0.5619035701 | CZ28: =scenarios!AP34 -> 0.8017209856 | DA28: =scenarios!AV34 -> 1.208333372 | DB28: =scenarios!BB34 -> 0.2138482555 | DD28: 2030 | DE28: 15.75713342 | DF28: 29.49891803 | DG28: 23.21932734 | DH28: 27.66357992 | DI28: 20.13225119 | DJ28: 24.47487657 | DK28: 10.49067524
BT29: 2039 | BU29: =scenarios!E35 -> 6.924370684 | BV29: =scenarios!L35 -> 2.236528938 | BW29: =scenarios!T35 -> 5.80354214 | BX29: =scenarios!AB35 -> 3.523673518 | BY29: =scenarios!AJ35 -> 6.286759647 | BZ29: =scenarios!AR35 -> 9.280630666 | CA29: =scenarios!AX35 -> 1.553172461 | CC29: 2039 | CD29: =IF($BU28>'goal seek'!$F$31,$BU29/$BU28-1,#N/A) -> -0.08731152545 | CE29: =IF(BV28>'goal seek'!$F$28,BV29/BV28-1,#N/A) -> -0.4698207761 | CF29: =IF(BW28>'goal seek'!$F$28,BW29/BW28-1,#N/A) -> -0.1778002214 | CG29: =IF(BX28>'goal seek'!$F$28,BX29/BX28-1,#N/A) -> -0.3091904264 | CH29: =IF(BY28>'goal seek'!$F$28,BY29/BY28-1,#N/A) -> -0.1361703997 | CI29: =IF(BZ28>'goal seek'!$F$28,BZ29/BZ28-1,#N/A) -> -0.1539126613 | CJ29: =IF(CA28>'goal seek'!$F$28,CA29/CA28-1,#N/A) ->  | CL29: 2039 | CM29: -0.08731152545 | CN29: -0.4698207761 | CO29: -0.1778002214 | CP29: -0.3091904264 | CQ29: -0.1361703997 | CR29: -0.1539126613 | CS29: 0 | CU29: 2039 | CV29: =scenarios!J35 -> 0.757686908 | CW29: =scenarios!R35 -> 0.2447281887 | CX29: =scenarios!Z35 -> 0.6350422442 | CY29: =scenarios!AH35 -> 0.3855716879 | CZ29: =scenarios!AP35 -> 0.6879174578 | DA29: =scenarios!AV35 -> 1.015516453 | DB29: =scenarios!BB35 -> 0.1699531254 | DD29: 2031 | DE29: 14.38135407 | DF29: 26.7588153 | DG29: 20.73143454 | DH29: 24.61276664 | DI29: 18.01729589 | DJ29: 22.78662703 | DK29: 8.603731095
BR30: 2040 | BS30: 2040 | BT30: 2040 | BU30: =scenarios!E36 -> 6.319793317 | BV30: =scenarios!L36 -> 0.9497522858 | BW30: =scenarios!T36 -> 4.720416554 | BX30: =scenarios!AB36 -> 2.320293423 | BY30: =scenarios!AJ36 -> 5.409533281 | BZ30: =scenarios!AR36 -> 7.592381121 | CA30: =scenarios!AX36 -> 1.24031287 | CC30: 2040 | CD30: =IF($BU29>'goal seek'!$F$31,$BU30/$BU29-1,#N/A) -> -0.08731152545 | CE30: =IF(BV29>'goal seek'!$F$28,BV30/BV29-1,#N/A) -> -0.575345407 | CF30: =IF(BW29>'goal seek'!$F$28,BW30/BW29-1,#N/A) -> -0.1866318121 | CG30: =IF(BX29>'goal seek'!$F$28,BX30/BX29-1,#N/A) -> -0.3415129379 | CH30: =IF(BY29>'goal seek'!$F$28,BY30/BY29-1,#N/A) -> -0.1395355342 | CI30: =IF(BZ29>'goal seek'!$F$28,BZ30/BZ29-1,#N/A) -> -0.1819110797 | CJ30: =IF(CA29>'goal seek'!$F$28,CA30/CA29-1,#N/A) ->  | CL30: 2040 | CM30: -0.08731152545 | CN30: -0.575345407 | CO30: -0.1866318121 | CP30: -0.3415129379 | CQ30: -0.1395355342 | CR30: -0.1819110797 | CS30: 0 | CU30: 2040 | CV30: =scenarios!J36 -> 0.6870201398 | CW30: =scenarios!R36 -> 0.1032468809 | CX30: =scenarios!Z36 -> 0.5131530539 | CY30: =scenarios!AH36 -> 0.2522374122 | CZ30: =scenarios!AP36 -> 0.5880664327 | DA30: =scenarios!AV36 -> 0.8253622354 | DB30: =scenarios!BB36 -> 0.134833511 | DD30: 2032 | DE30: 13.12569611 | DF30: 23.71495952 | DG30: 18.32702169 | DH30: 21.42923677 | DI30: 16.04482523 | DJ30: 21.09837748 | DK30: 7.024527754
BT31: 2041 | BU31: =scenarios!E37 -> 5.768002522 | BV31: =scenarios!L37 -> -0.337024366 | BW31: =scenarios!T37 -> 3.797747872 | BX31: =scenarios!AB37 -> 1.449039452 | BY31: =scenarios!AJ37 -> 4.636968439 | BZ31: =scenarios!AR37 -> 5.904131576 | CA31: =scenarios!AX37 -> 0.988743561 | CC31: 2041 | CD31: =IF($BU30>'goal seek'!$F$31,$BU31/$BU30-1,#N/A) -> -0.08731152545 | CE31: =IF(BV30>'goal seek'!$F$28,BV31/BV30-1,#N/A) ->  | CF31: =IF(BW30>'goal seek'!$F$28,BW31/BW30-1,#N/A) -> -0.1954634027 | CG31: =IF(BX30>'goal seek'!$F$28,BX31/BX30-1,#N/A) -> -0.375493014 | CH31: =IF(BY30>'goal seek'!$F$28,BY31/BY30-1,#N/A) -> -0.1428154338 | CI31: =IF(BZ30>'goal seek'!$F$28,BZ31/BZ30-1,#N/A) -> -0.2223610114 | CJ31: =IF(CA30>'goal seek'!$F$28,CA31/CA30-1,#N/A) ->  | CL31: 2041 | CM31: -0.08731152545 | CN31: 0 | CO31: -0.1954634027 | CP31: -0.375493014 | CQ31: -0.1428154338 | CR31: -0.2223610114 | CS31: 0 | CU31: 2041 | CV31: =scenarios!J37 -> 0.6230461293 | CW31: =scenarios!R37 -> -0.03640458303 | CX31: =scenarios!Z37 -> 0.4102238345 | CY31: =scenarios!AH37 -> 0.1565218494 | CZ31: =scenarios!AP37 -> 0.5008744755 | DA31: =scenarios!AV37 -> 0.6377504711 | DB31: =scenarios!BB37 -> 0.1068017648 | DD31: 2033 | DE31: 11.97967156 | DF31: 20.41144659 | DG31: 16.03961369 | DH31: 18.21347515 | DI31: 14.22034522 | DJ31: 19.41012794 | DK31: 5.712580816
BT32: 2042 | BU32: =scenarios!E38 -> 5.264389423 | BV32: =scenarios!L38 -> -1.623801018 | BW32: =scenarios!T38 -> 3.021886996 | BX32: =scenarios!AB38 -> 0.5777854813 | BY32: =scenarios!AJ38 -> 3.959895627 | BZ32: =scenarios!AR38 -> 4.215882031 | CA32: =scenarios!AX38 -> 0.7869310254 | CC32: 2042 | CD32: =IF($BU31>'goal seek'!$F$31,$BU32/$BU31-1,#N/A) -> -0.08731152545 | CE32: =IF(BV31>'goal seek'!$F$28,BV32/BV31-1,#N/A) ->  | CF32: =IF(BW31>'goal seek'!$F$28,BW32/BW31-1,#N/A) -> -0.2042949933 | CG32: =IF(BX31>'goal seek'!$F$28,BX32/BX31-1,#N/A) ->  | CH32: =IF(BY31>'goal seek'!$F$28,BY32/BY31-1,#N/A) -> -0.1460162649 | CI32: =IF(BZ31>'goal seek'!$F$28,BZ32/BZ31-1,#N/A) -> -0.2859437537 | CJ32: =IF(CA31>'goal seek'!$F$28,CA32/CA31-1,#N/A) ->  | CL32: 2042 | CM32: -0.08731152545 | CN32: 0 | CO32: -0.2042949933 | CP32: 0 | CQ32: -0.1460162649 | CR32: -0.2859437537 | CS32: 0 | CU32: 2042 | CV32: =scenarios!J38 -> 0.5651210213 | CW32: =scenarios!R38 -> -0.1743115898 | CX32: =scenarios!Z38 -> 0.3243931496 | CY32: =scenarios!AH38 -> 0.06202404401 | CZ32: =scenarios!AP38 -> 0.4250863834 | DA32: =scenarios!AV38 -> 0.4525659801 | DB32: =scenarios!BB38 -> 0.08447537388 | DD32: 2034 | DE32: 10.93370816 | DF32: 16.92948609 | DG32: 13.89604333 | DH32: 15.07271909 | DI32: 12.54547183 | DJ32: 17.72187839 | DK32: 4.629450934
BT33: 2043 | BU33: =scenarios!E39 -> 4.804747552 | BV33: =scenarios!L39 -> -2.91057767 | BW33: =scenarios!T39 -> 2.377842544 | BX33: =scenarios!AB39 -> -0.2934684895 | BY33: =scenarios!AJ39 -> 3.369302996 | BZ33: =scenarios!AR39 -> 2.527632486 | CA33: =scenarios!AX39 -> 0.6253788624 | CC33: 2043 | CD33: =IF($BU32>'goal seek'!$F$31,$BU33/$BU32-1,#N/A) -> -0.08731152545 | CE33: =IF(BV32>'goal seek'!$F$28,BV33/BV32-1,#N/A) ->  | CF33: =IF(BW32>'goal seek'!$F$28,BW33/BW32-1,#N/A) -> -0.2131265839 | CG33: =IF(BX32>'goal seek'!$F$28,BX33/BX32-1,#N/A) ->  | CH33: =IF(BY32>'goal seek'!$F$28,BY33/BY32-1,#N/A) -> -0.1491434841 | CI33: =IF(BZ32>'goal seek'!$F$28,BZ33/BZ32-1,#N/A) -> -0.4004499018 | CJ33: =IF(CA32>'goal seek'!$F$28,CA33/CA32-1,#N/A) ->  | CL33: 2043 | CM33: -0.08731152545 | CN33: 0 | CO33: -0.2131265839 | CP33: 0 | CQ33: -0.1491434841 | CR33: -0.4004499018 | CS33: 0 | CU33: 2043 | CV33: =scenarios!J39 -> 0.5126639951 | CW33: =scenarios!R39 -> -0.3105570813 | CX33: =scenarios!Z39 -> 0.2537145282 | CY33: =scenarios!AH39 -> -0.03131293093 | CZ33: =scenarios!AP39 -> 0.3595028284 | DA33: =scenarios!AV39 -> 0.2696970349 | DB33: =scenarios!BB39 -> 0.06672759029 | DD33: 2035 | DE33: 9.979069421 | DF33: 13.39285091 | DG33: 11.91622041 | DH33: 12.11129112 | DI33: 11.01868003 | DJ33: 16.03362885 | DK33: 3.740015488
BT34: 2044 | BU34: =scenarios!E40 -> 4.385237714 | BV34: =scenarios!L40 -> -3.5 | BW34: =scenarios!T40 -> 1.850060954 | BX34: =scenarios!AB40 -> -1.16472246 | BY34: =scenarios!AJ40 -> 2.856488517 | BZ34: =scenarios!AR40 -> 0.8393829406 | CA34: =scenarios!AX40 -> 0.4963070143 | CC34: 2044 | CD34: =IF($BU33>'goal seek'!$F$31,$BU34/$BU33-1,#N/A) -> -0.08731152545 | CE34: =IF(BV33>'goal seek'!$F$28,BV34/BV33-1,#N/A) ->  | CF34: =IF(BW33>'goal seek'!$F$28,BW34/BW33-1,#N/A) -> -0.2219581745 | CG34: =IF(BX33>'goal seek'!$F$28,BX34/BX33-1,#N/A) ->  | CH34: =IF(BY33>'goal seek'!$F$28,BY34/BY33-1,#N/A) -> -0.152201948 | CI34: =IF(BZ33>'goal seek'!$F$28,BZ34/BZ33-1,#N/A) -> -0.6679173316 | CJ34: =IF(CA33>'goal seek'!$F$28,CA34/CA33-1,#N/A) ->  | CL34: 2044 | CM34: -0.08731152545 | CN34: 0 | CO34: -0.2219581745 | CP34: 0 | CQ34: -0.152201948 | CR34: -0.6679173316 | CS34: 0 | CU34: 2044 | CV34: =scenarios!J40 -> 0.4651510962 | CW34: =scenarios!R40 -> -0.3712521289 | CX34: =scenarios!Z40 -> 0.1962397336 | CY34: =scenarios!AH40 -> -0.1235444837 | CZ34: =scenarios!AP40 -> 0.3029935551 | DA34: =scenarios!AV40 -> 0.08903505818 | DB34: =scenarios!BB40 -> 0.0526442959 | DD34: 2036 | DE34: 9.107781648 | DF34: 9.966625318 | DG34: 10.11323132 | DH34: 9.420546401 | DI34: 9.635966139 | DJ34: 14.3453793 | DK34: 3.013030313
BR35: 2045 | BT35: 2045 | BU35: =scenarios!E41 -> 4.00235592 | BV35: =scenarios!L41 -> -3.5 | BW35: =scenarios!T41 -> 1.322279364 | BX35: =scenarios!AB41 -> -2.035976431 | BY35: =scenarios!AJ41 -> 2.41317292 | BZ35: =scenarios!AR41 -> -0.8488666045 | CA35: =scenarios!AX41 -> 0.3933693239 | CC35: 2045 | CD35: =IF($BU34>'goal seek'!$F$31,$BU35/$BU34-1,#N/A) -> -0.08731152545 | CE35: =IF(BV34>'goal seek'!$F$28,BV35/BV34-1,#N/A) ->  | CF35: =IF(BW34>'goal seek'!$F$28,BW35/BW34-1,#N/A) ->  | CG35: =IF(BX34>'goal seek'!$F$28,BX35/BX34-1,#N/A) ->  | CH35: =IF(BY34>'goal seek'!$F$28,BY35/BY34-1,#N/A) -> -0.1551960016 | CI35: =IF(BZ34>'goal seek'!$F$28,BZ35/BZ34-1,#N/A) ->  | CJ35: =IF(CA34>'goal seek'!$F$28,CA35/CA34-1,#N/A) ->  | CL35: 2045 | CM35: -0.08731152545 | CN35: 0 | CO35: 0 | CP35: 0 | CQ35: -0.1551960016 | CR35: 0 | CS35: 0 | CU35: 2045 | CV35: =scenarios!J41 -> 0.4221091499 | CW35: =scenarios!R41 -> -0.3691280971 | CX35: =scenarios!Z41 -> 0.1394544187 | CY35: =scenarios!AH41 -> -0.2147246017 | CZ35: =scenarios!AP41 -> 0.2545056938 | DA35: =scenarios!AV41 -> -0.08952586127 | DB35: =scenarios!BB41 -> 0.04148676286 | DD35: 2037 | DE35: 8.312567338 | DF35: 6.844232892 | DG35: 8.493728392 | DH35: 7.069949585 | DI35: 8.391429453 | DJ35: 12.65712976 | DK35: 2.421244772
BT36: 2046 | BU36: =scenarios!E42 -> 3.652904119 | BV36: =scenarios!L42 -> -3.5 | BW36: =scenarios!T42 -> 0.7944977733 | BX36: =scenarios!AB42 -> -2.907230402 | BY36: =scenarios!AJ42 -> 2.031578971 | BZ36: =scenarios!AR42 -> -2.53711615 | CA36: =scenarios!AX42 -> 0.3114091017 | CC36: 2046 | CD36: =IF($BU35>'goal seek'!$F$31,$BU36/$BU35-1,#N/A) -> -0.08731152545 | CE36: =IF(BV35>'goal seek'!$F$28,BV36/BV35-1,#N/A) ->  | CF36: =IF(BW35>'goal seek'!$F$28,BW36/BW35-1,#N/A) ->  | CG36: =IF(BX35>'goal seek'!$F$28,BX36/BX35-1,#N/A) ->  | CH36: =IF(BY35>'goal seek'!$F$28,BY36/BY35-1,#N/A) -> -0.1581295505 | CI36: =IF(BZ35>'goal seek'!$F$28,BZ36/BZ35-1,#N/A) ->  | CJ36: =IF(CA35>'goal seek'!$F$28,CA36/CA35-1,#N/A) ->  | CL36: 2046 | CM36: -0.08731152545 | CN36: 0 | CO36: 0 | CP36: 0 | CQ36: -0.1581295505 | CR36: 0 | CS36: 0 | CU36: 2046 | CV36: =scenarios!J42 -> 0.3831106173 | CW36: =scenarios!R42 -> -0.3670742831 | CX36: =scenarios!Z42 -> 0.08332562872 | CY36: =scenarios!AH42 -> -0.3049055758 | CZ36: =scenarios!AP42 -> 0.2130686841 | DA36: =scenarios!AV42 -> -0.2660885976 | DB36: =scenarios!BB42 -> 0.03266007793 | DD36: 2038 | DE36: 7.586784404 | DF36: 4.218439419 | DG36: 7.058554735 | DH36: 5.100788485 | DI36: 7.277777521 | DJ36: 10.96888021 | DK36: 1.941248956
BT37: 2047 | BU37: =scenarios!E43 -> 3.333963488 | BV37: =scenarios!L43 -> -3.5 | BW37: =scenarios!T43 -> 0.2667161831 | BX37: =scenarios!AB43 -> -3.5 | BY37: =scenarios!AJ43 -> 1.704482322 | BZ37: =scenarios!AR43 -> -3.5 | CA37: =scenarios!AX43 -> 0.2462504257 | CC37: 2047 | CD37: =IF($BU36>'goal seek'!$F$31,$BU37/$BU36-1,#N/A) -> -0.08731152545 | CE37: =IF(BV36>'goal seek'!$F$28,BV37/BV36-1,#N/A) ->  | CF37: =IF(BW36>'goal seek'!$F$28,BW37/BW36-1,#N/A) ->  | CG37: =IF(BX36>'goal seek'!$F$28,BX37/BX36-1,#N/A) ->  | CH37: =IF(BY36>'goal seek'!$F$28,BY37/BY36-1,#N/A) -> -0.161006121 | CI37: =IF(BZ36>'goal seek'!$F$28,BZ37/BZ36-1,#N/A) ->  | CJ37: =IF(CA36>'goal seek'!$F$28,CA37/CA36-1,#N/A) ->  | CL37: 2047 | CM37: -0.08731152545 | CN37: 0 | CO37: 0 | CP37: 0 | CQ37: -0.161006121 | CR37: 0 | CS37: 0 | CU37: 2047 | CV37: =scenarios!J43 -> 0.3477693795 | CW37: =scenarios!R43 -> -0.3650888298 | CX37: =scenarios!Z43 -> 0.02782145691 | CY37: =scenarios!AH43 -> -0.3650888298 | CZ37: =scenarios!AP43 -> 0.177796416 | DA37: =scenarios!AV43 -> -0.3650888298 | DB37: =scenarios!BB43 -> 0.02568665135 | DD37: 2039 | DE37: 6.924370684 | DF37: 2.236528938 | DG37: 5.80354214 | DH37: 3.523673518 | DI37: 6.286759647 | DJ37: 9.280630666 | DK37: 1.553172461
BT38: 2048 | BU38: =scenarios!E44 -> 3.04287005 | BV38: =scenarios!L44 -> -3.5 | BW38: =scenarios!T44 -> -0.2610654071 | BX38: =scenarios!AB44 -> -3.5 | BY38: =scenarios!AJ44 -> 1.377385672 | BZ38: =scenarios!AR44 -> -3.5 | CA38: =scenarios!AX44 -> 0.1945218688 | CC38: 2048 | CD38: =IF($BU37>'goal seek'!$F$31,$BU38/$BU37-1,#N/A) -> -0.08731152545 | CE38: =IF(BV37>'goal seek'!$F$28,BV38/BV37-1,#N/A) ->  | CF38: =IF(BW37>'goal seek'!$F$28,BW38/BW37-1,#N/A) ->  | CG38: =IF(BX37>'goal seek'!$F$28,BX38/BX37-1,#N/A) ->  | CH38: =IF(BY37>'goal seek'!$F$28,BY38/BY37-1,#N/A) ->  | CI38: =IF(BZ37>'goal seek'!$F$28,BZ38/BZ37-1,#N/A) ->  | CJ38: =IF(CA37>'goal seek'!$F$28,CA38/CA37-1,#N/A) ->  | CL38: 2048 | CM38: -0.08731152545 | CN38: 0 | CO38: 0 | CP38: 0 | CQ38: 0 | CR38: 0 | CS38: 0 | CU38: 2048 | CV38: =scenarios!J44 -> 0.3157369649 | CW38: =scenarios!R44 -> -0.3631700858 | CX38: =scenarios!Z44 -> -0.02708889894 | CY38: =scenarios!AH44 -> -0.3631700858 | CZ38: =scenarios!AP44 -> 0.1429215065 | DA38: =scenarios!AV44 -> -0.3631700858 | DB38: =scenarios!BB44 -> 0.02018414966 | DD38: 2040 | DE38: 6.319793317 | DF38: 0.9497522858 | DG38: 4.720416554 | DH38: 2.320293423 | DI38: 5.409533281 | DJ38: 7.592381121 | DK38: 1.24031287
BT39: 2049 | BU39: =scenarios!E45 -> 2.777192424 | BV39: =scenarios!L45 -> -3.5 | BW39: =scenarios!T45 -> -0.7888469973 | BX39: =scenarios!AB45 -> -3.5 | BY39: =scenarios!AJ45 -> 1.050289022 | BZ39: =scenarios!AR45 -> -3.5 | CA39: =scenarios!AX45 -> 0.1535089333 | CC39: 2049 | CD39: =IF($BU38>'goal seek'!$F$31,$BU39/$BU38-1,#N/A) -> -0.08731152545 | CE39: =IF(BV38>'goal seek'!$F$28,BV39/BV38-1,#N/A) ->  | CF39: =IF(BW38>'goal seek'!$F$28,BW39/BW38-1,#N/A) ->  | CG39: =IF(BX38>'goal seek'!$F$28,BX39/BX38-1,#N/A) ->  | CH39: =IF(BY38>'goal seek'!$F$28,BY39/BY38-1,#N/A) ->  | CI39: =IF(BZ38>'goal seek'!$F$28,BZ39/BZ38-1,#N/A) ->  | CJ39: =IF(CA38>'goal seek'!$F$28,CA39/CA38-1,#N/A) ->  | CL39: 2049 | CM39: -0.08731152545 | CN39: 0 | CO39: 0 | CP39: 0 | CQ39: 0 | CR39: 0 | CS39: 0 | CU39: 2049 | CV39: =scenarios!J45 -> 0.2866986334 | CW39: =scenarios!R45 -> -0.3613164173 | CX39: =scenarios!Z45 -> -0.08143524882 | CY39: =scenarios!AH45 -> -0.3613164173 | CZ39: =scenarios!AP45 -> 0.1084247619 | DA39: =scenarios!AV45 -> -0.3613164173 | DB39: =scenarios!BB45 -> 0.01584722794 | DD39: 2041 | DE39: 5.768002522 | DF39: -0.337024366 | DG39: 3.797747872 | DH39: 1.449039452 | DI39: 4.636968439 | DJ39: 5.904131576 | DK39: 0.988743561
BR40: 2050 | BS40: 2050 | BT40: 2050 | BU40: =scenarios!E46 -> 2.534711517 | BV40: =scenarios!L46 -> -3.5 | BW40: =scenarios!T46 -> -1.316628588 | BX40: =scenarios!AB46 -> -3.5 | BY40: =scenarios!AJ46 -> 0.7231923725 | BZ40: =scenarios!AR46 -> -3.5 | CA40: =scenarios!AX46 -> 0.1210314282 | CC40: 2050 | CD40: =IF($BU39>'goal seek'!$F$31,$BU40/$BU39-1,#N/A) -> -0.08731152545 | CE40: =IF(BV39>'goal seek'!$F$28,BV40/BV39-1,#N/A) ->  | CF40: =IF(BW39>'goal seek'!$F$28,BW40/BW39-1,#N/A) ->  | CG40: =IF(BX39>'goal seek'!$F$28,BX40/BX39-1,#N/A) ->  | CH40: =IF(BY39>'goal seek'!$F$28,BY40/BY39-1,#N/A) ->  | CI40: =IF(BZ39>'goal seek'!$F$28,BZ40/BZ39-1,#N/A) ->  | CJ40: =IF(CA39>'goal seek'!$F$28,CA40/CA39-1,#N/A) ->  | CL40: 2050 | CM40: -0.08731152545 | CN40: 0 | CO40: 0 | CP40: 0 | CQ40: 0 | CR40: 0 | CS40: 0 | CU40: 2050 | CV40: =scenarios!J46 -> 0.2603700737 | CW40: =scenarios!R46 -> -0.3595262229 | CX40: =scenarios!Z46 -> -0.1352464294 | CY40: =scenarios!AH46 -> -0.3595262229 | CZ40: =scenarios!AP46 -> 0.07428760632 | DA40: =scenarios!AV46 -> -0.3595262229 | DB40: =scenarios!BB46 -> 0.01243256349 | DD40: 2042 | DE40: 5.264389423 | DF40: -1.623801018 | DG40: 3.021886996 | DH40: 0.5777854813 | DI40: 3.959895627 | DJ40: 4.215882031 | DK40: 0.7869310254
BT41: 2051 | BU41: =scenarios!E47 -> 2.313401988 | BV41: =scenarios!L47 -> -3.5 | BW41: =scenarios!T47 -> -1.844410178 | BX41: =scenarios!AB47 -> -3.5 | BY41: =scenarios!AJ47 -> 0.3960957229 | BZ41: =scenarios!AR47 -> -3.5 | CA41: =scenarios!AX47 -> 0.09534221316 | CC41: 2051 | CD41: =IF($BU40>'goal seek'!$F$31,$BU41/$BU40-1,#N/A) -> -0.08731152545 | CE41: =IF(BV40>'goal seek'!$F$28,BV41/BV40-1,#N/A) ->  | CF41: =IF(BW40>'goal seek'!$F$28,BW41/BW40-1,#N/A) ->  | CG41: =IF(BX40>'goal seek'!$F$28,BX41/BX40-1,#N/A) ->  | CH41: =IF(BY40>'goal seek'!$F$28,BY41/BY40-1,#N/A) ->  | CI41: =IF(BZ40>'goal seek'!$F$28,BZ41/BZ40-1,#N/A) ->  | CJ41: =IF(CA40>'goal seek'!$F$28,CA41/CA40-1,#N/A) ->  | CL41: 2051 | CM41: -0.08731152545 | CN41: 0 | CO41: 0 | CP41: 0 | CQ41: 0 | CR41: 0 | CS41: 0 | CU41: =BT41 -> 2051 | CV41: =scenarios!J47 -> 0.2364943193 | CW41: =scenarios!R47 -> -0.3577977895 | CX41: =scenarios!Z47 -> -0.1885502527 | CY41: =scenarios!AH47 -> -0.3577977895 | CZ41: =scenarios!AP47 -> 0.04049204974 | DA41: =scenarios!AV47 -> -0.3577977895 | DB41: =scenarios!BB47 -> 0.009746638034 | DD41: 2043 | DE41: 4.804747552 | DF41: -2.91057767 | DG41: 2.377842544 | DH41: -0.2934684895 | DI41: 3.369302996 | DJ41: 2.527632486 | DK41: 0.6253788624
BT42: 2052 | BU42: =scenarios!E48 -> 2.111415332 | BV42: =scenarios!L48 -> -3.5 | BW42: =scenarios!T48 -> -2.372191768 | BX42: =scenarios!AB48 -> -3.5 | BY42: =scenarios!AJ48 -> 0.06899907321 | BZ42: =scenarios!AR48 -> -3.5 | CA42: =scenarios!AX48 -> 0.07504403503 | CC42: 2052 | CD42: =IF($BU41>'goal seek'!$F$31,$BU42/$BU41-1,#N/A) -> -0.08731152545 | CE42: =IF(BV41>'goal seek'!$F$28,BV42/BV41-1,#N/A) ->  | CF42: =IF(BW41>'goal seek'!$F$28,BW42/BW41-1,#N/A) ->  | CG42: =IF(BX41>'goal seek'!$F$28,BX42/BX41-1,#N/A) ->  | CH42: =IF(BY41>'goal seek'!$F$28,BY42/BY41-1,#N/A) ->  | CI42: =IF(BZ41>'goal seek'!$F$28,BZ42/BZ41-1,#N/A) ->  | CJ42: =IF(CA41>'goal seek'!$F$28,CA42/CA41-1,#N/A) ->  | CL42: 2052 | CM42: =IF(ISNA(CD42),0,CD42) -> -0.08731152545 | CN42: =IF(ISNA(CE42),0,CE42) -> 0 | CO42: =IF(ISNA(CF42),0,CF42) -> 0 | CP42: 0 | CQ42: 0 | CR42: 0 | CS42: =IF(ISNA(CJ42),0,CJ42) -> 0 | CU42: 2052 | CV42: =scenarios!J48 -> 0.2148392466 | CW42: =scenarios!R48 -> -0.3561295363 | CX42: =scenarios!Z48 -> -0.241373587 | CY42: =scenarios!AH48 -> -0.3561295363 | CZ42: =scenarios!AP48 -> 0.007020745129 | DA42: =scenarios!AV48 -> -0.3561295363 | DB42: =scenarios!BB48 -> 0.007635827829 | DD42: 2044 | DE42: 4.385237714 | DF42: -3.5 | DG42: 1.850060954 | DH42: -1.16472246 | DI42: 2.856488517 | DJ42: 0.8393829406 | DK42: 0.4963070143
BT43: 2053 | BU43: =scenarios!E49 -> 1.909428675 | BV43: =scenarios!L49 -> -3.5 | BW43: =scenarios!T49 -> -2.899973358 | BX43: =scenarios!AB49 -> -3.5 | BY43: =scenarios!AJ49 -> -0.2580975765 | BZ43: =scenarios!AR49 -> -3.5 | CA43: =scenarios!AX49 -> 0.05902154305 | CC43: =CC42+1 -> 2053 | CD43: =IF($BU42>'goal seek'!$F$31,$BU43/$BU42-1,#N/A) ->  | CE43: =IF(BV42>'goal seek'!$F$28,BV43/BV42-1,#N/A) ->  | CF43: =IF(BW42>'goal seek'!$F$28,BW43/BW42-1,#N/A) ->  | CG43: =IF(BX42>'goal seek'!$F$28,BX43/BX42-1,#N/A) ->  | CH43: =IF(BY42>'goal seek'!$F$28,BY43/BY42-1,#N/A) ->  | CI43: =IF(BZ42>'goal seek'!$F$28,BZ43/BZ42-1,#N/A) ->  | CJ43: =IF(CA42>'goal seek'!$F$28,CA43/CA42-1,#N/A) ->  | CL43: 2053 | CM43: 0 | CN43: 0 | CO43: 0 | CP43: =IF(ISNA(CG43),0,CG43) -> 0 | CQ43: =IF(ISNA(CH43),0,CH43) -> 0 | CR43: 0 | CS43: 0 | CU43: 2053 | CV43: =scenarios!J49 -> 0.1934088347 | CW43: =scenarios!R49 -> -0.3545201401 | CX43: =scenarios!Z49 -> -0.2937425604 | CY43: =scenarios!AH49 -> -0.3545201401 | CZ43: =scenarios!AP49 -> -0.02614308256 | DA43: =scenarios!AV49 -> -0.3545201401 | DB43: =scenarios!BB49 -> 0.005978378774 | DD43: 2045 | DE43: 4.00235592 | DF43: -3.5 | DG43: 1.322279364 | DH43: -2.035976431 | DI43: 2.41317292 | DJ43: -0.8488666045 | DK43: 0.3933693239
BT44: 2054 | BU44: =scenarios!E50 -> 1.707442018 | BV44: =scenarios!L50 -> -3.5 | BW44: =scenarios!T50 -> -3.427754948 | BX44: =scenarios!AB50 -> -3.5 | BY44: =scenarios!AJ50 -> -0.5851942261 | BZ44: =scenarios!AR50 -> -3.5 | CA44: =scenarios!AX50 -> 0.04638594005 | CC44: 2054 | CD44: =IF($BU43>'goal seek'!$F$31,$BU44/$BU43-1,#N/A) ->  | CE44: =IF(BV43>'goal seek'!$F$28,BV44/BV43-1,#N/A) ->  | CF44: =IF(BW43>'goal seek'!$F$28,BW44/BW43-1,#N/A) ->  | CG44: =IF(BX43>'goal seek'!$F$28,BX44/BX43-1,#N/A) ->  | CH44: =IF(BY43>'goal seek'!$F$28,BY44/BY43-1,#N/A) ->  | CI44: =IF(BZ43>'goal seek'!$F$28,BZ44/BZ43-1,#N/A) ->  | CJ44: =IF(CA43>'goal seek'!$F$28,CA44/CA43-1,#N/A) ->  | CL44: 2054 | CM44: 0 | CN44: 0 | CO44: 0 | CP44: 0 | CQ44: 0 | CR44: 0 | CS44: 0 | CU44: 2054 | CV44: =scenarios!J50 -> 0.1721923009 | CW44: =scenarios!R50 -> -0.3529683858 | CX44: =scenarios!Z50 -> -0.3456826089 | CY44: =scenarios!AH50 -> -0.3529683858 | CZ44: =scenarios!AP50 -> -0.05901573183 | DA44: =scenarios!AV50 -> -0.3529683858 | DB44: =scenarios!BB50 -> 0.004677934396 | DD44: 2046 | DE44: 3.652904119 | DF44: -3.5 | DG44: 0.7944977733 | DH44: -2.907230402 | DI44: 2.031578971 | DJ44: -2.53711615 | DK44: 0.3114091017
BT45: 2055 | BU45: =scenarios!E51 -> 1.505455362 | BV45: =scenarios!L51 -> -3.5 | BW45: =scenarios!T51 -> -3.5 | BX45: =scenarios!AB51 -> -3.5 | BY45: =scenarios!AJ51 -> -0.9122908758 | BZ45: =scenarios!AR51 -> -3.5 | CA45: =scenarios!AX51 -> 0.03643008374 | CC45: 2055 | CD45: =IF($BU44>'goal seek'!$F$31,$BU45/$BU44-1,#N/A) ->  | CE45: =IF(BV44>'goal seek'!$F$28,BV45/BV44-1,#N/A) ->  | CF45: =IF(BW44>'goal seek'!$F$28,BW45/BW44-1,#N/A) ->  | CG45: =IF(BX44>'goal seek'!$F$28,BX45/BX44-1,#N/A) ->  | CH45: =IF(BY44>'goal seek'!$F$28,BY45/BY44-1,#N/A) ->  | CI45: =IF(BZ44>'goal seek'!$F$28,BZ45/BZ44-1,#N/A) ->  | CJ45: =IF(CA44>'goal seek'!$F$28,CA45/CA44-1,#N/A) ->  | CL45: 2055 | CM45: 0 | CN45: 0 | CO45: 0 | CP45: 0 | CQ45: 0 | CR45: 0 | CS45: 0 | CU45: 2055 | CV45: =scenarios!J51 -> 0.1511790661 | CW45: =scenarios!R51 -> -0.3514728796 | CX45: =scenarios!Z51 -> -0.3514728796 | CY45: =scenarios!AH51 -> -0.3514728796 | CZ45: =scenarios!AP51 -> -0.09161300034 | DA45: =scenarios!AV51 -> -0.3514728796 | DB45: =scenarios!BB51 -> 0.003658338982 | DD45: 2047 | DE45: 3.333963488 | DF45: -3.5 | DG45: 0.2667161831 | DH45: -3.5 | DI45: 1.704482322 | DJ45: -3.5 | DK45: 0.2462504257
BT46: 2056 | BU46: =scenarios!E52 -> 1.303468705 | BV46: =scenarios!L52 -> -3.5 | BW46: =scenarios!T52 -> -3.5 | BX46: =scenarios!AB52 -> -3.5 | BY46: =scenarios!AJ52 -> -1.239387525 | BZ46: =scenarios!AR52 -> -3.5 | CA46: =scenarios!AX52 -> 0.02859218216 | CC46: 2056 | CD46: =IF($BU45>'goal seek'!$F$31,$BU46/$BU45-1,#N/A) ->  | CE46: =IF(BV45>'goal seek'!$F$28,BV46/BV45-1,#N/A) ->  | CF46: =IF(BW45>'goal seek'!$F$28,BW46/BW45-1,#N/A) ->  | CG46: =IF(BX45>'goal seek'!$F$28,BX46/BX45-1,#N/A) ->  | CH46: =IF(BY45>'goal seek'!$F$28,BY46/BY45-1,#N/A) ->  | CI46: =IF(BZ45>'goal seek'!$F$28,BZ46/BZ45-1,#N/A) ->  | CJ46: =IF(CA45>'goal seek'!$F$28,CA46/CA45-1,#N/A) ->  | CL46: 2056 | CM46: 0 | CN46: 0 | CO46: 0 | CP46: 0 | CQ46: 0 | CR46: 0 | CS46: 0 | CU46: 2056 | CV46: =scenarios!J52 -> 0.1303588855 | CW46: =scenarios!R52 -> -0.3500322619 | CX46: =scenarios!Z52 -> -0.3500322619 | CY46: =scenarios!AH52 -> -0.3500322619 | CZ46: =scenarios!AP52 -> -0.1239501768 | DA46: =scenarios!AV52 -> -0.3500322619 | DB46: =scenarios!BB52 -> 0.00285948177 | DD46: 2048 | DE46: 3.04287005 | DF46: -3.5 | DG46: -0.2610654071 | DH46: -3.5 | DI46: 1.377385672 | DJ46: -3.5 | DK46: 0.1945218688
BT47: 2057 | BU47: =scenarios!E53 -> 1.101482049 | BV47: =scenarios!L53 -> -3.5 | BW47: =scenarios!T53 -> -3.5 | BX47: =scenarios!AB53 -> -3.5 | BY47: =scenarios!AJ53 -> -1.566484175 | BZ47: =scenarios!AR53 -> -3.5 | CA47: =scenarios!AX53 -> 0.0224265229 | CC47: 2057 | CD47: =IF($BU46>'goal seek'!$F$31,$BU47/$BU46-1,#N/A) ->  | CE47: =IF(BV46>'goal seek'!$F$28,BV47/BV46-1,#N/A) ->  | CF47: =IF(BW46>'goal seek'!$F$28,BW47/BW46-1,#N/A) ->  | CG47: =IF(BX46>'goal seek'!$F$28,BX47/BX46-1,#N/A) ->  | CH47: =IF(BY46>'goal seek'!$F$28,BY47/BY46-1,#N/A) ->  | CI47: =IF(BZ46>'goal seek'!$F$28,BZ47/BZ46-1,#N/A) ->  | CJ47: =IF(CA46>'goal seek'!$F$28,CA47/CA46-1,#N/A) ->  | CL47: 2057 | CM47: 0 | CN47: 0 | CO47: 0 | CP47: 0 | CQ47: 0 | CR47: 0 | CS47: 0 | CU47: 2057 | CV47: =scenarios!J53 -> 0.1097217007 | CW47: =scenarios!R53 -> -0.3486447671 | CX47: =scenarios!Z53 -> -0.3486447671 | CY47: =scenarios!AH53 -> -0.3486447671 | CZ47: =scenarios!AP53 -> -0.1560418601 | DA47: =scenarios!AV53 -> -0.3486447671 | DB47: =scenarios!BB53 -> 0.002233968529 | DD47: 2049 | DE47: 2.777192424 | DF47: -3.5 | DG47: -0.7888469973 | DH47: -3.5 | DI47: 1.050289022 | DJ47: -3.5 | DK47: 0.1535089333
BT48: 2058 | BU48: =scenarios!E54 -> 0.8994953922 | BV48: =scenarios!L54 -> -3.5 | BW48: =scenarios!T54 -> -3.5 | BX48: =scenarios!AB54 -> -3.5 | BY48: =scenarios!AJ54 -> -1.893580825 | BZ48: =scenarios!AR54 -> -3.5 | CA48: =scenarios!AX54 -> 0.01757993447 | CC48: 2058 | CD48: =IF($BU47>'goal seek'!$F$31,$BU48/$BU47-1,#N/A) ->  | CE48: =IF(BV47>'goal seek'!$F$28,BV48/BV47-1,#N/A) ->  | CF48: =IF(BW47>'goal seek'!$F$28,BW48/BW47-1,#N/A) ->  | CG48: =IF(BX47>'goal seek'!$F$28,BX48/BX47-1,#N/A) ->  | CH48: =IF(BY47>'goal seek'!$F$28,BY48/BY47-1,#N/A) ->  | CI48: =IF(BZ47>'goal seek'!$F$28,BZ48/BZ47-1,#N/A) ->  | CJ48: =IF(CA47>'goal seek'!$F$28,CA48/CA47-1,#N/A) ->  | CL48: 2058 | CM48: 0 | CN48: 0 | CO48: 0 | CP48: 0 | CQ48: 0 | CR48: 0 | CS48: 0 | CU48: 2058 | CV48: =scenarios!J54 -> 0.08925774512 | CW48: =scenarios!R54 -> -0.3473081804 | CX48: =scenarios!Z54 -> -0.3473081804 | CY48: =scenarios!AH54 -> -0.3473081804 | CZ48: =scenarios!AP54 -> -0.1879017459 | DA48: =scenarios!AV54 -> -0.3473081804 | DB48: =scenarios!BB54 -> 0.001744472872 | DD48: 2050 | DE48: 2.534711517 | DF48: -3.5 | DG48: -1.316628588 | DH48: -3.5 | DI48: 0.7231923725 | DJ48: -3.5 | DK48: 0.1210314282
BT49: 2059 | BU49: =scenarios!E55 -> 0.6975087357 | BV49: =scenarios!L55 -> -3.5 | BW49: =scenarios!T55 -> -3.5 | BX49: =scenarios!AB55 -> -3.5 | BY49: =scenarios!AJ55 -> -2.220677474 | BZ49: =scenarios!AR55 -> -3.5 | CA49: =scenarios!AX55 -> 0.01377290183 | CC49: 2059 | CD49: =IF($BU48>'goal seek'!$F$31,$BU49/$BU48-1,#N/A) ->  | CE49: =IF(BV48>'goal seek'!$F$28,BV49/BV48-1,#N/A) ->  | CF49: =IF(BW48>'goal seek'!$F$28,BW49/BW48-1,#N/A) ->  | CG49: =IF(BX48>'goal seek'!$F$28,BX49/BX48-1,#N/A) ->  | CH49: =IF(BY48>'goal seek'!$F$28,BY49/BY48-1,#N/A) ->  | CI49: =IF(BZ48>'goal seek'!$F$28,BZ49/BZ48-1,#N/A) ->  | CJ49: =IF(CA48>'goal seek'!$F$28,CA49/CA48-1,#N/A) ->  | CL49: 2059 | CM49: 0 | CN49: 0 | CO49: 0 | CP49: 0 | CQ49: 0 | CR49: 0 | CS49: 0 | CU49: 2059 | CV49: =scenarios!J55 -> 0.06895772424 | CW49: =scenarios!R55 -> -0.3460200891 | CX49: =scenarios!Z55 -> -0.3460200891 | CY49: =scenarios!AH55 -> -0.3460200891 | CZ49: =scenarios!AP55 -> -0.2195425764 | DA49: =scenarios!AV55 -> -0.3460200891 | DB49: =scenarios!BB55 -> 0.001361628777 | DD49: =BT41 -> 2051 | DE49: =BU41 -> 2.313401988 | DF49: =BV41 -> -3.5 | DG49: =BW41 -> -1.844410178 | DH49: =BX41 -> -3.5 | DI49: =BY41 -> 0.3960957229 | DJ49: -3.5 | DK49: =CA41 -> 0.09534221316
BS50: 2060 | BT50: 2060 | BU50: =scenarios!E56 -> 0.4955220791 | BV50: =scenarios!L56 -> -3.5 | BW50: =scenarios!T56 -> -3.5 | BX50: =scenarios!AB56 -> -3.5 | BY50: =scenarios!AJ56 -> -2.547774124 | BZ50: =scenarios!AR56 -> -3.5 | CA50: =scenarios!AX56 -> 0.01078444813 | CC50: 2060 | CD50: =IF($BU49>'goal seek'!$F$31,$BU50/$BU49-1,#N/A) ->  | CE50: =IF(BV49>'goal seek'!$F$28,BV50/BV49-1,#N/A) ->  | CF50: =IF(BW49>'goal seek'!$F$28,BW50/BW49-1,#N/A) ->  | CG50: =IF(BX49>'goal seek'!$F$28,BX50/BX49-1,#N/A) ->  | CH50: =IF(BY49>'goal seek'!$F$28,BY50/BY49-1,#N/A) ->  | CI50: =IF(BZ49>'goal seek'!$F$28,BZ50/BZ49-1,#N/A) ->  | CJ50: =IF(CA49>'goal seek'!$F$28,CA50/CA49-1,#N/A) ->  | CL50: 2060 | CM50: 0 | CN50: 0 | CO50: 0 | CP50: 0 | CQ50: 0 | CR50: 0 | CS50: 0 | CU50: 2060 | CV50: =scenarios!J56 -> 0.04881294195 | CW50: =scenarios!R56 -> -0.3447783742 | CX50: =scenarios!Z56 -> -0.3447783742 | CY50: =scenarios!AH56 -> -0.3447783742 | CZ50: =scenarios!AP56 -> -0.2509764058 | DA50: =scenarios!AV56 -> -0.3447783742 | DB50: =scenarios!BB56 -> 0.001062355569 | DD50: 2052 | DE50: 2.111415332 | DF50: -3.5 | DG50: -2.372191768 | DH50: -3.5 | DI50: 0.06899907321 | DJ50: -3.5 | DK50: 0.07504403503
BT51: 2061 | BU51: =scenarios!E57 -> 0.2935354226 | BV51: =scenarios!L57 -> -3.5 | BW51: =scenarios!T57 -> -3.5 | BX51: =scenarios!AB57 -> -3.5 | BY51: =scenarios!AJ57 -> -2.874870774 | BZ51: =scenarios!AR57 -> -3.5 | CA51: =scenarios!AX57 -> 0.008440055187 | CC51: 2061 | CD51: =IF($BU50>'goal seek'!$F$31,$BU51/$BU50-1,#N/A) ->  | CE51: =IF(BV50>'goal seek'!$F$28,BV51/BV50-1,#N/A) ->  | CF51: =IF(BW50>'goal seek'!$F$28,BW51/BW50-1,#N/A) ->  | CG51: =IF(BX50>'goal seek'!$F$28,BX51/BX50-1,#N/A) ->  | CH51: =IF(BY50>'goal seek'!$F$28,BY51/BY50-1,#N/A) ->  | CI51: =IF(BZ50>'goal seek'!$F$28,BZ51/BZ50-1,#N/A) ->  | CJ51: =IF(CA50>'goal seek'!$F$28,CA51/CA50-1,#N/A) ->  | CL51: 2061 | CM51: 0 | CN51: 0 | CO51: 0 | CP51: 0 | CQ51: 0 | CR51: 0 | CS51: 0 | CU51: 2061 | CV51: =scenarios!J57 -> 0.02881524018 | CW51: =scenarios!R57 -> -0.3435814994 | CX51: =scenarios!Z57 -> -0.3435814994 | CY51: =scenarios!AH57 -> -0.3435814994 | CZ51: =scenarios!AP57 -> -0.2822149746 | DA51: =scenarios!AV57 -> -0.3435814994 | DB51: =scenarios!BB57 -> 0.0008285276619 | DD51: 2053 | DE51: 1.909428675 | DF51: -3.5 | DG51: -2.899973358 | DH51: -3.5 | DI51: -0.2580975765 | DJ51: -3.5 | DK51: 0.05902154305
BT52: 2062 | BU52: =scenarios!E58 -> 0.09154876603 | BV52: =scenarios!L58 -> -3.5 | BW52: =scenarios!T58 -> -3.5 | BX52: =scenarios!AB58 -> -3.5 | BY52: =scenarios!AJ58 -> -3.201967423 | BZ52: =scenarios!AR58 -> -3.5 | CA52: =scenarios!AX58 -> 0.006602029267 | CC52: 2062 | CD52: =IF($BU51>'goal seek'!$F$31,$BU52/$BU51-1,#N/A) ->  | CE52: =IF(BV51>'goal seek'!$F$28,BV52/BV51-1,#N/A) ->  | CF52: =IF(BW51>'goal seek'!$F$28,BW52/BW51-1,#N/A) ->  | CG52: =IF(BX51>'goal seek'!$F$28,BX52/BX51-1,#N/A) ->  | CH52: =IF(BY51>'goal seek'!$F$28,BY52/BY51-1,#N/A) ->  | CI52: =IF(BZ51>'goal seek'!$F$28,BZ52/BZ51-1,#N/A) ->  | CJ52: =IF(CA51>'goal seek'!$F$28,CA52/CA51-1,#N/A) ->  | CL52: 2062 | CM52: 0 | CN52: 0 | CO52: 0 | CP52: 0 | CQ52: 0 | CR52: 0 | CS52: 0 | CU52: 2062 | CV52: =scenarios!J58 -> 0.008956824752 | CW52: =scenarios!R58 -> -0.3424282816 | CX52: =scenarios!Z58 -> -0.3424282816 | CY52: =scenarios!AH58 -> -0.3424282816 | CZ52: =scenarios!AP58 -> -0.3132697721 | DA52: =scenarios!AV58 -> -0.3424282816 | DB52: =scenarios!BB58 -> 0.0006459204391 | DD52: 2054 | DE52: 1.707442018 | DF52: -3.5 | DG52: -3.427754948 | DH52: -3.5 | DI52: -0.5851942261 | DJ52: -3.5 | DK52: 0.04638594005
BT53: =BT52+1 -> 2063 | BU53: =scenarios!E59 -> -0.1104378905 | BV53: =scenarios!L59 -> -3.5 | BW53: =scenarios!T59 -> -3.5 | BX53: =scenarios!AB59 -> -3.5 | BY53: =scenarios!AJ59 -> -3.5 | BZ53: =scenarios!AR59 -> -3.5 | CA53: =scenarios!AX59 -> 0.00516182972 | CC53: 2063 | CD53: =IF($BU52>'goal seek'!$F$31,$BU53/$BU52-1,#N/A) ->  | CE53: =IF(BV52>'goal seek'!$F$28,BV53/BV52-1,#N/A) ->  | CF53: =IF(BW52>'goal seek'!$F$28,BW53/BW52-1,#N/A) ->  | CG53: =IF(BX52>'goal seek'!$F$28,BX53/BX52-1,#N/A) ->  | CH53: =IF(BY52>'goal seek'!$F$28,BY53/BY52-1,#N/A) ->  | CI53: =IF(BZ52>'goal seek'!$F$28,BZ53/BZ52-1,#N/A) ->  | CJ53: =IF(CA52>'goal seek'!$F$28,CA53/CA52-1,#N/A) ->  | CL53: 2063 | CM53: 0 | CN53: 0 | CO53: 0 | CP53: 0 | CQ53: 0 | CR53: 0 | CS53: 0 | CU53: 2063 | CV53: =scenarios!J59 -> -0.01076982358 | CW53: =scenarios!R59 -> -0.3413174804 | CX53: =scenarios!Z59 -> -0.3413174804 | CY53: =scenarios!AH59 -> -0.3413174804 | CZ53: =scenarios!AP59 -> -0.3413174804 | DA53: =scenarios!AV59 -> -0.3413174804 | DB53: =scenarios!BB59 -> 0.0005033779184 | DD53: 2055 | DE53: 1.505455362 | DF53: -3.5 | DG53: -3.5 | DH53: -3.5 | DI53: -0.9122908758 | DJ53: -3.5 | DK53: 0.03643008374
BT54: 2064 | BU54: =scenarios!E60 -> -0.3124245471 | BV54: =scenarios!L60 -> -3.5 | BW54: =scenarios!T60 -> -3.5 | BX54: =scenarios!AB60 -> -3.5 | BY54: =scenarios!AJ60 -> -3.5 | BZ54: =scenarios!AR60 -> -3.5 | CA54: =scenarios!AX60 -> 0.004033969933 | CC54: 2064 | CD54: =IF($BU53>'goal seek'!$F$31,$BU54/$BU53-1,#N/A) ->  | CE54: =IF(BV53>'goal seek'!$F$28,BV54/BV53-1,#N/A) ->  | CF54: =IF(BW53>'goal seek'!$F$28,BW54/BW53-1,#N/A) ->  | CG54: =IF(BX53>'goal seek'!$F$28,BX54/BX53-1,#N/A) ->  | CH54: =IF(BY53>'goal seek'!$F$28,BY54/BY53-1,#N/A) ->  | CI54: =IF(BZ53>'goal seek'!$F$28,BZ54/BZ53-1,#N/A) ->  | CJ54: =IF(CA53>'goal seek'!$F$28,CA54/CA53-1,#N/A) ->  | CL54: 2064 | CM54: 0 | CN54: 0 | CO54: 0 | CP54: 0 | CQ54: 0 | CR54: 0 | CS54: 0 | CU54: 2064 | CV54: =scenarios!J60 -> -0.03037194689 | CW54: =scenarios!R60 -> -0.3402479578 | CX54: =scenarios!Z60 -> -0.3402479578 | CY54: =scenarios!AH60 -> -0.3402479578 | CZ54: =scenarios!AP60 -> -0.3402479578 | DA54: =scenarios!AV60 -> -0.3402479578 | DB54: =scenarios!BB60 -> 0.0003921571518 | DD54: 2056 | DE54: 1.303468705 | DF54: -3.5 | DG54: -3.5 | DH54: -3.5 | DI54: -1.239387525 | DJ54: -3.5 | DK54: 0.02859218216
BT55: 2065 | BU55: =scenarios!E61 -> -0.5144112036 | BV55: =scenarios!L61 -> -3.5 | BW55: =scenarios!T61 -> -3.5 | BX55: =scenarios!AB61 -> -3.5 | BY55: =scenarios!AJ61 -> -3.5 | BZ55: =scenarios!AR61 -> -3.5 | CA55: =scenarios!AX61 -> 0.003151175137 | CC55: 2065 | CD55: =IF($BU54>'goal seek'!$F$31,$BU55/$BU54-1,#N/A) ->  | CE55: =IF(BV54>'goal seek'!$F$28,BV55/BV54-1,#N/A) ->  | CF55: =IF(BW54>'goal seek'!$F$28,BW55/BW54-1,#N/A) ->  | CG55: =IF(BX54>'goal seek'!$F$28,BX55/BX54-1,#N/A) ->  | CH55: =IF(BY54>'goal seek'!$F$28,BY55/BY54-1,#N/A) ->  | CI55: =IF(BZ54>'goal seek'!$F$28,BZ55/BZ54-1,#N/A) ->  | CJ55: =IF(CA54>'goal seek'!$F$28,CA55/CA54-1,#N/A) ->  | CL55: 2065 | CM55: 0 | CN55: 0 | CO55: 0 | CP55: 0 | CQ55: 0 | CR55: 0 | CS55: 0 | CU55: 2065 | CV55: =scenarios!J61 -> -0.04985652927 | CW55: =scenarios!R61 -> -0.339218608 | CX55: =scenarios!Z61 -> -0.339218608 | CY55: =scenarios!AH61 -> -0.339218608 | CZ55: =scenarios!AP61 -> -0.339218608 | DA55: =scenarios!AV61 -> -0.339218608 | DB55: =scenarios!BB61 -> 0.000305410641 | DD55: 2057 | DE55: 1.101482049 | DF55: -3.5 | DG55: -3.5 | DH55: -3.5 | DI55: -1.566484175 | DJ55: -3.5 | DK55: 0.0224265229
BT56: 2066 | BU56: =scenarios!E62 -> -0.7163978602 | BV56: =scenarios!L62 -> -3.5 | BW56: =scenarios!T62 -> -3.5 | BX56: =scenarios!AB62 -> -3.5 | BY56: =scenarios!AJ62 -> -3.5 | BZ56: =scenarios!AR62 -> -3.5 | CA56: =scenarios!AX62 -> 0.002460543112 | CC56: 2066 | CD56: =IF($BU55>'goal seek'!$F$31,$BU56/$BU55-1,#N/A) ->  | CE56: =IF(BV55>'goal seek'!$F$28,BV56/BV55-1,#N/A) ->  | CF56: =IF(BW55>'goal seek'!$F$28,BW56/BW55-1,#N/A) ->  | CG56: =IF(BX55>'goal seek'!$F$28,BX56/BX55-1,#N/A) ->  | CH56: =IF(BY55>'goal seek'!$F$28,BY56/BY55-1,#N/A) ->  | CI56: =IF(BZ55>'goal seek'!$F$28,BZ56/BZ55-1,#N/A) ->  | CJ56: =IF(CA55>'goal seek'!$F$28,CA56/CA55-1,#N/A) ->  | CL56: 2066 | CM56: 0 | CN56: 0 | CO56: 0 | CP56: 0 | CQ56: 0 | CR56: 0 | CS56: 0 | CU56: 2066 | CV56: =scenarios!J62 -> -0.06923028091 | CW56: =scenarios!R62 -> -0.3382282342 | CX56: =scenarios!Z62 -> -0.3382282342 | CY56: =scenarios!AH62 -> -0.3382282342 | CZ56: =scenarios!AP62 -> -0.3382282342 | DA56: =scenarios!AV62 -> -0.3382282342 | DB56: =scenarios!BB62 -> 0.0002377786149 | DD56: 2058 | DE56: 0.8994953922 | DF56: -3.5 | DG56: -3.5 | DH56: -3.5 | DI56: -1.893580825 | DJ56: -3.5 | DK56: 0.01757993447
BT57: 2067 | BU57: =scenarios!E63 -> -0.9183845167 | BV57: =scenarios!L63 -> -3.5 | BW57: =scenarios!T63 -> -3.5 | BX57: =scenarios!AB63 -> -3.5 | BY57: =scenarios!AJ63 -> -3.5 | BZ57: =scenarios!AR63 -> -3.5 | CA57: =scenarios!AX63 -> 0.001920503783 | CC57: 2067 | CD57: =IF($BU56>'goal seek'!$F$31,$BU57/$BU56-1,#N/A) ->  | CE57: =IF(BV56>'goal seek'!$F$28,BV57/BV56-1,#N/A) ->  | CF57: =IF(BW56>'goal seek'!$F$28,BW57/BW56-1,#N/A) ->  | CG57: =IF(BX56>'goal seek'!$F$28,BX57/BX56-1,#N/A) ->  | CH57: =IF(BY56>'goal seek'!$F$28,BY57/BY56-1,#N/A) ->  | CI57: =IF(BZ56>'goal seek'!$F$28,BZ57/BZ56-1,#N/A) ->  | CJ57: =IF(CA56>'goal seek'!$F$28,CA57/CA56-1,#N/A) ->  | CL57: 2067 | CM57: 0 | CN57: 0 | CO57: 0 | CP57: 0 | CQ57: 0 | CR57: 0 | CS57: 0 | CU57: 2067 | CV57: =scenarios!J63 -> -0.08849964577 | CW57: =scenarios!R63 -> -0.3372756776 | CX57: =scenarios!Z63 -> -0.3372756776 | CY57: =scenarios!AH63 -> -0.3372756776 | CZ57: =scenarios!AP63 -> -0.3372756776 | DA57: =scenarios!AV63 -> -0.3372756776 | DB57: =scenarios!BB63 -> 0.0001850683471 | DD57: 2059 | DE57: 0.6975087357 | DF57: -3.5 | DG57: -3.5 | DH57: -3.5 | DI57: -2.220677474 | DJ57: -3.5 | DK57: 0.01377290183
BT58: 2068 | BU58: =scenarios!E64 -> -1.120371173 | BV58: =scenarios!L64 -> -3.5 | BW58: =scenarios!T64 -> -3.5 | BX58: =scenarios!AB64 -> -3.5 | BY58: =scenarios!AJ64 -> -3.5 | BZ58: =scenarios!AR64 -> -3.5 | CA58: =scenarios!AX64 -> 0.001498414208 | CC58: 2068 | CD58: =IF($BU57>'goal seek'!$F$31,$BU58/$BU57-1,#N/A) ->  | CE58: =IF(BV57>'goal seek'!$F$28,BV58/BV57-1,#N/A) ->  | CF58: =IF(BW57>'goal seek'!$F$28,BW58/BW57-1,#N/A) ->  | CG58: =IF(BX57>'goal seek'!$F$28,BX58/BX57-1,#N/A) ->  | CH58: =IF(BY57>'goal seek'!$F$28,BY58/BY57-1,#N/A) ->  | CI58: =IF(BZ57>'goal seek'!$F$28,BZ58/BZ57-1,#N/A) ->  | CJ58: =IF(CA57>'goal seek'!$F$28,CA58/CA57-1,#N/A) ->  | CL58: 2068 | CM58: 0 | CN58: 0 | CO58: 0 | CP58: 0 | CQ58: 0 | CR58: 0 | CS58: 0 | CU58: 2068 | CV58: =scenarios!J64 -> -0.1076708523 | CW58: =scenarios!R64 -> -0.3363599423 | CX58: =scenarios!Z64 -> -0.3363599423 | CY58: =scenarios!AH64 -> -0.3363599423 | CZ58: =scenarios!AP64 -> -0.3363599423 | DA58: =scenarios!AV64 -> -0.3363599423 | DB58: =scenarios!BB64 -> 0.0001440018619 | DD58: 2060 | DE58: 0.4955220791 | DF58: -3.5 | DG58: -3.5 | DH58: -3.5 | DI58: -2.547774124 | DJ58: -3.5 | DK58: 0.01078444813
BT59: =BT58+1 -> 2069 | BU59: =scenarios!E65 -> -1.32235783 | BV59: =scenarios!L65 -> -3.5 | BW59: =scenarios!T65 -> -3.5 | BX59: =scenarios!AB65 -> -3.5 | BY59: =scenarios!AJ65 -> -3.5 | BZ59: =scenarios!AR65 -> -3.5 | CA59: =scenarios!AX65 -> 0.001168658209 | CC59: =CC58+1 -> 2069 | CD59: =IF($BU58>'goal seek'!$F$31,$BU59/$BU58-1,#N/A) ->  | CE59: =IF(BV58>'goal seek'!$F$28,BV59/BV58-1,#N/A) ->  | CF59: =IF(BW58>'goal seek'!$F$28,BW59/BW58-1,#N/A) ->  | CG59: =IF(BX58>'goal seek'!$F$28,BX59/BX58-1,#N/A) ->  | CH59: =IF(BY58>'goal seek'!$F$28,BY59/BY58-1,#N/A) ->  | CI59: =IF(BZ58>'goal seek'!$F$28,BZ59/BZ58-1,#N/A) ->  | CJ59: =IF(CA58>'goal seek'!$F$28,CA59/CA58-1,#N/A) ->  | CL59: =CL58+1 -> 2069 | CM59: 0 | CN59: 0 | CO59: 0 | CP59: 0 | CQ59: 0 | CR59: 0 | CS59: 0 | CU59: 2069 | CV59: =scenarios!J65 -> -0.1267499147 | CW59: =scenarios!R65 -> -0.3354800732 | CX59: =scenarios!Z65 -> -0.3354800732 | CY59: =scenarios!AH65 -> -0.3354800732 | CZ59: =scenarios!AP65 -> -0.3354800732 | DA59: =scenarios!AV65 -> -0.3354800732 | DB59: =scenarios!BB65 -> 0.0001120175833 | DD59: 2061 | DE59: 0.2935354226 | DF59: -3.5 | DG59: -3.5 | DH59: -3.5 | DI59: -2.874870774 | DJ59: -3.5 | DK59: 0.008440055187
BS60: 2070 | BT60: 2070 | BU60: =scenarios!E66 -> -1.524344486 | BV60: =scenarios!L66 -> -3.5 | BW60: =scenarios!T66 -> -3.5 | BX60: =scenarios!AB66 -> -3.5 | BY60: =scenarios!AJ66 -> -3.5 | BZ60: =scenarios!AR66 -> -3.5 | CA60: =scenarios!AX66 -> 0.0009111462518 | CC60: 2070 | CD60: =IF($BU59>'goal seek'!$F$31,$BU60/$BU59-1,#N/A) ->  | CE60: =IF(BV59>'goal seek'!$F$28,BV60/BV59-1,#N/A) ->  | CF60: =IF(BW59>'goal seek'!$F$28,BW60/BW59-1,#N/A) ->  | CG60: =IF(BX59>'goal seek'!$F$28,BX60/BX59-1,#N/A) ->  | CH60: =IF(BY59>'goal seek'!$F$28,BY60/BY59-1,#N/A) ->  | CI60: =IF(BZ59>'goal seek'!$F$28,BZ60/BZ59-1,#N/A) ->  | CJ60: =IF(CA59>'goal seek'!$F$28,CA60/CA59-1,#N/A) ->  | CL60: 2070 | CM60: 0 | CN60: 0 | CO60: 0 | CP60: 0 | CQ60: 0 | CR60: 0 | CS60: 0 | CU60: 2070 | CV60: =scenarios!J66 -> -0.1457426388 | CW60: =scenarios!R66 -> -0.3346351435 | CX60: =scenarios!Z66 -> -0.3346351435 | CY60: =scenarios!AH66 -> -0.3346351435 | CZ60: =scenarios!AP66 -> -0.3346351435 | DA60: =scenarios!AV66 -> -0.3346351435 | DB60: =scenarios!BB66 -> 8.711473049e-05 | DD60: 2062 | DE60: 0.09154876603 | DF60: -3.5 | DG60: -3.5 | DH60: -3.5 | DI60: -3.201967423 | DJ60: -3.5 | DK60: 0.006602029267
BT61: 2071 | BU61: =scenarios!E67 -> -1.726331143 | BV61: =scenarios!L67 -> -3.5 | BW61: =scenarios!T67 -> -3.5 | BX61: =scenarios!AB67 -> -3.5 | BY61: =scenarios!AJ67 -> -3.5 | BZ61: =scenarios!AR67 -> -3.5 | CA61: =scenarios!AX67 -> 0.0007101323815 | CC61: 2071 | CD61: =IF($BU60>'goal seek'!$F$31,$BU61/$BU60-1,#N/A) ->  | CE61: =IF(BV60>'goal seek'!$F$28,BV61/BV60-1,#N/A) ->  | CF61: =IF(BW60>'goal seek'!$F$28,BW61/BW60-1,#N/A) ->  | CG61: =IF(BX60>'goal seek'!$F$28,BX61/BX60-1,#N/A) ->  | CH61: =IF(BY60>'goal seek'!$F$28,BY61/BY60-1,#N/A) ->  | CI61: =IF(BZ60>'goal seek'!$F$28,BZ61/BZ60-1,#N/A) ->  | CJ61: =IF(CA60>'goal seek'!$F$28,CA61/CA60-1,#N/A) ->  | CL61: 2071 | CM61: 0 | CN61: 0 | CO61: 0 | CP61: 0 | CQ61: 0 | CR61: 0 | CS61: 0 | CU61: 2071 | CV61: =scenarios!J67 -> -0.1646546202 | CW61: =scenarios!R67 -> -0.3338242336 | CX61: =scenarios!Z67 -> -0.3338242336 | CY61: =scenarios!AH67 -> -0.3338242336 | CZ61: =scenarios!AP67 -> -0.3338242336 | DA61: =scenarios!AV67 -> -0.3338242336 | DB61: =scenarios!BB67 -> 6.773125657e-05 | DD61: 2063 | DE61: -0.1104378905 | DF61: -3.5 | DG61: -3.5 | DH61: -3.5 | DI61: -3.5 | DJ61: -3.5 | DK61: 0.00516182972
BT62: =BT61+1 -> 2072 | BU62: =scenarios!E68 -> -1.928317799 | BV62: =scenarios!L68 -> -3.5 | BW62: =scenarios!T68 -> -3.5 | BX62: =scenarios!AB68 -> -3.5 | BY62: =scenarios!AJ68 -> -3.5 | BZ62: =scenarios!AR68 -> -3.5 | CA62: =scenarios!AX68 -> 0.0005532820423 | CC62: 2072 | CD62: =IF($BU61>'goal seek'!$F$31,$BU62/$BU61-1,#N/A) ->  | CE62: =IF(BV61>'goal seek'!$F$28,BV62/BV61-1,#N/A) ->  | CF62: =IF(BW61>'goal seek'!$F$28,BW62/BW61-1,#N/A) ->  | CG62: =IF(BX61>'goal seek'!$F$28,BX62/BX61-1,#N/A) ->  | CH62: =IF(BY61>'goal seek'!$F$28,BY62/BY61-1,#N/A) ->  | CI62: =IF(BZ61>'goal seek'!$F$28,BZ62/BZ61-1,#N/A) ->  | CJ62: =IF(CA61>'goal seek'!$F$28,CA62/CA61-1,#N/A) ->  | CL62: 2072 | CM62: 0 | CN62: 0 | CO62: 0 | CP62: 0 | CQ62: 0 | CR62: 0 | CS62: 0 | CU62: 2072 | CV62: =scenarios!J68 -> -0.183491229 | CW62: =scenarios!R68 -> -0.3330464002 | CX62: =scenarios!Z68 -> -0.3330464002 | CY62: =scenarios!AH68 -> -0.3330464002 | CZ62: =scenarios!AP68 -> -0.3330464002 | DA62: =scenarios!AV68 -> -0.3330464002 | DB62: =scenarios!BB68 -> 5.264816927e-05 | DD62: 2064 | DE62: -0.3124245471 | DF62: -3.5 | DG62: -3.5 | DH62: -3.5 | DI62: -3.5 | DJ62: -3.5 | DK62: 0.004033969933
BT63: =BT62+1 -> 2073 | BU63: =scenarios!E69 -> -2.130304456 | BV63: =scenarios!L69 -> -3.5 | BW63: =scenarios!T69 -> -3.5 | BX63: =scenarios!AB69 -> -3.5 | BY63: =scenarios!AJ69 -> -3.5 | BZ63: =scenarios!AR69 -> -3.5 | CA63: =scenarios!AX69 -> 0.000430938177 | CC63: =CC62+1 -> 2073 | CD63: =IF($BU62>'goal seek'!$F$31,$BU63/$BU62-1,#N/A) ->  | CE63: =IF(BV62>'goal seek'!$F$28,BV63/BV62-1,#N/A) ->  | CF63: =IF(BW62>'goal seek'!$F$28,BW63/BW62-1,#N/A) ->  | CG63: =IF(BX62>'goal seek'!$F$28,BX63/BX62-1,#N/A) ->  | CH63: =IF(BY62>'goal seek'!$F$28,BY63/BY62-1,#N/A) ->  | CI63: =IF(BZ62>'goal seek'!$F$28,BZ63/BZ62-1,#N/A) ->  | CJ63: =IF(CA62>'goal seek'!$F$28,CA63/CA62-1,#N/A) ->  | CL63: =CL62+1 -> 2073 | CM63: 0 | CN63: 0 | CO63: 0 | CP63: 0 | CQ63: 0 | CR63: 0 | CS63: 0 | CU63: 2073 | CV63: =scenarios!J69 -> -0.2022576069 | CW63: =scenarios!R69 -> -0.3323006823 | CX63: =scenarios!Z69 -> -0.3323006823 | CY63: =scenarios!AH69 -> -0.3323006823 | CZ63: =scenarios!AP69 -> -0.3323006823 | DA63: =scenarios!AV69 -> -0.3323006823 | DB63: =scenarios!BB69 -> 4.091458579e-05 | DD63: 2065 | DE63: -0.5144112036 | DF63: -3.5 | DG63: -3.5 | DH63: -3.5 | DI63: -3.5 | DJ63: -3.5 | DK63: 0.003151175137
BT64: 2074 | BU64: =scenarios!E70 -> -2.332291113 | BV64: =scenarios!L70 -> -3.5 | BW64: =scenarios!T70 -> -3.5 | BX64: =scenarios!AB70 -> -3.5 | BY64: =scenarios!AJ70 -> -3.5 | BZ64: =scenarios!AR70 -> -3.5 | CA64: =scenarios!AX70 -> 0.0003355438933 | CC64: 2074 | CD64: =IF($BU63>'goal seek'!$F$31,$BU64/$BU63-1,#N/A) ->  | CE64: =IF(BV63>'goal seek'!$F$28,BV64/BV63-1,#N/A) ->  | CF64: =IF(BW63>'goal seek'!$F$28,BW64/BW63-1,#N/A) ->  | CG64: =IF(BX63>'goal seek'!$F$28,BX64/BX63-1,#N/A) ->  | CH64: =IF(BY63>'goal seek'!$F$28,BY64/BY63-1,#N/A) ->  | CI64: =IF(BZ63>'goal seek'!$F$28,BZ64/BZ63-1,#N/A) ->  | CJ64: =IF(CA63>'goal seek'!$F$28,CA64/CA63-1,#N/A) ->  | CL64: 2074 | CM64: 0 | CN64: 0 | CO64: 0 | CP64: 0 | CQ64: 0 | CR64: 0 | CS64: 0 | CU64: 2074 | CV64: =scenarios!J70 -> -0.2209586734 | CW64: =scenarios!R70 -> -0.3315861184 | CX64: =scenarios!Z70 -> -0.3315861184 | CY64: =scenarios!AH70 -> -0.3315861184 | CZ64: =scenarios!AP70 -> -0.3315861184 | DA64: =scenarios!AV70 -> -0.3315861184 | DB64: =scenarios!BB70 -> 3.178905633e-05 | DD64: 2066 | DE64: -0.7163978602 | DF64: -3.5 | DG64: -3.5 | DH64: -3.5 | DI64: -3.5 | DJ64: -3.5 | DK64: 0.002460543112
BT65: 2075 | BU65: =scenarios!E71 -> -2.534277769 | BV65: =scenarios!L71 -> -3.5 | BW65: =scenarios!T71 -> -3.5 | BX65: =scenarios!AB71 -> -3.5 | BY65: =scenarios!AJ71 -> -3.5 | BZ65: =scenarios!AR71 -> -3.5 | CA65: =scenarios!AX71 -> 0.0002611886318 | CC65: 2075 | CD65: =IF($BU64>'goal seek'!$F$31,$BU65/$BU64-1,#N/A) ->  | CE65: =IF(BV64>'goal seek'!$F$28,BV65/BV64-1,#N/A) ->  | CF65: =IF(BW64>'goal seek'!$F$28,BW65/BW64-1,#N/A) ->  | CG65: =IF(BX64>'goal seek'!$F$28,BX65/BX64-1,#N/A) ->  | CH65: =IF(BY64>'goal seek'!$F$28,BY65/BY64-1,#N/A) ->  | CI65: =IF(BZ64>'goal seek'!$F$28,BZ65/BZ64-1,#N/A) ->  | CJ65: =IF(CA64>'goal seek'!$F$28,CA65/CA64-1,#N/A) ->  | CL65: 2075 | CM65: 0 | CN65: 0 | CO65: 0 | CP65: 0 | CQ65: 0 | CR65: 0 | CS65: 0 | CU65: 2075 | CV65: =scenarios!J71 -> -0.2395991697 | CW65: =scenarios!R71 -> -0.3309018073 | CX65: =scenarios!Z71 -> -0.3309018073 | CY65: =scenarios!AH71 -> -0.3309018073 | CZ65: =scenarios!AP71 -> -0.3309018073 | DA65: =scenarios!AV71 -> -0.3309018073 | DB65: =scenarios!BB71 -> 2.469365438e-05 | DD65: 2067 | DE65: -0.9183845167 | DF65: -3.5 | DG65: -3.5 | DH65: -3.5 | DI65: -3.5 | DJ65: -3.5 | DK65: 0.001920503783
BT66: 2076 | BU66: =scenarios!E72 -> -2.736264426 | BV66: =scenarios!L72 -> -3.5 | BW66: =scenarios!T72 -> -3.5 | BX66: =scenarios!AB72 -> -3.5 | BY66: =scenarios!AJ72 -> -3.5 | BZ66: =scenarios!AR72 -> -3.5 | CA66: =scenarios!AX72 -> 0.0002032516686 | CC66: 2076 | CD66: =IF($BU65>'goal seek'!$F$31,$BU66/$BU65-1,#N/A) ->  | CE66: =IF(BV65>'goal seek'!$F$28,BV66/BV65-1,#N/A) ->  | CF66: =IF(BW65>'goal seek'!$F$28,BW66/BW65-1,#N/A) ->  | CG66: =IF(BX65>'goal seek'!$F$28,BX66/BX65-1,#N/A) ->  | CH66: =IF(BY65>'goal seek'!$F$28,BY66/BY65-1,#N/A) ->  | CI66: =IF(BZ65>'goal seek'!$F$28,BZ66/BZ65-1,#N/A) ->  | CJ66: =IF(CA65>'goal seek'!$F$28,CA66/CA65-1,#N/A) ->  | CL66: 2076 | CM66: 0 | CN66: 0 | CO66: 0 | CP66: 0 | CQ66: 0 | CR66: 0 | CS66: 0 | CU66: 2076 | CV66: =scenarios!J72 -> -0.2581836532 | CW66: =scenarios!R72 -> -0.3302468788 | CX66: =scenarios!Z72 -> -0.3302468788 | CY66: =scenarios!AH72 -> -0.3302468788 | CZ66: =scenarios!AP72 -> -0.3302468788 | DA66: =scenarios!AV72 -> -0.3302468788 | DB66: =scenarios!BB72 -> 1.917806548e-05 | DD66: 2068 | DE66: -1.120371173 | DF66: -3.5 | DG66: -3.5 | DH66: -3.5 | DI66: -3.5 | DJ66: -3.5 | DK66: 0.001498414208
BT67: 2077 | BU67: =scenarios!E73 -> -2.938251082 | BV67: =scenarios!L73 -> -3.5 | BW67: =scenarios!T73 -> -3.5 | BX67: =scenarios!AB73 -> -3.5 | BY67: =scenarios!AJ73 -> -3.5 | BZ67: =scenarios!AR73 -> -3.5 | CA67: =scenarios!AX73 -> 0.0001581222652 | CC67: 2077 | CD67: =IF($BU66>'goal seek'!$F$31,$BU67/$BU66-1,#N/A) ->  | CE67: =IF(BV66>'goal seek'!$F$28,BV67/BV66-1,#N/A) ->  | CF67: =IF(BW66>'goal seek'!$F$28,BW67/BW66-1,#N/A) ->  | CG67: =IF(BX66>'goal seek'!$F$28,BX67/BX66-1,#N/A) ->  | CH67: =IF(BY66>'goal seek'!$F$28,BY67/BY66-1,#N/A) ->  | CI67: =IF(BZ66>'goal seek'!$F$28,BZ67/BZ66-1,#N/A) ->  | CJ67: =IF(CA66>'goal seek'!$F$28,CA67/CA66-1,#N/A) ->  | CL67: 2077 | CM67: 0 | CN67: 0 | CO67: 0 | CP67: 0 | CQ67: 0 | CR67: 0 | CS67: 0 | CU67: 2077 | CV67: =scenarios!J73 -> -0.2767165973 | CW67: =scenarios!R73 -> -0.329620602 | CX67: =scenarios!Z73 -> -0.329620602 | CY67: =scenarios!AH73 -> -0.329620602 | CZ67: =scenarios!AP73 -> -0.329620602 | DA67: =scenarios!AV73 -> -0.329620602 | DB67: =scenarios!BB73 -> 1.489153036e-05 | DD67: 2069 | DE67: -1.32235783 | DF67: -3.5 | DG67: -3.5 | DH67: -3.5 | DI67: -3.5 | DJ67: -3.5 | DK67: 0.001168658209
BT68: 2078 | BU68: =scenarios!E74 -> -3.140237739 | BV68: =scenarios!L74 -> -3.5 | BW68: =scenarios!T74 -> -3.5 | BX68: =scenarios!AB74 -> -3.5 | BY68: =scenarios!AJ74 -> -3.5 | BZ68: =scenarios!AR74 -> -3.5 | CA68: =scenarios!AX74 -> 0.0001229801253 | CC68: 2078 | CD68: =IF($BU67>'goal seek'!$F$31,$BU68/$BU67-1,#N/A) ->  | CE68: =IF(BV67>'goal seek'!$F$28,BV68/BV67-1,#N/A) ->  | CF68: =IF(BW67>'goal seek'!$F$28,BW68/BW67-1,#N/A) ->  | CG68: =IF(BX67>'goal seek'!$F$28,BX68/BX67-1,#N/A) ->  | CH68: =IF(BY67>'goal seek'!$F$28,BY68/BY67-1,#N/A) ->  | CI68: =IF(BZ67>'goal seek'!$F$28,BZ68/BZ67-1,#N/A) ->  | CJ68: =IF(CA67>'goal seek'!$F$28,CA68/CA67-1,#N/A) ->  | CL68: 2078 | CM68: 0 | CN68: 0 | CO68: 0 | CP68: 0 | CQ68: 0 | CR68: 0 | CS68: 0 | CU68: 2078 | CV68: =scenarios!J74 -> -0.2952024369 | CW68: =scenarios!R74 -> -0.329022391 | CX68: =scenarios!Z74 -> -0.329022391 | CY68: =scenarios!AH74 -> -0.329022391 | CZ68: =scenarios!AP74 -> -0.329022391 | DA68: =scenarios!AV74 -> -0.329022391 | DB68: =scenarios!BB74 -> 1.156091853e-05 | DD68: 2070 | DE68: -1.524344486 | DF68: -3.5 | DG68: -3.5 | DH68: -3.5 | DI68: -3.5 | DJ68: -3.5 | DK68: 0.0009111462518
BT69: 2079 | BU69: =scenarios!E75 -> -3.342224395 | BV69: =scenarios!L75 -> -3.5 | BW69: =scenarios!T75 -> -3.5 | BX69: =scenarios!AB75 -> -3.5 | BY69: =scenarios!AJ75 -> -3.5 | BZ69: =scenarios!AR75 -> -3.5 | CA69: =scenarios!AX75 -> 9.562326752e-05 | CC69: 2079 | CD69: =IF($BU68>'goal seek'!$F$31,$BU69/$BU68-1,#N/A) ->  | CE69: =IF(BV68>'goal seek'!$F$28,BV69/BV68-1,#N/A) ->  | CF69: =IF(BW68>'goal seek'!$F$28,BW69/BW68-1,#N/A) ->  | CG69: =IF(BX68>'goal seek'!$F$28,BX69/BX68-1,#N/A) ->  | CH69: =IF(BY68>'goal seek'!$F$28,BY69/BY68-1,#N/A) ->  | CI69: =IF(BZ68>'goal seek'!$F$28,BZ69/BZ68-1,#N/A) ->  | CJ69: =IF(CA68>'goal seek'!$F$28,CA69/CA68-1,#N/A) ->  | CL69: 2079 | CM69: 0 | CN69: 0 | CO69: 0 | CP69: 0 | CQ69: 0 | CR69: 0 | CS69: 0 | CU69: 2079 | CV69: =scenarios!J75 -> -0.3136455818 | CW69: =scenarios!R75 -> -0.3284517753 | CX69: =scenarios!Z75 -> -0.3284517753 | CY69: =scenarios!AH75 -> -0.3284517753 | CZ69: =scenarios!AP75 -> -0.3284517753 | DA69: =scenarios!AV75 -> -0.3284517753 | DB69: =scenarios!BB75 -> 8.973609137e-06 | DD69: 2071 | DE69: -1.726331143 | DF69: -3.5 | DG69: -3.5 | DH69: -3.5 | DI69: -3.5 | DJ69: -3.5 | DK69: 0.0007101323815
BS70: 2080 | BT70: 2080 | BU70: =scenarios!E76 -> -3.5 | BV70: =scenarios!L76 -> -3.5 | BW70: =scenarios!T76 -> -3.5 | BX70: =scenarios!AB76 -> -3.5 | BY70: =scenarios!AJ76 -> -3.5 | BZ70: =scenarios!AR76 -> -3.5 | CA70: =scenarios!AX76 -> 7.433315127e-05 | CC70: 2080 | CD70: =IF($BU69>'goal seek'!$F$31,$BU70/$BU69-1,#N/A) ->  | CE70: =IF(BV69>'goal seek'!$F$28,BV70/BV69-1,#N/A) ->  | CF70: =IF(BW69>'goal seek'!$F$28,BW70/BW69-1,#N/A) ->  | CG70: =IF(BX69>'goal seek'!$F$28,BX70/BX69-1,#N/A) ->  | CH70: =IF(BY69>'goal seek'!$F$28,BY70/BY69-1,#N/A) ->  | CI70: =IF(BZ69>'goal seek'!$F$28,BZ70/BZ69-1,#N/A) ->  | CJ70: =IF(CA69>'goal seek'!$F$28,CA70/CA69-1,#N/A) ->  | CL70: 2080 | CM70: 0 | CN70: 0 | CO70: 0 | CP70: 0 | CQ70: 0 | CR70: 0 | CS70: 0 | CU70: 2080 | CV70: =scenarios!J76 -> -0.3279081869 | CW70: =scenarios!R76 -> -0.3279081869 | CX70: =scenarios!Z76 -> -0.3279081869 | CY70: =scenarios!AH76 -> -0.3279081869 | CZ70: =scenarios!AP76 -> -0.3279081869 | DA70: =scenarios!AV76 -> -0.3279081869 | DB70: =scenarios!BB76 -> 6.964128245e-06 | DD70: 2072 | DE70: -1.928317799 | DF70: -3.5 | DG70: -3.5 | DH70: -3.5 | DI70: -3.5 | DJ70: -3.5 | DK70: 0.0005532820423
BT71: 2081 | BU71: =scenarios!E77 -> -3.5 | BV71: =scenarios!L77 -> -3.5 | BW71: =scenarios!T77 -> -3.5 | BX71: =scenarios!AB77 -> -3.5 | BY71: =scenarios!AJ77 -> -3.5 | BZ71: =scenarios!AR77 -> -3.5 | CA71: =scenarios!AX77 -> 5.776905066e-05 | CC71: 2081 | CD71: =IF($BU70>'goal seek'!$F$31,$BU71/$BU70-1,#N/A) ->  | CE71: =IF(BV70>'goal seek'!$F$28,BV71/BV70-1,#N/A) ->  | CF71: =IF(BW70>'goal seek'!$F$28,BW71/BW70-1,#N/A) ->  | CG71: =IF(BX70>'goal seek'!$F$28,BX71/BX70-1,#N/A) ->  | CH71: =IF(BY70>'goal seek'!$F$28,BY71/BY70-1,#N/A) ->  | CI71: =IF(BZ70>'goal seek'!$F$28,BZ71/BZ70-1,#N/A) ->  | CJ71: =IF(CA70>'goal seek'!$F$28,CA71/CA70-1,#N/A) ->  | CL71: 2081 | CM71: 0 | CN71: 0 | CO71: 0 | CP71: 0 | CQ71: 0 | CR71: 0 | CS71: 0 | CU71: 2081 | CV71: =scenarios!J77 -> -0.3273911231 | CW71: =scenarios!R77 -> -0.3273911231 | CX71: =scenarios!Z77 -> -0.3273911231 | CY71: =scenarios!AH77 -> -0.3273911231 | CZ71: =scenarios!AP77 -> -0.3273911231 | DA71: =scenarios!AV77 -> -0.3273911231 | DB71: =scenarios!BB77 -> 5.403735537e-06 | DD71: 2073 | DE71: -2.130304456 | DF71: -3.5 | DG71: -3.5 | DH71: -3.5 | DI71: -3.5 | DJ71: -3.5 | DK71: 0.000430938177
BT72: 2082 | BU72: =scenarios!E78 -> -3.5 | BV72: =scenarios!L78 -> -3.5 | BW72: =scenarios!T78 -> -3.5 | BX72: =scenarios!AB78 -> -3.5 | BY72: =scenarios!AJ78 -> -3.5 | BZ72: =scenarios!AR78 -> -3.5 | CA72: =scenarios!AX78 -> 4.4885378e-05 | CC72: 2082 | CD72: =IF($BU71>'goal seek'!$F$31,$BU72/$BU71-1,#N/A) ->  | CE72: =IF(BV71>'goal seek'!$F$28,BV72/BV71-1,#N/A) ->  | CF72: =IF(BW71>'goal seek'!$F$28,BW72/BW71-1,#N/A) ->  | CG72: =IF(BX71>'goal seek'!$F$28,BX72/BX71-1,#N/A) ->  | CH72: =IF(BY71>'goal seek'!$F$28,BY72/BY71-1,#N/A) ->  | CI72: =IF(BZ71>'goal seek'!$F$28,BZ72/BZ71-1,#N/A) ->  | CJ72: =IF(CA71>'goal seek'!$F$28,CA72/CA71-1,#N/A) ->  | CL72: 2082 | CM72: 0 | CN72: 0 | CO72: 0 | CP72: 0 | CQ72: 0 | CR72: 0 | CS72: 0 | CU72: 2082 | CV72: =scenarios!J78 -> -0.3268998074 | CW72: =scenarios!R78 -> -0.3268998074 | CX72: =scenarios!Z78 -> -0.3268998074 | CY72: =scenarios!AH78 -> -0.3268998074 | CZ72: =scenarios!AP78 -> -0.3268998074 | DA72: =scenarios!AV78 -> -0.3268998074 | DB72: =scenarios!BB78 -> 4.192291834e-06 | DD72: 2074 | DE72: -2.332291113 | DF72: -3.5 | DG72: -3.5 | DH72: -3.5 | DI72: -3.5 | DJ72: -3.5 | DK72: 0.0003355438933
BT73: 2083 | BU73: =scenarios!E79 -> -3.5 | BV73: =scenarios!L79 -> -3.5 | BW73: =scenarios!T79 -> -3.5 | BX73: =scenarios!AB79 -> -3.5 | BY73: =scenarios!AJ79 -> -3.5 | BZ73: =scenarios!AR79 -> -3.5 | CA73: =scenarios!AX79 -> 3.48670027e-05 | CC73: 2083 | CD73: =IF($BU72>'goal seek'!$F$31,$BU73/$BU72-1,#N/A) ->  | CE73: =IF(BV72>'goal seek'!$F$28,BV73/BV72-1,#N/A) ->  | CF73: =IF(BW72>'goal seek'!$F$28,BW73/BW72-1,#N/A) ->  | CG73: =IF(BX72>'goal seek'!$F$28,BX73/BX72-1,#N/A) ->  | CH73: =IF(BY72>'goal seek'!$F$28,BY73/BY72-1,#N/A) ->  | CI73: =IF(BZ72>'goal seek'!$F$28,BZ73/BZ72-1,#N/A) ->  | CJ73: =IF(CA72>'goal seek'!$F$28,CA73/CA72-1,#N/A) ->  | CL73: 2083 | CM73: 0 | CN73: 0 | CO73: 0 | CP73: 0 | CQ73: 0 | CR73: 0 | CS73: 0 | CU73: =BT73 -> 2083 | CV73: =scenarios!J79 -> -0.3264331214 | CW73: =scenarios!R79 -> -0.3264331214 | CX73: =scenarios!Z79 -> -0.3264331214 | CY73: =scenarios!AH79 -> -0.3264331214 | CZ73: =scenarios!AP79 -> -0.3264331214 | DA73: =scenarios!AV79 -> -0.3264331214 | DB73: =scenarios!BB79 -> 3.251927006e-06 | DD73: 2075 | DE73: -2.534277769 | DF73: -3.5 | DG73: -3.5 | DH73: -3.5 | DI73: -3.5 | DJ73: -3.5 | DK73: 0.0002611886318
BT74: 2084 | BU74: =scenarios!E80 -> -3.5 | BV74: =scenarios!L80 -> -3.5 | BW74: =scenarios!T80 -> -3.5 | BX74: =scenarios!AB80 -> -3.5 | BY74: =scenarios!AJ80 -> -3.5 | BZ74: =scenarios!AR80 -> -3.5 | CA74: =scenarios!AX80 -> 2.707867315e-05 | CC74: 2084 | CD74: =IF($BU73>'goal seek'!$F$31,$BU74/$BU73-1,#N/A) ->  | CE74: =IF(BV73>'goal seek'!$F$28,BV74/BV73-1,#N/A) ->  | CF74: =IF(BW73>'goal seek'!$F$28,BW74/BW73-1,#N/A) ->  | CG74: =IF(BX73>'goal seek'!$F$28,BX74/BX73-1,#N/A) ->  | CH74: =IF(BY73>'goal seek'!$F$28,BY74/BY73-1,#N/A) ->  | CI74: =IF(BZ73>'goal seek'!$F$28,BZ74/BZ73-1,#N/A) ->  | CJ74: =IF(CA73>'goal seek'!$F$28,CA74/CA73-1,#N/A) ->  | CL74: 2084 | CM74: =IF(ISNA(CD74),0,CD74) -> 0 | CN74: =IF(ISNA(CE74),0,CE74) -> 0 | CO74: =IF(ISNA(CF74),0,CF74) -> 0 | CP74: 0 | CQ74: 0 | CR74: 0 | CS74: =IF(ISNA(CJ74),0,CJ74) -> 0 | CU74: 2084 | CV74: =scenarios!J80 -> -0.3259897819 | CW74: =scenarios!R80 -> -0.3259897819 | CX74: =scenarios!Z80 -> -0.3259897819 | CY74: =scenarios!AH80 -> -0.3259897819 | CZ74: =scenarios!AP80 -> -0.3259897819 | DA74: =scenarios!AV80 -> -0.3259897819 | DB74: =scenarios!BB80 -> 2.52210593e-06 | DD74: 2076 | DE74: -2.736264426 | DF74: -3.5 | DG74: -3.5 | DH74: -3.5 | DI74: -3.5 | DJ74: -3.5 | DK74: 0.0002032516686
BT75: =BT74+1 -> 2085 | BU75: =scenarios!E81 -> -3.5 | BV75: =scenarios!L81 -> -3.5 | BW75: =scenarios!T81 -> -3.5 | BX75: =scenarios!AB81 -> -3.5 | BY75: =scenarios!AJ81 -> -3.5 | BZ75: =scenarios!AR81 -> -3.5 | CA75: =scenarios!AX81 -> 2.102548466e-05 | CC75: 2085 | CD75: =IF($BU74>'goal seek'!$F$31,$BU75/$BU74-1,#N/A) ->  | CE75: =IF(BV74>'goal seek'!$F$28,BV75/BV74-1,#N/A) ->  | CF75: =IF(BW74>'goal seek'!$F$28,BW75/BW74-1,#N/A) ->  | CG75: =IF(BX74>'goal seek'!$F$28,BX75/BX74-1,#N/A) ->  | CH75: =IF(BY74>'goal seek'!$F$28,BY75/BY74-1,#N/A) ->  | CI75: =IF(BZ74>'goal seek'!$F$28,BZ75/BZ74-1,#N/A) ->  | CJ75: =IF(CA74>'goal seek'!$F$28,CA75/CA74-1,#N/A) ->  | CL75: =CL74+1 -> 2085 | CM75: 0 | CN75: 0 | CO75: 0 | CP75: =IF(ISNA(CG75),0,CG75) -> 0 | CQ75: =IF(ISNA(CH75),0,CH75) -> 0 | CR75: =IF(ISNA(CI75),0,CI75) -> 0 | CS75: 0 | CU75: 2085 | CV75: =scenarios!J81 -> -0.3255687742 | CW75: =scenarios!R81 -> -0.3255687742 | CX75: =scenarios!Z81 -> -0.3255687742 | CY75: =scenarios!AH81 -> -0.3255687742 | CZ75: =scenarios!AP81 -> -0.3255687742 | DA75: =scenarios!AV81 -> -0.3255687742 | DB75: =scenarios!BB81 -> 1.955783219e-06 | DD75: 2077 | DE75: -2.938251082 | DF75: -3.5 | DG75: -3.5 | DH75: -3.5 | DI75: -3.5 | DJ75: -3.5 | DK75: 0.0001581222652
BT76: 2086 | BU76: =scenarios!E82 -> -3.5 | BV76: =scenarios!L82 -> -3.5 | BW76: =scenarios!T82 -> -3.5 | BX76: =scenarios!AB82 -> -3.5 | BY76: =scenarios!AJ82 -> -3.5 | BZ76: =scenarios!AR82 -> -3.5 | CA76: =scenarios!AX82 -> 1.632199472e-05 | CC76: 2086 | CD76: =IF($BU75>'goal seek'!$F$31,$BU76/$BU75-1,#N/A) ->  | CE76: =IF(BV75>'goal seek'!$F$28,BV76/BV75-1,#N/A) ->  | CF76: =IF(BW75>'goal seek'!$F$28,BW76/BW75-1,#N/A) ->  | CG76: =IF(BX75>'goal seek'!$F$28,BX76/BX75-1,#N/A) ->  | CH76: =IF(BY75>'goal seek'!$F$28,BY76/BY75-1,#N/A) ->  | CI76: =IF(BZ75>'goal seek'!$F$28,BZ76/BZ75-1,#N/A) ->  | CJ76: =IF(CA75>'goal seek'!$F$28,CA76/CA75-1,#N/A) ->  | CL76: 2086 | CM76: 0 | CN76: 0 | CO76: 0 | CP76: 0 | CQ76: 0 | CR76: 0 | CS76: 0 | CU76: 2086 | CV76: =scenarios!J82 -> -0.3251695578 | CW76: =scenarios!R82 -> -0.3251695578 | CX76: =scenarios!Z82 -> -0.3251695578 | CY76: =scenarios!AH82 -> -0.3251695578 | CZ76: =scenarios!AP82 -> -0.3251695578 | DA76: =scenarios!AV82 -> -0.3251695578 | DB76: =scenarios!BB82 -> 1.516404516e-06 | DD76: 2078 | DE76: -3.140237739 | DF76: -3.5 | DG76: -3.5 | DH76: -3.5 | DI76: -3.5 | DJ76: -3.5 | DK76: 0.0001229801253
BT77: 2087 | BU77: =scenarios!E83 -> -3.5 | BV77: =scenarios!L83 -> -3.5 | BW77: =scenarios!T83 -> -3.5 | BX77: =scenarios!AB83 -> -3.5 | BY77: =scenarios!AJ83 -> -3.5 | BZ77: =scenarios!AR83 -> -3.5 | CA77: =scenarios!AX83 -> 1.266810426e-05 | CC77: 2087 | CD77: =IF($BU76>'goal seek'!$F$31,$BU77/$BU76-1,#N/A) ->  | CE77: =IF(BV76>'goal seek'!$F$28,BV77/BV76-1,#N/A) ->  | CF77: =IF(BW76>'goal seek'!$F$28,BW77/BW76-1,#N/A) ->  | CG77: =IF(BX76>'goal seek'!$F$28,BX77/BX76-1,#N/A) ->  | CH77: =IF(BY76>'goal seek'!$F$28,BY77/BY76-1,#N/A) ->  | CI77: =IF(BZ76>'goal seek'!$F$28,BZ77/BZ76-1,#N/A) ->  | CJ77: =IF(CA76>'goal seek'!$F$28,CA77/CA76-1,#N/A) ->  | CL77: 2087 | CM77: 0 | CN77: 0 | CO77: 0 | CP77: 0 | CQ77: 0 | CR77: 0 | CS77: 0 | CU77: 2087 | CV77: =scenarios!J83 -> -0.3247919433 | CW77: =scenarios!R83 -> -0.3247919433 | CX77: =scenarios!Z83 -> -0.3247919433 | CY77: =scenarios!AH83 -> -0.3247919433 | CZ77: =scenarios!AP83 -> -0.3247919433 | DA77: =scenarios!AV83 -> -0.3247919433 | DB77: =scenarios!BB83 -> 1.175570914e-06 | DD77: 2079 | DE77: -3.342224395 | DF77: -3.5 | DG77: -3.5 | DH77: -3.5 | DI77: -3.5 | DJ77: -3.5 | DK77: 9.562326752e-05
BT78: 2088 | BU78: =scenarios!E84 -> -3.5 | BV78: =scenarios!L84 -> -3.5 | BW78: =scenarios!T84 -> -3.5 | BX78: =scenarios!AB84 -> -3.5 | BY78: =scenarios!AJ84 -> -3.5 | BZ78: =scenarios!AR84 -> -3.5 | CA78: =scenarios!AX84 -> 9.830230254e-06 | CC78: 2088 | CD78: =IF($BU77>'goal seek'!$F$31,$BU78/$BU77-1,#N/A) ->  | CE78: =IF(BV77>'goal seek'!$F$28,BV78/BV77-1,#N/A) ->  | CF78: =IF(BW77>'goal seek'!$F$28,BW78/BW77-1,#N/A) ->  | CG78: =IF(BX77>'goal seek'!$F$28,BX78/BX77-1,#N/A) ->  | CH78: =IF(BY77>'goal seek'!$F$28,BY78/BY77-1,#N/A) ->  | CI78: =IF(BZ77>'goal seek'!$F$28,BZ78/BZ77-1,#N/A) ->  | CJ78: =IF(CA77>'goal seek'!$F$28,CA78/CA77-1,#N/A) ->  | CL78: 2088 | CM78: 0 | CN78: 0 | CO78: 0 | CP78: 0 | CQ78: 0 | CR78: 0 | CS78: 0 | CU78: 2088 | CV78: =scenarios!J84 -> -0.3244356901 | CW78: =scenarios!R84 -> -0.3244356901 | CX78: =scenarios!Z84 -> -0.3244356901 | CY78: =scenarios!AH84 -> -0.3244356901 | CZ78: =scenarios!AP84 -> -0.3244356901 | DA78: =scenarios!AV84 -> -0.3244356901 | DB78: =scenarios!BB84 -> 9.112221533e-07 | DD78: 2080 | DE78: -3.5 | DF78: -3.5 | DG78: -3.5 | DH78: -3.5 | DI78: -3.5 | DJ78: -3.5 | DK78: 7.433315127e-05
BT79: 2089 | BU79: =scenarios!E85 -> -3.5 | BV79: =scenarios!L85 -> -3.5 | BW79: =scenarios!T85 -> -3.5 | BX79: =scenarios!AB85 -> -3.5 | BY79: =scenarios!AJ85 -> -3.5 | BZ79: =scenarios!AR85 -> -3.5 | CA79: =scenarios!AX85 -> 7.626614619e-06 | CC79: 2089 | CD79: =IF($BU78>'goal seek'!$F$31,$BU79/$BU78-1,#N/A) ->  | CE79: =IF(BV78>'goal seek'!$F$28,BV79/BV78-1,#N/A) ->  | CF79: =IF(BW78>'goal seek'!$F$28,BW79/BW78-1,#N/A) ->  | CG79: =IF(BX78>'goal seek'!$F$28,BX79/BX78-1,#N/A) ->  | CH79: =IF(BY78>'goal seek'!$F$28,BY79/BY78-1,#N/A) ->  | CI79: =IF(BZ78>'goal seek'!$F$28,BZ79/BZ78-1,#N/A) ->  | CJ79: =IF(CA78>'goal seek'!$F$28,CA79/CA78-1,#N/A) ->  | CL79: 2089 | CM79: 0 | CN79: 0 | CO79: 0 | CP79: 0 | CQ79: 0 | CR79: 0 | CS79: 0 | CU79: 2089 | CV79: =scenarios!J85 -> -0.3241007209 | CW79: =scenarios!R85 -> -0.3241007209 | CX79: =scenarios!Z85 -> -0.3241007209 | CY79: =scenarios!AH85 -> -0.3241007209 | CZ79: =scenarios!AP85 -> -0.3241007209 | DA79: =scenarios!AV85 -> -0.3241007209 | DB79: =scenarios!BB85 -> 7.062260846e-07 | DD79: 2081 | DE79: -3.5 | DF79: -3.5 | DG79: -3.5 | DH79: -3.5 | DI79: -3.5 | DJ79: -3.5 | DK79: 5.776905066e-05
BS80: 2090 | BT80: 2090 | BU80: =scenarios!E86 -> -3.5 | BV80: =scenarios!L86 -> -3.5 | BW80: =scenarios!T86 -> -3.5 | BX80: =scenarios!AB86 -> -3.5 | BY80: =scenarios!AJ86 -> -3.5 | BZ80: =scenarios!AR86 -> -3.5 | CA80: =scenarios!AX86 -> 5.915864921e-06 | CC80: 2090 | CD80: =IF($BU79>'goal seek'!$F$31,$BU80/$BU79-1,#N/A) ->  | CE80: =IF(BV79>'goal seek'!$F$28,BV80/BV79-1,#N/A) ->  | CF80: =IF(BW79>'goal seek'!$F$28,BW80/BW79-1,#N/A) ->  | CG80: =IF(BX79>'goal seek'!$F$28,BX80/BX79-1,#N/A) ->  | CH80: =IF(BY79>'goal seek'!$F$28,BY80/BY79-1,#N/A) ->  | CI80: =IF(BZ79>'goal seek'!$F$28,BZ80/BZ79-1,#N/A) ->  | CJ80: =IF(CA79>'goal seek'!$F$28,CA80/CA79-1,#N/A) ->  | CL80: 2090 | CM80: 0 | CN80: 0 | CO80: 0 | CP80: 0 | CQ80: 0 | CR80: 0 | CS80: 0 | CU80: 2090 | CV80: =scenarios!J86 -> -0.3237869889 | CW80: =scenarios!R86 -> -0.3237869889 | CX80: =scenarios!Z86 -> -0.3237869889 | CY80: =scenarios!AH86 -> -0.3237869889 | CZ80: =scenarios!AP86 -> -0.3237869889 | DA80: =scenarios!AV86 -> -0.3237869889 | DB80: =scenarios!BB86 -> 5.472800255e-07 | DD80: 2082 | DE80: -3.5 | DF80: -3.5 | DG80: -3.5 | DH80: -3.5 | DI80: -3.5 | DJ80: -3.5 | DK80: 4.4885378e-05
BT81: 2091 | BU81: =scenarios!E87 -> -3.5 | BV81: =scenarios!L87 -> -3.5 | BW81: =scenarios!T87 -> -3.5 | BX81: =scenarios!AB87 -> -3.5 | BY81: =scenarios!AJ87 -> -3.5 | BZ81: =scenarios!AR87 -> -3.5 | CA81: =scenarios!AX87 -> 4.588019206e-06 | CC81: 2091 | CD81: =IF($BU80>'goal seek'!$F$31,$BU81/$BU80-1,#N/A) ->  | CE81: =IF(BV80>'goal seek'!$F$28,BV81/BV80-1,#N/A) ->  | CF81: =IF(BW80>'goal seek'!$F$28,BW81/BW80-1,#N/A) ->  | CG81: =IF(BX80>'goal seek'!$F$28,BX81/BX80-1,#N/A) ->  | CH81: =IF(BY80>'goal seek'!$F$28,BY81/BY80-1,#N/A) ->  | CI81: =IF(BZ80>'goal seek'!$F$28,BZ81/BZ80-1,#N/A) ->  | CJ81: =IF(CA80>'goal seek'!$F$28,CA81/CA80-1,#N/A) ->  | CL81: 2091 | CM81: 0 | CN81: 0 | CO81: 0 | CP81: 0 | CQ81: 0 | CR81: 0 | CS81: 0 | CU81: 2091 | CV81: =scenarios!J87 -> -0.3234944653 | CW81: =scenarios!R87 -> -0.3234944653 | CX81: =scenarios!Z87 -> -0.3234944653 | CY81: =scenarios!AH87 -> -0.3234944653 | CZ81: =scenarios!AP87 -> -0.3234944653 | DA81: =scenarios!AV87 -> -0.3234944653 | DB81: =scenarios!BB87 -> 4.240568057e-07 | DD81: =BT73 -> 2083 | DE81: =BU73 -> -3.5 | DF81: =BV73 -> -3.5 | DG81: =BW73 -> -3.5 | DH81: =BX73 -> -3.5 | DI81: =BY73 -> -3.5 | DJ81: -3.5 | DK81: =CA73 -> 3.48670027e-05
BT82: 2092 | BU82: =scenarios!E88 -> -3.5 | BV82: =scenarios!L88 -> -3.5 | BW82: =scenarios!T88 -> -3.5 | BX82: =scenarios!AB88 -> -3.5 | BY82: =scenarios!AJ88 -> -3.5 | BZ82: =scenarios!AR88 -> -3.5 | CA82: =scenarios!AX88 -> 3.557581382e-06 | CC82: 2092 | CD82: =IF($BU81>'goal seek'!$F$31,$BU82/$BU81-1,#N/A) ->  | CE82: =IF(BV81>'goal seek'!$F$28,BV82/BV81-1,#N/A) ->  | CF82: =IF(BW81>'goal seek'!$F$28,BW82/BW81-1,#N/A) ->  | CG82: =IF(BX81>'goal seek'!$F$28,BX82/BX81-1,#N/A) ->  | CH82: =IF(BY81>'goal seek'!$F$28,BY82/BY81-1,#N/A) ->  | CI82: =IF(BZ81>'goal seek'!$F$28,BZ82/BZ81-1,#N/A) ->  | CJ82: =IF(CA81>'goal seek'!$F$28,CA82/CA81-1,#N/A) ->  | CL82: 2092 | CM82: 0 | CN82: 0 | CO82: 0 | CP82: 0 | CQ82: 0 | CR82: 0 | CS82: 0 | CU82: 2092 | CV82: =scenarios!J88 -> -0.323223138 | CW82: =scenarios!R88 -> -0.323223138 | CX82: =scenarios!Z88 -> -0.323223138 | CY82: =scenarios!AH88 -> -0.323223138 | CZ82: =scenarios!AP88 -> -0.323223138 | DA82: =scenarios!AV88 -> -0.323223138 | DB82: =scenarios!BB88 -> 3.28540748e-07 | DD82: 2084 | DE82: -3.5 | DF82: -3.5 | DG82: -3.5 | DH82: -3.5 | DI82: -3.5 | DJ82: -3.5 | DK82: 2.707867315e-05
BT83: 2093 | BU83: =scenarios!E89 -> -3.5 | BV83: =scenarios!L89 -> -3.5 | BW83: =scenarios!T89 -> -3.5 | BX83: =scenarios!AB89 -> -3.5 | BY83: =scenarios!AJ89 -> -3.5 | BZ83: =scenarios!AR89 -> -3.5 | CA83: =scenarios!AX89 -> 2.758094375e-06 | CC83: 2093 | CD83: =IF($BU82>'goal seek'!$F$31,$BU83/$BU82-1,#N/A) ->  | CE83: =IF(BV82>'goal seek'!$F$28,BV83/BV82-1,#N/A) ->  | CF83: =IF(BW82>'goal seek'!$F$28,BW83/BW82-1,#N/A) ->  | CG83: =IF(BX82>'goal seek'!$F$28,BX83/BX82-1,#N/A) ->  | CH83: =IF(BY82>'goal seek'!$F$28,BY83/BY82-1,#N/A) ->  | CI83: =IF(BZ82>'goal seek'!$F$28,BZ83/BZ82-1,#N/A) ->  | CJ83: =IF(CA82>'goal seek'!$F$28,CA83/CA82-1,#N/A) ->  | CL83: 2093 | CM83: 0 | CN83: 0 | CO83: 0 | CP83: 0 | CQ83: 0 | CR83: 0 | CS83: 0 | CU83: 2093 | CV83: =scenarios!J89 -> -0.3229730597 | CW83: =scenarios!R89 -> -0.3229730597 | CX83: =scenarios!Z89 -> -0.3229730597 | CY83: =scenarios!AH89 -> -0.3229730597 | CZ83: =scenarios!AP89 -> -0.3229730597 | DA83: =scenarios!AV89 -> -0.3229730597 | DB83: =scenarios!BB89 -> 2.545114797e-07 | DD83: 2085 | DE83: -3.5 | DF83: -3.5 | DG83: -3.5 | DH83: -3.5 | DI83: -3.5 | DJ83: -3.5 | DK83: 2.102548466e-05
BT84: 2094 | BU84: =scenarios!E90 -> -3.5 | BV84: =scenarios!L90 -> -3.5 | BW84: =scenarios!T90 -> -3.5 | BX84: =scenarios!AB90 -> -3.5 | BY84: =scenarios!AJ90 -> -3.5 | BZ84: =scenarios!AR90 -> -3.5 | CA84: =scenarios!AX90 -> 2.137912911e-06 | CC84: 2094 | CD84: =IF($BU83>'goal seek'!$F$31,$BU84/$BU83-1,#N/A) ->  | CE84: =IF(BV83>'goal seek'!$F$28,BV84/BV83-1,#N/A) ->  | CF84: =IF(BW83>'goal seek'!$F$28,BW84/BW83-1,#N/A) ->  | CG84: =IF(BX83>'goal seek'!$F$28,BX84/BX83-1,#N/A) ->  | CH84: =IF(BY83>'goal seek'!$F$28,BY84/BY83-1,#N/A) ->  | CI84: =IF(BZ83>'goal seek'!$F$28,BZ84/BZ83-1,#N/A) ->  | CJ84: =IF(CA83>'goal seek'!$F$28,CA84/CA83-1,#N/A) ->  | CL84: 2094 | CM84: 0 | CN84: 0 | CO84: 0 | CP84: 0 | CQ84: 0 | CR84: 0 | CS84: 0 | CU84: 2094 | CV84: =scenarios!J90 -> -0.3227443457 | CW84: =scenarios!R90 -> -0.3227443457 | CX84: =scenarios!Z90 -> -0.3227443457 | CY84: =scenarios!AH90 -> -0.3227443457 | CZ84: =scenarios!AP90 -> -0.3227443457 | DA84: =scenarios!AV90 -> -0.3227443457 | DB84: =scenarios!BB90 -> 1.971426582e-07 | DD84: 2086 | DE84: -3.5 | DF84: -3.5 | DG84: -3.5 | DH84: -3.5 | DI84: -3.5 | DJ84: -3.5 | DK84: 1.632199472e-05
BT85: 2095 | BU85: =scenarios!E91 -> -3.5 | BV85: =scenarios!L91 -> -3.5 | BW85: =scenarios!T91 -> -3.5 | BX85: =scenarios!AB91 -> -3.5 | BY85: =scenarios!AJ91 -> -3.5 | BZ85: =scenarios!AR91 -> -3.5 | CA85: =scenarios!AX91 -> 1.65691175e-06 | CC85: 2095 | CD85: =IF($BU84>'goal seek'!$F$31,$BU85/$BU84-1,#N/A) ->  | CE85: =IF(BV84>'goal seek'!$F$28,BV85/BV84-1,#N/A) ->  | CF85: =IF(BW84>'goal seek'!$F$28,BW85/BW84-1,#N/A) ->  | CG85: =IF(BX84>'goal seek'!$F$28,BX85/BX84-1,#N/A) ->  | CH85: =IF(BY84>'goal seek'!$F$28,BY85/BY84-1,#N/A) ->  | CI85: =IF(BZ84>'goal seek'!$F$28,BZ85/BZ84-1,#N/A) ->  | CJ85: =IF(CA84>'goal seek'!$F$28,CA85/CA84-1,#N/A) ->  | CL85: 2095 | CM85: 0 | CN85: 0 | CO85: 0 | CP85: 0 | CQ85: 0 | CR85: 0 | CS85: 0 | CU85: 2095 | CV85: =scenarios!J91 -> -0.3225372261 | CW85: =scenarios!R91 -> -0.3225372261 | CX85: =scenarios!Z91 -> -0.3225372261 | CY85: =scenarios!AH91 -> -0.3225372261 | CZ85: =scenarios!AP91 -> -0.3225372261 | DA85: =scenarios!AV91 -> -0.3225372261 | DB85: =scenarios!BB91 -> 1.526902056e-07 | DD85: 2087 | DE85: -3.5 | DF85: -3.5 | DG85: -3.5 | DH85: -3.5 | DI85: -3.5 | DJ85: -3.5 | DK85: 1.266810426e-05
BT86: 2096 | BU86: =scenarios!E92 -> -3.5 | BV86: =scenarios!L92 -> -3.5 | BW86: =scenarios!T92 -> -3.5 | BX86: =scenarios!AB92 -> -3.5 | BY86: =scenarios!AJ92 -> -3.5 | BZ86: =scenarios!AR92 -> -3.5 | CA86: =scenarios!AX92 -> 1.283923142e-06 | CC86: 2096 | CD86: =IF($BU85>'goal seek'!$F$31,$BU86/$BU85-1,#N/A) ->  | CE86: =IF(BV85>'goal seek'!$F$28,BV86/BV85-1,#N/A) ->  | CF86: =IF(BW85>'goal seek'!$F$28,BW86/BW85-1,#N/A) ->  | CG86: =IF(BX85>'goal seek'!$F$28,BX86/BX85-1,#N/A) ->  | CH86: =IF(BY85>'goal seek'!$F$28,BY86/BY85-1,#N/A) ->  | CI86: =IF(BZ85>'goal seek'!$F$28,BZ86/BZ85-1,#N/A) ->  | CJ86: =IF(CA85>'goal seek'!$F$28,CA86/CA85-1,#N/A) ->  | CL86: 2096 | CM86: 0 | CN86: 0 | CO86: 0 | CP86: 0 | CQ86: 0 | CR86: 0 | CS86: 0 | CU86: 2096 | CV86: =scenarios!J92 -> -0.3223520501 | CW86: =scenarios!R92 -> -0.3223520501 | CX86: =scenarios!Z92 -> -0.3223520501 | CY86: =scenarios!AH92 -> -0.3223520501 | CZ86: =scenarios!AP92 -> -0.3223520501 | DA86: =scenarios!AV92 -> -0.3223520501 | DB86: =scenarios!BB92 -> 1.182500734e-07 | DD86: 2088 | DE86: -3.5 | DF86: -3.5 | DG86: -3.5 | DH86: -3.5 | DI86: -3.5 | DJ86: -3.5 | DK86: 9.830230254e-06
BT87: 2097 | BU87: =scenarios!E93 -> -3.5 | BV87: =scenarios!L93 -> -3.5 | BW87: =scenarios!T93 -> -3.5 | BX87: =scenarios!AB93 -> -3.5 | BY87: =scenarios!AJ93 -> -3.5 | BZ87: =scenarios!AR93 -> -3.5 | CA87: =scenarios!AX93 -> 9.947425396e-07 | CC87: 2097 | CD87: =IF($BU86>'goal seek'!$F$31,$BU87/$BU86-1,#N/A) ->  | CE87: =IF(BV86>'goal seek'!$F$28,BV87/BV86-1,#N/A) ->  | CF87: =IF(BW86>'goal seek'!$F$28,BW87/BW86-1,#N/A) ->  | CG87: =IF(BX86>'goal seek'!$F$28,BX87/BX86-1,#N/A) ->  | CH87: =IF(BY86>'goal seek'!$F$28,BY87/BY86-1,#N/A) ->  | CI87: =IF(BZ86>'goal seek'!$F$28,BZ87/BZ86-1,#N/A) ->  | CJ87: =IF(CA86>'goal seek'!$F$28,CA87/CA86-1,#N/A) ->  | CL87: 2097 | CM87: 0 | CN87: 0 | CO87: 0 | CP87: 0 | CQ87: 0 | CR87: 0 | CS87: 0 | CU87: 2097 | CV87: =scenarios!J93 -> -0.3221892835 | CW87: =scenarios!R93 -> -0.3221892835 | CX87: =scenarios!Z93 -> -0.3221892835 | CY87: =scenarios!AH93 -> -0.3221892835 | CZ87: =scenarios!AP93 -> -0.3221892835 | DA87: =scenarios!AV93 -> -0.3221892835 | DB87: =scenarios!BB93 -> 9.157011032e-08 | DD87: 2089 | DE87: -3.5 | DF87: -3.5 | DG87: -3.5 | DH87: -3.5 | DI87: -3.5 | DJ87: -3.5 | DK87: 7.626614619e-06
BT88: 2098 | BU88: =scenarios!E94 -> -3.5 | BV88: =scenarios!L94 -> -3.5 | BW88: =scenarios!T94 -> -3.5 | BX88: =scenarios!AB94 -> -3.5 | BY88: =scenarios!AJ94 -> -3.5 | BZ88: =scenarios!AR94 -> -3.5 | CA88: =scenarios!AX94 -> 7.705769951e-07 | CC88: 2098 | CD88: =IF($BU87>'goal seek'!$F$31,$BU88/$BU87-1,#N/A) ->  | CE88: =IF(BV87>'goal seek'!$F$28,BV88/BV87-1,#N/A) ->  | CF88: =IF(BW87>'goal seek'!$F$28,BW88/BW87-1,#N/A) ->  | CG88: =IF(BX87>'goal seek'!$F$28,BX88/BX87-1,#N/A) ->  | CH88: =IF(BY87>'goal seek'!$F$28,BY88/BY87-1,#N/A) ->  | CI88: =IF(BZ87>'goal seek'!$F$28,BZ88/BZ87-1,#N/A) ->  | CJ88: =IF(CA87>'goal seek'!$F$28,CA88/CA87-1,#N/A) ->  | CL88: 2098 | CM88: 0 | CN88: 0 | CO88: 0 | CP88: 0 | CQ88: 0 | CR88: 0 | CS88: 0 | CU88: 2098 | CV88: =scenarios!J94 -> -0.3220495203 | CW88: =scenarios!R94 -> -0.3220495203 | CX88: =scenarios!Z94 -> -0.3220495203 | CY88: =scenarios!AH94 -> -0.3220495203 | CZ88: =scenarios!AP94 -> -0.3220495203 | DA88: =scenarios!AV94 -> -0.3220495203 | DB88: =scenarios!BB94 -> 7.090398617e-08 | DD88: 2090 | DE88: -3.5 | DF88: -3.5 | DG88: -3.5 | DH88: -3.5 | DI88: -3.5 | DJ88: -3.5 | DK88: 5.915864921e-06
BT89: 2099 | BU89: =scenarios!E95 -> -3.5 | BV89: =scenarios!L95 -> -3.5 | BW89: =scenarios!T95 -> -3.5 | BX89: =scenarios!AB95 -> -3.5 | BY89: =scenarios!AJ95 -> -3.5 | BZ89: =scenarios!AR95 -> -3.5 | CA89: =scenarios!AX95 -> 5.968382964e-07 | CC89: 2099 | CD89: =IF($BU88>'goal seek'!$F$31,$BU89/$BU88-1,#N/A) ->  | CE89: =IF(BV88>'goal seek'!$F$28,BV89/BV88-1,#N/A) ->  | CF89: =IF(BW88>'goal seek'!$F$28,BW89/BW88-1,#N/A) ->  | CG89: =IF(BX88>'goal seek'!$F$28,BX89/BX88-1,#N/A) ->  | CH89: =IF(BY88>'goal seek'!$F$28,BY89/BY88-1,#N/A) ->  | CI89: =IF(BZ88>'goal seek'!$F$28,BZ89/BZ88-1,#N/A) ->  | CJ89: =IF(CA88>'goal seek'!$F$28,CA89/CA88-1,#N/A) ->  | CL89: 2099 | CM89: 0 | CN89: 0 | CO89: 0 | CP89: 0 | CQ89: 0 | CR89: 0 | CS89: 0 | CU89: 2099 | CV89: =scenarios!J95 -> -0.3219334705 | CW89: =scenarios!R95 -> -0.3219334705 | CX89: =scenarios!Z95 -> -0.3219334705 | CY89: =scenarios!AH95 -> -0.3219334705 | CZ89: =scenarios!AP95 -> -0.3219334705 | DA89: =scenarios!AV95 -> -0.3219334705 | DB89: =scenarios!BB95 -> 5.489777831e-08 | DD89: 2091 | DE89: -3.5 | DF89: -3.5 | DG89: -3.5 | DH89: -3.5 | DI89: -3.5 | DJ89: -3.5 | DK89: 4.588019206e-06
BS90: 2100 | BT90: 2100 | BU90: =scenarios!E96 -> -3.5 | BV90: =scenarios!L96 -> -3.5 | BW90: =scenarios!T96 -> -3.5 | BX90: =scenarios!AB96 -> -3.5 | BY90: =scenarios!AJ96 -> -3.5 | BZ90: =scenarios!AR96 -> -3.5 | CA90: =scenarios!AX96 -> 4.622045004e-07 | CC90: 2100 | CD90: =IF($BU89>'goal seek'!$F$31,$BU90/$BU89-1,#N/A) ->  | CE90: =IF(BV89>'goal seek'!$F$28,BV90/BV89-1,#N/A) ->  | CF90: =IF(BW89>'goal seek'!$F$28,BW90/BW89-1,#N/A) ->  | CG90: =IF(BX89>'goal seek'!$F$28,BX90/BX89-1,#N/A) ->  | CH90: =IF(BY89>'goal seek'!$F$28,BY90/BY89-1,#N/A) ->  | CI90: =IF(BZ89>'goal seek'!$F$28,BZ90/BZ89-1,#N/A) ->  | CJ90: =IF(CA89>'goal seek'!$F$28,CA90/CA89-1,#N/A) ->  | CL90: 2100 | CM90: 0 | CN90: 0 | CO90: 0 | CP90: 0 | CQ90: 0 | CR90: 0 | CS90: 0 | CU90: 2100 | CV90: =scenarios!J96 -> -0.3218419713 | CW90: =scenarios!R96 -> -0.3218419713 | CX90: =scenarios!Z96 -> -0.3218419713 | CY90: =scenarios!AH96 -> -0.3218419713 | CZ90: =scenarios!AP96 -> -0.3218419713 | DA90: =scenarios!AV96 -> -0.3218419713 | DB90: =scenarios!BB96 -> 4.250194502e-08 | DD90: 2092 | DE90: -3.5 | DF90: -3.5 | DG90: -3.5 | DH90: -3.5 | DI90: -3.5 | DJ90: -3.5 | DK90: 3.557581382e-06
DD91: 2093 | DE91: -3.5 | DF91: -3.5 | DG91: -3.5 | DH91: -3.5 | DI91: -3.5 | DJ91: -3.5 | DK91: 2.758094375e-06
BU92: =CD92 -> RM-1 const | BV92: RM-2 exp | BW92: RM-3 lin | BX92: RM-4 quadr | BY92: RM-5 rad | BZ92: RM-6 abs | CA92: =CJ92 -> SPM-R | CD92: =CD9 -> RM-1 const | CE92: RM-2 exp | CF92: RM-3 lin | CG92: RM-4 quadr | CH92: RM-5 rad | CI92: RM-6 abs | CJ92: SPM-R | DD92: 2094 | DE92: -3.5 | DF92: -3.5 | DG92: -3.5 | DH92: -3.5 | DI92: -3.5 | DJ92: -3.5 | DK92: 2.137912911e-06
BT93: 2030 | BU93: =SUM(BU10:BU20) -> 285.2531609 | BV93: =SUM(BV10:BV20) -> 414.0178364 | BW93: 378.1827256 | BX93: 409.4534547 | BY93: =SUM(BY10:BY20) -> 351.7248044 | BZ93: 362.0773673 | CA93: =SUM(CA10:CA20) -> 290.3593011 | CC93: 2030 | CD93: =graphs!BU$20/graphs!CD95-1 -> -0.4306922329 | CE93: =graphs!BV$20/graphs!CE95-1 -> 0.06580065686 | CF93: =graphs!BW$20/graphs!CF95-1 -> -0.1610819655 | CG93: =graphs!BX$20/graphs!CG95-1 -> -0.000510404289 | CH93: =graphs!BY$20/graphs!CH95-1 -> -0.2726185237 | CI93: =graphs!BZ$20/graphs!CI95-1 -> -0.1157187696 | CJ93: =graphs!CA$20/graphs!CJ95-1 -> -0.6209702148 | DD93: 2095 | DE93: -3.5 | DF93: -3.5 | DG93: -3.5 | DH93: -3.5 | DI93: -3.5 | DJ93: -3.5 | DK93: 1.65691175e-06
BT94: 2050 | BU94: =SUM(BU10:BU40) -> 423.4703323 | BV94: =SUM(BV10:BV40) -> 510.0695706 | BW94: 506.3470231 | BX94: 509.953622 | BY94: =SUM(BY10:BY40) -> 484.6956455 | BZ94: 510.0734543 | CA94: =SUM(CA10:CA40) -> 334.5560681 | CC94: 2050 | CD94: =graphs!BU$40/graphs!CD95-1 -> -0.9084204649 | CE94: =graphs!BV$40/graphs!CE95-1 -> -1.126455563 | CF94: =graphs!BW$40/graphs!CF95-1 -> -1.047570003 | CG94: =graphs!BX$40/graphs!CG95-1 -> -1.126455563 | CH94: =graphs!BY$40/graphs!CH95-1 -> -0.9738709432 | CI94: =graphs!BZ$40/graphs!CI95-1 -> -1.126455563 | CJ94: =graphs!CA$40/graphs!CJ95-1 -> -0.995627115 | DD94: =BT86 -> 2096 | DE94: -3.5 | DF94: -3.5 | DG94: -3.5 | DH94: -3.5 | DI94: -3.5 | DJ94: -3.5 | DK94: =CA86 -> 1.283923142e-06
CC95: 1990 | CD95: ='Global Carbon Budget'!L56 -> 27.67770674 | CE95: =CD95 -> 27.67770674 | CF95: =CE95 -> 27.67770674 | CG95: =CF95 -> 27.67770674 | CH95: =CG95 -> 27.67770674 | CI95: =CH95 -> 27.67770674 | CJ95: =CG95 -> 27.67770674 | DD95: 2097 | DE95: -3.5 | DF95: -3.5 | DG95: -3.5 | DH95: -3.5 | DI95: -3.5 | DJ95: -3.5 | DK95: 9.947425396e-07
BS96: 2019 - 2100 | BU96: =SUM(BU9:BU90) -> 378.098029 | BV96: =SUM(BV9:BV90) -> 378.1151921 | BW96: 377.8483144 | BX96: 377.9992436 | BY96: 377.9060369 | BZ96: 378.1190759 | DD96: 2098 | DE96: -3.5 | DF96: -3.5 | DG96: -3.5 | DH96: -3.5 | DI96: -3.5 | DJ96: -3.5 | DK96: 7.705769951e-07
BS97: 2018 | BU97: ='base data'!$L$18 -> 42.11268577 | BV97: ='base data'!$L$18 -> 42.11268577 | BW97: ='base data'!$L$18 -> 42.11268577 | BX97: ='base data'!$L$18 -> 42.11268577 | BY97: ='base data'!$L$18 -> 42.11268577 | BZ97: ='base data'!$L$18 -> 42.11268577 | CC97: average | DD97: 2099 | DE97: -3.5 | DF97: -3.5 | DG97: -3.5 | DH97: -3.5 | DI97: -3.5 | DJ97: -3.5 | DK97: 5.968382964e-07
BU98: =SUM(BU96:BU97) -> 420.2107148 | BV98: =SUM(BV96:BV97) -> 420.2278779 | BW98: 419.9610002 | BX98: 420.1119294 | BY98: 420.0187227 | BZ98: 420.2317616 | CC98: 2041 - 2050 | CE98: =AVERAGE(CE31:CE40) ->  | DD98: 2100 | DE98: -3.5 | DF98: -3.5 | DG98: -3.5 | DH98: -3.5 | DI98: -3.5 | DJ98: -3.5 | DK98: 4.622045004e-07
CD100: =CD92 -> RM-1 const | CE100: RM-2 exp | CF100: RM-3 lin | CG100: RM-4 quadr | CH100: RM-5 rad | CI100: =CI92 -> RM-6 abs | CJ100: SPM-R
CC101: 2030 | CD101: =graphs!BU$20/graphs!CD103-1 -> -0.5904127492 | CE101: =graphs!BV$20/graphs!CE103-1 -> -0.2332120056 | CF101: =graphs!BW$20/graphs!CF103-1 -> -0.3964422212 | CG101: =graphs!BX$20/graphs!CG103-1 -> -0.2809193562 | CH101: =graphs!BY$20/graphs!CH103-1 -> -0.4766869586 | CI101: =graphs!BZ$20/graphs!CI103-1 -> -0.3638057673 | CJ101: =graphs!CA$20/graphs!CJ103-1 -> -0.7273078348
CC102: 2050 | CD102: =graphs!BU$40/graphs!CD103-1 -> -0.9341133001 | CE102: =graphs!BV$40/graphs!CE103-1 -> -1.090978184 | CF102: =graphs!BW$40/graphs!CF103-1 -> -1.034224136 | CG102: =graphs!BX$40/graphs!CG103-1 -> -1.090978184 | CH102: =graphs!BY$40/graphs!CH103-1 -> -0.9812015062 | CI102: =graphs!BZ$40/graphs!CI103-1 -> -1.090978184 | CJ102: =graphs!CA$40/graphs!CJ103-1 -> -0.9968539373
CC103: 2010 | CD103: ='base data'!$D$18 -> 38.47076147 | CE103: ='base data'!$D$18 -> 38.47076147 | CF103: ='base data'!$D$18 -> 38.47076147 | CG103: ='base data'!$D$18 -> 38.47076147 | CH103: ='base data'!$D$18 -> 38.47076147 | CI103: ='base data'!$D$18 -> 38.47076147 | CJ103: ='base data'!$D$18 -> 38.47076147

Sheet scenarios
E2: RM-1 const | L2: RM-2 exp | T2: RM-3 lin | AB2: RM-4 quadr | AJ2: RM-5 rad | AR2: RM-6 abs | AX2: SPM-R
E3: constant annual reduction rate | L3: exponential increase of annual reduction rates is assumed | T3: linear increase of annual reduction rates is assumed | AB3: quadratic formula for annual reduction rates | AJ3: radical formula for annual reduction rates | AR3: constant annual reduction amount | AX3: based on: Raupach et al. (2014) / Sharing a quota on cumulative carbon emissions / nature climate change DOI: 10.1038/NCLIMATE2384
AJ4: correction factor | AP4: 0.5 | BE4: ='goal seek'!C5 -> RM-1 const | BF4: ='goal seek'!D5 -> RM-2 exp | BG4: ='goal seek'!E5 -> RM-3 lin | BH4: ='goal seek'!F5 -> RM-4 quadr | BI4: ='goal seek'!G5 -> RM-5 rad | BJ4: ='goal seek'!H5 -> RM-6 abs | BK4: =BE4 -> RM-1 const | BL4: RM-2 exp | BM4: RM-3 lin | BN4: RM-4 quadr | BO4: RM-5 rad | BP4: RM-6 abs
C5: cumulative budget 2020 - 2100 in Gt | E5: =$C$5 -> cumulative budget 2020 - 2100 in Gt | J5: =ROUND('base data'!$L$25,0) -> 335 | L5: =$C$5 -> cumulative budget 2020 - 2100 in Gt | R5: =ROUND('base data'!$L$25,0) -> 335 | T5: =$C$5 -> cumulative budget 2020 - 2100 in Gt | Z5: =ROUND('base data'!$L$25,0) -> 335 | AB5: =$C$5 -> cumulative budget 2020 - 2100 in Gt | AH5: =ROUND('base data'!$L$25,0) -> 335 | AJ5: =$C$5 -> cumulative budget 2020 - 2100 in Gt | AP5: =ROUND('base data'!$L$25,0) -> 335 | AR5: =$C$5 -> cumulative budget 2020 - 2100 in Gt | AV5: =ROUND('base data'!$L$25,0) -> 335 | AX5: =$C$5 -> cumulative budget 2020 - 2100 in Gt | BB5: =ROUND('base data'!$L$25,0) -> 335
C6: scenario cumulative emissions 2020 - 2100 | E6: =$C$6 -> scenario cumulative emissions 2020 - 2100 | J6: =ROUND(E97,0) -> 335 | L6: =$C$6 -> scenario cumulative emissions 2020 - 2100 | R6: =ROUND(scenarios!L97,0) -> 335 | T6: =$C$6 -> scenario cumulative emissions 2020 - 2100 | Z6: =ROUND(T97,0) -> 335 | AB6: =$C$6 -> scenario cumulative emissions 2020 - 2100 | AH6: =ROUND(AB97,0) -> 335 | AJ6: =$C$6 -> scenario cumulative emissions 2020 - 2100 | AP6: =ROUND(AJ97,0) -> 335 | AR6: =$C$6 -> scenario cumulative emissions 2020 - 2100 | AV6: =ROUND(AR97,0) -> 335 | AX6: scenario cumulative emissions 2020 - 2100 in Gt | BB6: =ROUND(AX97,0) -> 335 | BE6: budget 2018 - 2100 in Gt
B7: base data | C7: E_min in Gt | E7: =$C$7 -> E_min in Gt | J7: ='base data'!N31 -> -3.5 | L7: =$C$7 -> E_min in Gt | R7: ='base data'!N31 -> -3.5 | T7: =$C$7 -> E_min in Gt | Z7: =ROUND('base data'!N31,2) -> -3.5 | AB7: =$C$7 -> E_min in Gt | AH7: =ROUND('base data'!N31,2) -> -3.5 | AJ7: =$C$7 -> E_min in Gt | AP7: =ROUND('base data'!N31,2) -> -3.5 | AR7: =$C$7 -> E_min in Gt | AV7: =ROUND('base data'!N31,2) -> -3.5 | AX7: scenario cumulative emissions 2020 - ㆀ | BB7: =ROUND(AX99,0) -> 335 | BE7: ='base data'!B10 -> 420
B8: goal seek | C8: scenario emissions in year 2100 in Gt | E8: =$C$8 -> scenario emissions in year 2100 in Gt | J8: =ROUND(E96,5) -> -3.5 | L8: =$C$8 -> scenario emissions in year 2100 in Gt | R8: =ROUND(scenarios!L96,2) -> -3.5 | T8: =$C$8 -> scenario emissions in year 2100 in Gt | Z8: =ROUND(T96,2) -> -3.5 | AB8: =$C$8 -> scenario emissions in year 2100 in Gt | AH8: =ROUND(AB96,2) -> -3.5 | AJ8: =$C$8 -> scenario emissions in year 2100 in Gt | AP8: =ROUND(AJ96,2) -> -3.5 | AR8: =$C$8 -> scenario emissions in year 2100 in Gt | AV8: =ROUND(AR96,2) -> -3.5 | AX8: =$C$8 -> scenario emissions in year 2100 in Gt | BB8: =AX96 -> 4.622045004e-07
B9: input value | E9: RR_20 info | J9: =G16 -> -0.08731152545 | L9: RR_20; input value sheet "goal seek" | R9: ='goal seek'!D9 -> -0.01 | T9: =L9 -> RR_20; input value sheet "goal seek" | Z9: ='goal seek'!E9 -> -0.01 | AB9: =T9 -> RR_20; input value sheet "goal seek" | AH9: ='goal seek'!F9 -> -0.01 | AJ9: =AB9 -> RR_20; input value sheet "goal seek" | AP9: ='goal seek'!G9 -> -0.01 | AR9: =E9 -> RR_20 info | AV9: =AT16 -> -0.03922000621 | AX9: T | AY9: "emission time" | BB9: =BB5/AX15 -> 7.782440764
B10: formula | E10: free paramter | J10: ='goal seek'!C12 -> -0.08731152545 | L10: =E10 -> free paramter | R10: ='goal seek'!D12 -> 0.2246061398 | T10: =L10 -> free paramter | Z10: ='goal seek'!E12 -> -0.008831590603 | AB10: =T10 -> free paramter | AH10: ='goal seek'!F13 -> -0.0008287823447 | AJ10: =AB10 -> free paramter | AP10: ='goal seek'!G13 -> -0.02933402209 | AR10: =AJ10 -> free paramter | AV10: ='goal seek'!H13 -> -1.688249545 | AX10: r | AY10: RR_19 | BB10: ='base data'!$M$16 -> 0.02215331989 | BE10: cumulative CO2 emissions start 2018 | BK10: overshoot
E11: threshold value; TV in Gt | J11: =IF('goal seek'!F31>'goal seek'!F28,'goal seek'!F31,'goal seek'!F28) -> 2.2 | L11: =E11 -> threshold value; TV in Gt | R11: ='goal seek'!$F$28 -> 2 | T11: =L11 -> threshold value; TV in Gt | Z11: =R11 -> 2 | AB11: =T11 -> threshold value; TV in Gt | AH11: =Z11 -> 2 | AJ11: =AB11 -> threshold value; TV in Gt | AP11: =AH11 -> 2 | AX11: m | AY11: mitigation rate | BB11: =(1+SQRT(1+BB10*BB9))/BB9 -> 0.2676252173
BE12: Gt | BF12: Gt | BG12: Gt | BH12: Gt | BI12: Gt | BJ12: Gt | BK12: Gt | BL12: Gt | BM12: Gt | BN12: Gt | BO12: Gt | BP12: Gt
B13: population in thousands | C13: year | E13: CO2 emissions in Gt | F13: absolute change vs. prev. year in Gt | G13: relative change vs. prev. year | H13: absolute change of R_t | J13: t / capita | L13: CO2 emissions in Gt | M13: absolute change vs. prev. yearin in Gt | N13: relative change vs. prev. year | P13: =H13 -> absolute change of R_t | R13: t / capita | T13: CO2 emissions in Gt | U13: absolute change vs. prev. yearin in Gt | V13: relative change vs. prev. year | X13: =P13 -> absolute change of R_t | Z13: =R13 -> t / capita | AB13: CO2 emissions in Gt | AC13: absolute change vs. prev. yearin in Gt | AD13: relative change vs. prev. year | AF13: =X13 -> absolute change of R_t | AH13: =J13 -> t / capita | AJ13: CO2 emissions in Gt | AK13: absolute change vs. prev. yearin in Gt | AL13: relative change vs. prev. year | AN13: =AF13 -> absolute change of R_t | AP13: =R13 -> t / capita | AR13: CO2 emissions in Gt | AS13: absolute change vs. prev. yearin in Gt | AT13: relative change vs. prev. year | AV13: =Z13 -> t / capita | AX13: CO2 emissions in Gt | AY13: absolute change vs. prev. yearin in Gt | AZ13: relative change vs. prev. year | BB13: =R13 -> t / capita
C14: t | E14: see formula below Et | F14: R_t = Et - Et-1 | G14: RRt const resp. actual | L14: see formula below Et | M14: =F14 -> R_t = Et - Et-1 | N14: see formula below | O14: actual RRt | T14: see formula below Et | U14: =F14 -> R_t = Et - Et-1 | V14: see formula below | W14: actual RRt | AB14: see formula below Et | AC14: =U14 -> R_t = Et - Et-1 | AD14: see formula below | AE14: actual RRt | AJ14: see formula below Et | AK14: =AC14 -> R_t = Et - Et-1 | AL14: see formula below | AM14: actual RRt | AR14: see formula below Et | AS14: =AK14 -> R_t = Et - Et-1 | AT14: actual RRt | AX14: see formula below Et | AY14: Et - Et-1 | AZ14: RRt | BE14: =BE4 -> RM-1 const | BF14: =BF4 -> RM-2 exp | BG14: RM-3 lin | BH14: RM-4 quadr | BI14: RM-5 rad | BJ14: RM-6 abs | BK14: RM-1 const | BL14: RM-2 exp | BM14: RM-3 lin | BN14: RM-4 quadr | BO14: RM-5 rad | BP14: RM-6 abs
A15: 1 | B15: 7713468.1 | C15: 2019 | E15: ='base data'!$L$29 -> 43.04562157 | J15: =E15*1000000/B15 -> 5.58057945 | L15: ='base data'!$L$29 -> 43.04562157 | R15: =L15*1000000/$B15 -> 5.58057945 | T15: ='base data'!$L$29 -> 43.04562157 | Z15: =T15*1000000/$B15 -> 5.58057945 | AB15: ='base data'!$L$29 -> 43.04562157 | AH15: =AB15*1000000/$B15 -> 5.58057945 | AJ15: ='base data'!$L$29 -> 43.04562157 | AP15: =AJ15*1000000/$B15 -> 5.58057945 | AR15: ='base data'!$L$29 -> 43.04562157 | AV15: =AR15*1000000/$B15 -> 5.58057945 | AX15: ='base data'!$L$29 -> 43.04562157 | BB15: =AX15*1000000/$B15 -> 5.58057945 | BD15: 2018 - 2019 | BE15: ='base data'!N18 -> 85.15830734 | BF15: =BE15 -> 85.15830734 | BG15: =BF15 -> 85.15830734 | BH15: 85.15830734 | BI15: 85.15830734 | BJ15: 85.15830734 | BK15: =IF(BE15-$BE$7>0,BE15-$BE$7,"") ->  | BL15: =IF(BF15-$BE$7>0,BF15-$BE$7,"") ->  | BM15: =IF(BG15-$BE$7>0,BG15-$BE$7,"") ->  | BN15: =IF(BH15-$BE$7>0,BH15-$BE$7,"") ->  | BO15: =IF(BI15-$BE$7>0,BI15-$BE$7,"") -> 
A16: =A15+1 -> 2 | B16: 7794798.739 | C16: 2020 | E16: =IF(E15>$J$11,MAX($J$7,E15*(1+$J$10)),MAX($J$7,scenarios!E15+scenarios!F15)) -> 39.28724269 | F16: =E16-E15 -> -3.758378883 | G16: =IF(E16>0,E16/E15-1,"") -> -0.08731152545 | J16: 5.040186925 | L16: =IF(L15>'goal seek'!$F$28,MAX($R$7,L15*(1+N16)),MAX($R$7,L15+M15)) -> 42.61516535 | M16: =L16-L15 -> -0.4304562157 | N16: =R9 -> -0.01 | O16: =IF(L16>0,L16/L15-1,"") -> -0.01 | R16: 5.467128374 | T16: =IF(T15>'goal seek'!$F$28,MAX($Z$7,T15*(1+V16)),MAX($Z$7,T15+U15)) -> 42.61516535 | U16: =T16-T15 -> -0.4304562157 | V16: =Z9 -> -0.01 | W16: =IF(T16>0,T16/T15-1,"") -> -0.01 | Z16: 5.467128374 | AB16: =IF(AB15>'goal seek'!$F$28,MAX($AH$7,AB15*(1+AD16)),MAX($AH$7,AB15+AC15)) -> 42.61516535 | AC16: =AB16-AB15 -> -0.4304562157 | AD16: =$AH$10*(C16-2020)^2+$AH$9 -> -0.01 | AE16: =IF(AB16>0,AB16/AB15-1,"") -> -0.01 | AH16: 5.467128374 | AJ16: =IF(AJ15>'goal seek'!$F$28,MAX($AH$7,AJ15*(1+AL16)),MAX($AH$7,AJ15+AK15)) -> 42.61516535 | AK16: =AJ16-AJ15 -> -0.4304562157 | AL16: =AP9 -> -0.01 | AM16: =IF(AJ16>0,AJ16/AJ15-1,"") -> -0.01 | AP16: 5.467128374 | AR16: =MAX(AR15+$AV$10,$AV$7) -> 41.35737202 | AS16: =AR16-AR15 -> -1.688249545 | AT16: =IF(AR16>0,AR16/AR15-1,"") -> -0.03922000621 | AV16: 5.305765217 | AX16: =-AX$15*EXP(-BB$11*($C16-$C$15))/BB$11^2*((BB$10*BB$11+BB$11^2)*($C16-$C$15)+2*BB$11+BB$10) +AX$15*EXP(-BB$11*($C15-$C$15))/BB$11^2*((BB$10*BB$11+BB$11^2)*($C15-$C$15)+2*BB$11+BB$10) -> 42.99502157 | AY16: =AX16-AX15 -> -0.05059999476 | AZ16: =IF(AX16>0,AX16/AX15-1,"") -> -0.001175496901 | BB16: 5.515860385 | BD16: =C16 -> 2020 | BE16: =BE15+E16 -> 124.44555 | BF16: =BF15+L16 -> 127.7734727 | BG16: =BG15+T16 -> 127.7734727 | BH16: =BH15+AB16 -> 127.7734727 | BI16: =BI15+AJ16 -> 127.7734727 | BJ16: =BJ15+AR16 -> 126.5156794
A17: =A16+1 -> 3 | B17: 7874965.825 | C17: =C16+1 -> 2021 | E17: =IF(E16>$J$11,MAX($J$7,E16*(1+$J$10)),MAX($J$7,scenarios!E16+scenarios!F16)) -> 35.8570136 | F17: -3.430229089 | G17: =IF(E17>0,E17/E16-1,"") -> -0.08731152545 | H17: =F17-F16 -> 0.3281497935 | J17: 4.553291328 | L17: =IF(L16>'goal seek'!$F$28,MAX($R$7,L16*(1+N17)),MAX($R$7,L16+M16)) -> 42.09329742 | M17: -0.5218679314 | N17: =MAX(-5,N16*(1+$R$10)) -> -0.0122460614 | O17: =IF(L17>0,L17/L16-1,"") -> -0.0122460614 | P17: =M17-M16 -> -0.09141171571 | R17: 5.345203821 | T17: =IF(T16>'goal seek'!$F$28,MAX($Z$7,T16*(1+V17)),MAX($Z$7,T16+U16)) -> 41.81265401 | U17: -0.8025113474 | V17: =V16+$Z$10 -> -0.0188315906 | W17: =IF(T17>0,T17/T16-1,"") -> -0.0188315906 | X17: =U17-U16 -> -0.3720551317 | Z17: 5.309566408 | AB17: =IF(AB16>'goal seek'!$F$28,MAX($AH$7,AB16*(1+AD17)),MAX($AH$7,AB16+AC16)) -> 42.153695 | AC17: -0.4614703502 | AD17: -0.01082878234 | AE17: =IF(AB17>0,AB17/AB16-1,"") -> -0.01082878234 | AF17: =AC17-AC16 -> -0.03101413451 | AH17: 5.352873389 | AJ17: =IF(AJ16>'goal seek'!$F$28,MAX($AH$7,AJ16*(1+AL17)),MAX($AH$7,AJ16+AK16)) -> 41.30507775 | AK17: -1.310087599 | AL17: =$AP$10*SQRT(C17-$AP$4-2020)+$AP$9 -> -0.03074228594 | AM17: =IF(AJ17>0,AJ17/AJ16-1,"") -> -0.03074228594 | AN17: =AK17-AK16 -> -0.879631383 | AP17: 5.245112001 | AR17: 39.66912248 | AS17: =AR17-AR16 -> -1.688249545 | AT17: =IF(AR17>0,AR17/AR16-1,"") -> -0.04082100633 | AV17: 5.037370747 | AX17: 41.2738495 | AY17: -1.72117207 | AZ17: -0.04003189224 | BB17: 5.241146491 | BD17: 2021 | BE17: 160.3025636 | BF17: 169.8667701 | BG17: 169.5861267 | BH17: 169.9271677 | BI17: 169.0785504 | BJ17: 166.1848018
A18: 4 | B18: 7953952.567 | C18: 2022 | E18: =IF(E17>$J$11,MAX($J$7,E17*(1+$J$10)),MAX($J$7,scenarios!E17+scenarios!F17)) -> 32.72628304 | F18: -3.130730555 | G18: -0.08731152545 | H18: =F18-F17 -> 0.2994985344 | J18: 4.114467966 | L18: =IF(L17>'goal seek'!$F$28,MAX($R$7,L17*(1+N18)),MAX($R$7,L17+M17)) -> 41.46204099 | M18: -0.6312564273 | N18: -0.01499660198 | O18: -0.01499660198 | P18: =M18-M17 -> -0.1093884959 | R18: 5.212759398 | T18: =IF(T17>'goal seek'!$F$28,MAX($Z$7,T17*(1+V18)),MAX($Z$7,T17+U17)) -> 40.65598298 | U18: -1.156671024 | V18: -0.02766318121 | W18: -0.02766318121 | X18: =U18-U17 -> -0.354159677 | Z18: 5.111418837 | AB18: =IF(AB17>'goal seek'!$F$28,MAX($AH$7,AB17*(1+AD18)),MAX($AH$7,AB17+AC17)) -> 41.5924131 | AC18: -0.5612819028 | AD18: -0.01331512938 | AE18: -0.01331512938 | AF18: =AC18-AC17 -> -0.09981155257 | AH18: 5.229150256 | AJ18: =IF(AJ17>'goal seek'!$F$28,MAX($AH$7,AJ17*(1+AL18)),MAX($AH$7,AJ17+AK17)) -> 39.40807212 | AK18: -1.89700563 | AL18: -0.04592669311 | AM18: -0.04592669311 | AN18: =AK18-AK17 -> -0.5869180314 | AP18: 4.954526921 | AR18: 37.98087293 | AS18: -1.688249545 | AT18: -0.04255827807 | AV18: 4.775094221 | AX18: 37.99048762 | AY18: -3.283361885 | AZ18: -0.07955065798 | BB18: 4.776303014 | BD18: 2022 | BE18: 193.0288467 | BF18: 211.3288111 | BG18: 210.2421097 | BH18: 211.5195808 | BI18: 208.4866226 | BJ18: 204.1656748
A19: 5 | B19: 8031800.429 | C19: 2023 | E19: =IF(E18>$J$11,MAX($J$7,E18*(1+$J$10)),MAX($J$7,scenarios!E18+scenarios!F18)) -> 29.86890135 | F19: -2.857381694 | G19: -0.08731152545 | H19: 0.2733488605 | J19: 3.718830119 | L19: =IF(L18>'goal seek'!$F$28,MAX($R$7,L18*(1+N19)),MAX($R$7,L18+M18)) -> 40.70059348 | M19: -0.761447516 | N19: -0.01836493086 | O19: -0.01836493086 | P19: -0.1301910887 | R19: 5.067430875 | T19: =IF(T18>'goal seek'!$F$28,MAX($Z$7,T18*(1+V19)),MAX($Z$7,T18+U18)) -> 39.17225216 | U19: -1.483730822 | V19: -0.03649477181 | W19: -0.03649477181 | X19: -0.3270597971 | Z19: 4.877144609 | AB19: =IF(AB18>'goal seek'!$F$28,MAX($AH$7,AB18*(1+AD19)),MAX($AH$7,AB18+AC18)) -> 40.86624945 | AC19: -0.7261636499 | AD19: -0.0174590411 | AE19: -0.0174590411 | AF19: -0.1648817471 | AH19: 5.088055886 | AJ19: =IF(AJ18>'goal seek'!$F$28,MAX($AH$7,AJ18*(1+AL19)),MAX($AH$7,AJ18+AK18)) -> 37.18619925 | AK19: -2.221872874 | AL19: -0.05638116137 | AM19: -0.05638116137 | AN19: -0.3248672437 | AP19: 4.629870921 | AR19: 36.29262339 | AS19: -1.688249545 | AT19: -0.04444999324 | AV19: 4.518616182 | AX19: 33.97345185 | AY19: -4.017035763 | AZ19: -0.1057379364 | BB19: 4.229867532 | BD19: 2023 | BE19: 222.897748 | BF19: 252.0294046 | BG19: 249.4143618 | BH19: 252.3858302 | BI19: 245.6728218 | BJ19: 240.4582982
A20: 6 | B20: 8108605.388 | C20: 2024 | E20: =IF(E19>$J$11,MAX($J$7,E19*(1+$J$10)),MAX($J$7,scenarios!E19+scenarios!F19)) -> 27.26100201 | F20: -2.60789934 | G20: -0.08731152545 | H20: 0.2494823545 | J20: 3.361984053 | L20: =IF(L19>'goal seek'!$F$28,MAX($R$7,L19*(1+N20)),MAX($R$7,L19+M19)) -> 39.78524498 | M20: -0.9153484955 | N20: -0.02248980708 | O20: -0.02248980708 | P20: -0.1539009795 | R20: 4.906545957 | T20: =IF(T19>'goal seek'!$F$28,MAX($Z$7,T19*(1+V20)),MAX($Z$7,T19+U19)) -> 37.39671646 | U20: -1.775535698 | V20: -0.04532636241 | W20: -0.04532636241 | X20: -0.2918048763 | Z20: 4.611978839 | AB20: =IF(AB19>'goal seek'!$F$28,MAX($AH$7,AB19*(1+AD20)),MAX($AH$7,AB19+AC19)) -> 39.91567934 | AC20: -0.9505701111 | AD20: -0.02326051752 | AE20: -0.02326051752 | AF20: -0.2244064613 | AH20: 4.922631874 | AJ20: =IF(AJ19>'goal seek'!$F$28,MAX($AH$7,AJ19*(1+AL20)),MAX($AH$7,AJ19+AK19)) -> 34.77359842 | AK20: -2.412600826 | AL20: -0.06487893022 | AM20: -0.06487893022 | AN20: -0.1907279526 | AP20: 4.288480788 | AR20: 34.60437384 | AS20: -1.688249545 | AT20: -0.04651770491 | AV20: 4.267611036 | AX20: 29.74830715 | AY20: -4.225144708 | AZ20: -0.1243660705 | BB20: 3.668732874 | BD20: 2024 | BE20: 250.15875 | BF20: 291.8146496 | BG20: 286.8110783 | BH20: 292.3015096 | BI20: 280.4464202 | BJ20: 275.062672
A21: 7 | B21: 8184437.46 | C21: 2025 | E21: =IF(E20>$J$11,MAX($J$7,E20*(1+$J$10)),MAX($J$7,scenarios!E20+scenarios!F20)) -> 24.88080234 | F21: -2.38019967 | G21: -0.08731152545 | H21: 0.2276996696 | J21: 3.04001374 | L21: =IF(L20>'goal seek'!$F$28,MAX($R$7,L20*(1+N21)),MAX($R$7,L20+M20)) -> 38.68951335 | M21: -1.095731632 | N21: -0.02754115584 | O21: -0.02754115584 | P21: -0.1803831366 | R21: 4.727204959 | T21: =IF(T20>'goal seek'!$F$28,MAX($Z$7,T20*(1+V21)),MAX($Z$7,T20+U20)) -> 35.37138685 | U21: -2.025329613 | V21: -0.05415795301 | W21: -0.05415795301 | X21: -0.2497939152 | Z21: 4.321785953 | AB21: =IF(AB20>'goal seek'!$F$28,MAX($AH$7,AB20*(1+AD21)),MAX($AH$7,AB20+AC20)) -> 38.68948729 | AC21: -1.226192051 | AD21: -0.03071955862 | AE21: -0.03071955862 | AF21: -0.2756219401 | AH21: 4.727201775 | AJ21: =IF(AJ20>'goal seek'!$F$28,MAX($AH$7,AJ20*(1+AL21)),MAX($AH$7,AJ20+AK20)) -> 32.26201067 | AK21: -2.511587749 | AL21: -0.07222685782 | AM21: -0.07222685782 | AN21: -0.09898692294 | AP21: 3.941872711 | AR21: 32.9161243 | AS21: -1.688249545 | AT21: -0.04878717219 | AV21: 4.021794345 | AX21: 25.63425746 | AY21: -4.11404969 | AZ21: -0.1382952539 | BB21: 3.132073228 | BD21: 2025 | BE21: 275.0395523 | BF21: 330.5041629 | BG21: 322.1824651 | BH21: 330.9909969 | BI21: 312.7084309 | BJ21: 307.9787963
A22: 8 | B22: 8259276.737 | C22: 2026 | E22: =IF(E21>$J$11,MAX($J$7,E21*(1+$J$10)),MAX($J$7,scenarios!E21+scenarios!F21)) -> 22.70842153 | F22: -2.172380806 | G22: -0.08731152545 | H22: 0.2078188641 | J22: 2.749444322 | L22: =IF(L21>'goal seek'!$F$28,MAX($R$7,L21*(1+N22)),MAX($R$7,L21+M21)) -> 37.38462948 | M22: -1.304883868 | N22: -0.03372706853 | O22: -0.03372706853 | P22: -0.2091522363 | R22: 4.526380538 | T22: =IF(T21>'goal seek'!$F$28,MAX($Z$7,T21*(1+V22)),MAX($Z$7,T21+U21)) -> 33.14335933 | U22: -2.228027515 | V22: -0.06298954362 | W22: -0.06298954362 | X22: -0.2026979017 | Z22: 4.012864611 | AB22: =IF(AB21>'goal seek'!$F$28,MAX($AH$7,AB21*(1+AD22)),MAX($AH$7,AB21+AC21)) -> 37.14824651 | AC22: -1.541240777 | AD22: -0.03983616441 | AE22: -0.03983616441 | AF22: -0.3150487253 | AH22: 4.497760239 | AJ22: =IF(AJ21>'goal seek'!$F$28,MAX($AH$7,AJ21*(1+AL22)),MAX($AH$7,AJ21+AK21)) -> 29.71994555 | AK22: -2.542065121 | AL22: -0.07879437976 | AM22: -0.07879437976 | AN22: -0.03047737157 | AP22: 3.598371443 | AR22: 31.22787475 | AS22: -1.688249545 | AT22: -0.05128943887 | AV22: 3.780945444 | AX22: 21.81207886 | AY22: -3.822178595 | AZ22: -0.1491043227 | BB22: 2.640918758 | BD22: 2026 | BE22: 297.7479739 | BF22: 367.8887924 | BG22: 355.3258245 | BH22: 368.1392434 | BI22: 342.4283765 | BJ22: 339.2066711
A23: 9 | B23: 8333078.316 | C23: 2027 | E23: =IF(E22>$J$11,MAX($J$7,E22*(1+$J$10)),MAX($J$7,scenarios!E22+scenarios!F22)) -> 20.72571461 | F23: -1.982706924 | G23: -0.08731152545 | H23: 0.189673882 | J23: 2.487161865 | L23: =IF(L22>'goal seek'!$F$28,MAX($R$7,L22*(1+N23)),MAX($R$7,L22+M22)) -> 35.84055549 | M23: -1.544073994 | N23: -0.0413023752 | O23: -0.0413023752 | P23: -0.2391901254 | R23: 4.300998278 | T23: =IF(T22>'goal seek'!$F$28,MAX($Z$7,T22*(1+V23)),MAX($Z$7,T22+U22)) -> 30.76296567 | U23: -2.380393659 | V23: -0.07182113422 | W23: -0.07182113422 | X23: -0.1523661445 | Z23: 3.691668854 | AB23: =IF(AB22>'goal seek'!$F$28,MAX($AH$7,AB22*(1+AD23)),MAX($AH$7,AB22+AC22)) -> 35.26816131 | AC23: -1.880085197 | AD23: -0.05061033489 | AE23: -0.05061033489 | AF23: -0.33884442 | AH23: 4.232308875 | AJ23: =IF(AJ22>'goal seek'!$F$28,MAX($AH$7,AJ22*(1+AL23)),MAX($AH$7,AJ22+AK22)) -> 27.20006937 | AK23: -2.519876184 | AL23: -0.08478737553 | AM23: -0.08478737553 | AN23: 0.02218893652 | AP23: 3.264108213 | AR23: 29.53962521 | AS23: -1.688249545 | AT23: -0.05406226195 | AV23: 3.544863505 | AX23: 18.37152794 | AY23: -3.440550926 | AZ23: -0.1577360392 | BB23: 2.204650819 | BD23: 2027 | BE23: 318.4736885 | BF23: 403.7293479 | BG23: 386.0887902 | BH23: 403.4074047 | BI23: 369.6284458 | BJ23: 368.7462963
A24: 10 | B24: 8405863.295 | C24: 2028 | E24: =IF(E23>$J$11,MAX($J$7,E23*(1+$J$10)),MAX($J$7,scenarios!E23+scenarios!F23)) -> 18.91612085 | F24: -1.809593758 | G24: -0.08731152545 | H24: 0.1731131661 | J24: 2.25034838 | L24: =IF(L23>'goal seek'!$F$28,MAX($R$7,L23*(1+N24)),MAX($R$7,L23+M23)) -> 34.02777093 | M24: -1.812784555 | N24: -0.05057914226 | O24: -0.05057914226 | P24: -0.2687105611 | R24: 4.048099492 | T24: =IF(T23>'goal seek'!$F$28,MAX($Z$7,T23*(1+V24)),MAX($Z$7,T23+U23)) -> 28.28184867 | U24: -2.481117005 | V24: -0.08065272482 | W24: -0.08065272482 | X24: -0.1007233461 | Z24: 3.364538261 | AB24: =IF(AB23>'goal seek'!$F$28,MAX($AH$7,AB23*(1+AD24)),MAX($AH$7,AB23+AC23)) -> 33.04478342 | AC24: -2.223377897 | AD24: -0.06304207006 | AE24: -0.06304207006 | AF24: -0.3432927 | AH24: 3.931158795 | AJ24: =IF(AJ23>'goal seek'!$F$28,MAX($AH$7,AJ23*(1+AL24)),MAX($AH$7,AJ23+AK23)) -> 24.74296394 | AK24: -2.457105428 | AL24: -0.09033452801 | AM24: -0.09033452801 | AN24: 0.06277075605 | AP24: 2.943536324 | AR24: 27.85137566 | AS24: -1.688249545 | AT24: -0.05715202997 | AV24: 3.31332722 | AX24: 15.34411867 | AY24: -3.027409264 | AZ24: -0.1647881044 | BB24: 1.82540664 | BD24: 2028 | BE24: 337.3898093 | BF24: 437.7571188 | BG24: 414.3706388 | BH24: 436.4521881 | BI24: 394.3714098 | BJ24: 396.5976719 | BL24: 17.75711882 | BN24: 16.45218811
A25: 11 | B25: 8477660.693 | C25: 2029 | E25: =IF(E24>$J$11,MAX($J$7,E24*(1+$J$10)),MAX($J$7,scenarios!E24+scenarios!F24)) -> 17.26452548 | F25: -1.651595367 | G25: -0.08731152545 | H25: 0.1579983915 | J25: 2.036472808 | L25: =IF(L24>'goal seek'!$F$28,MAX($R$7,L24*(1+N25)),MAX($R$7,L24+M24)) -> 31.92010686 | M25: -2.107664076 | N25: -0.06193952816 | O25: -0.06193952816 | P25: -0.2948795212 | R25: 3.765202219 | T25: =IF(T24>'goal seek'!$F$28,MAX($Z$7,T24*(1+V25)),MAX($Z$7,T24+U24)) -> 25.7510668 | U25: -2.530781867 | V25: -0.08948431542 | W25: -0.08948431542 | X25: -0.04966486186 | Z25: 3.037520341 | AB25: =IF(AB24>'goal seek'!$F$28,MAX($AH$7,AB24*(1+AD25)),MAX($AH$7,AB24+AC24)) -> 30.495994 | AC25: -2.548789414 | AD25: -0.07713136992 | AE25: -0.07713136992 | AF25: -0.3254115173 | AH25: 3.597218043 | AJ25: =IF(AJ24>'goal seek'!$F$28,MAX($AH$7,AJ24*(1+AL25)),MAX($AH$7,AJ24+AK24)) -> 22.37945081 | AK25: -2.363513134 | AL25: -0.09552263585 | AM25: -0.09552263585 | AN25: 0.09359229394 | AP25: 2.639814404 | AR25: 26.16312612 | AS25: -1.688249545 | AT25: -0.06061637908 | AV25: 3.08612565 | AX25: 12.72552523 | AY25: -2.618593441 | AZ25: -0.1706577938 | BB25: 1.501065647 | BD25: 2029 | BE25: 354.6543348 | BF25: 469.6772257 | BG25: 440.1217056 | BH25: 466.9481821 | BI25: 416.7508606 | BJ25: 422.760798 | BL25: 49.67722568 | BM25: 20.12170563 | BN25: 46.94818212 | BP25: 2.76079804
A26: 12 | B26: 8548487.4 | C26: 2030 | E26: =IF(E25>$J$11,MAX($J$7,E25*(1+$J$10)),MAX($J$7,scenarios!E25+scenarios!F25)) -> 15.75713342 | F26: -1.507392056 | G26: -0.08731152545 | H26: 0.1442033109 | J26: 1.843265678 | L26: =IF(L25>'goal seek'!$F$28,MAX($R$7,L25*(1+N26)),MAX($R$7,L25+M25)) -> 29.49891803 | M26: -2.421188831 | N26: -0.07585152648 | O26: -0.07585152648 | P26: -0.3135247546 | R26: 3.450776336 | T26: =IF(T25>'goal seek'!$F$28,MAX($Z$7,T25*(1+V26)),MAX($Z$7,T25+U25)) -> 23.21932734 | U26: -2.531739464 | V26: -0.09831590603 | W26: -0.09831590603 | X26: -0.000957596717 | Z26: 2.716191327 | AB26: =IF(AB25>'goal seek'!$F$28,MAX($AH$7,AB25*(1+AD26)),MAX($AH$7,AB25+AC25)) -> 27.66357992 | AC26: -2.832414082 | AD26: -0.09287823447 | AE26: -0.09287823447 | AF26: -0.2836246678 | AH26: 3.236078926 | AJ26: =IF(AJ25>'goal seek'!$F$28,MAX($AH$7,AJ25*(1+AL26)),MAX($AH$7,AJ25+AK25)) -> 20.13225119 | AK26: -2.247199616 | AL26: -0.1004135283 | AM26: -0.1004135283 | AN26: 0.1163135181 | AP26: 2.355065902 | AR26: 24.47487657 | AS26: -1.688249545 | AT26: -0.064527822 | AV26: 2.863065175 | AX26: 10.49067524 | AY26: -2.23484999 | AZ26: -0.1756194695 | BB26: 1.227196666 | BD26: 2030 | BE26: 370.4114682 | BF26: 499.1761437 | BG26: 463.341033 | BH26: 494.611762 | BI26: 436.8831118 | BJ26: 447.2356746 | BL26: 79.1761437 | BM26: 43.34103297 | BN26: 74.61176204 | BO26: 16.88311178 | BP26: 27.23567461
A27: 13 | B27: 8618349.489 | C27: 2031 | E27: =IF(E26>$J$11,MAX($J$7,E26*(1+$J$10)),MAX($J$7,scenarios!E26+scenarios!F26)) -> 14.38135407 | F27: -1.375779356 | G27: -0.08731152545 | H27: 0.1316126998 | J27: 1.668690053 | L27: =IF(L26>'goal seek'!$F$28,MAX($R$7,L26*(1+N27)),MAX($R$7,L26+M26)) -> 26.7588153 | M27: -2.740102726 | N27: -0.09288824504 | O27: -0.09288824504 | P27: -0.3189138956 | R27: 3.104865419 | T27: =IF(T26>'goal seek'!$F$28,MAX($Z$7,T26*(1+V27)),MAX($Z$7,T26+U26)) -> 20.73143454 | U27: -2.487892798 | V27: -0.1071474966 | W27: -0.1071474966 | X27: 0.04384666608 | Z27: 2.405499402 | AB27: =IF(AB26>'goal seek'!$F$28,MAX($AH$7,AB26*(1+AD27)),MAX($AH$7,AB26+AC26)) -> 24.61276664 | AC27: -3.050813282 | AD27: -0.1102826637 | AE27: -0.1102826637 | AF27: -0.2183992001 | AH27: 2.855856179 | AJ27: =IF(AJ26>'goal seek'!$F$28,MAX($AH$7,AJ26*(1+AL27)),MAX($AH$7,AJ26+AK26)) -> 18.01729589 | AK27: -2.114955305 | AL27: -0.1050530954 | AM27: -0.1050530954 | AN27: 0.1322443112 | AP27: 2.090573828 | AR27: 22.78662703 | AS27: -1.688249545 | AT27: -0.06897887882 | AV27: 2.643966464 | AX27: 8.603731095 | AY27: -1.886944146 | AZ27: -0.1798687027 | BB27: 0.9983038058 | BD27: 2031 | BE27: 384.7928223 | BF27: 525.934959 | BG27: 484.0724675 | BH27: 519.2245287 | BI27: 454.9004077 | BJ27: 470.0223016 | BL27: 105.934959 | BM27: 64.07246751 | BN27: 99.22452868 | BO27: 34.90040766 | BP27: 50.02230164
A28: 14 | B28: 8687227.85 | C28: 2032 | E28: =IF(E27>$J$11,MAX($J$7,E27*(1+$J$10)),MAX($J$7,scenarios!E27+scenarios!F27)) -> 13.12569611 | F28: -1.255657962 | G28: -0.08731152545 | H28: 0.1201213942 | J28: 1.510918826 | L28: =IF(L27>'goal seek'!$F$28,MAX($R$7,L27*(1+N28)),MAX($R$7,L27+M27)) -> 23.71495952 | M28: -3.043855785 | N28: -0.1137515152 | O28: -0.1137515152 | P28: -0.3037530591 | R28: 2.72986503 | T28: =IF(T27>'goal seek'!$F$28,MAX($Z$7,T27*(1+V28)),MAX($Z$7,T27+U27)) -> 18.32702169 | U28: -2.404412855 | V28: -0.1159790872 | W28: -0.1159790872 | X28: 0.08347994269 | Z28: 2.109651318 | AB28: =IF(AB27>'goal seek'!$F$28,MAX($AH$7,AB27*(1+AD28)),MAX($AH$7,AB27+AC27)) -> 21.42923677 | AC28: -3.183529875 | AD28: -0.1293446576 | AE28: -0.1293446576 | AF28: -0.1327165931 | AH28: 2.466752011 | AJ28: =IF(AJ27>'goal seek'!$F$28,MAX($AH$7,AJ27*(1+AL28)),MAX($AH$7,AJ27+AK27)) -> 16.04482523 | AK28: -1.972470651 | AL28: -0.1094765088 | AM28: -0.1094765088 | AN28: 0.1424846539 | AP28: 1.846944216 | AR28: 21.09837748 | AS28: -1.688249545 | AT28: -0.07408948868 | AV28: 2.428666296 | AX28: 7.024527754 | AY28: -1.57920334 | AZ28: -0.1835486631 | BB28: 0.8086040651 | BD28: 2032 | BE28: 397.9185184 | BF28: 549.6499185 | BG28: 502.3994892 | BH28: 540.6537654 | BI28: 470.9452329 | BJ28: 491.1206791 | BL28: 129.6499185 | BM28: 82.39948919 | BN28: 120.6537654 | BO28: 50.9452329 | BP28: 71.12067912
A29: 15 | B29: 8755083.431 | C29: 2033 | E29: =IF(E28>$J$11,MAX($J$7,E28*(1+$J$10)),MAX($J$7,scenarios!E28+scenarios!F28)) -> 11.97967156 | F29: -1.14602455 | G29: -0.08731152545 | H29: 0.1096334121 | J29: 1.368310382 | L29: =IF(L28>'goal seek'!$F$28,MAX($R$7,L28*(1+N29)),MAX($R$7,L28+M28)) -> 20.41144659 | M29: -3.303512925 | N29: -0.1393008039 | O29: -0.1393008039 | P29: -0.2596571401 | R29: 2.331382305 | T29: =IF(T28>'goal seek'!$F$28,MAX($Z$7,T28*(1+V29)),MAX($Z$7,T28+U28)) -> 16.03961369 | U29: -2.287407999 | V29: -0.1248106778 | W29: -0.1248106778 | X29: 0.1170048558 | Z29: 1.832034362 | AB29: =IF(AB28>'goal seek'!$F$28,MAX($AH$7,AB28*(1+AD29)),MAX($AH$7,AB28+AC28)) -> 18.21347515 | AC29: -3.21576162 | AD29: -0.1500642163 | AE29: -0.1500642163 | AF29: -0.03223174558 | AH29: 2.08033142 | AJ29: =IF(AJ28>'goal seek'!$F$28,MAX($AH$7,AJ28*(1+AL29)),MAX($AH$7,AJ28+AK28)) -> 14.22034522 | AK29: -1.824480017 | AL29: -0.1137114297 | AM29: -0.1137114297 | AN29: 0.1479906345 | AP29: 1.624238687 | AR29: 19.41012794 | AS29: -1.688249545 | AT29: -0.08001797989 | AV29: 2.217012332 | AX29: 5.712580816 | AY29: -1.311946938 | AZ29: -0.1867665676 | BB29: 0.6524873077 | BD29: 2033 | BE29: 409.89819 | BF29: 570.0613651 | BG29: 518.4391029 | BH29: 558.8672406 | BI29: 485.1655781 | BJ29: 510.5308071 | BL29: 150.0613651 | BM29: 98.43910288 | BN29: 138.8672406 | BO29: 65.16557811 | BP29: 90.53080706
A30: 16 | B30: 8821862.661 | C30: 2034 | E30: =IF(E29>$J$11,MAX($J$7,E29*(1+$J$10)),MAX($J$7,scenarios!E29+scenarios!F29)) -> 10.93370816 | F30: -1.045963398 | G30: -0.08731152545 | H30: 0.1000611516 | J30: 1.23938771 | L30: =IF(L29>'goal seek'!$F$28,MAX($R$7,L29*(1+N30)),MAX($R$7,L29+M29)) -> 16.92948609 | M30: -3.481960501 | N30: -0.1705886198 | O30: -0.1705886198 | P30: -0.1784475756 | R30: 1.919037593 | T30: =IF(T29>'goal seek'!$F$28,MAX($Z$7,T29*(1+V30)),MAX($Z$7,T29+U29)) -> 13.89604333 | U30: -2.143570358 | V30: -0.1336422684 | W30: -0.1336422684 | X30: 0.1438376414 | Z30: 1.57518246 | AB30: =IF(AB29>'goal seek'!$F$28,MAX($AH$7,AB29*(1+AD30)),MAX($AH$7,AB29+AC29)) -> 15.07271909 | AC30: -3.140756052 | AD30: -0.1724413396 | AE30: -0.1724413396 | AF30: 0.07500556803 | AH30: 1.708564242 | AJ30: =IF(AJ29>'goal seek'!$F$28,MAX($AH$7,AJ29*(1+AL30)),MAX($AH$7,AJ29+AK29)) -> 12.54547183 | AK30: -1.674873388 | AL30: -0.1177800793 | AM30: -0.1177800793 | AN30: 0.1496066287 | AP30: 1.422088771 | AR30: 17.72187839 | AS30: -1.688249545 | AT30: -0.08697776494 | AV30: 2.008859021 | AX30: 4.629450934 | AY30: -1.083129882 | AZ30: -0.1896042991 | BB30: 0.5247702342 | BD30: 2034 | BE30: 420.8318981 | BF30: 586.9908512 | BG30: 532.3351462 | BH30: 573.9399597 | BI30: 497.7110499 | BJ30: 528.2526854 | BK30: 0.8318981296 | BL30: 166.9908512 | BM30: 112.3351462 | BN30: 153.9399597 | BO30: 77.71104994 | BP30: 108.2526854
A31: 17 | B31: 8887524.213 | C31: 2035 | E31: =IF(E30>$J$11,MAX($J$7,E30*(1+$J$10)),MAX($J$7,scenarios!E30+scenarios!F30)) -> 9.979069421 | F31: -0.9546387382 | G31: -0.08731152545 | H31: 0.09132465984 | J31: 1.122817692 | L31: =IF(L30>'goal seek'!$F$28,MAX($R$7,L30*(1+N31)),MAX($R$7,L30+M30)) -> 13.39285091 | M31: -3.53663518 | N31: -0.2089038711 | O31: -0.2089038711 | P31: -0.05467467925 | R31: 1.50692708 | T31: =IF(T30>'goal seek'!$F$28,MAX($Z$7,T30*(1+V31)),MAX($Z$7,T30+U30)) -> 11.91622041 | U31: -1.979822918 | V31: -0.142473859 | W31: -0.142473859 | X31: 0.1637474395 | Z31: 1.340780641 | AB31: =IF(AB30>'goal seek'!$F$28,MAX($AH$7,AB30*(1+AD31)),MAX($AH$7,AB30+AC30)) -> 12.11129112 | AC31: -2.961427972 | AD31: -0.1964760276 | AE31: -0.1964760276 | AF31: 0.1793280802 | AH31: 1.362729466 | AJ31: =IF(AJ30>'goal seek'!$F$28,MAX($AH$7,AJ30*(1+AL31)),MAX($AH$7,AJ30+AK30)) -> 11.01868003 | AK31: -1.526791804 | AL31: -0.1217006283 | AM31: -0.1217006283 | AN31: 0.1480815844 | AP31: 1.239791843 | AR31: 16.03362885 | AS31: -1.688249545 | AT31: -0.09526357804 | AV31: 1.804060215 | AX31: 3.740015488 | AY31: -0.8894354465 | AZ31: -0.1921254721 | BB31: 0.4208163487 | BD31: 2035 | BE31: 430.8109676 | BF31: 600.3837021 | BG31: 544.2513666 | BH31: 586.0512508 | BI31: 508.72973 | BJ31: 544.2863143 | BK31: 10.81096755 | BL31: 180.3837021 | BM31: 124.2513666 | BN31: 166.0512508 | BO31: 88.72972997 | BP31: 124.2863143
A32: 18 | B32: 8952048.94 | C32: 2036 | E32: =IF(E31>$J$11,MAX($J$7,E31*(1+$J$10)),MAX($J$7,scenarios!E31+scenarios!F31)) -> 9.107781648 | F32: -0.8712877737 | G32: -0.08731152545 | H32: 0.08335096448 | J32: 1.01739632 | L32: =IF(L31>'goal seek'!$F$28,MAX($R$7,L31*(1+N32)),MAX($R$7,L31+M31)) -> 9.966625318 | M32: -3.426225591 | N32: -0.2558249632 | O32: -0.2558249632 | P32: 0.1104095892 | R32: 1.113334543 | T32: =IF(T31>'goal seek'!$F$28,MAX($Z$7,T31*(1+V32)),MAX($Z$7,T31+U31)) -> 10.11323132 | U32: -1.802989087 | V32: -0.1513054496 | W32: -0.1513054496 | X32: 0.1768338312 | Z32: 1.129711353 | AB32: =IF(AB31>'goal seek'!$F$28,MAX($AH$7,AB31*(1+AD32)),MAX($AH$7,AB31+AC31)) -> 9.420546401 | AC32: -2.69074472 | AD32: -0.2221682803 | AE32: -0.2221682803 | AF32: 0.270683252 | AH32: 1.052334104 | AJ32: =IF(AJ31>'goal seek'!$F$28,MAX($AH$7,AJ31*(1+AL32)),MAX($AH$7,AJ31+AK31)) -> 9.635966139 | AK32: -1.382713887 | AL32: -0.1254881605 | AM32: -0.1254881605 | AN32: 0.1440779164 | AP32: 1.07639784 | AR32: 14.3453793 | AS32: -1.688249545 | AT32: -0.1052942887 | AV32: 1.60246882 | AX32: 3.013030313 | AY32: -0.7269851752 | AZ32: -0.1943802579 | BB32: 0.336574379 | BD32: 2036 | BE32: 439.9187492 | BF32: 610.3503274 | BG32: 554.3645979 | BH32: 595.4717972 | BI32: 518.3656961 | BJ32: 558.6316936 | BK32: 19.9187492 | BL32: 190.3503274 | BM32: 134.3645979 | BN32: 175.4717972 | BO32: 98.36569611 | BP32: 138.6316936
A33: 19 | B33: 9015437.653 | C33: 2037 | E33: =IF(E32>$J$11,MAX($J$7,E32*(1+$J$10)),MAX($J$7,scenarios!E32+scenarios!F32)) -> 8.312567338 | F33: -0.7952143091 | G33: -0.08731152545 | H33: 0.07607346462 | J33: 0.9220370279 | L33: =IF(L32>'goal seek'!$F$28,MAX($R$7,L32*(1+N33)),MAX($R$7,L32+M32)) -> 6.844232892 | M33: -3.122392425 | N33: -0.3132848207 | O33: -0.3132848207 | P33: 0.3038331658 | R33: 0.7591681243 | T33: =IF(T32>'goal seek'!$F$28,MAX($Z$7,T32*(1+V33)),MAX($Z$7,T32+U32)) -> 8.493728392 | U33: -1.619502931 | V33: -0.1601370402 | W33: -0.1601370402 | X33: 0.1834861558 | Z33: 0.9421315657 | AB33: =IF(AB32>'goal seek'!$F$28,MAX($AH$7,AB32*(1+AD33)),MAX($AH$7,AB32+AC32)) -> 7.069949585 | AC33: -2.350596817 | AD33: -0.2495180976 | AE33: -0.2495180976 | AF33: 0.3401479034 | AH33: 0.7842048114 | AJ33: =IF(AJ32>'goal seek'!$F$28,MAX($AH$7,AJ32*(1+AL33)),MAX($AH$7,AJ32+AK32)) -> 8.391429453 | AK33: -1.244536685 | AL33: -0.129155361 | AM33: -0.129155361 | AN33: 0.1381772018 | AP33: 0.9307844806 | AR33: 12.65712976 | AS33: -1.688249545 | AT33: -0.1176859468 | AV33: 1.40393958 | AX33: 2.421244772 | AY33: -0.5917855407 | AZ33: -0.1964087577 | BB33: 0.2685665261 | BD33: 2037 | BE33: 448.2313165 | BF33: 617.1945603 | BG33: 562.8583263 | BH33: 602.5417468 | BI33: 526.7571256 | BJ33: 571.2888234 | BK33: 28.23131654 | BL33: 197.1945603 | BM33: 142.8583263 | BN33: 182.5417468 | BO33: 106.7571256 | BP33: 151.2888234
A34: 20 | B34: 9077693.676 | C34: 2038 | E34: =IF(E33>$J$11,MAX($J$7,E33*(1+$J$10)),MAX($J$7,scenarios!E33+scenarios!F33)) -> 7.586784404 | F34: -0.7257829347 | G34: -0.08731152545 | H34: 0.06943137438 | J34: 0.8357612269 | L34: =IF(L33>'goal seek'!$F$28,MAX($R$7,L33*(1+N34)),MAX($R$7,L33+M33)) -> 4.218439419 | M34: -2.625793473 | N34: -0.3836505149 | O34: -0.3836505149 | P34: 0.4965989521 | R34: 0.4647038741 | T34: =IF(T33>'goal seek'!$F$28,MAX($Z$7,T33*(1+V34)),MAX($Z$7,T33+U33)) -> 7.058554735 | U34: -1.435173657 | V34: -0.1689686308 | W34: -0.1689686308 | X34: 0.1843292743 | Z34: 0.7775713729 | AB34: =IF(AB33>'goal seek'!$F$28,MAX($AH$7,AB33*(1+AD34)),MAX($AH$7,AB33+AC33)) -> 5.100788485 | AC34: -1.969161099 | AD34: -0.2785254797 | AE34: -0.2785254797 | AF34: 0.3814357172 | AH34: 0.5619035701 | AJ34: =IF(AJ33>'goal seek'!$F$28,MAX($AH$7,AJ33*(1+AL34)),MAX($AH$7,AJ33+AK33)) -> 7.277777521 | AK34: -1.113651932 | AL34: -0.1327130185 | AM34: -0.1327130185 | AN34: 0.1308847531 | AP34: 0.8017209856 | AR34: 10.96888021 | AS34: -1.688249545 | AT34: -0.133383285 | AV34: 1.208333372 | AX34: 1.941248956 | AY34: -0.4799958159 | AZ34: -0.1982434083 | BB34: 0.2138482555 | BD34: 2038 | BE34: 455.8181009 | BF34: 621.4129997 | BG34: 569.9168811 | BH34: 607.6425353 | BI34: 534.0349031 | BJ34: 582.2577036 | BK34: 35.81810094 | BL34: 201.4129997 | BM34: 149.9168811 | BN34: 187.6425353 | BO34: 114.0349031 | BP34: 162.2577036
A35: 21 | B35: 9138828.468 | C35: 2039 | E35: =IF(E34>$J$11,MAX($J$7,E34*(1+$J$10)),MAX($J$7,scenarios!E34+scenarios!F34)) -> 6.924370684 | F35: -0.6624137195 | G35: -0.08731152545 | H35: 0.06336921517 | J35: 0.757686908 | L35: =IF(L34>'goal seek'!$F$28,MAX($R$7,L34*(1+N35)),MAX($R$7,L34+M34)) -> 2.236528938 | M35: -1.981910482 | N35: -0.4698207761 | O35: -0.4698207761 | P35: 0.6438829915 | R35: 0.2447281887 | T35: =IF(T34>'goal seek'!$F$28,MAX($Z$7,T34*(1+V35)),MAX($Z$7,T34+U34)) -> 5.80354214 | U35: -1.255012595 | V35: -0.1778002214 | W35: -0.1778002214 | X35: 0.1801610622 | Z35: 0.6350422442 | AB35: =IF(AB34>'goal seek'!$F$28,MAX($AH$7,AB34*(1+AD35)),MAX($AH$7,AB34+AC34)) -> 3.523673518 | AC35: -1.577114967 | AD35: -0.3091904264 | AE35: -0.3091904264 | AF35: 0.3920461325 | AH35: 0.3855716879 | AJ35: =IF(AJ34>'goal seek'!$F$28,MAX($AH$7,AJ34*(1+AL35)),MAX($AH$7,AJ34+AK34)) -> 6.286759647 | AK35: -0.991017874 | AL35: -0.1361703997 | AM35: -0.1361703997 | AN35: 0.1226340583 | AP35: 0.6879174578 | AR35: 9.280630666 | AS35: -1.688249545 | AT35: -0.1539126613 | AV35: 1.015516453 | AX35: 1.553172461 | AY35: -0.3880764952 | AZ35: -0.1999107296 | BB35: 0.1699531254 | BD35: 2039 | BE35: 462.7424716 | BF35: 623.6495287 | BG35: 575.7204232 | BH35: 611.1662088 | BI35: 540.3216627 | BJ35: 591.5383342 | BK35: 42.74247162 | BL35: 203.6495287 | BM35: 155.7204232 | BN35: 191.1662088 | BO35: 120.3216627 | BP35: 171.5383342
A36: 22 | B36: 9198847.24 | C36: 2040 | E36: =IF(E35>$J$11,MAX($J$7,E35*(1+$J$10)),MAX($J$7,scenarios!E35+scenarios!F35)) -> 6.319793317 | F36: -0.6045773672 | G36: -0.08731152545 | H36: 0.05783635233 | J36: 0.6870201398 | L36: =IF(L35>'goal seek'!$F$28,MAX($R$7,L35*(1+N36)),MAX($R$7,L35+M35)) -> 0.9497522858 | M36: -1.286776652 | N36: -0.575345407 | O36: -0.575345407 | P36: 0.69513383 | R36: 0.1032468809 | T36: =IF(T35>'goal seek'!$F$28,MAX($Z$7,T35*(1+V36)),MAX($Z$7,T35+U35)) -> 4.720416554 | U36: -1.083125586 | V36: -0.1866318121 | W36: -0.1866318121 | X36: 0.1718870091 | Z36: 0.5131530539 | AB36: =IF(AB35>'goal seek'!$F$28,MAX($AH$7,AB35*(1+AD36)),MAX($AH$7,AB35+AC35)) -> 2.320293423 | AC36: -1.203380095 | AD36: -0.3415129379 | AE36: -0.3415129379 | AF36: 0.3737348716 | AH36: 0.2522374122 | AJ36: =IF(AJ35>'goal seek'!$F$28,MAX($AH$7,AJ35*(1+AL36)),MAX($AH$7,AJ35+AK35)) -> 5.409533281 | AK36: -0.8772263656 | AL36: -0.1395355342 | AM36: -0.1395355342 | AN36: 0.1137915084 | AP36: 0.5880664327 | AR36: 7.592381121 | AS36: -1.688249545 | AT36: -0.1819110797 | AV36: 0.8253622354 | AX36: 1.24031287 | AY36: -0.3128595908 | AZ36: -0.2014326153 | BB36: 0.134833511 | BD36: 2040 | BE36: 469.0622649 | BF36: 624.599281 | BG36: 580.4408398 | BH36: 613.4865022 | BI36: 545.731196 | BJ36: 599.1307154 | BK36: 49.06226494 | BL36: 204.599281 | BM36: 160.4408398 | BN36: 193.4865022 | BO36: 125.731196 | BP36: 179.1307154
A37: 23 | B37: 9257745.535 | C37: 2041 | E37: =IF(E36>$J$11,MAX($J$7,E36*(1+$J$10)),MAX($J$7,scenarios!E36+scenarios!F36)) -> 5.768002522 | F37: -0.551790795 | G37: -0.08731152545 | H37: 0.05278657218 | J37: 0.6230461293 | L37: =IF(L36>'goal seek'!$F$28,MAX($R$7,L36*(1+N37)),MAX($R$7,L36+M36)) -> -0.337024366 | M37: -1.286776652 | N37: -0.7045715179 | P37: 0 | R37: -0.03640458303 | T37: =IF(T36>'goal seek'!$F$28,MAX($Z$7,T36*(1+V37)),MAX($Z$7,T36+U36)) -> 3.797747872 | U37: -0.9226686816 | V37: -0.1954634027 | W37: -0.1954634027 | X37: 0.1604569043 | Z37: 0.4102238345 | AB37: =IF(AB36>'goal seek'!$F$28,MAX($AH$7,AB36*(1+AD37)),MAX($AH$7,AB36+AC36)) -> 1.449039452 | AC37: -0.8712539708 | AD37: -0.375493014 | AE37: -0.375493014 | AF37: 0.3321261246 | AH37: 0.1565218494 | AJ37: =IF(AJ36>'goal seek'!$F$28,MAX($AH$7,AJ36*(1+AL37)),MAX($AH$7,AJ36+AK36)) -> 4.636968439 | AK37: -0.7725648425 | AL37: -0.1428154338 | AM37: -0.1428154338 | AN37: 0.1046615231 | AP37: 0.5008744755 | AR37: 5.904131576 | AS37: -1.688249545 | AT37: -0.2223610114 | AV37: 0.6377504711 | AX37: 0.988743561 | AY37: -0.2515693092 | AZ37: -0.2028272989 | BB37: 0.1068017648 | BD37: 2041 | BE37: 474.8302675 | BF37: 624.2622566 | BG37: 584.2385876 | BH37: 614.9355417 | BI37: 550.3681644 | BJ37: 605.0348469 | BK37: 54.83026746 | BL37: 204.2622566 | BM37: 164.2385876 | BN37: 194.9355417 | BO37: 130.3681644 | BP37: 185.0348469
A38: 24 | B38: 9315508.05 | C38: 2042 | E38: =IF(E37>$J$11,MAX($J$7,E37*(1+$J$10)),MAX($J$7,scenarios!E37+scenarios!F37)) -> 5.264389423 | F38: -0.503613099 | G38: -0.08731152545 | H38: 0.04817769604 | J38: 0.5651210213 | L38: =IF(L37>'goal seek'!$F$28,MAX($R$7,L37*(1+N38)),MAX($R$7,L37+M37)) -> -1.623801018 | M38: -1.286776652 | N38: -0.8628226067 | P38: 0 | R38: -0.1743115898 | T38: =IF(T37>'goal seek'!$F$28,MAX($Z$7,T37*(1+V38)),MAX($Z$7,T37+U37)) -> 3.021886996 | U38: -0.775860876 | V38: -0.2042949933 | W38: -0.2042949933 | X38: 0.1468078056 | Z38: 0.3243931496 | AB38: =IF(AB37>'goal seek'!$F$28,MAX($AH$7,AB37*(1+AD38)),MAX($AH$7,AB37+AC37)) -> 0.5777854813 | AC38: -0.8712539708 | AD38: -0.4111306548 | AE38: -0.6012631123 | AF38: 0 | AH38: 0.06202404401 | AJ38: =IF(AJ37>'goal seek'!$F$28,MAX($AH$7,AJ37*(1+AL38)),MAX($AH$7,AJ37+AK37)) -> 3.959895627 | AK38: -0.6770728119 | AL38: -0.1460162649 | AM38: -0.1460162649 | AN38: 0.09549203053 | AP38: 0.4250863834 | AR38: 4.215882031 | AS38: -1.688249545 | AT38: -0.2859437537 | AV38: 0.4525659801 | AX38: 0.7869310254 | AY38: -0.2018125356 | AZ38: -0.2041100884 | BB38: 0.08447537388 | BD38: 2042 | BE38: 480.0946569 | BF38: 622.6384556 | BG38: 587.2604746 | BH38: 615.5133272 | BI38: 554.3280601 | BJ38: 609.250729 | BK38: 60.09465689 | BL38: 202.6384556 | BM38: 167.2604746 | BN38: 195.5133272 | BO38: 134.3280601 | BP38: 189.250729
A39: 25 | B39: 9372118.186 | C39: 2043 | E39: =IF(E38>$J$11,MAX($J$7,E38*(1+$J$10)),MAX($J$7,scenarios!E38+scenarios!F38)) -> 4.804747552 | F39: -0.4596418711 | G39: -0.08731152545 | H39: 0.04397122791 | J39: 0.5126639951 | L39: =IF(L38>'goal seek'!$F$28,MAX($R$7,L38*(1+N39)),MAX($R$7,L38+M38)) -> -2.91057767 | M39: -1.286776652 | N39: -1.056617862 | P39: 0 | R39: -0.3105570813 | T39: =IF(T38>'goal seek'!$F$28,MAX($Z$7,T38*(1+V39)),MAX($Z$7,T38+U38)) -> 2.377842544 | U39: -0.6440444523 | V39: -0.2131265839 | W39: -0.2131265839 | X39: 0.1318164236 | Z39: 0.2537145282 | AB39: =IF(AB38>'goal seek'!$F$28,MAX($AH$7,AB38*(1+AD39)),MAX($AH$7,AB38+AC38)) -> -0.2934684895 | AC39: -0.8712539708 | AD39: -0.4484258604 | AF39: 0 | AH39: -0.03131293093 | AJ39: =IF(AJ38>'goal seek'!$F$28,MAX($AH$7,AJ38*(1+AL39)),MAX($AH$7,AJ38+AK38)) -> 3.369302996 | AK39: -0.5905926305 | AL39: -0.1491434841 | AM39: -0.1491434841 | AN39: 0.08648018141 | AP39: 0.3595028284 | AR39: 2.527632486 | AS39: -1.688249545 | AT39: -0.4004499018 | AV39: 0.2696970349 | AX39: 0.6253788624 | AY39: -0.161552163 | AZ39: -0.2052939302 | BB39: 0.06672759029 | BD39: 2043 | BE39: 484.8994044 | BF39: 619.7278779 | BG39: 589.6383172 | BH39: 615.2198587 | BI39: 557.6973631 | BJ39: 611.7783614 | BK39: 64.89940444 | BL39: 199.7278779 | BM39: 169.6383172 | BN39: 195.2198587 | BO39: 137.6973631 | BP39: 191.7783614
A40: 26 | B40: 9427555.367 | C40: 2044 | E40: =IF(E39>$J$11,MAX($J$7,E39*(1+$J$10)),MAX($J$7,scenarios!E39+scenarios!F39)) -> 4.385237714 | F40: -0.4195098381 | G40: -0.08731152545 | H40: 0.04013203292 | J40: 0.4651510962 | L40: =IF(L39>'goal seek'!$F$28,MAX($R$7,L39*(1+N40)),MAX($R$7,L39+M39)) -> -3.5 | M40: -0.5894223305 | N40: -1.293940721 | P40: 0.6973543213 | R40: -0.3712521289 | T40: =IF(T39>'goal seek'!$F$28,MAX($Z$7,T39*(1+V40)),MAX($Z$7,T39+U39)) -> 1.850060954 | U40: -0.5277815902 | V40: -0.2219581745 | W40: -0.2219581745 | X40: 0.1162628621 | Z40: 0.1962397336 | AB40: =IF(AB39>'goal seek'!$F$28,MAX($AH$7,AB39*(1+AD40)),MAX($AH$7,AB39+AC39)) -> -1.16472246 | AC40: -0.8712539708 | AD40: -0.4873786306 | AF40: 0 | AH40: -0.1235444837 | AJ40: =IF(AJ39>'goal seek'!$F$28,MAX($AH$7,AJ39*(1+AL40)),MAX($AH$7,AJ39+AK39)) -> 2.856488517 | AK40: -0.5128144795 | AL40: -0.152201948 | AM40: -0.152201948 | AN40: 0.07777815097 | AP40: 0.3029935551 | AR40: 0.8393829406 | AS40: -1.688249545 | AT40: -0.6679173316 | AV40: 0.08903505818 | AX40: 0.4963070143 | AY40: -0.1290718481 | AZ40: -0.2063898476 | BB40: 0.0526442959 | BD40: 2044 | BE40: 489.2846422 | BF40: 616.2278779 | BG40: 591.4883781 | BH40: 614.0551362 | BI40: 560.5538516 | BJ40: 612.6177444 | BK40: 69.28464215 | BL40: 196.2278779 | BM40: 171.4883781 | BN40: 194.0551362 | BO40: 140.5538516 | BP40: 192.6177444
A41: 27 | B41: 9481803.274 | C41: 2045 | E41: =IF(E40>$J$11,MAX($J$7,E40*(1+$J$10)),MAX($J$7,scenarios!E40+scenarios!F40)) -> 4.00235592 | F41: -0.3828817942 | G41: -0.08731152545 | H41: 0.03662804391 | J41: 0.4221091499 | L41: =IF(L40>'goal seek'!$F$28,MAX($R$7,L40*(1+N41)),MAX($R$7,L40+M40)) -> -3.5 | M41: 0 | N41: -1.584567751 | P41: 0.5894223305 | R41: -0.3691280971 | T41: =IF(T40>'goal seek'!$F$28,MAX($Z$7,T40*(1+V41)),MAX($Z$7,T40+U40)) -> 1.322279364 | U41: -0.5277815902 | V41: -0.2307897651 | W41: -0.2852779467 | X41: 0 | Z41: 0.1394544187 | AB41: =IF(AB40>'goal seek'!$F$28,MAX($AH$7,AB40*(1+AD41)),MAX($AH$7,AB40+AC40)) -> -2.035976431 | AC41: -0.8712539708 | AD41: -0.5279889655 | AF41: 0 | AH41: -0.2147246017 | AJ41: =IF(AJ40>'goal seek'!$F$28,MAX($AH$7,AJ40*(1+AL41)),MAX($AH$7,AJ40+AK40)) -> 2.41317292 | AK41: -0.4433155964 | AL41: -0.1551960016 | AM41: -0.1551960016 | AN41: 0.06949888317 | AP41: 0.2545056938 | AR41: -0.8488666045 | AS41: -1.688249545 | AV41: -0.08952586127 | AX41: 0.3933693239 | AY41: -0.1029376904 | AZ41: -0.2074072852 | BB41: 0.04148676286 | BD41: 2045 | BE41: 493.2869981 | BF41: 612.7278779 | BG41: 592.8106575 | BH41: 612.0191598 | BI41: 562.9670245 | BJ41: 611.7688778 | BK41: 73.28699807 | BL41: 192.7278779 | BM41: 172.8106575 | BN41: 192.0191598 | BO41: 142.9670245 | BP41: 191.7688778
A42: 28 | B42: 9534854.828 | C42: 2046 | E42: =IF(E41>$J$11,MAX($J$7,E41*(1+$J$10)),MAX($J$7,scenarios!E41+scenarios!F41)) -> 3.652904119 | F42: -0.3494518007 | G42: -0.08731152545 | H42: 0.03342999352 | J42: 0.3831106173 | L42: =IF(L41>'goal seek'!$F$28,MAX($R$7,L41*(1+N42)),MAX($R$7,L41+M41)) -> -3.5 | M42: 0 | N42: -1.940471397 | P42: 0 | R42: -0.3670742831 | T42: =IF(T41>'goal seek'!$F$28,MAX($Z$7,T41*(1+V42)),MAX($Z$7,T41+U41)) -> 0.7944977733 | U42: -0.5277815902 | V42: -0.2396213557 | W42: -0.3991452977 | X42: 0 | Z42: 0.08332562872 | AB42: =IF(AB41>'goal seek'!$F$28,MAX($AH$7,AB41*(1+AD42)),MAX($AH$7,AB41+AC41)) -> -2.907230402 | AC42: -0.8712539708 | AD42: -0.570256865 | AF42: 0 | AH42: -0.3049055758 | AJ42: =IF(AJ41>'goal seek'!$F$28,MAX($AH$7,AJ41*(1+AL42)),MAX($AH$7,AJ41+AK41)) -> 2.031578971 | AK42: -0.3815939492 | AL42: -0.1581295505 | AM42: -0.1581295505 | AN42: 0.06172164722 | AP42: 0.2130686841 | AR42: -2.53711615 | AS42: -1.688249545 | AV42: -0.2660885976 | AX42: 0.3114091017 | AY42: -0.08196022219 | AZ42: -0.2083543815 | BB42: 0.03266007793 | BD42: 2046 | BE42: 496.9399022 | BF42: 609.2278779 | BG42: 593.6051553 | BH42: 609.1119294 | BI42: 564.9986035 | BJ42: 609.2317616 | BK42: 76.93990219 | BL42: 189.2278779 | BM42: 173.6051553 | BN42: 189.1119294 | BO42: 144.9986035 | BP42: 189.2317616
A43: 29 | B43: 9586707.986 | C43: 2047 | E43: =IF(E42>$J$11,MAX($J$7,E42*(1+$J$10)),MAX($J$7,scenarios!E42+scenarios!F42)) -> 3.333963488 | F43: -0.3189406309 | G43: -0.08731152545 | H43: 0.03051116979 | J43: 0.3477693795 | L43: =IF(L42>'goal seek'!$F$28,MAX($R$7,L42*(1+N43)),MAX($R$7,L42+M42)) -> -3.5 | M43: 0 | N43: -2.376313187 | P43: 0 | R43: -0.3650888298 | T43: =IF(T42>'goal seek'!$F$28,MAX($Z$7,T42*(1+V43)),MAX($Z$7,T42+U42)) -> 0.2667161831 | U43: -0.5277815902 | V43: -0.2484529463 | W43: -0.6642958708 | X43: 0 | Z43: 0.02782145691 | AB43: =IF(AB42>'goal seek'!$F$28,MAX($AH$7,AB42*(1+AD43)),MAX($AH$7,AB42+AC42)) -> -3.5 | AC43: -0.5927695982 | AD43: -0.6141823293 | AF43: 0.2784843725 | AH43: -0.3650888298 | AJ43: =IF(AJ42>'goal seek'!$F$28,MAX($AH$7,AJ42*(1+AL43)),MAX($AH$7,AJ42+AK42)) -> 1.704482322 | AK43: -0.3270966497 | AL43: -0.161006121 | AM43: -0.161006121 | AN43: 0.05449729949 | AP43: 0.177796416 | AR43: -3.5 | AS43: -0.9628838504 | AV43: -0.3650888298 | AX43: 0.2462504257 | AY43: -0.06515867604 | AZ43: -0.2092381876 | BB43: 0.02568665135 | BD43: 2047 | BE43: 500.2738657 | BF43: 605.7278779 | BG43: 593.8718714 | BH43: 605.6119294 | BI43: 566.7030858 | BJ43: 605.7317616 | BK43: 80.27386568 | BL43: 185.7278779 | BM43: 173.8718714 | BN43: 185.6119294 | BO43: 146.7030858 | BP43: 185.7317616
A44: 30 | B44: 9637357.637 | C44: 2048 | E44: =IF(E43>$J$11,MAX($J$7,E43*(1+$J$10)),MAX($J$7,scenarios!E43+scenarios!F43)) -> 3.04287005 | F44: -0.2910934379 | G44: -0.08731152545 | H44: 0.02784719301 | J44: 0.3157369649 | L44: =IF(L43>'goal seek'!$F$28,MAX($R$7,L43*(1+N44)),MAX($R$7,L43+M43)) -> -3.5 | M44: 0 | N44: -2.910047719 | P44: 0 | R44: -0.3631700858 | T44: =IF(T43>'goal seek'!$F$28,MAX($Z$7,T43*(1+V44)),MAX($Z$7,T43+U43)) -> -0.2610654071 | U44: -0.5277815902 | V44: -0.2572845369 | X44: 0 | Z44: -0.02708889894 | AB44: =IF(AB43>'goal seek'!$F$28,MAX($AH$7,AB43*(1+AD44)),MAX($AH$7,AB43+AC43)) -> -3.5 | AC44: 0 | AD44: -0.6597653583 | AF44: 0.5927695982 | AH44: -0.3631700858 | AJ44: =IF(AJ43>'goal seek'!$F$28,MAX($AH$7,AJ43*(1+AL44)),MAX($AH$7,AJ43+AK43)) -> 1.377385672 | AK44: -0.3270966497 | AL44: -0.1638289096 | AM44: -0.1919038089 | AN44: 0 | AP44: 0.1429215065 | AR44: -3.5 | AS44: 0 | AV44: -0.3631700858 | AX44: 0.1945218688 | AY44: -0.05172855684 | AZ44: -0.2100648423 | BB44: 0.02018414966 | BD44: 2048 | BE44: 503.3167357 | BF44: 602.2278779 | BG44: 593.610806 | BH44: 602.1119294 | BI44: 568.0804715 | BJ44: 602.2317616 | BK44: 83.31673573 | BL44: 182.2278779 | BM44: 173.610806 | BN44: 182.1119294 | BO44: 148.0804715 | BP44: 182.2317616
A45: 31 | B45: 9686800.357 | C45: 2049 | E45: =IF(E44>$J$11,MAX($J$7,E44*(1+$J$10)),MAX($J$7,scenarios!E44+scenarios!F44)) -> 2.777192424 | F45: -0.2656776258 | G45: -0.08731152545 | H45: 0.02541581211 | J45: 0.2866986334 | L45: =IF(L44>'goal seek'!$F$28,MAX($R$7,L44*(1+N45)),MAX($R$7,L44+M44)) -> -3.5 | M45: 0 | N45: -3.563662304 | P45: 0 | R45: -0.3613164173 | T45: =IF(T44>'goal seek'!$F$28,MAX($Z$7,T44*(1+V45)),MAX($Z$7,T44+U44)) -> -0.7888469973 | U45: -0.5277815902 | V45: -0.2661161275 | X45: 0 | Z45: -0.08143524882 | AB45: =IF(AB44>'goal seek'!$F$28,MAX($AH$7,AB44*(1+AD45)),MAX($AH$7,AB44+AC44)) -> -3.5 | AC45: 0 | AD45: -0.7070059519 | AF45: 0 | AH45: -0.3613164173 | AJ45: =IF(AJ44>'goal seek'!$F$28,MAX($AH$7,AJ44*(1+AL45)),MAX($AH$7,AJ44+AK44)) -> 1.050289022 | AK45: -0.3270966497 | AL45: -0.1666008247 | AM45: -0.2374764428 | AN45: 0 | AP45: 0.1084247619 | AR45: -3.5 | AS45: 0 | AV45: -0.3613164173 | AX45: 0.1535089333 | AY45: -0.04101293551 | AZ45: -0.2108397157 | BB45: 0.01584722794 | BD45: 2049 | BE45: 506.0939282 | BF45: 598.7278779 | BG45: 592.821959 | BH45: 598.6119294 | BI45: 569.1307605 | BJ45: 598.7317616 | BK45: 86.09392815 | BL45: 178.7278779 | BM45: 172.821959 | BN45: 178.6119294 | BO45: 149.1307605 | BP45: 178.7317616
A46: 32 | B46: 9735033.99 | C46: 2050 | E46: =IF(E45>$J$11,MAX($J$7,E45*(1+$J$10)),MAX($J$7,scenarios!E45+scenarios!F45)) -> 2.534711517 | F46: -0.242480907 | G46: -0.08731152545 | H46: 0.02319671879 | J46: 0.2603700737 | L46: =IF(L45>'goal seek'!$F$28,MAX($R$7,L45*(1+N46)),MAX($R$7,L45+M45)) -> -3.5 | M46: 0 | N46: -4.364082737 | P46: 0 | R46: -0.3595262229 | T46: =IF(T45>'goal seek'!$F$28,MAX($Z$7,T45*(1+V46)),MAX($Z$7,T45+U45)) -> -1.316628588 | U46: -0.5277815902 | V46: -0.2749477181 | X46: 0 | Z46: -0.1352464294 | AB46: =IF(AB45>'goal seek'!$F$28,MAX($AH$7,AB45*(1+AD46)),MAX($AH$7,AB45+AC45)) -> -3.5 | AC46: 0 | AD46: -0.7559041103 | AF46: 0 | AH46: -0.3595262229 | AJ46: =IF(AJ45>'goal seek'!$F$28,MAX($AH$7,AJ45*(1+AL46)),MAX($AH$7,AJ45+AK45)) -> 0.7231923725 | AK46: -0.3270966497 | AL46: -0.1693245215 | AM46: -0.3114348934 | AN46: 0 | AP46: 0.07428760632 | AR46: -3.5 | AS46: 0 | AV46: -0.3595262229 | AX46: 0.1210314282 | AY46: -0.03247750512 | AZ46: -0.2115675252 | BB46: 0.01243256349 | BD46: 2050 | BE46: 508.6286397 | BF46: 595.2278779 | BG46: 591.5053305 | BH46: 595.1119294 | BI46: 569.8539529 | BJ46: 595.2317616 | BK46: 88.62863967 | BL46: 175.2278779 | BM46: 171.5053305 | BN46: 175.1119294 | BO46: 149.8539529 | BP46: 175.2317616
A47: 33 | B47: 9782061.551 | C47: 2051 | E47: =IF(E46>$J$11,MAX($J$7,E46*(1+$J$10)),MAX($J$7,scenarios!E46+scenarios!F46)) -> 2.313401988 | F47: -0.2213095291 | G47: -0.08731152545 | H47: 0.02117137788 | J47: =E47*1000000/B47 -> 0.2364943193 | L47: =IF(L46>'goal seek'!$F$28,MAX($R$7,L46*(1+N47)),MAX($R$7,L46+M46)) -> -3.5 | M47: 0 | N47: -5 | P47: 0 | R47: =L47*1000000/$B47 -> -0.3577977895 | T47: =IF(T46>'goal seek'!$F$28,MAX($Z$7,T46*(1+V47)),MAX($Z$7,T46+U46)) -> -1.844410178 | U47: -0.5277815902 | V47: -0.2837793087 | X47: 0 | Z47: =T47*1000000/$B47 -> -0.1885502527 | AB47: =IF(AB46>'goal seek'!$F$28,MAX($AH$7,AB46*(1+AD47)),MAX($AH$7,AB46+AC46)) -> -3.5 | AC47: =AB47-AB46 -> 0 | AD47: -0.8064598333 | AF47: 0 | AH47: =AB47*1000000/$B47 -> -0.3577977895 | AJ47: =IF(AJ46>'goal seek'!$F$28,MAX($AH$7,AJ46*(1+AL47)),MAX($AH$7,AJ46+AK46)) -> 0.3960957229 | AK47: -0.3270966497 | AL47: -0.172002432 | AM47: -0.4522954916 | AN47: 0 | AP47: =AJ47*1000000/$B47 -> 0.04049204974 | AR47: -3.5 | AS47: 0 | AV47: =AR47*1000000/$B47 -> -0.3577977895 | AX47: 0.09534221316 | AY47: -0.02568921503 | AZ47: -0.2122524324 | BB47: =AX47*1000000/$B47 -> 0.009746638034 | BD47: 2051 | BE47: 510.9420417 | BF47: 591.7278779 | BG47: 589.6609203 | BH47: 591.6119294 | BI47: 570.2500486 | BJ47: 591.7317616 | BK47: =IF(BE47-$BE$7>0,BE47-$BE$7,"") -> 90.94204166 | BL47: =IF(BF47-$BE$7>0,BF47-$BE$7,"") -> 171.7278779 | BM47: =IF(BG47-$BE$7>0,BG47-$BE$7,"") -> 169.6609203 | BN47: =IF(BH47-$BE$7>0,BH47-$BE$7,"") -> 171.6119294 | BO47: =IF(BI47-$BE$7>0,BI47-$BE$7,"") -> 150.2500486 | BP47: 171.7317616
A48: 34 | B48: 9827884.64 | C48: 2052 | E48: =IF(E47>$J$11,MAX($J$7,E47*(1+$J$10)),MAX($J$7,scenarios!E47+scenarios!F47)) -> 2.111415332 | F48: =E48-E47 -> -0.2019866565 | G48: -0.08731152545 | H48: 0.01932287258 | J48: 0.2148392466 | L48: =IF(L47>'goal seek'!$F$28,MAX($R$7,L47*(1+N48)),MAX($R$7,L47+M47)) -> -3.5 | M48: =L48-L47 -> 0 | N48: -5 | P48: 0 | R48: -0.3561295363 | T48: =IF(T47>'goal seek'!$F$28,MAX($Z$7,T47*(1+V48)),MAX($Z$7,T47+U47)) -> -2.372191768 | U48: =T48-T47 -> -0.5277815902 | V48: -0.2926108993 | X48: 0 | Z48: -0.241373587 | AB48: =IF(AB47>'goal seek'!$F$28,MAX($AH$7,AB47*(1+AD48)),MAX($AH$7,AB47+AC47)) -> -3.5 | AC48: 0 | AD48: =$AH$10*(C48-2020)^2+$AH$9 -> -0.858673121 | AF48: 0 | AH48: -0.3561295363 | AJ48: =IF(AJ47>'goal seek'!$F$28,MAX($AH$7,AJ47*(1+AL48)),MAX($AH$7,AJ47+AK47)) -> 0.06899907321 | AK48: -0.3270966497 | AL48: -0.1746367907 | AM48: -0.825802024 | AN48: 0 | AP48: 0.007020745129 | AR48: =MAX(AR47+$AV$10,$AV$7) -> -3.5 | AS48: 0 | AV48: -0.3561295363 | AX48: =-AX$15*EXP(-BB$11*($C48-$C$15))/BB$11^2*((BB$10*BB$11+BB$11^2)*($C48-$C$15)+2*BB$11+BB$10) +AX$15*EXP(-BB$11*($C47-$C$15))/BB$11^2*((BB$10*BB$11+BB$11^2)*($C47-$C$15)+2*BB$11+BB$10) -> 0.07504403503 | AY48: -0.02029817813 | AZ48: =IF(AX48>0,AX48/AX47-1,"") -> -0.212898122 | BB48: 0.007635827829 | BD48: =C48 -> 2052 | BE48: =BE47+E48 -> 513.053457 | BF48: =BF47+L48 -> 588.2278779 | BG48: =BG47+T48 -> 587.2887285 | BH48: =BH47+AB48 -> 588.1119294 | BI48: =BI47+AJ48 -> 570.3190477 | BJ48: =BJ47+AR48 -> 588.2317616 | BK48: 93.05345699 | BL48: 168.2278779 | BM48: 167.2887285 | BN48: 168.1119294 | BO48: 150.3190477 | BP48: 168.2317616
A49: 35 | B49: 9872499.765 | C49: 2053 | E49: =IF(E48>$J$11,MAX($J$7,E48*(1+$J$10)),MAX($J$7,scenarios!E48+scenarios!F48)) -> 1.909428675 | F49: -0.2019866565 | G49: -0.09566410433 | H49: 0 | J49: 0.1934088347 | L49: =IF(L48>'goal seek'!$F$28,MAX($R$7,L48*(1+N49)),MAX($R$7,L48+M48)) -> -3.5 | M49: 0 | N49: =MAX(-5,N48*(1+$R$10)) -> -5 | P49: 0 | R49: -0.3545201401 | T49: =IF(T48>'goal seek'!$F$28,MAX($Z$7,T48*(1+V49)),MAX($Z$7,T48+U48)) -> -2.899973358 | U49: -0.5277815902 | V49: =V48+$Z$10 -> -0.3014424899 | X49: 0 | Z49: -0.2937425604 | AB49: =IF(AB48>'goal seek'!$F$28,MAX($AH$7,AB48*(1+AD49)),MAX($AH$7,AB48+AC48)) -> -3.5 | AC49: 0 | AD49: -0.9125439734 | AF49: 0 | AH49: -0.3545201401 | AJ49: =IF(AJ48>'goal seek'!$F$28,MAX($AH$7,AJ48*(1+AL49)),MAX($AH$7,AJ48+AK48)) -> -0.2580975765 | AK49: -0.3270966497 | AL49: =$AP$10*SQRT(C49-$AP$4-2020)+$AP$9 -> -0.1772296555 | AN49: 0 | AP49: -0.02614308256 | AR49: -3.5 | AS49: 0 | AV49: -0.3545201401 | AX49: 0.05902154305 | AY49: -0.01602249198 | AZ49: -0.2135078688 | BB49: 0.005978378774 | BD49: 2053 | BE49: 514.9628857 | BF49: 584.7278779 | BG49: 584.3887552 | BH49: 584.6119294 | BI49: 570.0609501 | BJ49: 584.7317616 | BK49: 94.96288566 | BL49: 164.7278779 | BM49: 164.3887552 | BN49: 164.6119294 | BO49: 150.0609501 | BP49: 164.7317616
A50: 36 | B50: 9915902.218 | C50: 2054 | E50: =IF(E49>$J$11,MAX($J$7,E49*(1+$J$10)),MAX($J$7,scenarios!E49+scenarios!F49)) -> 1.707442018 | F50: -0.2019866565 | G50: -0.1057838186 | H50: 0 | J50: 0.1721923009 | L50: =IF(L49>'goal seek'!$F$28,MAX($R$7,L49*(1+N50)),MAX($R$7,L49+M49)) -> -3.5 | M50: 0 | N50: -5 | P50: 0 | R50: -0.3529683858 | T50: =IF(T49>'goal seek'!$F$28,MAX($Z$7,T49*(1+V50)),MAX($Z$7,T49+U49)) -> -3.427754948 | U50: -0.5277815902 | V50: -0.3102740805 | X50: 0 | Z50: -0.3456826089 | AB50: =IF(AB49>'goal seek'!$F$28,MAX($AH$7,AB49*(1+AD50)),MAX($AH$7,AB49+AC49)) -> -3.5 | AC50: 0 | AD50: -0.9680723905 | AF50: 0 | AH50: -0.3529683858 | AJ50: =IF(AJ49>'goal seek'!$F$28,MAX($AH$7,AJ49*(1+AL50)),MAX($AH$7,AJ49+AK49)) -> -0.5851942261 | AK50: -0.3270966497 | AL50: -0.1797829277 | AN50: 0 | AP50: -0.05901573183 | AR50: -3.5 | AS50: 0 | AV50: -0.3529683858 | AX50: 0.04638594005 | AY50: -0.012635603 | AZ50: -0.2140845926 | BB50: 0.004677934396 | BD50: 2054 | BE50: 516.6703277 | BF50: 581.2278779 | BG50: 580.9610002 | BH50: 581.1119294 | BI50: 569.4757559 | BJ50: 581.2317616 | BK50: 96.67032768 | BL50: 161.2278779 | BM50: 160.9610002 | BN50: 161.1119294 | BO50: 149.4757559 | BP50: 161.2317616
A51: 37 | B51: 9958094.074 | C51: 2055 | E51: =IF(E50>$J$11,MAX($J$7,E50*(1+$J$10)),MAX($J$7,scenarios!E50+scenarios!F50)) -> 1.505455362 | F51: -0.2019866565 | G51: -0.118297813 | H51: 0 | J51: 0.1511790661 | L51: =IF(L50>'goal seek'!$F$28,MAX($R$7,L50*(1+N51)),MAX($R$7,L50+M50)) -> -3.5 | M51: 0 | N51: -5 | P51: 0 | R51: -0.3514728796 | T51: =IF(T50>'goal seek'!$F$28,MAX($Z$7,T50*(1+V51)),MAX($Z$7,T50+U50)) -> -3.5 | U51: -0.07224505156 | V51: -0.3191056711 | X51: 0.4555365387 | Z51: -0.3514728796 | AB51: =IF(AB50>'goal seek'!$F$28,MAX($AH$7,AB50*(1+AD51)),MAX($AH$7,AB50+AC50)) -> -3.5 | AC51: 0 | AD51: -1.025258372 | AF51: 0 | AH51: -0.3514728796 | AJ51: =IF(AJ50>'goal seek'!$F$28,MAX($AH$7,AJ50*(1+AL51)),MAX($AH$7,AJ50+AK50)) -> -0.9122908758 | AK51: -0.3270966497 | AL51: -0.1822983674 | AN51: 0 | AP51: -0.09161300034 | AR51: -3.5 | AS51: 0 | AV51: -0.3514728796 | AX51: 0.03643008374 | AY51: -0.009955856308 | AZ51: -0.2146309053 | BB51: 0.003658338982 | BD51: 2055 | BE51: 518.175783 | BF51: 577.7278779 | BG51: 577.4610002 | BH51: 577.6119294 | BI51: 568.563465 | BJ51: 577.7317616 | BK51: 98.17578305 | BL51: 157.7278779 | BM51: 157.4610002 | BN51: 157.6119294 | BO51: 148.563465 | BP51: 157.7317616
A52: 38 | B52: 9999078.316 | C52: 2056 | E52: =IF(E51>$J$11,MAX($J$7,E51*(1+$J$10)),MAX($J$7,scenarios!E51+scenarios!F51)) -> 1.303468705 | F52: -0.2019866565 | G52: -0.1341698078 | H52: 0 | J52: 0.1303588855 | L52: =IF(L51>'goal seek'!$F$28,MAX($R$7,L51*(1+N52)),MAX($R$7,L51+M51)) -> -3.5 | M52: 0 | N52: -5 | P52: 0 | R52: -0.3500322619 | T52: =IF(T51>'goal seek'!$F$28,MAX($Z$7,T51*(1+V52)),MAX($Z$7,T51+U51)) -> -3.5 | U52: 0 | V52: -0.3279372617 | X52: 0.07224505156 | Z52: -0.3500322619 | AB52: =IF(AB51>'goal seek'!$F$28,MAX($AH$7,AB51*(1+AD52)),MAX($AH$7,AB51+AC51)) -> -3.5 | AC52: 0 | AD52: -1.084101919 | AF52: 0 | AH52: -0.3500322619 | AJ52: =IF(AJ51>'goal seek'!$F$28,MAX($AH$7,AJ51*(1+AL52)),MAX($AH$7,AJ51+AK51)) -> -1.239387525 | AK52: -0.3270966497 | AL52: -0.184777608 | AN52: 0 | AP52: -0.1239501768 | AR52: -3.5 | AS52: 0 | AV52: -0.3500322619 | AX52: 0.02859218216 | AY52: -0.007837901578 | AZ52: -0.2151491507 | BB52: 0.00285948177 | BD52: 2056 | BE52: 519.4792518 | BF52: 574.2278779 | BG52: 573.9610002 | BH52: 574.1119294 | BI52: 567.3240775 | BJ52: 574.2317616 | BK52: 99.47925175 | BL52: 154.2278779 | BM52: 153.9610002 | BN52: 154.1119294 | BO52: 147.3240775 | BP52: 154.2317616
A53: 39 | B53: 10038871.46 | C53: 2057 | E53: =IF(E52>$J$11,MAX($J$7,E52*(1+$J$10)),MAX($J$7,scenarios!E52+scenarios!F52)) -> 1.101482049 | F53: -0.2019866565 | G53: -0.1549608792 | H53: 0 | J53: 0.1097217007 | L53: =IF(L52>'goal seek'!$F$28,MAX($R$7,L52*(1+N53)),MAX($R$7,L52+M52)) -> -3.5 | M53: 0 | N53: -5 | P53: 0 | R53: -0.3486447671 | T53: =IF(T52>'goal seek'!$F$28,MAX($Z$7,T52*(1+V53)),MAX($Z$7,T52+U52)) -> -3.5 | U53: 0 | V53: -0.3367688523 | X53: 0 | Z53: -0.3486447671 | AB53: =IF(AB52>'goal seek'!$F$28,MAX($AH$7,AB52*(1+AD53)),MAX($AH$7,AB52+AC52)) -> -3.5 | AC53: 0 | AD53: -1.14460303 | AF53: 0 | AH53: -0.3486447671 | AJ53: =IF(AJ52>'goal seek'!$F$28,MAX($AH$7,AJ52*(1+AL53)),MAX($AH$7,AJ52+AK52)) -> -1.566484175 | AK53: -0.3270966497 | AL53: -0.1872221688 | AN53: 0 | AP53: -0.1560418601 | AR53: -3.5 | AS53: 0 | AV53: -0.3486447671 | AX53: 0.0224265229 | AY53: -0.006165659264 | AZ53: -0.2156414375 | BB53: 0.002233968529 | BD53: 2057 | BE53: 520.5807338 | BF53: 570.7278779 | BG53: 570.4610002 | BH53: 570.6119294 | BI53: 565.7575933 | BJ53: 570.7317616 | BK53: 100.5807338 | BL53: 150.7278779 | BM53: 150.4610002 | BN53: 150.6119294 | BO53: 145.7575933 | BP53: 150.7317616
A54: 40 | B54: 10077505.22 | C54: 2058 | E54: =IF(E53>$J$11,MAX($J$7,E53*(1+$J$10)),MAX($J$7,scenarios!E53+scenarios!F53)) -> 0.8994953922 | F54: -0.2019866565 | G54: -0.183377166 | H54: 0 | J54: 0.08925774512 | L54: =IF(L53>'goal seek'!$F$28,MAX($R$7,L53*(1+N54)),MAX($R$7,L53+M53)) -> -3.5 | M54: 0 | N54: -5 | P54: 0 | R54: -0.3473081804 | T54: =IF(T53>'goal seek'!$F$28,MAX($Z$7,T53*(1+V54)),MAX($Z$7,T53+U53)) -> -3.5 | U54: 0 | V54: -0.3456004429 | X54: 0 | Z54: -0.3473081804 | AB54: =IF(AB53>'goal seek'!$F$28,MAX($AH$7,AB53*(1+AD54)),MAX($AH$7,AB53+AC53)) -> -3.5 | AC54: 0 | AD54: -1.206761706 | AF54: 0 | AH54: -0.3473081804 | AJ54: =IF(AJ53>'goal seek'!$F$28,MAX($AH$7,AJ53*(1+AL54)),MAX($AH$7,AJ53+AK53)) -> -1.893580825 | AK54: -0.3270966497 | AL54: -0.1896334656 | AN54: 0 | AP54: -0.1879017459 | AR54: -3.5 | AS54: 0 | AV54: -0.3473081804 | AX54: 0.01757993447 | AY54: -0.004846588429 | AZ54: -0.2161096685 | BB54: 0.001744472872 | BD54: 2058 | BE54: 521.4802292 | BF54: 567.2278779 | BG54: 566.9610002 | BH54: 567.1119294 | BI54: 563.8640125 | BJ54: 567.2317616 | BK54: 101.4802292 | BL54: 147.2278779 | BM54: 146.9610002 | BN54: 147.1119294 | BO54: 143.8640125 | BP54: 147.2317616
A55: 41 | B55: 10115019.65 | C55: 2059 | E55: =IF(E54>$J$11,MAX($J$7,E54*(1+$J$10)),MAX($J$7,scenarios!E54+scenarios!F54)) -> 0.6975087357 | F55: -0.2019866565 | G55: -0.2245555211 | H55: 0 | J55: 0.06895772424 | L55: =IF(L54>'goal seek'!$F$28,MAX($R$7,L54*(1+N55)),MAX($R$7,L54+M54)) -> -3.5 | M55: 0 | N55: -5 | P55: 0 | R55: -0.3460200891 | T55: =IF(T54>'goal seek'!$F$28,MAX($Z$7,T54*(1+V55)),MAX($Z$7,T54+U54)) -> -3.5 | U55: 0 | V55: -0.3544320335 | X55: 0 | Z55: -0.3460200891 | AB55: =IF(AB54>'goal seek'!$F$28,MAX($AH$7,AB54*(1+AD55)),MAX($AH$7,AB54+AC54)) -> -3.5 | AC55: 0 | AD55: -1.270577946 | AF55: 0 | AH55: -0.3460200891 | AJ55: =IF(AJ54>'goal seek'!$F$28,MAX($AH$7,AJ54*(1+AL55)),MAX($AH$7,AJ54+AK54)) -> -2.220677474 | AK55: -0.3270966497 | AL55: -0.1920128204 | AN55: 0 | AP55: -0.2195425764 | AR55: -3.5 | AS55: 0 | AV55: -0.3460200891 | AX55: 0.01377290183 | AY55: -0.003807032638 | AZ55: -0.2165555647 | BB55: 0.001361628777 | BD55: 2059 | BE55: 522.1777379 | BF55: 563.7278779 | BG55: 563.4610002 | BH55: 563.6119294 | BI55: 561.643335 | BJ55: 563.7317616 | BK55: 102.1777379 | BL55: 143.7278779 | BM55: 143.4610002 | BN55: 143.6119294 | BO55: 141.643335 | BP55: 143.7317616
A56: 42 | B56: 10151448.76 | C56: 2060 | E56: =IF(E55>$J$11,MAX($J$7,E55*(1+$J$10)),MAX($J$7,scenarios!E55+scenarios!F55)) -> 0.4955220791 | F56: -0.2019866565 | G56: -0.2895829776 | H56: 0 | J56: 0.04881294195 | L56: =IF(L55>'goal seek'!$F$28,MAX($R$7,L55*(1+N56)),MAX($R$7,L55+M55)) -> -3.5 | M56: 0 | N56: -5 | P56: 0 | R56: -0.3447783742 | T56: =IF(T55>'goal seek'!$F$28,MAX($Z$7,T55*(1+V56)),MAX($Z$7,T55+U55)) -> -3.5 | U56: 0 | V56: -0.3632636241 | X56: 0 | Z56: -0.3447783742 | AB56: =IF(AB55>'goal seek'!$F$28,MAX($AH$7,AB55*(1+AD56)),MAX($AH$7,AB55+AC55)) -> -3.5 | AC56: 0 | AD56: -1.336051752 | AF56: 0 | AH56: -0.3447783742 | AJ56: =IF(AJ55>'goal seek'!$F$28,MAX($AH$7,AJ55*(1+AL56)),MAX($AH$7,AJ55+AK55)) -> -2.547774124 | AK56: -0.3270966497 | AL56: -0.1943614701 | AN56: 0 | AP56: -0.2509764058 | AR56: -3.5 | AS56: 0 | AV56: -0.3447783742 | AX56: 0.01078444813 | AY56: -0.002988453704 | AZ56: -0.2169806872 | BB56: 0.001062355569 | BD56: 2060 | BE56: 522.67326 | BF56: 560.2278779 | BG56: 559.9610002 | BH56: 560.1119294 | BI56: 559.0955609 | BJ56: 560.2317616 | BK56: 102.67326 | BL56: 140.2278779 | BM56: 139.9610002 | BN56: 140.1119294 | BO56: 139.0955609 | BP56: 140.2317616
A57: 43 | B57: 10186811.59 | C57: 2061 | E57: =IF(E56>$J$11,MAX($J$7,E56*(1+$J$10)),MAX($J$7,scenarios!E56+scenarios!F56)) -> 0.2935354226 | F57: -0.2019866565 | G57: -0.4076239285 | H57: 0 | J57: 0.02881524018 | L57: =IF(L56>'goal seek'!$F$28,MAX($R$7,L56*(1+N57)),MAX($R$7,L56+M56)) -> -3.5 | M57: 0 | N57: -5 | P57: 0 | R57: -0.3435814994 | T57: =IF(T56>'goal seek'!$F$28,MAX($Z$7,T56*(1+V57)),MAX($Z$7,T56+U56)) -> -3.5 | U57: 0 | V57: -0.3720952147 | X57: 0 | Z57: -0.3435814994 | AB57: =IF(AB56>'goal seek'!$F$28,MAX($AH$7,AB56*(1+AD57)),MAX($AH$7,AB56+AC56)) -> -3.5 | AC57: 0 | AD57: -1.403183121 | AF57: 0 | AH57: -0.3435814994 | AJ57: =IF(AJ56>'goal seek'!$F$28,MAX($AH$7,AJ56*(1+AL57)),MAX($AH$7,AJ56+AK56)) -> -2.874870774 | AK57: -0.3270966497 | AL57: -0.1966805735 | AN57: 0 | AP57: -0.2822149746 | AR57: -3.5 | AS57: 0 | AV57: -0.3435814994 | AX57: 0.008440055187 | AY57: -0.002344392942 | AZ57: -0.2173864545 | BB57: 0.0008285276619 | BD57: 2061 | BE57: 522.9667954 | BF57: 556.7278779 | BG57: 556.4610002 | BH57: 556.6119294 | BI57: 556.2206901 | BJ57: 556.7317616 | BK57: 102.9667954 | BL57: 136.7278779 | BM57: 136.4610002 | BN57: 136.6119294 | BO57: 136.2206901 | BP57: 136.7317616
A58: 44 | B58: 10221118.37 | C58: 2062 | E58: =IF(E57>$J$11,MAX($J$7,E57*(1+$J$10)),MAX($J$7,scenarios!E57+scenarios!F57)) -> 0.09154876603 | F58: -0.2019866565 | G58: -0.688116803 | H58: 0 | J58: 0.008956824752 | L58: =IF(L57>'goal seek'!$F$28,MAX($R$7,L57*(1+N58)),MAX($R$7,L57+M57)) -> -3.5 | M58: 0 | N58: -5 | P58: 0 | R58: -0.3424282816 | T58: =IF(T57>'goal seek'!$F$28,MAX($Z$7,T57*(1+V58)),MAX($Z$7,T57+U57)) -> -3.5 | U58: 0 | V58: -0.3809268053 | X58: 0 | Z58: -0.3424282816 | AB58: =IF(AB57>'goal seek'!$F$28,MAX($AH$7,AB57*(1+AD58)),MAX($AH$7,AB57+AC57)) -> -3.5 | AC58: 0 | AD58: -1.471972056 | AF58: 0 | AH58: -0.3424282816 | AJ58: =IF(AJ57>'goal seek'!$F$28,MAX($AH$7,AJ57*(1+AL58)),MAX($AH$7,AJ57+AK57)) -> -3.201967423 | AK58: -0.3270966497 | AL58: -0.1989712183 | AN58: 0 | AP58: -0.3132697721 | AR58: -3.5 | AS58: 0 | AV58: -0.3424282816 | AX58: 0.006602029267 | AY58: -0.001838025921 | AZ58: -0.217774159 | BB58: 0.0006459204391 | BD58: 2062 | BE58: 523.0583442 | BF58: 553.2278779 | BG58: 552.9610002 | BH58: 553.1119294 | BI58: 553.0187227 | BJ58: 553.2317616 | BK58: 103.0583442 | BL58: 133.2278779 | BM58: 132.9610002 | BN58: 133.1119294 | BO58: 133.0187227 | BP58: 133.2317616
A59: 45 | B59: 10254382.51 | C59: 2063 | E59: =IF(E58>$J$11,MAX($J$7,E58*(1+$J$10)),MAX($J$7,scenarios!E58+scenarios!F58)) -> -0.1104378905 | F59: -0.2019866565 | H59: 0 | J59: -0.01076982358 | L59: =IF(L58>'goal seek'!$F$28,MAX($R$7,L58*(1+N59)),MAX($R$7,L58+M58)) -> -3.5 | M59: 0 | N59: -5 | P59: 0 | R59: -0.3413174804 | T59: =IF(T58>'goal seek'!$F$28,MAX($Z$7,T58*(1+V59)),MAX($Z$7,T58+U58)) -> -3.5 | U59: 0 | V59: -0.3897583959 | X59: 0 | Z59: -0.3413174804 | AB59: =IF(AB58>'goal seek'!$F$28,MAX($AH$7,AB58*(1+AD59)),MAX($AH$7,AB58+AC58)) -> -3.5 | AC59: 0 | AD59: -1.542418555 | AF59: 0 | AH59: -0.3413174804 | AJ59: =IF(AJ58>'goal seek'!$F$28,MAX($AH$7,AJ58*(1+AL59)),MAX($AH$7,AJ58+AK58)) -> -3.5 | AK59: -0.2980325765 | AL59: -0.2012344274 | AN59: 0.02906407313 | AP59: -0.3413174804 | AR59: -3.5 | AS59: 0 | AV59: -0.3413174804 | AX59: 0.00516182972 | AY59: -0.001440199547 | AZ59: -0.2181449807 | BB59: 0.0005033779184 | BD59: 2063 | BE59: 522.9479063 | BF59: 549.7278779 | BG59: 549.4610002 | BH59: 549.6119294 | BI59: 549.5187227 | BJ59: 549.7317616 | BK59: 102.9479063 | BL59: 129.7278779 | BM59: 129.4610002 | BN59: 129.6119294 | BO59: 129.5187227 | BP59: 129.7317616
A60: 46 | B60: 10286615.75 | C60: 2064 | E60: =IF(E59>$J$11,MAX($J$7,E59*(1+$J$10)),MAX($J$7,scenarios!E59+scenarios!F59)) -> -0.3124245471 | F60: -0.2019866565 | H60: 0 | J60: -0.03037194689 | L60: =IF(L59>'goal seek'!$F$28,MAX($R$7,L59*(1+N60)),MAX($R$7,L59+M59)) -> -3.5 | M60: 0 | N60: -5 | P60: 0 | R60: -0.3402479578 | T60: =IF(T59>'goal seek'!$F$28,MAX($Z$7,T59*(1+V60)),MAX($Z$7,T59+U59)) -> -3.5 | U60: 0 | V60: -0.3985899865 | X60: 0 | Z60: -0.3402479578 | AB60: =IF(AB59>'goal seek'!$F$28,MAX($AH$7,AB59*(1+AD60)),MAX($AH$7,AB59+AC59)) -> -3.5 | AC60: 0 | AD60: -1.614522619 | AF60: 0 | AH60: -0.3402479578 | AJ60: =IF(AJ59>'goal seek'!$F$28,MAX($AH$7,AJ59*(1+AL60)),MAX($AH$7,AJ59+AK59)) -> -3.5 | AK60: 0 | AL60: -0.2034711634 | AN60: 0.2980325765 | AP60: -0.3402479578 | AR60: -3.5 | AS60: 0 | AV60: -0.3402479578 | AX60: 0.004033969933 | AY60: -0.001127859787 | AZ60: -0.2184999987 | BB60: 0.0003921571518 | BD60: 2064 | BE60: 522.6354818 | BF60: 546.2278779 | BG60: 545.9610002 | BH60: 546.1119294 | BI60: 546.0187227 | BJ60: 546.2317616 | BK60: 102.6354818 | BL60: 126.2278779 | BM60: 125.9610002 | BN60: 126.1119294 | BO60: 126.0187227 | BP60: 126.2317616
A61: 47 | B61: 10317830.21 | C61: 2065 | E61: =IF(E60>$J$11,MAX($J$7,E60*(1+$J$10)),MAX($J$7,scenarios!E60+scenarios!F60)) -> -0.5144112036 | F61: -0.2019866565 | H61: 0 | J61: -0.04985652927 | L61: =IF(L60>'goal seek'!$F$28,MAX($R$7,L60*(1+N61)),MAX($R$7,L60+M60)) -> -3.5 | M61: 0 | N61: -5 | P61: 0 | R61: -0.339218608 | T61: =IF(T60>'goal seek'!$F$28,MAX($Z$7,T60*(1+V61)),MAX($Z$7,T60+U60)) -> -3.5 | U61: 0 | V61: -0.4074215771 | X61: 0 | Z61: -0.339218608 | AB61: =IF(AB60>'goal seek'!$F$28,MAX($AH$7,AB60*(1+AD61)),MAX($AH$7,AB60+AC60)) -> -3.5 | AC61: 0 | AD61: -1.688284248 | AF61: 0 | AH61: -0.339218608 | AJ61: =IF(AJ60>'goal seek'!$F$28,MAX($AH$7,AJ60*(1+AL61)),MAX($AH$7,AJ60+AK60)) -> -3.5 | AK61: 0 | AL61: -0.2056823342 | AN61: 0 | AP61: -0.339218608 | AR61: -3.5 | AS61: 0 | AV61: -0.339218608 | AX61: 0.003151175137 | AY61: -0.0008827947959 | AZ61: -0.2188402022 | BB61: 0.000305410641 | BD61: 2065 | BE61: 522.1210706 | BF61: 542.7278779 | BG61: 542.4610002 | BH61: 542.6119294 | BI61: 542.5187227 | BJ61: 542.7317616 | BK61: 102.1210706 | BL61: 122.7278779 | BM61: 122.4610002 | BN61: 122.6119294 | BO61: 122.5187227 | BP61: 122.7317616
A62: 48 | B62: 10348042.08 | C62: 2066 | E62: =IF(E61>$J$11,MAX($J$7,E61*(1+$J$10)),MAX($J$7,scenarios!E61+scenarios!F61)) -> -0.7163978602 | F62: -0.2019866565 | H62: 0 | J62: -0.06923028091 | L62: =IF(L61>'goal seek'!$F$28,MAX($R$7,L61*(1+N62)),MAX($R$7,L61+M61)) -> -3.5 | M62: 0 | N62: -5 | P62: 0 | R62: -0.3382282342 | T62: =IF(T61>'goal seek'!$F$28,MAX($Z$7,T61*(1+V62)),MAX($Z$7,T61+U61)) -> -3.5 | U62: 0 | V62: -0.4162531677 | X62: 0 | Z62: -0.3382282342 | AB62: =IF(AB61>'goal seek'!$F$28,MAX($AH$7,AB61*(1+AD62)),MAX($AH$7,AB61+AC61)) -> -3.5 | AC62: 0 | AD62: -1.763703441 | AF62: 0 | AH62: -0.3382282342 | AJ62: =IF(AJ61>'goal seek'!$F$28,MAX($AH$7,AJ61*(1+AL62)),MAX($AH$7,AJ61+AK61)) -> -3.5 | AK62: 0 | AL62: -0.2078687969 | AN62: 0 | AP62: -0.3382282342 | AR62: -3.5 | AS62: 0 | AV62: -0.3382282342 | AX62: 0.002460543112 | AY62: -0.0006906320246 | AZ62: -0.2191664997 | BB62: 0.0002377786149 | BD62: 2066 | BE62: 521.4046727 | BF62: 539.2278779 | BG62: 538.9610002 | BH62: 539.1119294 | BI62: 539.0187227 | BJ62: 539.2317616 | BK62: 101.4046727 | BL62: 119.2278779 | BM62: 118.9610002 | BN62: 119.1119294 | BO62: 119.0187227 | BP62: 119.2317616
A63: 49 | B63: 10377267.71 | C63: 2067 | E63: =IF(E62>$J$11,MAX($J$7,E62*(1+$J$10)),MAX($J$7,scenarios!E62+scenarios!F62)) -> -0.9183845167 | F63: -0.2019866565 | H63: 0 | J63: -0.08849964577 | L63: =IF(L62>'goal seek'!$F$28,MAX($R$7,L62*(1+N63)),MAX($R$7,L62+M62)) -> -3.5 | M63: 0 | N63: -5 | P63: 0 | R63: -0.3372756776 | T63: =IF(T62>'goal seek'!$F$28,MAX($Z$7,T62*(1+V63)),MAX($Z$7,T62+U62)) -> -3.5 | U63: 0 | V63: -0.4250847583 | X63: 0 | Z63: -0.3372756776 | AB63: =IF(AB62>'goal seek'!$F$28,MAX($AH$7,AB62*(1+AD63)),MAX($AH$7,AB62+AC62)) -> -3.5 | AC63: 0 | AD63: -1.8407802 | AF63: 0 | AH63: -0.3372756776 | AJ63: =IF(AJ62>'goal seek'!$F$28,MAX($AH$7,AJ62*(1+AL63)),MAX($AH$7,AJ62+AK62)) -> -3.5 | AK63: 0 | AL63: -0.2100313616 | AN63: 0 | AP63: -0.3372756776 | AR63: -3.5 | AS63: 0 | AV63: -0.3372756776 | AX63: 0.001920503783 | AY63: -0.0005400393295 | AZ63: -0.2194797266 | BB63: 0.0001850683471 | BD63: 2067 | BE63: 520.4862882 | BF63: 535.7278779 | BG63: 535.4610002 | BH63: 535.6119294 | BI63: 535.5187227 | BJ63: 535.7317616 | BK63: 100.4862882 | BL63: 115.7278779 | BM63: 115.4610002 | BN63: 115.6119294 | BO63: 115.5187227 | BP63: 115.7317616
A64: 50 | B64: 10405519.68 | C64: 2068 | E64: =IF(E63>$J$11,MAX($J$7,E63*(1+$J$10)),MAX($J$7,scenarios!E63+scenarios!F63)) -> -1.120371173 | F64: -0.2019866565 | H64: 0 | J64: -0.1076708523 | L64: =IF(L63>'goal seek'!$F$28,MAX($R$7,L63*(1+N64)),MAX($R$7,L63+M63)) -> -3.5 | M64: 0 | N64: -5 | P64: 0 | R64: -0.3363599423 | T64: =IF(T63>'goal seek'!$F$28,MAX($Z$7,T63*(1+V64)),MAX($Z$7,T63+U63)) -> -3.5 | U64: 0 | V64: -0.4339163489 | X64: 0 | Z64: -0.3363599423 | AB64: =IF(AB63>'goal seek'!$F$28,MAX($AH$7,AB63*(1+AD64)),MAX($AH$7,AB63+AC63)) -> -3.5 | AC64: 0 | AD64: -1.919514522 | AF64: 0 | AH64: -0.3363599423 | AJ64: =IF(AJ63>'goal seek'!$F$28,MAX($AH$7,AJ63*(1+AL64)),MAX($AH$7,AJ63+AK63)) -> -3.5 | AK64: 0 | AL64: -0.2121707953 | AN64: 0 | AP64: -0.3363599423 | AR64: -3.5 | AS64: 0 | AV64: -0.3363599423 | AX64: 0.001498414208 | AY64: -0.0004220895752 | AZ64: -0.2197806528 | BB64: 0.0001440018619 | BD64: 2068 | BE64: 519.365917 | BF64: 532.2278779 | BG64: 531.9610002 | BH64: 532.1119294 | BI64: 532.0187227 | BJ64: 532.2317616 | BK64: 99.365917 | BL64: 112.2278779 | BM64: 111.9610002 | BN64: 112.1119294 | BO64: 112.0187227 | BP64: 112.2317616
A65: 51 | B65: 10432810.41 | C65: 2069 | E65: =IF(E64>$J$11,MAX($J$7,E64*(1+$J$10)),MAX($J$7,scenarios!E64+scenarios!F64)) -> -1.32235783 | F65: -0.2019866565 | H65: 0 | J65: -0.1267499147 | L65: =IF(L64>'goal seek'!$F$28,MAX($R$7,L64*(1+N65)),MAX($R$7,L64+M64)) -> -3.5 | M65: 0 | N65: -5 | P65: 0 | R65: -0.3354800732 | T65: =IF(T64>'goal seek'!$F$28,MAX($Z$7,T64*(1+V65)),MAX($Z$7,T64+U64)) -> -3.5 | U65: 0 | V65: -0.4427479395 | X65: 0 | Z65: -0.3354800732 | AB65: =IF(AB64>'goal seek'!$F$28,MAX($AH$7,AB64*(1+AD65)),MAX($AH$7,AB64+AC64)) -> -3.5 | AC65: 0 | AD65: -1.99990641 | AF65: 0 | AH65: -0.3354800732 | AJ65: =IF(AJ64>'goal seek'!$F$28,MAX($AH$7,AJ64*(1+AL65)),MAX($AH$7,AJ64+AK64)) -> -3.5 | AK65: 0 | AL65: -0.2142878247 | AN65: 0 | AP65: -0.3354800732 | AR65: -3.5 | AS65: 0 | AV65: -0.3354800732 | AX65: 0.001168658209 | AY65: -0.0003297559984 | AZ65: -0.2200699891 | BB65: 0.0001120175833 | BD65: 2069 | BE65: 518.0435592 | BF65: 528.7278779 | BG65: 528.4610002 | BH65: 528.6119294 | BI65: 528.5187227 | BJ65: 528.7317616 | BK65: 98.04355917 | BL65: 108.7278779 | BM65: 108.4610002 | BN65: 108.6119294 | BO65: 108.5187227 | BP65: 108.7317616
A66: 52 | B66: 10459152.51 | C66: 2070 | E66: =IF(E65>$J$11,MAX($J$7,E65*(1+$J$10)),MAX($J$7,scenarios!E65+scenarios!F65)) -> -1.524344486 | F66: -0.2019866565 | H66: 0 | J66: -0.1457426388 | L66: =IF(L65>'goal seek'!$F$28,MAX($R$7,L65*(1+N66)),MAX($R$7,L65+M65)) -> -3.5 | M66: 0 | N66: -5 | P66: 0 | R66: -0.3346351435 | T66: =IF(T65>'goal seek'!$F$28,MAX($Z$7,T65*(1+V66)),MAX($Z$7,T65+U65)) -> -3.5 | U66: 0 | V66: -0.4515795301 | X66: 0 | Z66: -0.3346351435 | AB66: =IF(AB65>'goal seek'!$F$28,MAX($AH$7,AB65*(1+AD66)),MAX($AH$7,AB65+AC65)) -> -3.5 | AC66: 0 | AD66: -2.081955862 | AF66: 0 | AH66: -0.3346351435 | AJ66: =IF(AJ65>'goal seek'!$F$28,MAX($AH$7,AJ65*(1+AL66)),MAX($AH$7,AJ65+AK65)) -> -3.5 | AK66: 0 | AL66: -0.2163831393 | AN66: 0 | AP66: -0.3346351435 | AR66: -3.5 | AS66: 0 | AV66: -0.3346351435 | AX66: 0.0009111462518 | AY66: -0.0002575119576 | AZ66: -0.2203483923 | BB66: 8.711473049e-05 | BD66: 2070 | BE66: 516.5192147 | BF66: 525.2278779 | BG66: 524.9610002 | BH66: 525.1119294 | BI66: 525.0187227 | BJ66: 525.2317616 | BK66: 96.51921469 | BL66: 105.2278779 | BM66: 104.9610002 | BN66: 105.1119294 | BO66: 105.0187227 | BP66: 105.2317616
A67: 53 | B67: 10484559.38 | C67: 2071 | E67: =IF(E66>$J$11,MAX($J$7,E66*(1+$J$10)),MAX($J$7,scenarios!E66+scenarios!F66)) -> -1.726331143 | F67: -0.2019866565 | H67: 0 | J67: -0.1646546202 | L67: =IF(L66>'goal seek'!$F$28,MAX($R$7,L66*(1+N67)),MAX($R$7,L66+M66)) -> -3.5 | M67: 0 | N67: -5 | P67: 0 | R67: -0.3338242336 | T67: =IF(T66>'goal seek'!$F$28,MAX($Z$7,T66*(1+V67)),MAX($Z$7,T66+U66)) -> -3.5 | U67: 0 | V67: -0.4604111207 | X67: 0 | Z67: -0.3338242336 | AB67: =IF(AB66>'goal seek'!$F$28,MAX($AH$7,AB66*(1+AD67)),MAX($AH$7,AB66+AC66)) -> -3.5 | AC67: 0 | AD67: -2.165662879 | AF67: 0 | AH67: -0.3338242336 | AJ67: =IF(AJ66>'goal seek'!$F$28,MAX($AH$7,AJ66*(1+AL67)),MAX($AH$7,AJ66+AK66)) -> -3.5 | AK67: 0 | AL67: -0.2184573938 | AN67: 0 | AP67: -0.3338242336 | AR67: -3.5 | AS67: 0 | AV67: -0.3338242336 | AX67: 0.0007101323815 | AY67: -0.0002010138703 | AZ67: -0.2206164706 | BB67: 6.773125657e-05 | BD67: 2071 | BE67: 514.7928835 | BF67: 521.7278779 | BG67: 521.4610002 | BH67: 521.6119294 | BI67: 521.5187227 | BJ67: 521.7317616 | BK67: 94.79288354 | BL67: 101.7278779 | BM67: 101.4610002 | BN67: 101.6119294 | BO67: 101.5187227 | BP67: 101.7317616
A68: 54 | B68: 10509046.18 | C68: 2072 | E68: =IF(E67>$J$11,MAX($J$7,E67*(1+$J$10)),MAX($J$7,scenarios!E67+scenarios!F67)) -> -1.928317799 | F68: -0.2019866565 | H68: 0 | J68: -0.183491229 | L68: =IF(L67>'goal seek'!$F$28,MAX($R$7,L67*(1+N68)),MAX($R$7,L67+M67)) -> -3.5 | M68: 0 | N68: -5 | P68: 0 | R68: -0.3330464002 | T68: =IF(T67>'goal seek'!$F$28,MAX($Z$7,T67*(1+V68)),MAX($Z$7,T67+U67)) -> -3.5 | U68: 0 | V68: -0.4692427113 | X68: 0 | Z68: -0.3330464002 | AB68: =IF(AB67>'goal seek'!$F$28,MAX($AH$7,AB67*(1+AD68)),MAX($AH$7,AB67+AC67)) -> -3.5 | AC68: 0 | AD68: -2.25102746 | AF68: 0 | AH68: -0.3330464002 | AJ68: =IF(AJ67>'goal seek'!$F$28,MAX($AH$7,AJ67*(1+AL68)),MAX($AH$7,AJ67+AK67)) -> -3.5 | AK68: 0 | AL68: -0.2205112108 | AN68: 0 | AP68: -0.3330464002 | AR68: -3.5 | AS68: 0 | AV68: -0.3330464002 | AX68: 0.0005532820423 | AY68: -0.0001568503392 | AZ68: -0.220874788 | BB68: 5.264816927e-05 | BD68: 2072 | BE68: 512.8645657 | BF68: 518.2278779 | BG68: 517.9610002 | BH68: 518.1119294 | BI68: 518.0187227 | BJ68: 518.2317616 | BK68: 92.86456574 | BL68: 98.22787791 | BM68: 97.9610002 | BN68: 98.11192937 | BO68: 98.01872266 | BP68: 98.23176163
A69: 55 | B69: 10532629.59 | C69: 2073 | E69: =IF(E68>$J$11,MAX($J$7,E68*(1+$J$10)),MAX($J$7,scenarios!E68+scenarios!F68)) -> -2.130304456 | F69: -0.2019866565 | H69: 0 | J69: -0.2022576069 | L69: =IF(L68>'goal seek'!$F$28,MAX($R$7,L68*(1+N69)),MAX($R$7,L68+M68)) -> -3.5 | M69: 0 | N69: -5 | P69: 0 | R69: -0.3323006823 | T69: =IF(T68>'goal seek'!$F$28,MAX($Z$7,T68*(1+V69)),MAX($Z$7,T68+U68)) -> -3.5 | U69: 0 | V69: -0.4780743019 | X69: 0 | Z69: -0.3323006823 | AB69: =IF(AB68>'goal seek'!$F$28,MAX($AH$7,AB68*(1+AD69)),MAX($AH$7,AB68+AC68)) -> -3.5 | AC69: 0 | AD69: -2.338049606 | AF69: 0 | AH69: -0.3323006823 | AJ69: =IF(AJ68>'goal seek'!$F$28,MAX($AH$7,AJ68*(1+AL69)),MAX($AH$7,AJ68+AK68)) -> -3.5 | AK69: 0 | AL69: -0.2225451828 | AN69: 0 | AP69: -0.3323006823 | AR69: -3.5 | AS69: 0 | AV69: -0.3323006823 | AX69: 0.000430938177 | AY69: -0.0001223438653 | AZ69: -0.221123868 | BB69: 4.091458579e-05 | BD69: 2073 | BE69: 510.7342613 | BF69: 514.7278779 | BG69: 514.4610002 | BH69: 514.6119294 | BI69: 514.5187227 | BJ69: 514.7317616 | BK69: 90.73426129 | BL69: 94.72787791 | BM69: 94.4610002 | BN69: 94.61192937 | BO69: 94.51872266 | BP69: 94.73176163
A70: 56 | B70: 10555327.28 | C70: 2074 | E70: =IF(E69>$J$11,MAX($J$7,E69*(1+$J$10)),MAX($J$7,scenarios!E69+scenarios!F69)) -> -2.332291113 | F70: -0.2019866565 | H70: 0 | J70: -0.2209586734 | L70: =IF(L69>'goal seek'!$F$28,MAX($R$7,L69*(1+N70)),MAX($R$7,L69+M69)) -> -3.5 | M70: 0 | N70: -5 | P70: 0 | R70: -0.3315861184 | T70: =IF(T69>'goal seek'!$F$28,MAX($Z$7,T69*(1+V70)),MAX($Z$7,T69+U69)) -> -3.5 | U70: 0 | V70: -0.4869058925 | X70: 0 | Z70: -0.3315861184 | AB70: =IF(AB69>'goal seek'!$F$28,MAX($AH$7,AB69*(1+AD70)),MAX($AH$7,AB69+AC69)) -> -3.5 | AC70: 0 | AD70: -2.426729317 | AF70: 0 | AH70: -0.3315861184 | AJ70: =IF(AJ69>'goal seek'!$F$28,MAX($AH$7,AJ69*(1+AL70)),MAX($AH$7,AJ69+AK69)) -> -3.5 | AK70: 0 | AL70: -0.2245598741 | AN70: 0 | AP70: -0.3315861184 | AR70: -3.5 | AS70: 0 | AV70: -0.3315861184 | AX70: 0.0003355438933 | AY70: -9.539428366e-05 | AZ70: -0.2213641973 | BB70: 3.178905633e-05 | BD70: 2074 | BE70: 508.4019702 | BF70: 511.2278779 | BG70: 510.9610002 | BH70: 511.1119294 | BI70: 511.0187227 | BJ70: 511.2317616 | BK70: 88.40197018 | BL70: 91.22787791 | BM70: 90.9610002 | BN70: 91.11192937 | BO70: 91.01872266 | BP70: 91.23176163
A71: 57 | B71: 10577155.89 | C71: 2075 | E71: =IF(E70>$J$11,MAX($J$7,E70*(1+$J$10)),MAX($J$7,scenarios!E70+scenarios!F70)) -> -2.534277769 | F71: -0.2019866565 | H71: 0 | J71: -0.2395991697 | L71: =IF(L70>'goal seek'!$F$28,MAX($R$7,L70*(1+N71)),MAX($R$7,L70+M70)) -> -3.5 | M71: 0 | N71: -5 | P71: 0 | R71: -0.3309018073 | T71: =IF(T70>'goal seek'!$F$28,MAX($Z$7,T70*(1+V71)),MAX($Z$7,T70+U70)) -> -3.5 | U71: 0 | V71: -0.4957374831 | X71: 0 | Z71: -0.3309018073 | AB71: =IF(AB70>'goal seek'!$F$28,MAX($AH$7,AB70*(1+AD71)),MAX($AH$7,AB70+AC70)) -> -3.5 | AC71: 0 | AD71: -2.517066593 | AF71: 0 | AH71: -0.3309018073 | AJ71: =IF(AJ70>'goal seek'!$F$28,MAX($AH$7,AJ70*(1+AL71)),MAX($AH$7,AJ70+AK70)) -> -3.5 | AK71: 0 | AL71: -0.2265558229 | AN71: 0 | AP71: -0.3309018073 | AR71: -3.5 | AS71: 0 | AV71: -0.3309018073 | AX71: 0.0002611886318 | AY71: -7.435526152e-05 | AZ71: -0.2215962293 | BB71: 2.469365438e-05 | BD71: 2075 | BE71: 505.8676924 | BF71: 507.7278779 | BG71: 507.4610002 | BH71: 507.6119294 | BI71: 507.5187227 | BJ71: 507.7317616 | BK71: 85.86769241 | BL71: 87.72787791 | BM71: 87.4610002 | BN71: 87.61192937 | BO71: 87.51872266 | BP71: 87.73176163
A72: 58 | B72: 10598131.96 | C72: 2076 | E72: =IF(E71>$J$11,MAX($J$7,E71*(1+$J$10)),MAX($J$7,scenarios!E71+scenarios!F71)) -> -2.736264426 | F72: -0.2019866565 | H72: 0 | J72: -0.2581836532 | L72: =IF(L71>'goal seek'!$F$28,MAX($R$7,L71*(1+N72)),MAX($R$7,L71+M71)) -> -3.5 | M72: 0 | N72: -5 | P72: 0 | R72: -0.3302468788 | T72: =IF(T71>'goal seek'!$F$28,MAX($Z$7,T71*(1+V72)),MAX($Z$7,T71+U71)) -> -3.5 | U72: 0 | V72: -0.5045690737 | X72: 0 | Z72: -0.3302468788 | AB72: =IF(AB71>'goal seek'!$F$28,MAX($AH$7,AB71*(1+AD72)),MAX($AH$7,AB71+AC71)) -> -3.5 | AC72: 0 | AD72: -2.609061433 | AF72: 0 | AH72: -0.3302468788 | AJ72: =IF(AJ71>'goal seek'!$F$28,MAX($AH$7,AJ71*(1+AL72)),MAX($AH$7,AJ71+AK71)) -> -3.5 | AK72: 0 | AL72: -0.2285335427 | AN72: 0 | AP72: -0.3302468788 | AR72: -3.5 | AS72: 0 | AV72: -0.3302468788 | AX72: 0.0002032516686 | AY72: -5.793696318e-05 | AZ72: -0.2218203862 | BB72: 1.917806548e-05 | BD72: 2076 | BE72: 503.131428 | BF72: 504.2278779 | BG72: 503.9610002 | BH72: 504.1119294 | BI72: 504.0187227 | BJ72: 504.2317616 | BK72: 83.13142798 | BL72: 84.22787791 | BM72: 83.9610002 | BN72: 84.11192937 | BO72: 84.01872266 | BP72: 84.23176163
A73: 59 | B73: 10618268.33 | C73: 2077 | E73: =IF(E72>$J$11,MAX($J$7,E72*(1+$J$10)),MAX($J$7,scenarios!E72+scenarios!F72)) -> -2.938251082 | F73: -0.2019866565 | H73: 0 | J73: -0.2767165973 | L73: =IF(L72>'goal seek'!$F$28,MAX($R$7,L72*(1+N73)),MAX($R$7,L72+M72)) -> -3.5 | M73: 0 | N73: -5 | P73: 0 | R73: -0.329620602 | T73: =IF(T72>'goal seek'!$F$28,MAX($Z$7,T72*(1+V73)),MAX($Z$7,T72+U72)) -> -3.5 | U73: 0 | V73: -0.5134006643 | X73: 0 | Z73: -0.329620602 | AB73: =IF(AB72>'goal seek'!$F$28,MAX($AH$7,AB72*(1+AD73)),MAX($AH$7,AB72+AC72)) -> -3.5 | AC73: 0 | AD73: -2.702713838 | AF73: 0 | AH73: -0.329620602 | AJ73: =IF(AJ72>'goal seek'!$F$28,MAX($AH$7,AJ72*(1+AL73)),MAX($AH$7,AJ72+AK72)) -> -3.5 | AK73: 0 | AL73: -0.230493524 | AN73: 0 | AP73: -0.329620602 | AR73: -3.5 | AS73: 0 | AV73: -0.329620602 | AX73: 0.0001581222652 | AY73: -4.512940342e-05 | AZ73: -0.2220370623 | BB73: 1.489153036e-05 | BD73: 2077 | BE73: 500.1931769 | BF73: 500.7278779 | BG73: 500.4610002 | BH73: 500.6119294 | BI73: 500.5187227 | BJ73: 500.7317616 | BK73: 80.1931769 | BL73: 80.72787791 | BM73: 80.4610002 | BN73: 80.61192937 | BO73: 80.51872266 | BP73: 80.73176163
A74: 60 | B74: 10637573.9 | C74: 2078 | E74: =IF(E73>$J$11,MAX($J$7,E73*(1+$J$10)),MAX($J$7,scenarios!E73+scenarios!F73)) -> -3.140237739 | F74: -0.2019866565 | H74: 0 | J74: -0.2952024369 | L74: =IF(L73>'goal seek'!$F$28,MAX($R$7,L73*(1+N74)),MAX($R$7,L73+M73)) -> -3.5 | M74: 0 | N74: -5 | P74: 0 | R74: -0.329022391 | T74: =IF(T73>'goal seek'!$F$28,MAX($Z$7,T73*(1+V74)),MAX($Z$7,T73+U73)) -> -3.5 | U74: 0 | V74: -0.5222322549 | X74: 0 | Z74: -0.329022391 | AB74: =IF(AB73>'goal seek'!$F$28,MAX($AH$7,AB73*(1+AD74)),MAX($AH$7,AB73+AC73)) -> -3.5 | AC74: 0 | AD74: -2.798023808 | AF74: 0 | AH74: -0.329022391 | AJ74: =IF(AJ73>'goal seek'!$F$28,MAX($AH$7,AJ73*(1+AL74)),MAX($AH$7,AJ73+AK73)) -> -3.5 | AK74: 0 | AL74: -0.2324362358 | AN74: 0 | AP74: -0.329022391 | AR74: -3.5 | AS74: 0 | AV74: -0.329022391 | AX74: 0.0001229801253 | AY74: -3.514213994e-05 | AZ74: -0.222246626 | BB74: 1.156091853e-05 | BD74: 2078 | BE74: 497.0529392 | BF74: 497.2278779 | BG74: 496.9610002 | BH74: 497.1119294 | BI74: 497.0187227 | BJ74: 497.2317616 | BK74: 77.05293916 | BL74: 77.22787791 | BM74: 76.9610002 | BN74: 77.11192937 | BO74: 77.01872266 | BP74: 77.23176163
A75: 61 | B75: 10656054.44 | C75: 2079 | E75: =IF(E74>$J$11,MAX($J$7,E74*(1+$J$10)),MAX($J$7,scenarios!E74+scenarios!F74)) -> -3.342224395 | F75: -0.2019866565 | H75: 0 | J75: -0.3136455818 | L75: =IF(L74>'goal seek'!$F$28,MAX($R$7,L74*(1+N75)),MAX($R$7,L74+M74)) -> -3.5 | M75: 0 | N75: -5 | P75: 0 | R75: -0.3284517753 | T75: =IF(T74>'goal seek'!$F$28,MAX($Z$7,T74*(1+V75)),MAX($Z$7,T74+U74)) -> -3.5 | U75: 0 | V75: -0.5310638456 | X75: 0 | Z75: -0.3284517753 | AB75: =IF(AB74>'goal seek'!$F$28,MAX($AH$7,AB74*(1+AD75)),MAX($AH$7,AB74+AC74)) -> -3.5 | AC75: 0 | AD75: -2.894991342 | AF75: 0 | AH75: -0.3284517753 | AJ75: =IF(AJ74>'goal seek'!$F$28,MAX($AH$7,AJ74*(1+AL75)),MAX($AH$7,AJ74+AK74)) -> -3.5 | AK75: 0 | AL75: -0.2343621266 | AN75: 0 | AP75: -0.3284517753 | AR75: -3.5 | AS75: 0 | AV75: -0.3284517753 | AX75: 9.562326752e-05 | AY75: -2.735685776e-05 | AZ75: -0.2224494218 | BB75: 8.973609137e-06 | BD75: 2079 | BE75: 493.7107148 | BF75: 493.7278779 | BG75: 493.4610002 | BH75: 493.6119294 | BI75: 493.5187227 | BJ75: 493.7317616 | BK75: 73.71071477 | BL75: 73.72787791 | BM75: 73.4610002 | BN75: 73.61192937 | BO75: 73.51872266 | BP75: 73.73176163
A76: 62 | B76: 10673719.47 | C76: 2080 | E76: =IF(E75>$J$11,MAX($J$7,E75*(1+$J$10)),MAX($J$7,scenarios!E75+scenarios!F75)) -> -3.5 | F76: -0.1577756047 | H76: 0.04421105185 | J76: -0.3279081869 | L76: =IF(L75>'goal seek'!$F$28,MAX($R$7,L75*(1+N76)),MAX($R$7,L75+M75)) -> -3.5 | M76: 0 | N76: -5 | P76: 0 | R76: -0.3279081869 | T76: =IF(T75>'goal seek'!$F$28,MAX($Z$7,T75*(1+V76)),MAX($Z$7,T75+U75)) -> -3.5 | U76: 0 | V76: -0.5398954362 | X76: 0 | Z76: -0.3279081869 | AB76: =IF(AB75>'goal seek'!$F$28,MAX($AH$7,AB75*(1+AD76)),MAX($AH$7,AB75+AC75)) -> -3.5 | AC76: 0 | AD76: -2.993616441 | AF76: 0 | AH76: -0.3279081869 | AJ76: =IF(AJ75>'goal seek'!$F$28,MAX($AH$7,AJ75*(1+AL76)),MAX($AH$7,AJ75+AK75)) -> -3.5 | AK76: 0 | AL76: -0.2362716259 | AN76: 0 | AP76: -0.3279081869 | AR76: -3.5 | AS76: 0 | AV76: -0.3279081869 | AX76: 7.433315127e-05 | AY76: -2.129011624e-05 | AZ76: -0.2226457723 | BB76: 6.964128245e-06 | BD76: 2080 | BE76: 490.2107148 | BF76: 490.2278779 | BG76: 489.9610002 | BH76: 490.1119294 | BI76: 490.0187227 | BJ76: 490.2317616 | BK76: 70.21071477 | BL76: 70.22787791 | BM76: 69.9610002 | BN76: 70.11192937 | BO76: 70.01872266 | BP76: 70.23176163
A77: 63 | B77: 10690576.97 | C77: 2081 | E77: =IF(E76>$J$11,MAX($J$7,E76*(1+$J$10)),MAX($J$7,scenarios!E76+scenarios!F76)) -> -3.5 | F77: 0 | H77: 0.1577756047 | J77: -0.3273911231 | L77: =IF(L76>'goal seek'!$F$28,MAX($R$7,L76*(1+N77)),MAX($R$7,L76+M76)) -> -3.5 | M77: 0 | N77: -5 | P77: 0 | R77: -0.3273911231 | T77: =IF(T76>'goal seek'!$F$28,MAX($Z$7,T76*(1+V77)),MAX($Z$7,T76+U76)) -> -3.5 | U77: 0 | V77: -0.5487270268 | X77: 0 | Z77: -0.3273911231 | AB77: =IF(AB76>'goal seek'!$F$28,MAX($AH$7,AB76*(1+AD77)),MAX($AH$7,AB76+AC76)) -> -3.5 | AC77: 0 | AD77: -3.093899105 | AF77: 0 | AH77: -0.3273911231 | AJ77: =IF(AJ76>'goal seek'!$F$28,MAX($AH$7,AJ76*(1+AL77)),MAX($AH$7,AJ76+AK76)) -> -3.5 | AK77: 0 | AL77: -0.2381651453 | AN77: 0 | AP77: -0.3273911231 | AR77: -3.5 | AS77: 0 | AV77: -0.3273911231 | AX77: 5.776905066e-05 | AY77: -1.656410061e-05 | AZ77: -0.22283598 | BB77: 5.403735537e-06 | BD77: 2081 | BE77: 486.7107148 | BF77: 486.7278779 | BG77: 486.4610002 | BH77: 486.6119294 | BI77: 486.5187227 | BJ77: 486.7317616 | BK77: 66.71071477 | BL77: 66.72787791 | BM77: 66.4610002 | BN77: 66.61192937 | BO77: 66.51872266 | BP77: 66.73176163
A78: 64 | B78: 10706644.43 | C78: 2082 | E78: =IF(E77>$J$11,MAX($J$7,E77*(1+$J$10)),MAX($J$7,scenarios!E77+scenarios!F77)) -> -3.5 | F78: 0 | H78: 0 | J78: -0.3268998074 | L78: =IF(L77>'goal seek'!$F$28,MAX($R$7,L77*(1+N78)),MAX($R$7,L77+M77)) -> -3.5 | M78: 0 | N78: -5 | P78: 0 | R78: -0.3268998074 | T78: =IF(T77>'goal seek'!$F$28,MAX($Z$7,T77*(1+V78)),MAX($Z$7,T77+U77)) -> -3.5 | U78: 0 | V78: -0.5575586174 | X78: 0 | Z78: -0.3268998074 | AB78: =IF(AB77>'goal seek'!$F$28,MAX($AH$7,AB77*(1+AD78)),MAX($AH$7,AB77+AC77)) -> -3.5 | AC78: 0 | AD78: -3.195839333 | AF78: 0 | AH78: -0.3268998074 | AJ78: =IF(AJ77>'goal seek'!$F$28,MAX($AH$7,AJ77*(1+AL78)),MAX($AH$7,AJ77+AK77)) -> -3.5 | AK78: 0 | AL78: -0.2400430795 | AN78: 0 | AP78: -0.3268998074 | AR78: -3.5 | AS78: 0 | AV78: -0.3268998074 | AX78: 4.4885378e-05 | AY78: -1.288367267e-05 | AZ78: -0.2230203287 | BB78: 4.192291834e-06 | BD78: 2082 | BE78: 483.2107148 | BF78: 483.2278779 | BG78: 482.9610002 | BH78: 483.1119294 | BI78: 483.0187227 | BJ78: 483.2317616 | BK78: 63.21071477 | BL78: 63.22787791 | BM78: 62.9610002 | BN78: 63.11192937 | BO78: 63.01872266 | BP78: 63.23176163
A79: 65 | B79: 10721951.21 | C79: 2083 | E79: =IF(E78>$J$11,MAX($J$7,E78*(1+$J$10)),MAX($J$7,scenarios!E78+scenarios!F78)) -> -3.5 | F79: 0 | H79: 0 | J79: =E79*1000000/B79 -> -0.3264331214 | L79: =IF(L78>'goal seek'!$F$28,MAX($R$7,L78*(1+N79)),MAX($R$7,L78+M78)) -> -3.5 | M79: 0 | N79: -5 | P79: 0 | R79: =L79*1000000/$B79 -> -0.3264331214 | T79: =IF(T78>'goal seek'!$F$28,MAX($Z$7,T78*(1+V79)),MAX($Z$7,T78+U78)) -> -3.5 | U79: 0 | V79: -0.566390208 | X79: 0 | Z79: =T79*1000000/$B79 -> -0.3264331214 | AB79: =IF(AB78>'goal seek'!$F$28,MAX($AH$7,AB78*(1+AD79)),MAX($AH$7,AB78+AC78)) -> -3.5 | AC79: 0 | AD79: -3.299437126 | AF79: 0 | AH79: =AB79*1000000/$B79 -> -0.3264331214 | AJ79: =IF(AJ78>'goal seek'!$F$28,MAX($AH$7,AJ78*(1+AL79)),MAX($AH$7,AJ78+AK78)) -> -3.5 | AK79: 0 | AL79: -0.2419058069 | AN79: 0 | AP79: =AJ79*1000000/$B79 -> -0.3264331214 | AR79: -3.5 | AS79: 0 | AV79: =AR79*1000000/$B79 -> -0.3264331214 | AX79: 3.48670027e-05 | AY79: -1.00183753e-05 | AZ79: -0.223199085 | BB79: =AX79*1000000/$B79 -> 3.251927006e-06 | BD79: 2083 | BE79: 479.7107148 | BF79: 479.7278779 | BG79: 479.4610002 | BH79: 479.6119294 | BI79: 479.5187227 | BJ79: 479.7317616 | BK79: =IF(BE79-$BE$7>0,BE79-$BE$7,"") -> 59.71071477 | BL79: =IF(BF79-$BE$7>0,BF79-$BE$7,"") -> 59.72787791 | BM79: =IF(BG79-$BE$7>0,BG79-$BE$7,"") -> 59.4610002 | BN79: =IF(BH79-$BE$7>0,BH79-$BE$7,"") -> 59.61192937 | BO79: =IF(BI79-$BE$7>0,BI79-$BE$7,"") -> 59.51872266 | BP79: 59.73176163
A80: 66 | B80: 10736532.84 | C80: 2084 | E80: =IF(E79>$J$11,MAX($J$7,E79*(1+$J$10)),MAX($J$7,scenarios!E79+scenarios!F79)) -> -3.5 | F80: =E80-E79 -> 0 | H80: 0 | J80: -0.3259897819 | L80: =IF(L79>'goal seek'!$F$28,MAX($R$7,L79*(1+N80)),MAX($R$7,L79+M79)) -> -3.5 | M80: =L80-L79 -> 0 | N80: -5 | P80: 0 | R80: -0.3259897819 | T80: =IF(T79>'goal seek'!$F$28,MAX($Z$7,T79*(1+V80)),MAX($Z$7,T79+U79)) -> -3.5 | U80: =T80-T79 -> 0 | V80: -0.5752217986 | X80: 0 | Z80: -0.3259897819 | AB80: =IF(AB79>'goal seek'!$F$28,MAX($AH$7,AB79*(1+AD80)),MAX($AH$7,AB79+AC79)) -> -3.5 | AC80: 0 | AD80: =$AH$10*(C80-2020)^2+$AH$9 -> -3.404692484 | AF80: 0 | AH80: -0.3259897819 | AJ80: =IF(AJ79>'goal seek'!$F$28,MAX($AH$7,AJ79*(1+AL80)),MAX($AH$7,AJ79+AK79)) -> -3.5 | AK80: =AJ80-AJ79 -> 0 | AL80: -0.2437536911 | AN80: 0 | AP80: -0.3259897819 | AR80: =MAX(AR79+$AV$10,$AV$7) -> -3.5 | AS80: 0 | AV80: -0.3259897819 | AX80: =-AX$15*EXP(-BB$11*($C80-$C$15))/BB$11^2*((BB$10*BB$11+BB$11^2)*($C80-$C$15)+2*BB$11+BB$10) +AX$15*EXP(-BB$11*($C79-$C$15))/BB$11^2*((BB$10*BB$11+BB$11^2)*($C79-$C$15)+2*BB$11+BB$10) -> 2.707867315e-05 | AY80: =AX80-AX79 -> -7.788329549e-06 | AZ80: =IF(AX80>0,AX80/AX79-1,"") -> -0.2233724997 | BB80: 2.52210593e-06 | BD80: =C80 -> 2084 | BE80: =BE79+E80 -> 476.2107148 | BF80: =BF79+L80 -> 476.2278779 | BG80: =BG79+T80 -> 475.9610002 | BH80: =BH79+AB80 -> 476.1119294 | BI80: =BI79+AJ80 -> 476.0187227 | BJ80: =BJ79+AR80 -> 476.2317616 | BK80: 56.21071477 | BL80: 56.22787791 | BM80: 55.9610002 | BN80: 56.11192937 | BO80: 56.01872266 | BP80: 56.23176163
A81: =A80+1 -> 67 | B81: 10750416.74 | C81: =C80+1 -> 2085 | E81: =IF(E80>$J$11,MAX($J$7,E80*(1+$J$10)),MAX($J$7,scenarios!E80+scenarios!F80)) -> -3.5 | F81: 0 | G81: =IF(E81>0,E81/E80-1,"") ->  | H81: 0 | J81: -0.3255687742 | L81: =IF(L80>'goal seek'!$F$28,MAX($R$7,L80*(1+N81)),MAX($R$7,L80+M80)) -> -3.5 | M81: 0 | N81: =MAX(-5,N80*(1+$R$10)) -> -5 | O81: =IF(L81>0,L81/L80-1,"") ->  | P81: 0 | R81: -0.3255687742 | T81: =IF(T80>'goal seek'!$F$28,MAX($Z$7,T80*(1+V81)),MAX($Z$7,T80+U80)) -> -3.5 | U81: 0 | V81: =V80+$Z$10 -> -0.5840533892 | W81: =IF(T81>0,T81/T80-1,"") ->  | X81: 0 | Z81: -0.3255687742 | AB81: =IF(AB80>'goal seek'!$F$28,MAX($AH$7,AB80*(1+AD81)),MAX($AH$7,AB80+AC80)) -> -3.5 | AC81: 0 | AD81: -3.511605406 | AE81: =IF(AB81>0,AB81/AB80-1,"") ->  | AF81: 0 | AH81: -0.3255687742 | AJ81: =IF(AJ80>'goal seek'!$F$28,MAX($AH$7,AJ80*(1+AL81)),MAX($AH$7,AJ80+AK80)) -> -3.5 | AK81: 0 | AL81: =$AP$10*SQRT(C81-$AP$4-2020)+$AP$9 -> -0.2455870815 | AM81: =IF(AJ81>0,AJ81/AJ80-1,"") ->  | AN81: 0 | AP81: -0.3255687742 | AR81: -3.5 | AS81: =AR81-AR80 -> 0 | AT81: =IF(AR81>0,AR81/AR80-1,"") ->  | AV81: -0.3255687742 | AX81: 2.102548466e-05 | AY81: -6.05318849e-06 | AZ81: -0.2235408086 | BB81: 1.955783219e-06 | BD81: 2085 | BE81: 472.7107148 | BF81: 472.7278779 | BG81: 472.4610002 | BH81: 472.6119294 | BI81: 472.5187227 | BJ81: 472.7317616 | BK81: 52.71071477 | BL81: 52.72787791 | BM81: 52.4610002 | BN81: 52.61192937 | BO81: 52.51872266 | BP81: 52.73176163
A82: 68 | B82: 10763615.21 | C82: 2086 | E82: =IF(E81>$J$11,MAX($J$7,E81*(1+$J$10)),MAX($J$7,scenarios!E81+scenarios!F81)) -> -3.5 | F82: 0 | H82: =F82-F81 -> 0 | J82: -0.3251695578 | L82: =IF(L81>'goal seek'!$F$28,MAX($R$7,L81*(1+N82)),MAX($R$7,L81+M81)) -> -3.5 | M82: 0 | N82: -5 | P82: =M82-M81 -> 0 | R82: -0.3251695578 | T82: =IF(T81>'goal seek'!$F$28,MAX($Z$7,T81*(1+V82)),MAX($Z$7,T81+U81)) -> -3.5 | U82: 0 | V82: -0.5928849798 | X82: =U82-U81 -> 0 | Z82: -0.3251695578 | AB82: =IF(AB81>'goal seek'!$F$28,MAX($AH$7,AB81*(1+AD82)),MAX($AH$7,AB81+AC81)) -> -3.5 | AC82: 0 | AD82: -3.620175894 | AF82: =AC82-AC81 -> 0 | AH82: -0.3251695578 | AJ82: =IF(AJ81>'goal seek'!$F$28,MAX($AH$7,AJ81*(1+AL82)),MAX($AH$7,AJ81+AK81)) -> -3.5 | AK82: 0 | AL82: -0.2474063138 | AN82: =AK82-AK81 -> 0 | AP82: -0.3251695578 | AR82: -3.5 | AS82: 0 | AV82: -0.3251695578 | AX82: 1.632199472e-05 | AY82: -4.703489936e-06 | AZ82: -0.2237042339 | BB82: 1.516404516e-06 | BD82: 2086 | BE82: 469.2107148 | BF82: 469.2278779 | BG82: 468.9610002 | BH82: 469.1119294 | BI82: 469.0187227 | BJ82: 469.2317616 | BK82: 49.21071477 | BL82: 49.22787791 | BM82: 48.9610002 | BN82: 49.11192937 | BO82: 49.01872266 | BP82: 49.23176163
A83: 69 | B83: 10776129.37 | C83: 2087 | E83: =IF(E82>$J$11,MAX($J$7,E82*(1+$J$10)),MAX($J$7,scenarios!E82+scenarios!F82)) -> -3.5 | F83: 0 | H83: 0 | J83: -0.3247919433 | L83: =IF(L82>'goal seek'!$F$28,MAX($R$7,L82*(1+N83)),MAX($R$7,L82+M82)) -> -3.5 | M83: 0 | N83: -5 | P83: 0 | R83: -0.3247919433 | T83: =IF(T82>'goal seek'!$F$28,MAX($Z$7,T82*(1+V83)),MAX($Z$7,T82+U82)) -> -3.5 | U83: 0 | V83: -0.6017165704 | X83: 0 | Z83: -0.3247919433 | AB83: =IF(AB82>'goal seek'!$F$28,MAX($AH$7,AB82*(1+AD83)),MAX($AH$7,AB82+AC82)) -> -3.5 | AC83: 0 | AD83: -3.730403945 | AF83: 0 | AH83: -0.3247919433 | AJ83: =IF(AJ82>'goal seek'!$F$28,MAX($AH$7,AJ82*(1+AL83)),MAX($AH$7,AJ82+AK82)) -> -3.5 | AK83: 0 | AL83: -0.249211711 | AN83: 0 | AP83: -0.3247919433 | AR83: -3.5 | AS83: 0 | AV83: -0.3247919433 | AX83: 1.266810426e-05 | AY83: -3.653890461e-06 | AZ83: -0.2238629851 | BB83: 1.175570914e-06 | BD83: 2087 | BE83: 465.7107148 | BF83: 465.7278779 | BG83: 465.4610002 | BH83: 465.6119294 | BI83: 465.5187227 | BJ83: 465.7317616 | BK83: 45.71071477 | BL83: 45.72787791 | BM83: 45.4610002 | BN83: 45.61192937 | BO83: 45.51872266 | BP83: 45.73176163
A84: 70 | B84: 10787962.32 | C84: 2088 | E84: =IF(E83>$J$11,MAX($J$7,E83*(1+$J$10)),MAX($J$7,scenarios!E83+scenarios!F83)) -> -3.5 | F84: 0 | H84: 0 | J84: -0.3244356901 | L84: =IF(L83>'goal seek'!$F$28,MAX($R$7,L83*(1+N84)),MAX($R$7,L83+M83)) -> -3.5 | M84: 0 | N84: -5 | P84: 0 | R84: -0.3244356901 | T84: =IF(T83>'goal seek'!$F$28,MAX($Z$7,T83*(1+V84)),MAX($Z$7,T83+U83)) -> -3.5 | U84: 0 | V84: -0.610548161 | X84: 0 | Z84: -0.3244356901 | AB84: =IF(AB83>'goal seek'!$F$28,MAX($AH$7,AB83*(1+AD84)),MAX($AH$7,AB83+AC83)) -> -3.5 | AC84: 0 | AD84: -3.842289562 | AF84: 0 | AH84: -0.3244356901 | AJ84: =IF(AJ83>'goal seek'!$F$28,MAX($AH$7,AJ83*(1+AL84)),MAX($AH$7,AJ83+AK83)) -> -3.5 | AK84: 0 | AL84: -0.251003584 | AN84: 0 | AP84: -0.3244356901 | AR84: -3.5 | AS84: 0 | AV84: -0.3244356901 | AX84: 9.830230254e-06 | AY84: -2.837874005e-06 | AZ84: -0.22401726 | BB84: 9.112221533e-07 | BD84: 2088 | BE84: 462.2107148 | BF84: 462.2278779 | BG84: 461.9610002 | BH84: 462.1119294 | BI84: 462.0187227 | BJ84: 462.2317616 | BK84: 42.21071477 | BL84: 42.22787791 | BM84: 41.9610002 | BN84: 42.11192937 | BO84: 42.01872266 | BP84: 42.23176163
A85: 71 | B85: 10799112.05 | C85: 2089 | E85: =IF(E84>$J$11,MAX($J$7,E84*(1+$J$10)),MAX($J$7,scenarios!E84+scenarios!F84)) -> -3.5 | F85: 0 | H85: 0 | J85: -0.3241007209 | L85: =IF(L84>'goal seek'!$F$28,MAX($R$7,L84*(1+N85)),MAX($R$7,L84+M84)) -> -3.5 | M85: 0 | N85: -5 | P85: 0 | R85: -0.3241007209 | T85: =IF(T84>'goal seek'!$F$28,MAX($Z$7,T84*(1+V85)),MAX($Z$7,T84+U84)) -> -3.5 | U85: 0 | V85: -0.6193797516 | X85: 0 | Z85: -0.3241007209 | AB85: =IF(AB84>'goal seek'!$F$28,MAX($AH$7,AB84*(1+AD85)),MAX($AH$7,AB84+AC84)) -> -3.5 | AC85: 0 | AD85: -3.955832743 | AF85: 0 | AH85: -0.3241007209 | AJ85: =IF(AJ84>'goal seek'!$F$28,MAX($AH$7,AJ84*(1+AL85)),MAX($AH$7,AJ84+AK84)) -> -3.5 | AK85: 0 | AL85: -0.2527822324 | AN85: 0 | AP85: -0.3241007209 | AR85: -3.5 | AS85: 0 | AV85: -0.3241007209 | AX85: 7.626614619e-06 | AY85: -2.203615635e-06 | AZ85: -0.2241672452 | BB85: 7.062260846e-07 | BD85: 2089 | BE85: 458.7107148 | BF85: 458.7278779 | BG85: 458.4610002 | BH85: 458.6119294 | BI85: 458.5187227 | BJ85: 458.7317616 | BK85: 38.71071477 | BL85: 38.72787791 | BM85: 38.4610002 | BN85: 38.61192937 | BO85: 38.51872266 | BP85: 38.73176163
A86: 72 | B86: 10809575.8 | C86: 2090 | E86: =IF(E85>$J$11,MAX($J$7,E85*(1+$J$10)),MAX($J$7,scenarios!E85+scenarios!F85)) -> -3.5 | F86: 0 | H86: 0 | J86: -0.3237869889 | L86: =IF(L85>'goal seek'!$F$28,MAX($R$7,L85*(1+N86)),MAX($R$7,L85+M85)) -> -3.5 | M86: 0 | N86: -5 | P86: 0 | R86: -0.3237869889 | T86: =IF(T85>'goal seek'!$F$28,MAX($Z$7,T85*(1+V86)),MAX($Z$7,T85+U85)) -> -3.5 | U86: 0 | V86: -0.6282113422 | X86: 0 | Z86: -0.3237869889 | AB86: =IF(AB85>'goal seek'!$F$28,MAX($AH$7,AB85*(1+AD86)),MAX($AH$7,AB85+AC85)) -> -3.5 | AC86: 0 | AD86: -4.071033489 | AF86: 0 | AH86: -0.3237869889 | AJ86: =IF(AJ85>'goal seek'!$F$28,MAX($AH$7,AJ85*(1+AL86)),MAX($AH$7,AJ85+AK85)) -> -3.5 | AK86: 0 | AL86: -0.2545479446 | AN86: 0 | AP86: -0.3237869889 | AR86: -3.5 | AS86: 0 | AV86: -0.3237869889 | AX86: 5.915864921e-06 | AY86: -1.710749699e-06 | AZ86: -0.2243131172 | BB86: 5.472800255e-07 | BD86: 2090 | BE86: 455.2107148 | BF86: 455.2278779 | BG86: 454.9610002 | BH86: 455.1119294 | BI86: 455.0187227 | BJ86: 455.2317616 | BK86: 35.21071477 | BL86: 35.22787791 | BM86: 34.9610002 | BN86: 35.11192937 | BO86: 35.01872266 | BP86: 35.23176163
A87: 73 | B87: 10819350.48 | C87: 2091 | E87: =IF(E86>$J$11,MAX($J$7,E86*(1+$J$10)),MAX($J$7,scenarios!E86+scenarios!F86)) -> -3.5 | F87: 0 | H87: 0 | J87: -0.3234944653 | L87: =IF(L86>'goal seek'!$F$28,MAX($R$7,L86*(1+N87)),MAX($R$7,L86+M86)) -> -3.5 | M87: 0 | N87: -5 | P87: 0 | R87: -0.3234944653 | T87: =IF(T86>'goal seek'!$F$28,MAX($Z$7,T86*(1+V87)),MAX($Z$7,T86+U86)) -> -3.5 | U87: =T87-T86 -> 0 | V87: -0.6370429328 | X87: 0 | Z87: -0.3234944653 | AB87: =IF(AB86>'goal seek'!$F$28,MAX($AH$7,AB86*(1+AD87)),MAX($AH$7,AB86+AC86)) -> -3.5 | AC87: 0 | AD87: -4.1878918 | AF87: 0 | AH87: -0.3234944653 | AJ87: =IF(AJ86>'goal seek'!$F$28,MAX($AH$7,AJ86*(1+AL87)),MAX($AH$7,AJ86+AK86)) -> -3.5 | AK87: 0 | AL87: -0.2563009989 | AN87: 0 | AP87: -0.3234944653 | AR87: -3.5 | AS87: 0 | AV87: -0.3234944653 | AX87: 4.588019206e-06 | AY87: -1.327845714e-06 | AZ87: -0.2244550429 | BB87: 4.240568057e-07 | BD87: 2091 | BE87: 451.7107148 | BF87: 451.7278779 | BG87: 451.4610002 | BH87: 451.6119294 | BI87: 451.5187227 | BJ87: 451.7317616 | BK87: 31.71071477 | BL87: 31.72787791 | BM87: 31.4610002 | BN87: 31.61192937 | BO87: 31.51872266 | BP87: 31.73176163
A88: 74 | B88: 10828432.71 | C88: 2092 | E88: =IF(E87>$J$11,MAX($J$7,E87*(1+$J$10)),MAX($J$7,scenarios!E87+scenarios!F87)) -> -3.5 | F88: 0 | H88: 0 | J88: -0.323223138 | L88: =IF(L87>'goal seek'!$F$28,MAX($R$7,L87*(1+N88)),MAX($R$7,L87+M87)) -> -3.5 | M88: 0 | N88: -5 | P88: 0 | R88: -0.323223138 | T88: =IF(T87>'goal seek'!$F$28,MAX($Z$7,T87*(1+V88)),MAX($Z$7,T87+U87)) -> -3.5 | U88: 0 | V88: -0.6458745234 | X88: 0 | Z88: -0.323223138 | AB88: =IF(AB87>'goal seek'!$F$28,MAX($AH$7,AB87*(1+AD88)),MAX($AH$7,AB87+AC87)) -> -3.5 | AC88: 0 | AD88: -4.306407675 | AF88: 0 | AH88: -0.323223138 | AJ88: =IF(AJ87>'goal seek'!$F$28,MAX($AH$7,AJ87*(1+AL88)),MAX($AH$7,AJ87+AK87)) -> -3.5 | AK88: 0 | AL88: -0.2580416637 | AN88: 0 | AP88: -0.323223138 | AR88: -3.5 | AS88: 0 | AV88: -0.323223138 | AX88: 3.557581382e-06 | AY88: -1.030437825e-06 | AZ88: -0.2245931803 | BB88: 3.28540748e-07 | BD88: 2092 | BE88: 448.2107148 | BF88: 448.2278779 | BG88: 447.9610002 | BH88: 448.1119294 | BI88: 448.0187227 | BJ88: 448.2317616 | BK88: 28.21071477 | BL88: 28.22787791 | BM88: 27.9610002 | BN88: 28.11192937 | BO88: 28.01872266 | BP88: 28.23176163
A89: 75 | B89: 10836817.18 | C89: 2093 | E89: =IF(E88>$J$11,MAX($J$7,E88*(1+$J$10)),MAX($J$7,scenarios!E88+scenarios!F88)) -> -3.5 | F89: 0 | H89: 0 | J89: -0.3229730597 | L89: =IF(L88>'goal seek'!$F$28,MAX($R$7,L88*(1+N89)),MAX($R$7,L88+M88)) -> -3.5 | M89: 0 | N89: -5 | P89: 0 | R89: -0.3229730597 | T89: =IF(T88>'goal seek'!$F$28,MAX($Z$7,T88*(1+V89)),MAX($Z$7,T88+U88)) -> -3.5 | U89: 0 | V89: -0.654706114 | X89: 0 | Z89: -0.3229730597 | AB89: =IF(AB88>'goal seek'!$F$28,MAX($AH$7,AB88*(1+AD89)),MAX($AH$7,AB88+AC88)) -> -3.5 | AC89: 0 | AD89: -4.426581115 | AF89: 0 | AH89: -0.3229730597 | AJ89: =IF(AJ88>'goal seek'!$F$28,MAX($AH$7,AJ88*(1+AL89)),MAX($AH$7,AJ88+AK88)) -> -3.5 | AK89: 0 | AL89: -0.2597701979 | AN89: 0 | AP89: -0.3229730597 | AR89: -3.5 | AS89: 0 | AV89: -0.3229730597 | AX89: 2.758094375e-06 | AY89: -7.99487007e-07 | AZ89: -0.2247276791 | BB89: 2.545114797e-07 | BD89: 2093 | BE89: 444.7107148 | BF89: 444.7278779 | BG89: 444.4610002 | BH89: 444.6119294 | BI89: 444.5187227 | BJ89: 444.7317616 | BK89: 24.71071477 | BL89: 24.72787791 | BM89: 24.4610002 | BN89: 24.61192937 | BO89: 24.51872266 | BP89: 24.73176163
A90: 76 | B90: 10844496.73 | C90: 2094 | E90: =IF(E89>$J$11,MAX($J$7,E89*(1+$J$10)),MAX($J$7,scenarios!E89+scenarios!F89)) -> -3.5 | F90: 0 | H90: 0 | J90: -0.3227443457 | L90: =IF(L89>'goal seek'!$F$28,MAX($R$7,L89*(1+N90)),MAX($R$7,L89+M89)) -> -3.5 | M90: 0 | N90: -5 | P90: 0 | R90: -0.3227443457 | T90: =IF(T89>'goal seek'!$F$28,MAX($Z$7,T89*(1+V90)),MAX($Z$7,T89+U89)) -> -3.5 | U90: 0 | V90: -0.6635377046 | X90: 0 | Z90: -0.3227443457 | AB90: =IF(AB89>'goal seek'!$F$28,MAX($AH$7,AB89*(1+AD90)),MAX($AH$7,AB89+AC89)) -> -3.5 | AC90: 0 | AD90: -4.54841212 | AF90: 0 | AH90: -0.3227443457 | AJ90: =IF(AJ89>'goal seek'!$F$28,MAX($AH$7,AJ89*(1+AL90)),MAX($AH$7,AJ89+AK89)) -> -3.5 | AK90: 0 | AL90: -0.2614868518 | AN90: 0 | AP90: -0.3227443457 | AR90: -3.5 | AS90: 0 | AV90: -0.3227443457 | AX90: 2.137912911e-06 | AY90: -6.201814636e-07 | AZ90: -0.2248586812 | BB90: 1.971426582e-07 | BD90: 2094 | BE90: 441.2107148 | BF90: 441.2278779 | BG90: 440.9610002 | BH90: 441.1119294 | BI90: 441.0187227 | BJ90: 441.2317616 | BK90: 21.21071477 | BL90: 21.22787791 | BM90: 20.9610002 | BN90: 21.11192937 | BO90: 21.01872266 | BP90: 21.23176163
A91: 77 | B91: 10851460.6 | C91: 2095 | E91: =IF(E90>$J$11,MAX($J$7,E90*(1+$J$10)),MAX($J$7,scenarios!E90+scenarios!F90)) -> -3.5 | F91: 0 | H91: 0 | J91: -0.3225372261 | L91: =IF(L90>'goal seek'!$F$28,MAX($R$7,L90*(1+N91)),MAX($R$7,L90+M90)) -> -3.5 | M91: 0 | N91: -5 | P91: 0 | R91: -0.3225372261 | T91: =IF(T90>'goal seek'!$F$28,MAX($Z$7,T90*(1+V91)),MAX($Z$7,T90+U90)) -> -3.5 | U91: 0 | V91: -0.6723692952 | X91: 0 | Z91: -0.3225372261 | AB91: =IF(AB90>'goal seek'!$F$28,MAX($AH$7,AB90*(1+AD91)),MAX($AH$7,AB90+AC90)) -> -3.5 | AC91: 0 | AD91: -4.671900689 | AF91: 0 | AH91: -0.3225372261 | AJ91: =IF(AJ90>'goal seek'!$F$28,MAX($AH$7,AJ90*(1+AL91)),MAX($AH$7,AJ90+AK90)) -> -3.5 | AK91: 0 | AL91: -0.2631918669 | AN91: 0 | AP91: -0.3225372261 | AR91: -3.5 | AS91: 0 | AV91: -0.3225372261 | AX91: 1.65691175e-06 | AY91: -4.810011608e-07 | AZ91: -0.2249863212 | BB91: 1.526902056e-07 | BD91: 2095 | BE91: 437.7107148 | BF91: 437.7278779 | BG91: 437.4610002 | BH91: 437.6119294 | BI91: 437.5187227 | BJ91: 437.7317616 | BK91: 17.71071477 | BL91: 17.72787791 | BM91: 17.4610002 | BN91: 17.61192937 | BO91: 17.51872266 | BP91: 17.73176163
A92: 78 | B92: 10857694.25 | C92: 2096 | E92: =IF(E91>$J$11,MAX($J$7,E91*(1+$J$10)),MAX($J$7,scenarios!E91+scenarios!F91)) -> -3.5 | F92: 0 | H92: 0 | J92: -0.3223520501 | L92: =IF(L91>'goal seek'!$F$28,MAX($R$7,L91*(1+N92)),MAX($R$7,L91+M91)) -> -3.5 | M92: 0 | N92: -5 | P92: 0 | R92: -0.3223520501 | T92: =IF(T91>'goal seek'!$F$28,MAX($Z$7,T91*(1+V92)),MAX($Z$7,T91+U91)) -> -3.5 | U92: 0 | V92: -0.6812008858 | X92: 0 | Z92: -0.3223520501 | AB92: =IF(AB91>'goal seek'!$F$28,MAX($AH$7,AB91*(1+AD92)),MAX($AH$7,AB91+AC91)) -> -3.5 | AC92: 0 | AD92: -4.797046823 | AF92: 0 | AH92: -0.3223520501 | AJ92: =IF(AJ91>'goal seek'!$F$28,MAX($AH$7,AJ91*(1+AL92)),MAX($AH$7,AJ91+AK91)) -> -3.5 | AK92: 0 | AL92: -0.2648854769 | AN92: 0 | AP92: -0.3223520501 | AR92: -3.5 | AS92: 0 | AV92: -0.3223520501 | AX92: 1.283923142e-06 | AY92: -3.729886084e-07 | AZ92: -0.2251107268 | BB92: 1.182500734e-07 | BD92: 2096 | BE92: 434.2107148 | BF92: 434.2278779 | BG92: 433.9610002 | BH92: 434.1119294 | BI92: 434.0187227 | BJ92: 434.2317616 | BK92: 14.21071477 | BL92: 14.22787791 | BM92: 13.9610002 | BN92: 14.11192937 | BO92: 14.01872266 | BP92: 14.23176163
A93: 79 | B93: 10863179.44 | C93: 2097 | E93: =IF(E92>$J$11,MAX($J$7,E92*(1+$J$10)),MAX($J$7,scenarios!E92+scenarios!F92)) -> -3.5 | F93: 0 | H93: 0 | J93: -0.3221892835 | L93: =IF(L92>'goal seek'!$F$28,MAX($R$7,L92*(1+N93)),MAX($R$7,L92+M92)) -> -3.5 | M93: 0 | N93: -5 | P93: 0 | R93: -0.3221892835 | T93: =IF(T92>'goal seek'!$F$28,MAX($Z$7,T92*(1+V93)),MAX($Z$7,T92+U92)) -> -3.5 | U93: 0 | V93: -0.6900324764 | X93: 0 | Z93: -0.3221892835 | AB93: =IF(AB92>'goal seek'!$F$28,MAX($AH$7,AB92*(1+AD93)),MAX($AH$7,AB92+AC92)) -> -3.5 | AC93: 0 | AD93: -4.923850522 | AF93: 0 | AH93: -0.3221892835 | AJ93: =IF(AJ92>'goal seek'!$F$28,MAX($AH$7,AJ92*(1+AL93)),MAX($AH$7,AJ92+AK92)) -> -3.5 | AK93: 0 | AL93: -0.2665679076 | AN93: 0 | AP93: -0.3221892835 | AR93: -3.5 | AS93: 0 | AV93: -0.3221892835 | AX93: 9.947425396e-07 | AY93: -2.891806022e-07 | AZ93: -0.2252320196 | BB93: 9.157011032e-08 | BD93: 2097 | BE93: 430.7107148 | BF93: 430.7278779 | BG93: 430.4610002 | BH93: 430.6119294 | BI93: 430.5187227 | BJ93: 430.7317616 | BK93: 10.71071477 | BL93: 10.72787791 | BM93: 10.4610002 | BN93: 10.61192937 | BO93: 10.51872266 | BP93: 10.73176163
A94: 80 | B94: 10867893.85 | C94: 2098 | E94: =IF(E93>$J$11,MAX($J$7,E93*(1+$J$10)),MAX($J$7,scenarios!E93+scenarios!F93)) -> -3.5 | F94: 0 | H94: 0 | J94: -0.3220495203 | L94: =IF(L93>'goal seek'!$F$28,MAX($R$7,L93*(1+N94)),MAX($R$7,L93+M93)) -> -3.5 | M94: 0 | N94: -5 | P94: 0 | R94: -0.3220495203 | T94: =IF(T93>'goal seek'!$F$28,MAX($Z$7,T93*(1+V94)),MAX($Z$7,T93+U93)) -> -3.5 | U94: 0 | V94: -0.698864067 | X94: 0 | Z94: -0.3220495203 | AB94: =IF(AB93>'goal seek'!$F$28,MAX($AH$7,AB93*(1+AD94)),MAX($AH$7,AB93+AC93)) -> -3.5 | AC94: 0 | AD94: -5.052311785 | AF94: 0 | AH94: -0.3220495203 | AJ94: =IF(AJ93>'goal seek'!$F$28,MAX($AH$7,AJ93*(1+AL94)),MAX($AH$7,AJ93+AK93)) -> -3.5 | AK94: 0 | AL94: -0.2682393774 | AN94: 0 | AP94: -0.3220495203 | AR94: -3.5 | AS94: 0 | AV94: -0.3220495203 | AX94: 7.705769951e-07 | AY94: -2.241655444e-07 | AZ94: -0.2253503148 | BB94: 7.090398617e-08 | BD94: 2098 | BE94: 427.2107148 | BF94: 427.2278779 | BG94: 426.9610002 | BH94: 427.1119294 | BI94: 427.0187227 | BJ94: 427.2317616 | BK94: 7.210714765 | BL94: 7.227877907 | BM94: 6.961000203 | BN94: 7.111929368 | BO94: 7.018722663 | BP94: 7.231761631
A95: 81 | B95: 10871811.48 | C95: 2099 | E95: =IF(E94>$J$11,MAX($J$7,E94*(1+$J$10)),MAX($J$7,scenarios!E94+scenarios!F94)) -> -3.5 | F95: 0 | H95: 0 | J95: -0.3219334705 | L95: =IF(L94>'goal seek'!$F$28,MAX($R$7,L94*(1+N95)),MAX($R$7,L94+M94)) -> -3.5 | M95: 0 | N95: -5 | P95: 0 | R95: -0.3219334705 | T95: =IF(T94>'goal seek'!$F$28,MAX($Z$7,T94*(1+V95)),MAX($Z$7,T94+U94)) -> -3.5 | U95: 0 | V95: -0.7076956576 | X95: 0 | Z95: -0.3219334705 | AB95: =IF(AB94>'goal seek'!$F$28,MAX($AH$7,AB94*(1+AD95)),MAX($AH$7,AB94+AC94)) -> -3.5 | AC95: 0 | AD95: -5.182430613 | AF95: 0 | AH95: -0.3219334705 | AJ95: =IF(AJ94>'goal seek'!$F$28,MAX($AH$7,AJ94*(1+AL95)),MAX($AH$7,AJ94+AK94)) -> -3.5 | AK95: 0 | AL95: -0.2699000979 | AN95: 0 | AP95: -0.3219334705 | AR95: -3.5 | AS95: 0 | AV95: -0.3219334705 | AX95: 5.968382964e-07 | AY95: -1.737386988e-07 | AZ95: -0.2254657223 | BB95: 5.489777831e-08 | BD95: 2099 | BE95: 423.7107148 | BF95: 423.7278779 | BG95: 423.4610002 | BH95: 423.6119294 | BI95: 423.5187227 | BJ95: 423.7317616 | BK95: 3.710714765 | BL95: 3.727877907 | BM95: 3.461000203 | BN95: 3.611929368 | BO95: 3.518722663 | BP95: 3.731761631
A96: 82 | B96: 10874902.32 | C96: 2100 | E96: =IF(E95>$J$11,MAX($J$7,E95*(1+$J$10)),MAX($J$7,scenarios!E95+scenarios!F95)) -> -3.5 | F96: 0 | H96: 0 | J96: -0.3218419713 | L96: =IF(L95>'goal seek'!$F$28,MAX($R$7,L95*(1+N96)),MAX($R$7,L95+M95)) -> -3.5 | M96: 0 | N96: -5 | P96: 0 | R96: -0.3218419713 | T96: =IF(T95>'goal seek'!$F$28,MAX($Z$7,T95*(1+V96)),MAX($Z$7,T95+U95)) -> -3.5 | U96: 0 | V96: -0.7165272482 | X96: 0 | Z96: -0.3218419713 | AB96: =IF(AB95>'goal seek'!$F$28,MAX($AH$7,AB95*(1+AD96)),MAX($AH$7,AB95+AC95)) -> -3.5 | AC96: 0 | AD96: -5.314207006 | AF96: 0 | AH96: -0.3218419713 | AJ96: =IF(AJ95>'goal seek'!$F$28,MAX($AH$7,AJ95*(1+AL96)),MAX($AH$7,AJ95+AK95)) -> -3.5 | AK96: 0 | AL96: -0.2715502738 | AN96: 0 | AP96: -0.3218419713 | AR96: -3.5 | AS96: 0 | AV96: -0.3218419713 | AX96: 4.622045004e-07 | AY96: -1.34633796e-07 | AZ96: -0.2255783464 | BB96: 4.250194502e-08 | BD96: 2100 | BE96: 420.2107148 | BF96: 420.2278779 | BG96: 419.9610002 | BH96: 420.1119294 | BI96: 420.0187227 | BJ96: 420.2317616 | BK96: 0.2107147654 | BL96: 0.2278779073 | BN96: 0.1119293682 | BO96: 0.01872266266 | BP96: 0.2317616311
E97: =SUM(E16:E96) -> 335.0524074 | L97: =SUM(L16:L96) -> 335.0695706 | T97: =SUM(T16:T96) -> 334.8026929 | AB97: =SUM(AB16:AB96) -> 334.953622 | AJ97: =SUM(AJ16:AJ96) -> 334.8604153 | AR97: =SUM(AR16:AR96) -> 335.0734543 | AX97: =SUM(AX16:AX96) -> 334.9999984 | BG97: maximum overshoot | BK97: =MAX(BK15:BK96) -> 103.0583442 | BL97: 204.599281 | BM97: 173.8718714 | BN97: 195.5133272 | BO97: 150.3190477 | BP97: 192.6177444
E98: =SUMIF(E16:E96,"<0") -> -102.8476294 | F98: global negative emissions in Gt | L98: =SUMIF(L16:L96,"<0") -> -204.3714031 | M98: =F98 -> global negative emissions in Gt | T98: =SUMIF(T16:T96,"<0") -> -173.9108712 | U98: =M98 -> global negative emissions in Gt | AB98: =SUMIF(AB16:AB96,"<0") -> -195.4013978 | AC98: =U98 -> global negative emissions in Gt | AJ98: =SUMIF(AJ16:AJ96,"<0") -> -150.300325 | AK98: =AC98 -> global negative emissions in Gt | AR98: =SUMIF(AR16:AR96,"<0") -> -192.3859828 | AS98: =AK98 -> global negative emissions in Gt | AX98: =AX$15*EXP(-BB$11*($C96-$C$15))/BB$11^2*((BB$10*BB$11+BB$11^2)*($C96-$C$15)+2*BB$11+BB$10) -> 1.582685175e-06 | AY98: 2101 - ㆀ | BG98: average overshoot | BK98: =IF(ISERROR(AVERAGE(BK15:BK96)),0,AVERAGE(BK15:BK96)) -> 65.98484193 | BL98: 110.71857 | BM98: 102.5655962 | BN98: 108.5268056 | BO98: 91.84551763 | BP98: 103.3021386
AX99: =SUM(AX97:AX98) -> 335 | AY99: 2020 - ㆀ
AX100: =SUMIF(AX16:AX96,"<0") -> 0 | AY100: =AC98 -> global negative emissions in Gt
BE120: =BD133+1 -> 1 | BF120: =BE120+1 -> 2 | BG120: 3 | BH120: 4 | BI120: 5 | BK120: =BI120+1 -> 6 | BL120: 7 | BM120: 8 | BN120: 9 | BO120: 10

Sheet IPCC SR15 graphs
B2: global paths: comparison RM and IPCC SR15 illustrative scenarios
I3: This tool: Dermination global paths based on RM Scenario Types
F4: Regensburg Model Scenario Types | I4: ='goal seek'!C$5 -> RM-1 const | J4: ='goal seek'!D$5 -> RM-2 exp | K4: ='goal seek'!E$5 -> RM-3 lin | L4: ='goal seek'!F$5 -> RM-4 quadr | M4: ='goal seek'!G$5 -> RM-5 rad | N4: ='goal seek'!H$5 -> RM-6 abs
B5: RM: budget 2018 - 2100 in Gt: | D5: ='base data'!B10 -> 420 | F5: Is the budget 2020 - 2100 complied with? | I5: =IF('goal seek'!C15='goal seek'!C16,"yes","no") -> yes | J5: =IF('goal seek'!D15='goal seek'!D16,"yes","no") -> yes | K5: =IF('goal seek'!E15='goal seek'!E16,"yes","no") -> yes | L5: =IF('goal seek'!F15='goal seek'!F16,"yes","no") -> yes | M5: =IF('goal seek'!G15='goal seek'!G16,"yes","no") -> yes | N5: =IF('goal seek'!H15='goal seek'!H16,"yes","no") -> yes | BV5: A | BW5: B
B6: RM: budget 2020 - 2100 in Gt: | D6: ='base data'!L25 -> 334.8416927 | F6: sum 2018 - 2100 in Gt | I6: =graphs!BU98 -> 420.2107148 | J6: =graphs!BV98 -> 420.2278779 | K6: =graphs!BW98 -> 419.9610002 | L6: =graphs!BX98 -> 420.1119294 | M6: =graphs!BY98 -> 420.0187227 | N6: =graphs!BZ98 -> 420.2317616
F7: sum net neg. emissions (overshoot) in Gt | I7: =scenarios!BK97 -> 103.0583442 | J7: =scenarios!BL97 -> 204.599281 | K7: =scenarios!BM97 -> 173.8718714 | L7: =scenarios!BN97 -> 195.5133272 | M7: =scenarios!BO97 -> 150.3190477 | N7: =scenarios!BP97 -> 192.6177444
F8: minimum emission in Gt | I8: =graphs!BU90 -> -3.5 | J8: =graphs!BV90 -> -3.5 | K8: =graphs!BW90 -> -3.5 | L8: =graphs!BX90 -> -3.5 | M8: =graphs!BY90 -> -3.5 | N8: =graphs!BZ90 -> -3.5 | BT8: Et | BU8: ='goal seek'!C6 -> RRt const | BV8: ='goal seek'!D6 -> RRt exp | BW8: ='goal seek'!E6 -> RRt lin | BX8: ='goal seek'!F6 -> RRt quadr | BY8: ='goal seek'!G6 -> RRt rad | BZ8: Raupach | CA8: IPCC SR15 illustrative model pathways | CG8: without period with absolute reduction | CM8: without global negative emissions | CS8: period with absolute reduction = 0% | CZ8: t / capita | DA8: =BU8 -> RRt const | DB8: RRt exp | DC8: RRt lin | DD8: RRt quadr | DE8: RRt rad | DF8: Raupach | DG8: =CM9 -> IPCC SR15 illustrative model pathways | DM8: =BU9 -> RM-1 const | DN8: RM-2 exp | DO8: RM-3 lin | DP8: RM-4 quadr | DQ8: RM-5 rad | DR8: SPM-R | DS8: =DG9 -> SR15 P1 | DT8: =DH9 -> SR15 P2 | DU8: SR15 P3 | DV8: SR15 P4
BU9: =scenarios!E2 -> RM-1 const | BV9: =scenarios!L2 -> RM-2 exp | BW9: =scenarios!T2 -> RM-3 lin | BX9: =scenarios!AB2 -> RM-4 quadr | BY9: =scenarios!AJ2 -> RM-5 rad | BZ9: =scenarios!AX2 -> SPM-R | CA9: ='IPCC SR15 paths P1-P4'!C6 -> SR15 P1 | CB9: ='IPCC SR15 paths P1-P4'!E6 -> SR15 P2 | CC9: ='IPCC SR15 paths P1-P4'!G6 -> SR15 P3 | CD9: ='IPCC SR15 paths P1-P4'!I6 -> SR15 P4 | CF9: RR_t | CG9: =BU8 -> RRt const | CH9: RRt exp | CI9: RRt lin | CJ9: RRt quadr | CK9: RRt rad | CL9: Raupach | CM9: =CA8 -> IPCC SR15 illustrative model pathways | CR9: RR_t | CS9: =CG9 -> RRt const | CT9: RRt exp | CU9: RRt lin | CV9: RRt quadr | CW9: RRt rad | CX9: Raupach | DA9: RM-1 const | DB9: RM-2 exp | DC9: RM-3 lin | DD9: RM-4 quadr | DE9: RM-5 rad | DF9: SPM-R | DG9: =CM10 -> SR15 P1 | DH9: =CN10 -> SR15 P2 | DI9: SR15 P3 | DJ9: SR15 P4 | DL9: 2010 | DM9: ='base data'!$D$18 -> 38.47076147 | DN9: ='base data'!$D$18 -> 38.47076147 | DO9: ='base data'!$D$18 -> 38.47076147 | DP9: ='base data'!$D$18 -> 38.47076147 | DQ9: ='base data'!$D$18 -> 38.47076147 | DR9: ='base data'!$D$18 -> 38.47076147 | DS9: ='IPCC SR15 paths P1-P4'!C7 -> 38.54203732 | DT9: ='IPCC SR15 paths P1-P4'!E7 -> 35.7826485 | DU9: ='IPCC SR15 paths P1-P4'!G7 -> 40.31350203 | DV9: ='IPCC SR15 paths P1-P4'!I7 -> 40.31350203
I10: IPCC SR15 | BT10: 2019 | BU10: =scenarios!E15 -> 43.04562157 | BV10: =scenarios!L15 -> 43.04562157 | BW10: =scenarios!T15 -> 43.04562157 | BX10: =scenarios!AB15 -> 43.04562157 | BY10: =scenarios!AJ15 -> 43.04562157 | BZ10: =BX10 -> 43.04562157 | CA10: ='IPCC SR15 paths P1-P4'!C16 -> 39.46136367 | CB10: ='IPCC SR15 paths P1-P4'!E16 -> 37.08876567 | CC10: ='IPCC SR15 paths P1-P4'!G7 -> 40.31350203 | CD10: ='IPCC SR15 paths P1-P4'!I16 -> 39.367 | CG10: ='IPCC SR15 graphs'!BU9 -> RM-1 const | CH10: ='IPCC SR15 graphs'!BV9 -> RM-2 exp | CI10: ='IPCC SR15 graphs'!BW9 -> RM-3 lin | CJ10: ='IPCC SR15 graphs'!BX9 -> RM-4 quadr | CK10: ='IPCC SR15 graphs'!BY9 -> RM-5 rad | CL10: ='IPCC SR15 graphs'!BZ9 -> SPM-R | CM10: =CA9 -> SR15 P1 | CN10: =CB9 -> SR15 P2 | CO10: SR15 P3 | CP10: SR15 P4 | CS10: RM-1 const | CT10: RM-2 exp | CU10: RM-3 lin | CV10: RM-4 quadr | CW10: RM-5 rad | CX10: SPM-R | CZ10: =BT10 -> 2019 | DA10: =scenarios!J15 -> 5.58057945 | DB10: =scenarios!R15 -> 5.58057945 | DC10: =scenarios!Z15 -> 5.58057945 | DD10: =scenarios!AH15 -> 5.58057945 | DE10: =scenarios!AP15 -> 5.58057945 | DF10: =DD10 -> 5.58057945 | DG10: =CA10/scenarios!$B15*1000000 -> 5.115904176 | DH10: =CB10/scenarios!$B15*1000000 -> 4.808312576 | DI10: =CC10/scenarios!$B15*1000000 -> 5.226378266 | DJ10: =CD10/scenarios!$B15*1000000 -> 5.103670553 | DL10: =DL9+1 -> 2011 | DM10: ='base data'!$E$18 -> 39.27225698 | DN10: ='base data'!$E$18 -> 39.27225698 | DO10: ='base data'!$E$18 -> 39.27225698 | DP10: ='base data'!$E$18 -> 39.27225698 | DQ10: ='base data'!$E$18 -> 39.27225698 | DR10: ='base data'!$E$18 -> 39.27225698 | DS10: ='IPCC SR15 paths P1-P4'!C8 -> 38.64418469 | DT10: ='IPCC SR15 paths P1-P4'!E8 -> 35.92777263 | DU10: ='IPCC SR15 paths P1-P4'!G8 -> 40.375284 | DV10: ='IPCC SR15 paths P1-P4'!I8 -> 36.703
F11: illustrative model paths | I11: =CA9 -> SR15 P1 | J11: =CB9 -> SR15 P2 | K11: =CC9 -> SR15 P3 | L11: =CD9 -> SR15 P4 | BT11: =BT10+1 -> 2020 | BU11: =scenarios!E16 -> 39.28724269 | BV11: =scenarios!L16 -> 42.61516535 | BW11: =scenarios!T16 -> 42.61516535 | BX11: =scenarios!AB16 -> 42.61516535 | BY11: =scenarios!AJ16 -> 42.61516535 | BZ11: =scenarios!AX16 -> 42.99502157 | CA11: ='IPCC SR15 paths P1-P4'!C17 -> 39.56351104 | CB11: ='IPCC SR15 paths P1-P4'!E17 -> 37.2338898 | CC11: ='IPCC SR15 paths P1-P4'!G8 -> 40.375284 | CD11: ='IPCC SR15 paths P1-P4'!I17 -> 39.7 | CF11: 2020 | CG11: =IF($BU10>'goal seek'!$F$31,$BU11/$BU10-1,#N/A) -> -0.08731152545 | CH11: =IF(BV10>'goal seek'!$F$28,BV11/BV10-1,#N/A) -> -0.01 | CI11: =IF(BW10>'goal seek'!$F$28,BW11/BW10-1,#N/A) -> -0.01 | CJ11: =IF(BX10>'goal seek'!$F$28,BX11/BX10-1,#N/A) -> -0.01 | CK11: =IF(BY10>'goal seek'!$F$28,BY11/BY10-1,#N/A) -> -0.01 | CL11: =IF(BZ10>'goal seek'!$F$28,BZ11/BZ10-1,#N/A) -> -0.001175496901 | CM11: =IF(CA10>0,CA11/CA10-1,#N/A) -> 0.002588541361 | CN11: =IF(CB10>0,CB11/CB10-1,#N/A) -> 0.003912886487 | CO11: 0.001532537931 | CP11: 0.008458861483 | CR11: 2020 | CS11: =IF(ISNA(CG11),0,CG11) -> -0.08731152545 | CT11: =IF(ISNA(CH11),0,CH11) -> -0.01 | CU11: =IF(ISNA(CI11),0,CI11) -> -0.01 | CV11: =IF(ISNA(CJ11),0,CJ11) -> -0.01 | CW11: =IF(ISNA(CK11),0,CK11) -> -0.01 | CX11: =IF(ISNA(CL11),0,CL11) -> -0.001175496901 | CZ11: 2020 | DA11: =scenarios!J16 -> 5.040186925 | DB11: =scenarios!R16 -> 5.467128374 | DC11: =scenarios!Z16 -> 5.467128374 | DD11: =scenarios!AH16 -> 5.467128374 | DE11: =scenarios!AP16 -> 5.467128374 | DF11: =scenarios!BB16 -> 5.515860385 | DG11: =CA11/scenarios!$B16*1000000 -> 5.075629579 | DH11: =CB11/scenarios!$B16*1000000 -> 4.776760895 | DI11: =CC11/scenarios!$B16*1000000 -> 5.179772481 | DJ11: =CD11/scenarios!$B16*1000000 -> 5.09313984 | DL11: =DL10+1 -> 2012 | DM11: ='base data'!$F$18 -> 40.20383095 | DN11: ='base data'!$F$18 -> 40.20383095 | DO11: ='base data'!$F$18 -> 40.20383095 | DP11: ='base data'!$F$18 -> 40.20383095 | DQ11: ='base data'!$F$18 -> 40.20383095 | DR11: ='base data'!$F$18 -> 40.20383095 | DS11: ='IPCC SR15 paths P1-P4'!C9 -> 38.74633206 | DT11: ='IPCC SR15 paths P1-P4'!E9 -> 36.07289676 | DU11: ='IPCC SR15 paths P1-P4'!G9 -> 40.43706597 | DV11: ='IPCC SR15 paths P1-P4'!I9 -> 37.036
F12: ='IPCC SR15 paths P1-P4'!A98 -> sum 2018 - 2100 in Gt | I12: ='IPCC SR15 paths P1-P4'!C98 -> 470.2394277 | J12: ='IPCC SR15 paths P1-P4'!E98 -> 398.3517016 | K12: ='IPCC SR15 paths P1-P4'!G98 -> 313.6844947 | L12: ='IPCC SR15 paths P1-P4'!I98 -> 125.486 | BT12: =BT11+1 -> 2021 | BU12: =scenarios!E17 -> 35.8570136 | BV12: =scenarios!L17 -> 42.09329742 | BW12: =scenarios!T17 -> 41.81265401 | BX12: =scenarios!AB17 -> 42.153695 | BY12: =scenarios!AJ17 -> 41.30507775 | BZ12: =scenarios!AX17 -> 41.2738495 | CA12: ='IPCC SR15 paths P1-P4'!C18 -> 37.2285413 | CB12: ='IPCC SR15 paths P1-P4'!E18 -> 35.41625015 | CC12: ='IPCC SR15 paths P1-P4'!G9 -> 40.43706597 | CD12: ='IPCC SR15 paths P1-P4'!I18 -> 39.507 | CF12: =CF11+1 -> 2021 | CG12: =IF($BU11>'goal seek'!$F$31,$BU12/$BU11-1,#N/A) -> -0.08731152545 | CH12: =IF(BV11>'goal seek'!$F$28,BV12/BV11-1,#N/A) -> -0.0122460614 | CI12: =IF(BW11>'goal seek'!$F$28,BW12/BW11-1,#N/A) -> -0.0188315906 | CJ12: =IF(BX11>'goal seek'!$F$28,BX12/BX11-1,#N/A) -> -0.01082878234 | CK12: =IF(BY11>'goal seek'!$F$28,BY12/BY11-1,#N/A) -> -0.03074228594 | CL12: =IF(BZ11>'goal seek'!$F$28,BZ12/BZ11-1,#N/A) -> -0.04003189224 | CM12: =IF(CA11>0,CA12/CA11-1,#N/A) -> -0.05901826399 | CN12: -0.04881680801 | CO12: 0.001530192853 | CP12: -0.004861460957 | CR12: =CR11+1 -> 2021 | CS12: -0.08731152545 | CT12: -0.0122460614 | CU12: -0.0188315906 | CV12: -0.01082878234 | CW12: -0.03074228594 | CX12: -0.04003189224 | CZ12: 2021 | DA12: =scenarios!J17 -> 4.553291328 | DB12: =scenarios!R17 -> 5.345203821 | DC12: =scenarios!Z17 -> 5.309566408 | DD12: =scenarios!AH17 -> 5.352873389 | DE12: =scenarios!AP17 -> 5.245112001 | DF12: =scenarios!BB17 -> 5.241146491 | DG12: =CA12/scenarios!$B17*1000000 -> 4.727454332 | DH12: =CB12/scenarios!$B17*1000000 -> 4.497321123 | DI12: =CC12/scenarios!$B17*1000000 -> 5.134887804 | DJ12: =CD12/scenarios!$B17*1000000 -> 5.016783676 | DL12: =DL11+1 -> 2013 | DM12: ='base data'!$G$18 -> 40.60584857 | DN12: ='base data'!$G$18 -> 40.60584857 | DO12: ='base data'!$G$18 -> 40.60584857 | DP12: ='base data'!$G$18 -> 40.60584857 | DQ12: ='base data'!$G$18 -> 40.60584857 | DR12: ='base data'!$G$18 -> 40.60584857 | DS12: ='IPCC SR15 paths P1-P4'!C10 -> 38.84847944 | DT12: ='IPCC SR15 paths P1-P4'!E10 -> 36.21802089 | DU12: ='IPCC SR15 paths P1-P4'!G10 -> 40.49884794 | DV12: ='IPCC SR15 paths P1-P4'!I10 -> 37.369
F13: sum net negativ emissions in Gt | I13: =-'IPCC SR15 paths P1-P4'!C99 -> 94.10351656 | J13: =-'IPCC SR15 paths P1-P4'!E99 -> 166.4083138 | K13: =-'IPCC SR15 paths P1-P4'!G99 -> 377.1132784 | L13: =-'IPCC SR15 paths P1-P4'!I99 -> 777.262 | BT13: 2022 | BU13: =scenarios!E18 -> 32.72628304 | BV13: =scenarios!L18 -> 41.46204099 | BW13: =scenarios!T18 -> 40.65598298 | BX13: =scenarios!AB18 -> 41.5924131 | BY13: =scenarios!AJ18 -> 39.40807212 | BZ13: =scenarios!AX18 -> 37.99048762 | CA13: ='IPCC SR15 paths P1-P4'!C19 -> 34.89357156 | CB13: ='IPCC SR15 paths P1-P4'!E19 -> 33.5986105 | CC13: ='IPCC SR15 paths P1-P4'!G10 -> 40.49884794 | CD13: ='IPCC SR15 paths P1-P4'!I19 -> 39.314 | CF13: 2022 | CG13: =IF($BU12>'goal seek'!$F$31,$BU13/$BU12-1,#N/A) -> -0.08731152545 | CH13: =IF(BV12>'goal seek'!$F$28,BV13/BV12-1,#N/A) -> -0.01499660198 | CI13: =IF(BW12>'goal seek'!$F$28,BW13/BW12-1,#N/A) -> -0.02766318121 | CJ13: =IF(BX12>'goal seek'!$F$28,BX13/BX12-1,#N/A) -> -0.01331512938 | CK13: =IF(BY12>'goal seek'!$F$28,BY13/BY12-1,#N/A) -> -0.04592669311 | CL13: =IF(BZ12>'goal seek'!$F$28,BZ13/BZ12-1,#N/A) -> -0.07955065798 | CM13: -0.06271988258 | CN13: -0.05132219369 | CO13: 0.00152785494 | CP13: -0.004885210216 | CR13: 2022 | CS13: -0.08731152545 | CT13: -0.01499660198 | CU13: -0.02766318121 | CV13: -0.01331512938 | CW13: -0.04592669311 | CX13: -0.07955065798 | CZ13: 2022 | DA13: =scenarios!J18 -> 4.114467966 | DB13: =scenarios!R18 -> 5.212759398 | DC13: =scenarios!Z18 -> 5.111418837 | DD13: =scenarios!AH18 -> 5.229150256 | DE13: =scenarios!AP18 -> 4.954526921 | DF13: =scenarios!BB18 -> 4.776303014 | DG13: =CA13/scenarios!$B18*1000000 -> 4.386947404 | DH13: =CB13/scenarios!$B18*1000000 -> 4.224140164 | DI13: =CC13/scenarios!$B18*1000000 -> 5.091663246 | DJ13: =CD13/scenarios!$B18*1000000 -> 4.94269983 | DL13: =DL12+1 -> 2014 | DM13: ='base data'!$H$18 -> 41.28604905 | DN13: ='base data'!$H$18 -> 41.28604905 | DO13: ='base data'!$H$18 -> 41.28604905 | DP13: ='base data'!$H$18 -> 41.28604905 | DQ13: ='base data'!$H$18 -> 41.28604905 | DR13: ='base data'!$H$18 -> 41.28604905 | DS13: ='IPCC SR15 paths P1-P4'!C11 -> 38.95062681 | DT13: ='IPCC SR15 paths P1-P4'!E11 -> 36.36314502 | DU13: ='IPCC SR15 paths P1-P4'!G11 -> 40.56062991 | DV13: ='IPCC SR15 paths P1-P4'!I11 -> 37.702
F14: minimum emissions in Gt | I14: =CA91 -> -3.524486354 | J14: =CB91 -> -4.4748741 | K14: =CC91 -> -12.47468151 | L14: =CD91 -> -21.31 | R14: IPCC SR15 SPM.3a: | BT14: 2023 | BU14: =scenarios!E19 -> 29.86890135 | BV14: =scenarios!L19 -> 40.70059348 | BW14: =scenarios!T19 -> 39.17225216 | BX14: =scenarios!AB19 -> 40.86624945 | BY14: =scenarios!AJ19 -> 37.18619925 | BZ14: =scenarios!AX19 -> 33.97345185 | CA14: ='IPCC SR15 paths P1-P4'!C20 -> 32.55860182 | CB14: ='IPCC SR15 paths P1-P4'!E20 -> 31.78097085 | CC14: ='IPCC SR15 paths P1-P4'!G11 -> 40.56062991 | CD14: ='IPCC SR15 paths P1-P4'!I20 -> 39.121 | CF14: 2023 | CG14: =IF($BU13>'goal seek'!$F$31,$BU14/$BU13-1,#N/A) -> -0.08731152545 | CH14: =IF(BV13>'goal seek'!$F$28,BV14/BV13-1,#N/A) -> -0.01836493086 | CI14: =IF(BW13>'goal seek'!$F$28,BW14/BW13-1,#N/A) -> -0.03649477181 | CJ14: =IF(BX13>'goal seek'!$F$28,BX14/BX13-1,#N/A) -> -0.0174590411 | CK14: =IF(BY13>'goal seek'!$F$28,BY14/BY13-1,#N/A) -> -0.05638116137 | CL14: =IF(BZ13>'goal seek'!$F$28,BZ14/BZ13-1,#N/A) -> -0.1057379364 | CM14: -0.06691690287 | CN14: -0.05409865536 | CO14: 0.00152552416 | CP14: -0.004909192654 | CR14: 2023 | CS14: -0.08731152545 | CT14: -0.01836493086 | CU14: -0.03649477181 | CV14: -0.0174590411 | CW14: -0.05638116137 | CX14: -0.1057379364 | CZ14: 2023 | DA14: =scenarios!J19 -> 3.718830119 | DB14: =scenarios!R19 -> 5.067430875 | DC14: =scenarios!Z19 -> 4.877144609 | DD14: =scenarios!AH19 -> 5.088055886 | DE14: =scenarios!AP19 -> 4.629870921 | DF14: =scenarios!BB19 -> 4.229867532 | DG14: =CA14/scenarios!$B19*1000000 -> 4.053711507 | DH14: =CB14/scenarios!$B19*1000000 -> 3.956892496 | DI14: =CC14/scenarios!$B19*1000000 -> 5.0500047 | DJ14: =CD14/scenarios!$B19*1000000 -> 4.870763454 | DL14: 2015 | DM14: ='base data'!$I$18 -> 41.45785101 | DN14: ='base data'!$I$18 -> 41.45785101 | DO14: ='base data'!$I$18 -> 41.45785101 | DP14: ='base data'!$I$18 -> 41.45785101 | DQ14: ='base data'!$I$18 -> 41.45785101 | DR14: ='base data'!$I$18 -> 41.45785101 | DS14: ='IPCC SR15 paths P1-P4'!C12 -> 39.05277418 | DT14: ='IPCC SR15 paths P1-P4'!E12 -> 36.50826915 | DU14: ='IPCC SR15 paths P1-P4'!G12 -> 40.62241189 | DV14: ='IPCC SR15 paths P1-P4'!I12 -> 38.035
BT15: 2024 | BU15: =scenarios!E20 -> 27.26100201 | BV15: =scenarios!L20 -> 39.78524498 | BW15: =scenarios!T20 -> 37.39671646 | BX15: =scenarios!AB20 -> 39.91567934 | BY15: =scenarios!AJ20 -> 34.77359842 | BZ15: =scenarios!AX20 -> 29.74830715 | CA15: ='IPCC SR15 paths P1-P4'!C21 -> 30.22363208 | CB15: ='IPCC SR15 paths P1-P4'!E21 -> 29.9633312 | CC15: ='IPCC SR15 paths P1-P4'!G12 -> 40.62241189 | CD15: ='IPCC SR15 paths P1-P4'!I21 -> 38.928 | CF15: 2024 | CG15: =IF($BU14>'goal seek'!$F$31,$BU15/$BU14-1,#N/A) -> -0.08731152545 | CH15: =IF(BV14>'goal seek'!$F$28,BV15/BV14-1,#N/A) -> -0.02248980708 | CI15: =IF(BW14>'goal seek'!$F$28,BW15/BW14-1,#N/A) -> -0.04532636241 | CJ15: =IF(BX14>'goal seek'!$F$28,BX15/BX14-1,#N/A) -> -0.02326051752 | CK15: =IF(BY14>'goal seek'!$F$28,BY15/BY14-1,#N/A) -> -0.06487893022 | CL15: =IF(BZ14>'goal seek'!$F$28,BZ15/BZ14-1,#N/A) -> -0.1243660705 | CM15: -0.07171590941 | CN15: -0.05719270373 | CO15: 0.001523200481 | CP15: -0.004933411723 | CR15: 2024 | CS15: -0.08731152545 | CT15: -0.02248980708 | CU15: -0.04532636241 | CV15: -0.02326051752 | CW15: -0.06487893022 | CX15: -0.1243660705 | CZ15: 2024 | DA15: =scenarios!J20 -> 3.361984053 | DB15: =scenarios!R20 -> 4.906545957 | DC15: =scenarios!Z20 -> 4.611978839 | DD15: =scenarios!AH20 -> 4.922631874 | DE15: =scenarios!AP20 -> 4.288480788 | DF15: =scenarios!BB20 -> 3.668732874 | DG15: =CA15/scenarios!$B20*1000000 -> 3.727352687 | DH15: =CB15/scenarios!$B20*1000000 -> 3.695250881 | DI15: =CC15/scenarios!$B20*1000000 -> 5.009790209 | DJ15: =CD15/scenarios!$B20*1000000 -> 4.80082556 | DL15: 2016 | DM15: ='base data'!$J$18 -> 40.92030228 | DN15: ='base data'!$J$18 -> 40.92030228 | DO15: ='base data'!$J$18 -> 40.92030228 | DP15: ='base data'!$J$18 -> 40.92030228 | DQ15: ='base data'!$J$18 -> 40.92030228 | DR15: ='base data'!$J$18 -> 40.92030228 | DS15: ='IPCC SR15 paths P1-P4'!C13 -> 39.15492155 | DT15: ='IPCC SR15 paths P1-P4'!E13 -> 36.65339328 | DU15: ='IPCC SR15 paths P1-P4'!G13 -> 40.68419386 | DV15: ='IPCC SR15 paths P1-P4'!I13 -> 38.368
BT16: 2025 | BU16: =scenarios!E21 -> 24.88080234 | BV16: =scenarios!L21 -> 38.68951335 | BW16: =scenarios!T21 -> 35.37138685 | BX16: =scenarios!AB21 -> 38.68948729 | BY16: =scenarios!AJ21 -> 32.26201067 | BZ16: =scenarios!AX21 -> 25.63425746 | CA16: ='IPCC SR15 paths P1-P4'!C22 -> 27.88866234 | CB16: ='IPCC SR15 paths P1-P4'!E22 -> 28.14569155 | CC16: ='IPCC SR15 paths P1-P4'!G13 -> 40.68419386 | CD16: ='IPCC SR15 paths P1-P4'!I22 -> 38.735 | CF16: 2025 | CG16: =IF($BU15>'goal seek'!$F$31,$BU16/$BU15-1,#N/A) -> -0.08731152545 | CH16: =IF(BV15>'goal seek'!$F$28,BV16/BV15-1,#N/A) -> -0.02754115584 | CI16: =IF(BW15>'goal seek'!$F$28,BW16/BW15-1,#N/A) -> -0.05415795301 | CJ16: =IF(BX15>'goal seek'!$F$28,BX16/BX15-1,#N/A) -> -0.03071955862 | CK16: =IF(BY15>'goal seek'!$F$28,BY16/BY15-1,#N/A) -> -0.07222685782 | CL16: =IF(BZ15>'goal seek'!$F$28,BZ16/BZ15-1,#N/A) -> -0.1382952539 | CM16: -0.07725642413 | CN16: -0.06066213526 | CO16: 0.00152088387 | CP16: -0.004957870941 | CR16: 2025 | CS16: -0.08731152545 | CT16: -0.02754115584 | CU16: -0.05415795301 | CV16: -0.03071955862 | CW16: -0.07222685782 | CX16: -0.1382952539 | CZ16: 2025 | DA16: =scenarios!J21 -> 3.04001374 | DB16: =scenarios!R21 -> 4.727204959 | DC16: =scenarios!Z21 -> 4.321785953 | DD16: =scenarios!AH21 -> 4.727201775 | DE16: =scenarios!AP21 -> 3.941872711 | DF16: =scenarios!BB21 -> 3.132073228 | DG16: =CA16/scenarios!$B21*1000000 -> 3.407523423 | DH16: =CB16/scenarios!$B21*1000000 -> 3.438928049 | DI16: =CC16/scenarios!$B21*1000000 -> 4.970921222 | DJ16: =CD16/scenarios!$B21*1000000 -> 4.73276266 | DL16: 2017 | DM16: ='base data'!$K$18 -> 41.26803289 | DN16: ='base data'!$K$18 -> 41.26803289 | DO16: ='base data'!$K$18 -> 41.26803289 | DP16: ='base data'!$K$18 -> 41.26803289 | DQ16: ='base data'!$K$18 -> 41.26803289 | DR16: ='base data'!$K$18 -> 41.26803289 | DS16: ='IPCC SR15 paths P1-P4'!C14 -> 39.25706892 | DT16: ='IPCC SR15 paths P1-P4'!E14 -> 36.79851741 | DU16: ='IPCC SR15 paths P1-P4'!G14 -> 40.74597583 | DV16: ='IPCC SR15 paths P1-P4'!I14 -> 38.701
BT17: 2026 | BU17: =scenarios!E22 -> 22.70842153 | BV17: =scenarios!L22 -> 37.38462948 | BW17: =scenarios!T22 -> 33.14335933 | BX17: =scenarios!AB22 -> 37.14824651 | BY17: =scenarios!AJ22 -> 29.71994555 | BZ17: =scenarios!AX22 -> 21.81207886 | CA17: ='IPCC SR15 paths P1-P4'!C23 -> 25.55369261 | CB17: ='IPCC SR15 paths P1-P4'!E23 -> 26.3280519 | CC17: ='IPCC SR15 paths P1-P4'!G14 -> 40.74597583 | CD17: ='IPCC SR15 paths P1-P4'!I23 -> 38.542 | CF17: 2026 | CG17: =IF($BU16>'goal seek'!$F$31,$BU17/$BU16-1,#N/A) -> -0.08731152545 | CH17: =IF(BV16>'goal seek'!$F$28,BV17/BV16-1,#N/A) -> -0.03372706853 | CI17: =IF(BW16>'goal seek'!$F$28,BW17/BW16-1,#N/A) -> -0.06298954362 | CJ17: =IF(BX16>'goal seek'!$F$28,BX17/BX16-1,#N/A) -> -0.03983616441 | CK17: =IF(BY16>'goal seek'!$F$28,BY17/BY16-1,#N/A) -> -0.07879437976 | CL17: =IF(BZ16>'goal seek'!$F$28,BZ17/BZ16-1,#N/A) -> -0.1491043227 | CM17: -0.08372469465 | CN17: -0.06457967632 | CO17: 0.001518574295 | CP17: -0.0049825739 | CR17: 2026 | CS17: -0.08731152545 | CT17: -0.03372706853 | CU17: -0.06298954362 | CV17: -0.03983616441 | CW17: -0.07879437976 | CX17: -0.1491043227 | CZ17: 2026 | DA17: =scenarios!J22 -> 2.749444322 | DB17: =scenarios!R22 -> 4.526380538 | DC17: =scenarios!Z22 -> 4.012864611 | DD17: =scenarios!AH22 -> 4.497760239 | DE17: =scenarios!AP22 -> 3.598371443 | DF17: =scenarios!BB22 -> 2.640918758 | DG17: =CA17/scenarios!$B22*1000000 -> 3.093938297 | DH17: =CB17/scenarios!$B22*1000000 -> 3.187694606 | DI17: =CC17/scenarios!$B22*1000000 -> 4.933358831 | DJ17: =CD17/scenarios!$B22*1000000 -> 4.666510304 | DL17: 2018 | DM17: ='base data'!$L$18 -> 42.11268577 | DN17: ='base data'!$L$18 -> 42.11268577 | DO17: ='base data'!$L$18 -> 42.11268577 | DP17: ='base data'!$L$18 -> 42.11268577 | DQ17: ='base data'!$L$18 -> 42.11268577 | DR17: ='base data'!$L$18 -> 42.11268577 | DS17: ='IPCC SR15 paths P1-P4'!C15 -> 39.3592163 | DT17: ='IPCC SR15 paths P1-P4'!E15 -> 36.94364154 | DU17: ='IPCC SR15 paths P1-P4'!G15 -> 40.8077578 | DV17: ='IPCC SR15 paths P1-P4'!I15 -> 39.034
BT18: 2027 | BU18: =scenarios!E23 -> 20.72571461 | BV18: =scenarios!L23 -> 35.84055549 | BW18: =scenarios!T23 -> 30.76296567 | BX18: =scenarios!AB23 -> 35.26816131 | BY18: =scenarios!AJ23 -> 27.20006937 | BZ18: =scenarios!AX23 -> 18.37152794 | CA18: ='IPCC SR15 paths P1-P4'!C24 -> 23.21872287 | CB18: ='IPCC SR15 paths P1-P4'!E24 -> 24.51041225 | CC18: ='IPCC SR15 paths P1-P4'!G15 -> 40.8077578 | CD18: ='IPCC SR15 paths P1-P4'!I24 -> 38.349 | CF18: 2027 | CG18: =IF($BU17>'goal seek'!$F$31,$BU18/$BU17-1,#N/A) -> -0.08731152545 | CH18: =IF(BV17>'goal seek'!$F$28,BV18/BV17-1,#N/A) -> -0.0413023752 | CI18: =IF(BW17>'goal seek'!$F$28,BW18/BW17-1,#N/A) -> -0.07182113422 | CJ18: =IF(BX17>'goal seek'!$F$28,BX18/BX17-1,#N/A) -> -0.05061033489 | CK18: =IF(BY17>'goal seek'!$F$28,BY18/BY17-1,#N/A) -> -0.08478737553 | CL18: =IF(BZ17>'goal seek'!$F$28,BZ18/BZ17-1,#N/A) -> -0.1577360392 | CM18: -0.09137504215 | CN18: -0.06903813685 | CO18: 0.001516271724 | CP18: -0.005007524259 | CR18: 2027 | CS18: -0.08731152545 | CT18: -0.0413023752 | CU18: -0.07182113422 | CV18: -0.05061033489 | CW18: -0.08478737553 | CX18: -0.1577360392 | CZ18: 2027 | DA18: =scenarios!J23 -> 2.487161865 | DB18: =scenarios!R23 -> 4.300998278 | DC18: =scenarios!Z23 -> 3.691668854 | DD18: =scenarios!AH23 -> 4.232308875 | DE18: =scenarios!AP23 -> 3.264108213 | DF18: =scenarios!BB23 -> 2.204650819 | DG18: =CA18/scenarios!$B23*1000000 -> 2.786332012 | DH18: =CB18/scenarios!$B23*1000000 -> 2.941339481 | DI18: =CC18/scenarios!$B23*1000000 -> 4.897080797 | DJ18: =CD18/scenarios!$B23*1000000 -> 4.602020831 | DL18: =BT10 -> 2019 | DM18: =BU10 -> 43.04562157 | DN18: =BV10 -> 43.04562157 | DO18: =BW10 -> 43.04562157 | DP18: =BX10 -> 43.04562157 | DQ18: =BY10 -> 43.04562157 | DR18: =BZ10 -> 43.04562157 | DS18: ='IPCC SR15 paths P1-P4'!C16 -> 39.46136367 | DT18: ='IPCC SR15 paths P1-P4'!E16 -> 37.08876567 | DU18: ='IPCC SR15 paths P1-P4'!G16 -> 40.86953977 | DV18: ='IPCC SR15 paths P1-P4'!I16 -> 39.367
BT19: 2028 | BU19: =scenarios!E24 -> 18.91612085 | BV19: =scenarios!L24 -> 34.02777093 | BW19: =scenarios!T24 -> 28.28184867 | BX19: =scenarios!AB24 -> 33.04478342 | BY19: =scenarios!AJ24 -> 24.74296394 | BZ19: =scenarios!AX24 -> 15.34411867 | CA19: ='IPCC SR15 paths P1-P4'!C25 -> 20.88375313 | CB19: ='IPCC SR15 paths P1-P4'!E25 -> 22.6927726 | CC19: ='IPCC SR15 paths P1-P4'!G16 -> 40.86953977 | CD19: ='IPCC SR15 paths P1-P4'!I25 -> 38.156 | CF19: 2028 | CG19: =IF($BU18>'goal seek'!$F$31,$BU19/$BU18-1,#N/A) -> -0.08731152545 | CH19: =IF(BV18>'goal seek'!$F$28,BV19/BV18-1,#N/A) -> -0.05057914226 | CI19: =IF(BW18>'goal seek'!$F$28,BW19/BW18-1,#N/A) -> -0.08065272482 | CJ19: =IF(BX18>'goal seek'!$F$28,BX19/BX18-1,#N/A) -> -0.06304207006 | CK19: =IF(BY18>'goal seek'!$F$28,BY19/BY18-1,#N/A) -> -0.09033452801 | CL19: =IF(BZ18>'goal seek'!$F$28,BZ19/BZ18-1,#N/A) -> -0.1647881044 | CM19: -0.1005640901 | CN19: -0.07415785714 | CO19: 0.001513976124 | CP19: -0.005032725756 | CR19: 2028 | CS19: -0.08731152545 | CT19: -0.05057914226 | CU19: -0.08065272482 | CV19: -0.06304207006 | CW19: -0.09033452801 | CX19: -0.1647881044 | CZ19: 2028 | DA19: =scenarios!J24 -> 2.25034838 | DB19: =scenarios!R24 -> 4.048099492 | DC19: =scenarios!Z24 -> 3.364538261 | DD19: =scenarios!AH24 -> 3.931158795 | DE19: =scenarios!AP24 -> 2.943536324 | DF19: =scenarios!BB24 -> 1.82540664 | DG19: =CA19/scenarios!$B24*1000000 -> 2.484426929 | DH19: =CB19/scenarios!$B24*1000000 -> 2.699636171 | DI19: =CC19/scenarios!$B24*1000000 -> 4.862027651 | DJ19: =CD19/scenarios!$B24*1000000 -> 4.539212531 | DL19: 2020 | DM19: 39.28724269 | DN19: 42.61516535 | DO19: 42.61516535 | DP19: 42.61516535 | DQ19: 42.61516535 | DR19: 42.99502157 | DS19: =CA11 -> 39.56351104 | DT19: =CB11 -> 37.2338898 | DU19: 40.375284 | DV19: 39.7
BT20: 2029 | BU20: =scenarios!E25 -> 17.26452548 | BV20: =scenarios!L25 -> 31.92010686 | BW20: =scenarios!T25 -> 25.7510668 | BX20: =scenarios!AB25 -> 30.495994 | BY20: =scenarios!AJ25 -> 22.37945081 | BZ20: =scenarios!AX25 -> 12.72552523 | CA20: ='IPCC SR15 paths P1-P4'!C26 -> 18.54878339 | CB20: ='IPCC SR15 paths P1-P4'!E26 -> 20.87513295 | CC20: ='IPCC SR15 paths P1-P4'!G17 -> 40.93132174 | CD20: ='IPCC SR15 paths P1-P4'!I26 -> 37.963 | CF20: 2029 | CG20: =IF($BU19>'goal seek'!$F$31,$BU20/$BU19-1,#N/A) -> -0.08731152545 | CH20: =IF(BV19>'goal seek'!$F$28,BV20/BV19-1,#N/A) -> -0.06193952816 | CI20: =IF(BW19>'goal seek'!$F$28,BW20/BW19-1,#N/A) -> -0.08948431542 | CJ20: =IF(BX19>'goal seek'!$F$28,BX20/BX19-1,#N/A) -> -0.07713136992 | CK20: =IF(BY19>'goal seek'!$F$28,BY20/BY19-1,#N/A) -> -0.09552263585 | CL20: =IF(BZ19>'goal seek'!$F$28,BZ20/BZ19-1,#N/A) -> -0.1706577938 | CM20: -0.1118079554 | CN20: -0.08009773341 | CO20: 0.001511687466 | CP20: -0.005058182199 | CR20: 2029 | CS20: -0.08731152545 | CT20: -0.06193952816 | CU20: -0.08948431542 | CV20: -0.07713136992 | CW20: -0.09552263585 | CX20: -0.1706577938 | CZ20: 2029 | DA20: =scenarios!J25 -> 2.036472808 | DB20: =scenarios!R25 -> 3.765202219 | DC20: =scenarios!Z25 -> 3.037520341 | DD20: =scenarios!AH25 -> 3.597218043 | DE20: =scenarios!AP25 -> 2.639814404 | DF20: =scenarios!BB25 -> 1.501065647 | DG20: =CA20/scenarios!$B25*1000000 -> 2.187960106 | DH20: =CB20/scenarios!$B25*1000000 -> 2.46236948 | DI20: =CC20/scenarios!$B25*1000000 -> 4.828138707 | DJ20: =CD20/scenarios!$B25*1000000 -> 4.478004178 | DL20: 2021 | DM20: 35.8570136 | DN20: 42.09329742 | DO20: 41.81265401 | DP20: 42.153695 | DQ20: 41.30507775 | DR20: 41.2738495 | DS20: =CA12 -> 37.2285413 | DT20: 35.41625015 | DU20: 40.43706597 | DV20: 39.507
BT21: 2030 | BU21: =scenarios!E26 -> 15.75713342 | BV21: =scenarios!L26 -> 29.49891803 | BW21: =scenarios!T26 -> 23.21932734 | BX21: =scenarios!AB26 -> 27.66357992 | BY21: =scenarios!AJ26 -> 20.13225119 | BZ21: =scenarios!AX26 -> 10.49067524 | CA21: ='IPCC SR15 paths P1-P4'!C27 -> 16.21381365 | CB21: ='IPCC SR15 paths P1-P4'!E27 -> 19.0574933 | CC21: ='IPCC SR15 paths P1-P4'!G18 -> 39.20150242 | CD21: ='IPCC SR15 paths P1-P4'!I27 -> 37.77 | CF21: 2030 | CG21: =IF($BU20>'goal seek'!$F$31,$BU21/$BU20-1,#N/A) -> -0.08731152545 | CH21: =IF(BV20>'goal seek'!$F$28,BV21/BV20-1,#N/A) -> -0.07585152648 | CI21: =IF(BW20>'goal seek'!$F$28,BW21/BW20-1,#N/A) -> -0.09831590603 | CJ21: =IF(BX20>'goal seek'!$F$28,BX21/BX20-1,#N/A) -> -0.09287823447 | CK21: =IF(BY20>'goal seek'!$F$28,BY21/BY20-1,#N/A) -> -0.1004135283 | CL21: =IF(BZ20>'goal seek'!$F$28,BZ21/BZ20-1,#N/A) -> -0.1756194695 | CM21: -0.1258826355 | CN21: -0.08707200353 | CO21: -0.04226150653 | CP21: -0.005083897479 | CR21: 2030 | CS21: -0.08731152545 | CT21: -0.07585152648 | CU21: -0.09831590603 | CV21: -0.09287823447 | CW21: -0.1004135283 | CX21: -0.1756194695 | CZ21: 2030 | DA21: =scenarios!J26 -> 1.843265678 | DB21: =scenarios!R26 -> 3.450776336 | DC21: =scenarios!Z26 -> 2.716191327 | DD21: =scenarios!AH26 -> 3.236078926 | DE21: =scenarios!AP26 -> 2.355065902 | DF21: =scenarios!BB26 -> 1.227196666 | DG21: =CA21/scenarios!$B26*1000000 -> 1.896688021 | DH21: =CB21/scenarios!$B26*1000000 -> 2.229340983 | DI21: =CC21/scenarios!$B26*1000000 -> 4.585782324 | DJ21: =CD21/scenarios!$B26*1000000 -> 4.418325516 | DL21: 2022 | DM21: 32.72628304 | DN21: 41.46204099 | DO21: 40.65598298 | DP21: 41.5924131 | DQ21: 39.40807212 | DR21: 37.99048762 | DS21: 34.89357156 | DT21: 33.5986105 | DU21: 40.49884794 | DV21: 39.314
BT22: 2031 | BU22: =scenarios!E27 -> 14.38135407 | BV22: =scenarios!L27 -> 26.7588153 | BW22: =scenarios!T27 -> 20.73143454 | BX22: =scenarios!AB27 -> 24.61276664 | BY22: =scenarios!AJ27 -> 18.01729589 | BZ22: =scenarios!AX27 -> 8.603731095 | CA22: ='IPCC SR15 paths P1-P4'!C28 -> 15.37976687 | CB22: ='IPCC SR15 paths P1-P4'!E28 -> 17.97467597 | CC22: ='IPCC SR15 paths P1-P4'!G19 -> 37.4716831 | CD22: ='IPCC SR15 paths P1-P4'!I28 -> 36.207 | CF22: 2031 | CG22: =IF($BU21>'goal seek'!$F$31,$BU22/$BU21-1,#N/A) -> -0.08731152545 | CH22: =IF(BV21>'goal seek'!$F$28,BV22/BV21-1,#N/A) -> -0.09288824504 | CI22: =IF(BW21>'goal seek'!$F$28,BW22/BW21-1,#N/A) -> -0.1071474966 | CJ22: =IF(BX21>'goal seek'!$F$28,BX22/BX21-1,#N/A) -> -0.1102826637 | CK22: =IF(BY21>'goal seek'!$F$28,BY22/BY21-1,#N/A) -> -0.1050530954 | CL22: =IF(BZ21>'goal seek'!$F$28,BZ22/BZ21-1,#N/A) -> -0.1798687027 | CM22: -0.05144050603 | CN22: -0.05681845524 | CO22: -0.04412635267 | CP22: -0.04138204925 | CR22: 2031 | CS22: -0.08731152545 | CT22: -0.09288824504 | CU22: -0.1071474966 | CV22: -0.1102826637 | CW22: -0.1050530954 | CX22: -0.1798687027 | CZ22: 2031 | DA22: =scenarios!J27 -> 1.668690053 | DB22: =scenarios!R27 -> 3.104865419 | DC22: =scenarios!Z27 -> 2.405499402 | DD22: =scenarios!AH27 -> 2.855856179 | DE22: =scenarios!AP27 -> 2.090573828 | DF22: =scenarios!BB27 -> 0.9983038058 | DG22: =CA22/scenarios!$B27*1000000 -> 1.784537386 | DH22: =CB22/scenarios!$B27*1000000 -> 2.085628576 | DI22: =CC22/scenarios!$B27*1000000 -> 4.347895516 | DJ22: =CD22/scenarios!$B27*1000000 -> 4.201152442 | DL22: 2023 | DM22: 29.86890135 | DN22: 40.70059348 | DO22: 39.17225216 | DP22: 40.86624945 | DQ22: 37.18619925 | DR22: 33.97345185 | DS22: 32.55860182 | DT22: 31.78097085 | DU22: 40.56062991 | DV22: 39.121
BT23: 2032 | BU23: =scenarios!E28 -> 13.12569611 | BV23: =scenarios!L28 -> 23.71495952 | BW23: =scenarios!T28 -> 18.32702169 | BX23: =scenarios!AB28 -> 21.42923677 | BY23: =scenarios!AJ28 -> 16.04482523 | BZ23: =scenarios!AX28 -> 7.024527754 | CA23: ='IPCC SR15 paths P1-P4'!C29 -> 14.54572009 | CB23: ='IPCC SR15 paths P1-P4'!E29 -> 16.89185864 | CC23: ='IPCC SR15 paths P1-P4'!G20 -> 35.74186378 | CD23: ='IPCC SR15 paths P1-P4'!I29 -> 34.644 | CF23: 2032 | CG23: =IF($BU22>'goal seek'!$F$31,$BU23/$BU22-1,#N/A) -> -0.08731152545 | CH23: =IF(BV22>'goal seek'!$F$28,BV23/BV22-1,#N/A) -> -0.1137515152 | CI23: =IF(BW22>'goal seek'!$F$28,BW23/BW22-1,#N/A) -> -0.1159790872 | CJ23: =IF(BX22>'goal seek'!$F$28,BX23/BX22-1,#N/A) -> -0.1293446576 | CK23: =IF(BY22>'goal seek'!$F$28,BY23/BY22-1,#N/A) -> -0.1094765088 | CL23: =IF(BZ22>'goal seek'!$F$28,BZ23/BZ22-1,#N/A) -> -0.1835486631 | CM23: -0.05423013143 | CN23: -0.06024127121 | CO23: -0.04616337399 | CP23: -0.04316844809 | CR23: 2032 | CS23: -0.08731152545 | CT23: -0.1137515152 | CU23: -0.1159790872 | CV23: -0.1293446576 | CW23: -0.1094765088 | CX23: -0.1835486631 | CZ23: 2032 | DA23: =scenarios!J28 -> 1.510918826 | DB23: =scenarios!R28 -> 2.72986503 | DC23: =scenarios!Z28 -> 2.109651318 | DD23: =scenarios!AH28 -> 2.466752011 | DE23: =scenarios!AP28 -> 1.846944216 | DF23: =scenarios!BB28 -> 0.8086040651 | DG23: =CA23/scenarios!$B28*1000000 -> 1.674379945 | DH23: =CB23/scenarios!$B28*1000000 -> 1.944447519 | DI23: =CC23/scenarios!$B28*1000000 -> 4.114300257 | DJ23: =CD23/scenarios!$B28*1000000 -> 3.987923489 | DL23: 2024 | DM23: 27.26100201 | DN23: 39.78524498 | DO23: 37.39671646 | DP23: 39.91567934 | DQ23: 34.77359842 | DR23: 29.74830715 | DS23: 30.22363208 | DT23: 29.9633312 | DU23: 40.62241189 | DV23: 38.928
BT24: 2033 | BU24: =scenarios!E29 -> 11.97967156 | BV24: =scenarios!L29 -> 20.41144659 | BW24: =scenarios!T29 -> 16.03961369 | BX24: =scenarios!AB29 -> 18.21347515 | BY24: =scenarios!AJ29 -> 14.22034522 | BZ24: =scenarios!AX29 -> 5.712580816 | CA24: ='IPCC SR15 paths P1-P4'!C30 -> 13.71167331 | CB24: ='IPCC SR15 paths P1-P4'!E30 -> 15.80904131 | CC24: ='IPCC SR15 paths P1-P4'!G21 -> 34.01204446 | CD24: ='IPCC SR15 paths P1-P4'!I30 -> 33.081 | CF24: 2033 | CG24: =IF($BU23>'goal seek'!$F$31,$BU24/$BU23-1,#N/A) -> -0.08731152545 | CH24: =IF(BV23>'goal seek'!$F$28,BV24/BV23-1,#N/A) -> -0.1393008039 | CI24: =IF(BW23>'goal seek'!$F$28,BW24/BW23-1,#N/A) -> -0.1248106778 | CJ24: =IF(BX23>'goal seek'!$F$28,BX24/BX23-1,#N/A) -> -0.1500642163 | CK24: =IF(BY23>'goal seek'!$F$28,BY24/BY23-1,#N/A) -> -0.1137114297 | CL24: =IF(BZ23>'goal seek'!$F$28,BZ24/BZ23-1,#N/A) -> -0.1867665676 | CM24: -0.05733966923 | CN24: -0.06410291212 | CO24: -0.04839756907 | CP24: -0.04511603741 | CR24: 2033 | CS24: -0.08731152545 | CT24: -0.1393008039 | CU24: -0.1248106778 | CV24: -0.1500642163 | CW24: -0.1137114297 | CX24: -0.1867665676 | CZ24: 2033 | DA24: =scenarios!J29 -> 1.368310382 | DB24: =scenarios!R29 -> 2.331382305 | DC24: =scenarios!Z29 -> 1.832034362 | DD24: =scenarios!AH29 -> 2.08033142 | DE24: =scenarios!AP29 -> 1.624238687 | DF24: =scenarios!BB29 -> 0.6524873077 | DG24: =CA24/scenarios!$B29*1000000 -> 1.566138509 | DH24: =CB24/scenarios!$B29*1000000 -> 1.805698533 | DI24: =CC24/scenarios!$B29*1000000 -> 3.884833848 | DJ24: =CD24/scenarios!$B29*1000000 -> 3.778490549 | DL24: 2025 | DM24: 24.88080234 | DN24: 38.68951335 | DO24: 35.37138685 | DP24: 38.68948729 | DQ24: 32.26201067 | DR24: 25.63425746 | DS24: 27.88866234 | DT24: 28.14569155 | DU24: 40.68419386 | DV24: 38.735
BT25: 2034 | BU25: =scenarios!E30 -> 10.93370816 | BV25: =scenarios!L30 -> 16.92948609 | BW25: =scenarios!T30 -> 13.89604333 | BX25: =scenarios!AB30 -> 15.07271909 | BY25: =scenarios!AJ30 -> 12.54547183 | BZ25: =scenarios!AX30 -> 4.629450934 | CA25: ='IPCC SR15 paths P1-P4'!C31 -> 12.87762653 | CB25: ='IPCC SR15 paths P1-P4'!E31 -> 14.72622398 | CC25: ='IPCC SR15 paths P1-P4'!G22 -> 32.28222513 | CD25: ='IPCC SR15 paths P1-P4'!I31 -> 31.518 | CF25: 2034 | CG25: =IF($BU24>'goal seek'!$F$31,$BU25/$BU24-1,#N/A) -> -0.08731152545 | CH25: =IF(BV24>'goal seek'!$F$28,BV25/BV24-1,#N/A) -> -0.1705886198 | CI25: =IF(BW24>'goal seek'!$F$28,BW25/BW24-1,#N/A) -> -0.1336422684 | CJ25: =IF(BX24>'goal seek'!$F$28,BX25/BX24-1,#N/A) -> -0.1724413396 | CK25: =IF(BY24>'goal seek'!$F$28,BY25/BY24-1,#N/A) -> -0.1177800793 | CL25: =IF(BZ24>'goal seek'!$F$28,BZ25/BZ24-1,#N/A) -> -0.1896042991 | CM25: -0.06082749784 | CN25: -0.06849354801 | CO25: -0.05085902211 | CP25: -0.04724766482 | CR25: 2034 | CS25: -0.08731152545 | CT25: -0.1705886198 | CU25: -0.1336422684 | CV25: -0.1724413396 | CW25: -0.1177800793 | CX25: -0.1896042991 | CZ25: 2034 | DA25: =scenarios!J30 -> 1.23938771 | DB25: =scenarios!R30 -> 1.919037593 | DC25: =scenarios!Z30 -> 1.57518246 | DD25: =scenarios!AH30 -> 1.708564242 | DE25: =scenarios!AP30 -> 1.422088771 | DF25: =scenarios!BB30 -> 0.5247702342 | DG25: =CA25/scenarios!$B30*1000000 -> 1.459740083 | DH25: =CB25/scenarios!$B30*1000000 -> 1.669287377 | DI25: =CC25/scenarios!$B30*1000000 -> 3.659343426 | DJ25: =CD25/scenarios!$B30*1000000 -> 3.57271488 | DL25: 2026 | DM25: 22.70842153 | DN25: 37.38462948 | DO25: 33.14335933 | DP25: 37.14824651 | DQ25: 29.71994555 | DR25: 21.81207886 | DS25: 25.55369261 | DT25: 26.3280519 | DU25: 40.74597583 | DV25: 38.542
BT26: 2035 | BU26: =scenarios!E31 -> 9.979069421 | BV26: =scenarios!L31 -> 13.39285091 | BW26: =scenarios!T31 -> 11.91622041 | BX26: =scenarios!AB31 -> 12.11129112 | BY26: =scenarios!AJ31 -> 11.01868003 | BZ26: =scenarios!AX31 -> 3.740015488 | CA26: ='IPCC SR15 paths P1-P4'!C32 -> 12.04357976 | CB26: ='IPCC SR15 paths P1-P4'!E32 -> 13.64340665 | CC26: ='IPCC SR15 paths P1-P4'!G23 -> 30.55240581 | CD26: ='IPCC SR15 paths P1-P4'!I32 -> 29.955 | CF26: 2035 | CG26: =IF($BU25>'goal seek'!$F$31,$BU26/$BU25-1,#N/A) -> -0.08731152545 | CH26: =IF(BV25>'goal seek'!$F$28,BV26/BV25-1,#N/A) -> -0.2089038711 | CI26: =IF(BW25>'goal seek'!$F$28,BW26/BW25-1,#N/A) -> -0.142473859 | CJ26: =IF(BX25>'goal seek'!$F$28,BX26/BX25-1,#N/A) -> -0.1964760276 | CK26: =IF(BY25>'goal seek'!$F$28,BY26/BY25-1,#N/A) -> -0.1217006283 | CL26: =IF(BZ25>'goal seek'!$F$28,BZ26/BZ25-1,#N/A) -> -0.1921254721 | CM26: -0.06476711967 | CN26: -0.07352986967 | CO26: -0.05358426545 | CP26: -0.04959071007 | CR26: 2035 | CS26: -0.08731152545 | CT26: -0.2089038711 | CU26: -0.142473859 | CV26: -0.1964760276 | CW26: -0.1217006283 | CX26: -0.1921254721 | CZ26: 2035 | DA26: =scenarios!J31 -> 1.122817692 | DB26: =scenarios!R31 -> 1.50692708 | DC26: =scenarios!Z31 -> 1.340780641 | DD26: =scenarios!AH31 -> 1.362729466 | DE26: =scenarios!AP31 -> 1.239791843 | DF26: =scenarios!BB31 -> 0.4208163487 | DG26: =CA26/scenarios!$B31*1000000 -> 1.355110767 | DH26: =CB26/scenarios!$B31*1000000 -> 1.535118929 | DI26: =CC26/scenarios!$B31*1000000 -> 3.437673426 | DJ26: =CD26/scenarios!$B31*1000000 -> 3.370454953 | DL26: 2027 | DM26: 20.72571461 | DN26: 35.84055549 | DO26: 30.76296567 | DP26: 35.26816131 | DQ26: 27.20006937 | DR26: 18.37152794 | DS26: 23.21872287 | DT26: 24.51041225 | DU26: 40.8077578 | DV26: 38.349
BT27: 2036 | BU27: =scenarios!E32 -> 9.107781648 | BV27: =scenarios!L32 -> 9.966625318 | BW27: =scenarios!T32 -> 10.11323132 | BX27: =scenarios!AB32 -> 9.420546401 | BY27: =scenarios!AJ32 -> 9.635966139 | BZ27: =scenarios!AX32 -> 3.013030313 | CA27: ='IPCC SR15 paths P1-P4'!C33 -> 11.20953298 | CB27: ='IPCC SR15 paths P1-P4'!E33 -> 12.56058932 | CC27: ='IPCC SR15 paths P1-P4'!G24 -> 28.82258649 | CD27: ='IPCC SR15 paths P1-P4'!I33 -> 28.392 | CF27: 2036 | CG27: =IF($BU26>'goal seek'!$F$31,$BU27/$BU26-1,#N/A) -> -0.08731152545 | CH27: =IF(BV26>'goal seek'!$F$28,BV27/BV26-1,#N/A) -> -0.2558249632 | CI27: =IF(BW26>'goal seek'!$F$28,BW27/BW26-1,#N/A) -> -0.1513054496 | CJ27: =IF(BX26>'goal seek'!$F$28,BX27/BX26-1,#N/A) -> -0.2221682803 | CK27: =IF(BY26>'goal seek'!$F$28,BY27/BY26-1,#N/A) -> -0.1254881605 | CL27: =IF(BZ26>'goal seek'!$F$28,BZ27/BZ26-1,#N/A) -> -0.1943802579 | CM27: -0.06925239802 | CN27: =IF(CB26>0,CB27/CB26-1,#N/A) -> -0.07936561284 | CO27: =IF(CC26>0,CC27/CC26-1,#N/A) -> -0.05661810502 | CP27: =IF(CD26>0,CD27/CD26-1,#N/A) -> -0.0521782674 | CR27: 2036 | CS27: -0.08731152545 | CT27: -0.2558249632 | CU27: -0.1513054496 | CV27: -0.2221682803 | CW27: -0.1254881605 | CX27: -0.1943802579 | CZ27: 2036 | DA27: =scenarios!J32 -> 1.01739632 | DB27: =scenarios!R32 -> 1.113334543 | DC27: =scenarios!Z32 -> 1.129711353 | DD27: =scenarios!AH32 -> 1.052334104 | DE27: =scenarios!AP32 -> 1.07639784 | DF27: =scenarios!BB32 -> 0.336574379 | DG27: =CA27/scenarios!$B32*1000000 -> 1.252175122 | DH27: =CB27/scenarios!$B32*1000000 -> 1.403096588 | DI27: =CC27/scenarios!$B32*1000000 -> 3.219663642 | DJ27: =CD27/scenarios!$B32*1000000 -> 3.171564431 | DL27: 2028 | DM27: 18.91612085 | DN27: 34.02777093 | DO27: 28.28184867 | DP27: 33.04478342 | DQ27: 24.74296394 | DR27: 15.34411867 | DS27: 20.88375313 | DT27: 22.6927726 | DU27: 40.86953977 | DV27: 38.156
BT28: 2037 | BU28: =scenarios!E33 -> 8.312567338 | BV28: =scenarios!L33 -> 6.844232892 | BW28: =scenarios!T33 -> 8.493728392 | BX28: =scenarios!AB33 -> 7.069949585 | BY28: =scenarios!AJ33 -> 8.391429453 | BZ28: =scenarios!AX33 -> 2.421244772 | CA28: ='IPCC SR15 paths P1-P4'!C34 -> 10.3754862 | CB28: ='IPCC SR15 paths P1-P4'!E34 -> 11.47777199 | CC28: ='IPCC SR15 paths P1-P4'!G25 -> 27.09276717 | CD28: ='IPCC SR15 paths P1-P4'!I34 -> 26.829 | CF28: 2037 | CG28: =IF($BU27>'goal seek'!$F$31,$BU28/$BU27-1,#N/A) -> -0.08731152545 | CH28: =IF(BV27>'goal seek'!$F$28,BV28/BV27-1,#N/A) -> -0.3132848207 | CI28: =IF(BW27>'goal seek'!$F$28,BW28/BW27-1,#N/A) -> -0.1601370402 | CJ28: =IF(BX27>'goal seek'!$F$28,BX28/BX27-1,#N/A) -> -0.2495180976 | CK28: =IF(BY27>'goal seek'!$F$28,BY28/BY27-1,#N/A) -> -0.129155361 | CL28: =IF(BZ27>'goal seek'!$F$28,BZ28/BZ27-1,#N/A) -> -0.1964087577 | CM28: -0.07440513182 | CN28: -0.08620752597 | CO28: -0.06001610305 | CP28: -0.05505071851 | CR28: 2037 | CS28: -0.08731152545 | CT28: -0.3132848207 | CU28: -0.1601370402 | CV28: -0.2495180976 | CW28: -0.129155361 | CX28: -0.1964087577 | CZ28: 2037 | DA28: =scenarios!J33 -> 0.9220370279 | DB28: =scenarios!R33 -> 0.7591681243 | DC28: =scenarios!Z33 -> 0.9421315657 | DD28: =scenarios!AH33 -> 0.7842048114 | DE28: =scenarios!AP33 -> 0.9307844806 | DF28: =scenarios!BB33 -> 0.2685665261 | DG28: =CA28/scenarios!$B33*1000000 -> 1.15085774 | DH28: =CB28/scenarios!$B33*1000000 -> 1.273124216 | DI28: =CC28/scenarios!$B33*1000000 -> 3.005152741 | DJ28: =CD28/scenarios!$B33*1000000 -> 2.975895462 | DL28: 2029 | DM28: 17.26452548 | DN28: 31.92010686 | DO28: 25.7510668 | DP28: 30.495994 | DQ28: 22.37945081 | DR28: 12.72552523 | DS28: 18.54878339 | DT28: 20.87513295 | DU28: 40.93132174 | DV28: 37.963
BT29: 2038 | BU29: =scenarios!E34 -> 7.586784404 | BV29: =scenarios!L34 -> 4.218439419 | BW29: =scenarios!T34 -> 7.058554735 | BX29: =scenarios!AB34 -> 5.100788485 | BY29: =scenarios!AJ34 -> 7.277777521 | BZ29: =scenarios!AX34 -> 1.941248956 | CA29: ='IPCC SR15 paths P1-P4'!C35 -> 9.54143942 | CB29: ='IPCC SR15 paths P1-P4'!E35 -> 10.39495466 | CC29: ='IPCC SR15 paths P1-P4'!G26 -> 25.36294785 | CD29: ='IPCC SR15 paths P1-P4'!I35 -> 25.266 | CF29: 2038 | CG29: =IF($BU28>'goal seek'!$F$31,$BU29/$BU28-1,#N/A) -> -0.08731152545 | CH29: =IF(BV28>'goal seek'!$F$28,BV29/BV28-1,#N/A) -> -0.3836505149 | CI29: =IF(BW28>'goal seek'!$F$28,BW29/BW28-1,#N/A) -> -0.1689686308 | CJ29: =IF(BX28>'goal seek'!$F$28,BX29/BX28-1,#N/A) -> -0.2785254797 | CK29: =IF(BY28>'goal seek'!$F$28,BY29/BY28-1,#N/A) -> -0.1327130185 | CL29: =IF(BZ28>'goal seek'!$F$28,BZ29/BZ28-1,#N/A) -> -0.1982434083 | CM29: -0.08038628387 | CN29: -0.09434037642 | CO29: -0.06384801191 | CP29: -0.05825785531 | CR29: 2038 | CS29: -0.08731152545 | CT29: -0.3836505149 | CU29: -0.1689686308 | CV29: -0.2785254797 | CW29: -0.1327130185 | CX29: -0.1982434083 | CZ29: 2038 | DA29: =scenarios!J34 -> 0.8357612269 | DB29: =scenarios!R34 -> 0.4647038741 | DC29: =scenarios!Z34 -> 0.7775713729 | DD29: =scenarios!AH34 -> 0.5619035701 | DE29: =scenarios!AP34 -> 0.8017209856 | DF29: =scenarios!BB34 -> 0.2138482555 | DG29: =CA29/scenarios!$B34*1000000 -> 1.051086296 | DH29: =CB29/scenarios!$B34*1000000 -> 1.145109654 | DI29: =CC29/scenarios!$B34*1000000 -> 2.793985869 | DJ29: =CD29/scenarios!$B34*1000000 -> 2.78330608 | DL29: 2030 | DM29: 15.75713342 | DN29: 29.49891803 | DO29: 23.21932734 | DP29: 27.66357992 | DQ29: 20.13225119 | DR29: 10.49067524 | DS29: 16.21381365 | DT29: 19.0574933 | DU29: 39.20150242 | DV29: 37.77
BT30: 2039 | BU30: =scenarios!E35 -> 6.924370684 | BV30: =scenarios!L35 -> 2.236528938 | BW30: =scenarios!T35 -> 5.80354214 | BX30: =scenarios!AB35 -> 3.523673518 | BY30: =scenarios!AJ35 -> 6.286759647 | BZ30: =scenarios!AX35 -> 1.553172461 | CA30: ='IPCC SR15 paths P1-P4'!C36 -> 8.707392641 | CB30: ='IPCC SR15 paths P1-P4'!E36 -> 9.31213733 | CC30: ='IPCC SR15 paths P1-P4'!G27 -> 23.63312853 | CD30: ='IPCC SR15 paths P1-P4'!I36 -> 23.703 | CF30: 2039 | CG30: =IF($BU29>'goal seek'!$F$31,$BU30/$BU29-1,#N/A) -> -0.08731152545 | CH30: =IF(BV29>'goal seek'!$F$28,BV30/BV29-1,#N/A) -> -0.4698207761 | CI30: =IF(BW29>'goal seek'!$F$28,BW30/BW29-1,#N/A) -> -0.1778002214 | CJ30: =IF(BX29>'goal seek'!$F$28,BX30/BX29-1,#N/A) -> -0.3091904264 | CK30: =IF(BY29>'goal seek'!$F$28,BY30/BY29-1,#N/A) -> -0.1361703997 | CL30: =IF(BZ29>'goal seek'!$F$28,BZ30/BZ29-1,#N/A) ->  | CM30: -0.08741309797 | CN30: -0.1041675857 | CO30: -0.06820261316 | CP30: -0.06186179055 | CR30: 2039 | CS30: -0.08731152545 | CT30: -0.4698207761 | CU30: -0.1778002214 | CV30: -0.3091904264 | CW30: -0.1361703997 | CX30: 0 | CZ30: 2039 | DA30: =scenarios!J35 -> 0.757686908 | DB30: =scenarios!R35 -> 0.2447281887 | DC30: =scenarios!Z35 -> 0.6350422442 | DD30: =scenarios!AH35 -> 0.3855716879 | DE30: =scenarios!AP35 -> 0.6879174578 | DF30: =scenarios!BB35 -> 0.1699531254 | DG30: =CA30/scenarios!$B35*1000000 -> 0.9527909044 | DH30: =CB30/scenarios!$B35*1000000 -> 1.018964013 | DI30: =CC30/scenarios!$B35*1000000 -> 2.586012924 | DJ30: =CD30/scenarios!$B35*1000000 -> 2.593658485 | DL30: 2031 | DM30: 14.38135407 | DN30: 26.7588153 | DO30: 20.73143454 | DP30: 24.61276664 | DQ30: 18.01729589 | DR30: 8.603731095 | DS30: 15.37976687 | DT30: 17.97467597 | DU30: 37.4716831 | DV30: 36.207
BT31: 2040 | BU31: =scenarios!E36 -> 6.319793317 | BV31: =scenarios!L36 -> 0.9497522858 | BW31: =scenarios!T36 -> 4.720416554 | BX31: =scenarios!AB36 -> 2.320293423 | BY31: =scenarios!AJ36 -> 5.409533281 | BZ31: =scenarios!AX36 -> 1.24031287 | CA31: ='IPCC SR15 paths P1-P4'!C37 -> 7.873345862 | CB31: ='IPCC SR15 paths P1-P4'!E37 -> 8.22932 | CC31: ='IPCC SR15 paths P1-P4'!G28 -> 22.42222862 | CD31: ='IPCC SR15 paths P1-P4'!I37 -> 22.14 | CF31: 2040 | CG31: =IF($BU30>'goal seek'!$F$31,$BU31/$BU30-1,#N/A) -> -0.08731152545 | CH31: =IF(BV30>'goal seek'!$F$28,BV31/BV30-1,#N/A) -> -0.575345407 | CI31: =IF(BW30>'goal seek'!$F$28,BW31/BW30-1,#N/A) -> -0.1866318121 | CJ31: =IF(BX30>'goal seek'!$F$28,BX31/BX30-1,#N/A) -> -0.3415129379 | CK31: =IF(BY30>'goal seek'!$F$28,BY31/BY30-1,#N/A) -> -0.1395355342 | CL31: =IF(BZ30>'goal seek'!$F$28,BZ31/BZ30-1,#N/A) ->  | CM31: -0.09578605367 | CN31: -0.1162802149 | CO31: -0.05123739379 | CP31: -0.06594102012 | CR31: 2040 | CS31: -0.08731152545 | CT31: -0.575345407 | CU31: -0.1866318121 | CV31: -0.3415129379 | CW31: -0.1395355342 | CX31: 0 | CZ31: 2040 | DA31: =scenarios!J36 -> 0.6870201398 | DB31: =scenarios!R36 -> 0.1032468809 | DC31: =scenarios!Z36 -> 0.5131530539 | DD31: =scenarios!AH36 -> 0.2522374122 | DE31: =scenarios!AP36 -> 0.5880664327 | DF31: =scenarios!BB36 -> 0.134833511 | DG31: =CA31/scenarios!$B36*1000000 -> 0.8559057082 | DH31: =CB31/scenarios!$B36*1000000 -> 0.8946033982 | DI31: =CC31/scenarios!$B36*1000000 -> 2.437504182 | DJ31: =CD31/scenarios!$B36*1000000 -> 2.406823314 | DL31: 2032 | DM31: 13.12569611 | DN31: 23.71495952 | DO31: 18.32702169 | DP31: 21.42923677 | DQ31: 16.04482523 | DR31: 7.024527754 | DS31: 14.54572009 | DT31: 16.89185864 | DU31: 35.74186378 | DV31: 34.644
BT32: 2041 | BU32: =scenarios!E37 -> 5.768002522 | BV32: =scenarios!L37 -> -0.337024366 | BW32: =scenarios!T37 -> 3.797747872 | BX32: =scenarios!AB37 -> 1.449039452 | BY32: =scenarios!AJ37 -> 4.636968439 | BZ32: =scenarios!AX37 -> 0.988743561 | CA32: ='IPCC SR15 paths P1-P4'!C38 -> 7.359575049 | CB32: ='IPCC SR15 paths P1-P4'!E38 -> 7.58584977 | CC32: ='IPCC SR15 paths P1-P4'!G29 -> 21.2113287 | CD32: ='IPCC SR15 paths P1-P4'!I38 -> 20.0514 | CF32: 2041 | CG32: =IF($BU31>'goal seek'!$F$31,$BU32/$BU31-1,#N/A) -> -0.08731152545 | CH32: =IF(BV31>'goal seek'!$F$28,BV32/BV31-1,#N/A) ->  | CI32: =IF(BW31>'goal seek'!$F$28,BW32/BW31-1,#N/A) -> -0.1954634027 | CJ32: =IF(BX31>'goal seek'!$F$28,BX32/BX31-1,#N/A) -> -0.375493014 | CK32: =IF(BY31>'goal seek'!$F$28,BY32/BY31-1,#N/A) -> -0.1428154338 | CL32: =IF(BZ31>'goal seek'!$F$28,BZ32/BZ31-1,#N/A) ->  | CM32: -0.06525444486 | CN32: -0.07819239378 | CO32: -0.05400444058 | CP32: -0.09433604336 | CR32: 2041 | CS32: -0.08731152545 | CT32: 0 | CU32: -0.1954634027 | CV32: -0.375493014 | CW32: -0.1428154338 | CX32: 0 | CZ32: 2041 | DA32: =scenarios!J37 -> 0.6230461293 | DB32: =scenarios!R37 -> -0.03640458303 | DC32: =scenarios!Z37 -> 0.4102238345 | DD32: =scenarios!AH37 -> 0.1565218494 | DE32: =scenarios!AP37 -> 0.5008744755 | DF32: =scenarios!BB37 -> 0.1068017648 | DG32: =CA32/scenarios!$B37*1000000 -> 0.7949640677 | DH32: =CB32/scenarios!$B37*1000000 -> 0.8194057334 | DI32: =CC32/scenarios!$B37*1000000 -> 2.29119807 | DJ32: =CD32/scenarios!$B37*1000000 -> 2.165905287 | DL32: 2033 | DM32: 11.97967156 | DN32: 20.41144659 | DO32: 16.03961369 | DP32: 18.21347515 | DQ32: 14.22034522 | DR32: 5.712580816 | DS32: 13.71167331 | DT32: 15.80904131 | DU32: 34.01204446 | DV32: 33.081
BT33: 2042 | BU33: =scenarios!E38 -> 5.264389423 | BV33: =scenarios!L38 -> -1.623801018 | BW33: =scenarios!T38 -> 3.021886996 | BX33: =scenarios!AB38 -> 0.5777854813 | BY33: =scenarios!AJ38 -> 3.959895627 | BZ33: =scenarios!AX38 -> 0.7869310254 | CA33: ='IPCC SR15 paths P1-P4'!C39 -> 6.845804235 | CB33: ='IPCC SR15 paths P1-P4'!E39 -> 6.94237954 | CC33: ='IPCC SR15 paths P1-P4'!G30 -> 20.00042879 | CD33: ='IPCC SR15 paths P1-P4'!I39 -> 17.9628 | CF33: 2042 | CG33: =IF($BU32>'goal seek'!$F$31,$BU33/$BU32-1,#N/A) -> -0.08731152545 | CH33: =IF(BV32>'goal seek'!$F$28,BV33/BV32-1,#N/A) ->  | CI33: =IF(BW32>'goal seek'!$F$28,BW33/BW32-1,#N/A) -> -0.2042949933 | CJ33: =IF(BX32>'goal seek'!$F$28,BX33/BX32-1,#N/A) ->  | CK33: =IF(BY32>'goal seek'!$F$28,BY33/BY32-1,#N/A) -> -0.1460162649 | CL33: =IF(BZ32>'goal seek'!$F$28,BZ33/BZ32-1,#N/A) ->  | CM33: -0.06980984772 | CN33: -0.08482506898 | CO33: -0.05708741446 | CP33: -0.1041623029 | CR33: 2042 | CS33: -0.08731152545 | CT33: 0 | CU33: -0.2042949933 | CV33: 0 | CW33: -0.1460162649 | CX33: 0 | CZ33: 2042 | DA33: =scenarios!J38 -> 0.5651210213 | DB33: =scenarios!R38 -> -0.1743115898 | DC33: =scenarios!Z38 -> 0.3243931496 | DD33: =scenarios!AH38 -> 0.06202404401 | DE33: =scenarios!AP38 -> 0.4250863834 | DF33: =scenarios!BB38 -> 0.08447537388 | DG33: =CA33/scenarios!$B38*1000000 -> 0.7348825419 | DH33: =CB33/scenarios!$B38*1000000 -> 0.7452496957 | DI33: =CC33/scenarios!$B38*1000000 -> 2.147003543 | DJ33: =CD33/scenarios!$B38*1000000 -> 1.928268421 | DL33: 2034 | DM33: 10.93370816 | DN33: 16.92948609 | DO33: 13.89604333 | DP33: 15.07271909 | DQ33: 12.54547183 | DR33: 4.629450934 | DS33: 12.87762653 | DT33: 14.72622398 | DU33: 32.28222513 | DV33: 31.518
BT34: 2043 | BU34: =scenarios!E39 -> 4.804747552 | BV34: =scenarios!L39 -> -2.91057767 | BW34: =scenarios!T39 -> 2.377842544 | BX34: =scenarios!AB39 -> -0.2934684895 | BY34: =scenarios!AJ39 -> 3.369302996 | BZ34: =scenarios!AX39 -> 0.6253788624 | CA34: ='IPCC SR15 paths P1-P4'!C40 -> 6.332033422 | CB34: ='IPCC SR15 paths P1-P4'!E40 -> 6.29890931 | CC34: ='IPCC SR15 paths P1-P4'!G31 -> 18.78952888 | CD34: ='IPCC SR15 paths P1-P4'!I40 -> 15.8742 | CF34: 2043 | CG34: =IF($BU33>'goal seek'!$F$31,$BU34/$BU33-1,#N/A) -> -0.08731152545 | CH34: =IF(BV33>'goal seek'!$F$28,BV34/BV33-1,#N/A) ->  | CI34: =IF(BW33>'goal seek'!$F$28,BW34/BW33-1,#N/A) -> -0.2131265839 | CJ34: =IF(BX33>'goal seek'!$F$28,BX34/BX33-1,#N/A) ->  | CK34: =IF(BY33>'goal seek'!$F$28,BY34/BY33-1,#N/A) -> -0.1491434841 | CL34: =IF(BZ33>'goal seek'!$F$28,BZ34/BZ33-1,#N/A) ->  | CM34: -0.0750490075 | CN34: -0.09268727333 | CO34: -0.06054369762 | CP34: -0.1162736322 | CR34: 2043 | CS34: -0.08731152545 | CT34: 0 | CU34: -0.2131265839 | CV34: 0 | CW34: -0.1491434841 | CX34: 0 | CZ34: 2043 | DA34: =scenarios!J39 -> 0.5126639951 | DB34: =scenarios!R39 -> -0.3105570813 | DC34: =scenarios!Z39 -> 0.2537145282 | DD34: =scenarios!AH39 -> -0.03131293093 | DE34: =scenarios!AP39 -> 0.3595028284 | DF34: =scenarios!BB39 -> 0.06672759029 | DG34: =CA34/scenarios!$B39*1000000 -> 0.6756245809 | DH34: =CB34/scenarios!$B39*1000000 -> 0.6720902559 | DI34: =CC34/scenarios!$B39*1000000 -> 2.004832686 | DJ34: =CD34/scenarios!$B39*1000000 -> 1.693768653 | DL34: 2035 | DM34: 9.979069421 | DN34: 13.39285091 | DO34: 11.91622041 | DP34: 12.11129112 | DQ34: 11.01868003 | DR34: 3.740015488 | DS34: 12.04357976 | DT34: 13.64340665 | DU34: 30.55240581 | DV34: 29.955
BT35: 2044 | BU35: =scenarios!E40 -> 4.385237714 | BV35: =scenarios!L40 -> -3.5 | BW35: =scenarios!T40 -> 1.850060954 | BX35: =scenarios!AB40 -> -1.16472246 | BY35: =scenarios!AJ40 -> 2.856488517 | BZ35: =scenarios!AX40 -> 0.4963070143 | CA35: ='IPCC SR15 paths P1-P4'!C41 -> 5.818262608 | CB35: ='IPCC SR15 paths P1-P4'!E41 -> 5.65543908 | CC35: ='IPCC SR15 paths P1-P4'!G32 -> 17.57862897 | CD35: ='IPCC SR15 paths P1-P4'!I41 -> 13.7856 | CF35: 2044 | CG35: =IF($BU34>'goal seek'!$F$31,$BU35/$BU34-1,#N/A) -> -0.08731152545 | CH35: =IF(BV34>'goal seek'!$F$28,BV35/BV34-1,#N/A) ->  | CI35: =IF(BW34>'goal seek'!$F$28,BW35/BW34-1,#N/A) -> -0.2219581745 | CJ35: =IF(BX34>'goal seek'!$F$28,BX35/BX34-1,#N/A) ->  | CK35: =IF(BY34>'goal seek'!$F$28,BY35/BY34-1,#N/A) -> -0.152201948 | CL35: =IF(BZ34>'goal seek'!$F$28,BZ35/BZ34-1,#N/A) ->  | CM35: -0.08113836096 | CN35: -0.1021558175 | CO35: -0.06444546433 | CP35: -0.1315719847 | CR35: 2044 | CS35: -0.08731152545 | CT35: 0 | CU35: -0.2219581745 | CV35: 0 | CW35: -0.152201948 | CX35: 0 | CZ35: 2044 | DA35: =scenarios!J40 -> 0.4651510962 | DB35: =scenarios!R40 -> -0.3712521289 | DC35: =scenarios!Z40 -> 0.1962397336 | DD35: =scenarios!AH40 -> -0.1235444837 | DE35: =scenarios!AP40 -> 0.3029935551 | DF35: =scenarios!BB40 -> 0.0526442959 | DG35: =CA35/scenarios!$B40*1000000 -> 0.6171549656 | DH35: =CB35/scenarios!$B40*1000000 -> 0.5998839423 | DI35: =CC35/scenarios!$B40*1000000 -> 1.864600979 | DJ35: =CD35/scenarios!$B40*1000000 -> 1.462266671 | DL35: 2036 | DM35: 9.107781648 | DN35: 9.966625318 | DO35: 10.11323132 | DP35: 9.420546401 | DQ35: 9.635966139 | DR35: 3.013030313 | DS35: 11.20953298 | DT35: =CB27 -> 12.56058932 | DU35: =CC27 -> 28.82258649 | DV35: =CD27 -> 28.392
BT36: 2045 | BU36: =scenarios!E41 -> 4.00235592 | BV36: =scenarios!L41 -> -3.5 | BW36: =scenarios!T41 -> 1.322279364 | BX36: =scenarios!AB41 -> -2.035976431 | BY36: =scenarios!AJ41 -> 2.41317292 | BZ36: =scenarios!AX41 -> 0.3933693239 | CA36: ='IPCC SR15 paths P1-P4'!C42 -> 5.304491795 | CB36: ='IPCC SR15 paths P1-P4'!E42 -> 5.01196885 | CC36: ='IPCC SR15 paths P1-P4'!G33 -> 16.36772905 | CD36: ='IPCC SR15 paths P1-P4'!I42 -> 11.697 | CF36: 2045 | CG36: =IF($BU35>'goal seek'!$F$31,$BU36/$BU35-1,#N/A) -> -0.08731152545 | CH36: =IF(BV35>'goal seek'!$F$28,BV36/BV35-1,#N/A) ->  | CI36: =IF(BW35>'goal seek'!$F$28,BW36/BW35-1,#N/A) ->  | CJ36: =IF(BX35>'goal seek'!$F$28,BX36/BX35-1,#N/A) ->  | CK36: =IF(BY35>'goal seek'!$F$28,BY36/BY35-1,#N/A) -> -0.1551960016 | CL36: =IF(BZ35>'goal seek'!$F$28,BZ36/BZ35-1,#N/A) ->  | CM36: -0.08830313239 | CN36: -0.1137790048 | CO36: -0.06888477568 | CP36: -0.1515059192 | CR36: 2045 | CS36: -0.08731152545 | CT36: 0 | CU36: 0 | CV36: 0 | CW36: -0.1551960016 | CX36: 0 | CZ36: 2045 | DA36: =scenarios!J41 -> 0.4221091499 | DB36: =scenarios!R41 -> -0.3691280971 | DC36: =scenarios!Z41 -> 0.1394544187 | DD36: =scenarios!AH41 -> -0.2147246017 | DE36: =scenarios!AP41 -> 0.2545056938 | DF36: =scenarios!BB41 -> 0.04148676286 | DG36: =CA36/scenarios!$B41*1000000 -> 0.5594391322 | DH36: =CB36/scenarios!$B41*1000000 -> 0.5285881499 | DI36: =CC36/scenarios!$B41*1000000 -> 1.726225337 | DJ36: =CD36/scenarios!$B41*1000000 -> 1.233626101 | DL36: 2037 | DM36: 8.312567338 | DN36: 6.844232892 | DO36: 8.493728392 | DP36: 7.069949585 | DQ36: 8.391429453 | DR36: 2.421244772 | DS36: 10.3754862 | DT36: 11.47777199 | DU36: 27.09276717 | DV36: 26.829
BT37: 2046 | BU37: =scenarios!E42 -> 3.652904119 | BV37: =scenarios!L42 -> -3.5 | BW37: =scenarios!T42 -> 0.7944977733 | BX37: =scenarios!AB42 -> -2.907230402 | BY37: =scenarios!AJ42 -> 2.031578971 | BZ37: =scenarios!AX42 -> 0.3114091017 | CA37: ='IPCC SR15 paths P1-P4'!C43 -> 4.790720982 | CB37: ='IPCC SR15 paths P1-P4'!E43 -> 4.36849862 | CC37: ='IPCC SR15 paths P1-P4'!G34 -> 15.15682914 | CD37: ='IPCC SR15 paths P1-P4'!I43 -> 9.6084 | CF37: 2046 | CG37: =IF($BU36>'goal seek'!$F$31,$BU37/$BU36-1,#N/A) -> -0.08731152545 | CH37: =IF(BV36>'goal seek'!$F$28,BV37/BV36-1,#N/A) ->  | CI37: =IF(BW36>'goal seek'!$F$28,BW37/BW36-1,#N/A) ->  | CJ37: =IF(BX36>'goal seek'!$F$28,BX37/BX36-1,#N/A) ->  | CK37: =IF(BY36>'goal seek'!$F$28,BY37/BY36-1,#N/A) -> -0.1581295505 | CL37: =IF(BZ36>'goal seek'!$F$28,BZ37/BZ36-1,#N/A) ->  | CM37: -0.09685580321 | CN37: -0.1283867177 | CO37: -0.07398093585 | CP37: -0.1785586048 | CR37: 2046 | CS37: -0.08731152545 | CT37: 0 | CU37: 0 | CV37: 0 | CW37: -0.1581295505 | CX37: 0 | CZ37: 2046 | DA37: =scenarios!J42 -> 0.3831106173 | DB37: =scenarios!R42 -> -0.3670742831 | DC37: =scenarios!Z42 -> 0.08332562872 | DD37: =scenarios!AH42 -> -0.3049055758 | DE37: =scenarios!AP42 -> 0.2130686841 | DF37: =scenarios!BB42 -> 0.03266007793 | DG37: =CA37/scenarios!$B42*1000000 -> 0.5024429913 | DH37: =CB37/scenarios!$B42*1000000 -> 0.4581609997 | DI37: =CC37/scenarios!$B42*1000000 -> 1.589623483 | DJ37: =CD37/scenarios!$B42*1000000 -> 1.007713298 | DL37: 2038 | DM37: 7.586784404 | DN37: 4.218439419 | DO37: 7.058554735 | DP37: 5.100788485 | DQ37: 7.277777521 | DR37: 1.941248956 | DS37: 9.54143942 | DT37: 10.39495466 | DU37: 25.36294785 | DV37: 25.266
BT38: 2047 | BU38: =scenarios!E43 -> 3.333963488 | BV38: =scenarios!L43 -> -3.5 | BW38: =scenarios!T43 -> 0.2667161831 | BX38: =scenarios!AB43 -> -3.5 | BY38: =scenarios!AJ43 -> 1.704482322 | BZ38: =scenarios!AX43 -> 0.2462504257 | CA38: ='IPCC SR15 paths P1-P4'!C44 -> 4.276950168 | CB38: ='IPCC SR15 paths P1-P4'!E44 -> 3.72502839 | CC38: ='IPCC SR15 paths P1-P4'!G35 -> 13.94592923 | CD38: ='IPCC SR15 paths P1-P4'!I44 -> 7.5198 | CF38: 2047 | CG38: =IF($BU37>'goal seek'!$F$31,$BU38/$BU37-1,#N/A) -> -0.08731152545 | CH38: =IF(BV37>'goal seek'!$F$28,BV38/BV37-1,#N/A) ->  | CI38: =IF(BW37>'goal seek'!$F$28,BW38/BW37-1,#N/A) ->  | CJ38: =IF(BX37>'goal seek'!$F$28,BX38/BX37-1,#N/A) ->  | CK38: =IF(BY37>'goal seek'!$F$28,BY38/BY37-1,#N/A) -> -0.161006121 | CL38: =IF(BZ37>'goal seek'!$F$28,BZ38/BZ37-1,#N/A) ->  | CM38: -0.1072429005 | CN38: -0.1472977986 | CO38: -0.0798913745 | CP38: -0.2173722992 | CR38: 2047 | CS38: -0.08731152545 | CT38: 0 | CU38: 0 | CV38: 0 | CW38: -0.161006121 | CX38: 0 | CZ38: 2047 | DA38: =scenarios!J43 -> 0.3477693795 | DB38: =scenarios!R43 -> -0.3650888298 | DC38: =scenarios!Z43 -> 0.02782145691 | DD38: =scenarios!AH43 -> -0.3650888298 | DE38: =scenarios!AP43 -> 0.177796416 | DF38: =scenarios!BB43 -> 0.02568665135 | DG38: =CA38/scenarios!$B43*1000000 -> 0.446133352 | DH38: =CB38/scenarios!$B43*1000000 -> 0.3885617874 | DI38: =CC38/scenarios!$B43*1000000 -> 1.454715137 | DJ38: =CD38/scenarios!$B43*1000000 -> 0.7843985663 | DL38: 2039 | DM38: 6.924370684 | DN38: 2.236528938 | DO38: 5.80354214 | DP38: 3.523673518 | DQ38: 6.286759647 | DR38: 1.553172461 | DS38: 8.707392641 | DT38: 9.31213733 | DU38: 23.63312853 | DV38: 23.703
BT39: 2048 | BU39: =scenarios!E44 -> 3.04287005 | BV39: =scenarios!L44 -> -3.5 | BW39: =scenarios!T44 -> -0.2610654071 | BX39: =scenarios!AB44 -> -3.5 | BY39: =scenarios!AJ44 -> 1.377385672 | BZ39: =scenarios!AX44 -> 0.1945218688 | CA39: ='IPCC SR15 paths P1-P4'!C45 -> 3.763179355 | CB39: ='IPCC SR15 paths P1-P4'!E45 -> 3.08155816 | CC39: ='IPCC SR15 paths P1-P4'!G36 -> 12.73502931 | CD39: ='IPCC SR15 paths P1-P4'!I45 -> 5.4312 | CF39: 2048 | CG39: =IF($BU38>'goal seek'!$F$31,$BU39/$BU38-1,#N/A) -> -0.08731152545 | CH39: =IF(BV38>'goal seek'!$F$28,BV39/BV38-1,#N/A) ->  | CI39: =IF(BW38>'goal seek'!$F$28,BW39/BW38-1,#N/A) ->  | CJ39: =IF(BX38>'goal seek'!$F$28,BX39/BX38-1,#N/A) ->  | CK39: =IF(BY38>'goal seek'!$F$28,BY39/BY38-1,#N/A) ->  | CL39: =IF(BZ38>'goal seek'!$F$28,BZ39/BZ38-1,#N/A) ->  | CM39: -0.1201255084 | CN39: -0.1727423694 | CO39: -0.08682819864 | CP39: -0.2777467486 | CR39: 2048 | CS39: -0.08731152545 | CT39: 0 | CU39: 0 | CV39: 0 | CW39: 0 | CX39: 0 | CZ39: 2048 | DA39: =scenarios!J44 -> 0.3157369649 | DB39: =scenarios!R44 -> -0.3631700858 | DC39: =scenarios!Z44 -> -0.02708889894 | DD39: =scenarios!AH44 -> -0.3631700858 | DE39: =scenarios!AP44 -> 0.1429215065 | DF39: =scenarios!BB44 -> 0.02018414966 | DG39: =CA39/scenarios!$B44*1000000 -> 0.3904783341 | DH39: =CB39/scenarios!$B44*1000000 -> 0.3197513547 | DI39: =CC39/scenarios!$B44*1000000 -> 1.32142334 | DJ39: =CD39/scenarios!$B44*1000000 -> 0.5635569629 | DL39: 2040 | DM39: 6.319793317 | DN39: 0.9497522858 | DO39: 4.720416554 | DP39: 2.320293423 | DQ39: 5.409533281 | DR39: 1.24031287 | DS39: 7.873345862 | DT39: 8.22932 | DU39: 22.42222862 | DV39: 22.14
BT40: 2049 | BU40: =scenarios!E45 -> 2.777192424 | BV40: =scenarios!L45 -> -3.5 | BW40: =scenarios!T45 -> -0.7888469973 | BX40: =scenarios!AB45 -> -3.5 | BY40: =scenarios!AJ45 -> 1.050289022 | BZ40: =scenarios!AX45 -> 0.1535089333 | CA40: ='IPCC SR15 paths P1-P4'!C46 -> 3.249408541 | CB40: ='IPCC SR15 paths P1-P4'!E46 -> 2.43808793 | CC40: ='IPCC SR15 paths P1-P4'!G37 -> 11.5241294 | CD40: ='IPCC SR15 paths P1-P4'!I46 -> 3.3426 | CF40: 2049 | CG40: =IF($BU39>'goal seek'!$F$31,$BU40/$BU39-1,#N/A) -> -0.08731152545 | CH40: =IF(BV39>'goal seek'!$F$28,BV40/BV39-1,#N/A) ->  | CI40: =IF(BW39>'goal seek'!$F$28,BW40/BW39-1,#N/A) ->  | CJ40: =IF(BX39>'goal seek'!$F$28,BX40/BX39-1,#N/A) ->  | CK40: =IF(BY39>'goal seek'!$F$28,BY40/BY39-1,#N/A) ->  | CL40: =IF(BZ39>'goal seek'!$F$28,BZ40/BZ39-1,#N/A) ->  | CM40: -0.1365257313 | CN40: -0.208813268 | CO40: -0.09508418734 | CP40: -0.3845558992 | CR40: 2049 | CS40: -0.08731152545 | CT40: 0 | CU40: 0 | CV40: 0 | CW40: 0 | CX40: 0 | CZ40: 2049 | DA40: =scenarios!J45 -> 0.2866986334 | DB40: =scenarios!R45 -> -0.3613164173 | DC40: =scenarios!Z45 -> -0.08143524882 | DD40: =scenarios!AH45 -> -0.3613164173 | DE40: =scenarios!AP45 -> 0.1084247619 | DF40: =scenarios!BB45 -> 0.01584722794 | DG40: =CA40/scenarios!$B45*1000000 -> 0.3354470436 | DH40: =CB40/scenarios!$B45*1000000 -> 0.2516917703 | DI40: =CC40/scenarios!$B45*1000000 -> 1.189673471 | DJ40: =CD40/scenarios!$B45*1000000 -> 0.3450675018 | DL40: 2041 | DM40: 5.768002522 | DN40: -0.337024366 | DO40: 3.797747872 | DP40: 1.449039452 | DQ40: 4.636968439 | DR40: 0.988743561 | DS40: 7.359575049 | DT40: 7.58584977 | DU40: 21.2113287 | DV40: 20.0514
BT41: 2050 | BU41: =scenarios!E46 -> 2.534711517 | BV41: =scenarios!L46 -> -3.5 | BW41: =scenarios!T46 -> -1.316628588 | BX41: =scenarios!AB46 -> -3.5 | BY41: =scenarios!AJ46 -> 0.7231923725 | BZ41: =scenarios!AX46 -> 0.1210314282 | CA41: ='IPCC SR15 paths P1-P4'!C47 -> 2.735637728 | CB41: ='IPCC SR15 paths P1-P4'!E47 -> 1.7946177 | CC41: ='IPCC SR15 paths P1-P4'!G38 -> 10.74960866 | CD41: ='IPCC SR15 paths P1-P4'!I47 -> 1.254 | CF41: 2050 | CG41: =IF($BU40>'goal seek'!$F$31,$BU41/$BU40-1,#N/A) -> -0.08731152545 | CH41: =IF(BV40>'goal seek'!$F$28,BV41/BV40-1,#N/A) ->  | CI41: =IF(BW40>'goal seek'!$F$28,BW41/BW40-1,#N/A) ->  | CJ41: =IF(BX40>'goal seek'!$F$28,BX41/BX40-1,#N/A) ->  | CK41: =IF(BY40>'goal seek'!$F$28,BY41/BY40-1,#N/A) ->  | CL41: =IF(BZ40>'goal seek'!$F$28,BZ41/BZ40-1,#N/A) ->  | CM41: -0.1581121016 | CN41: -0.2639241276 | CO41: -0.06720861172 | CP41: -0.6248429366 | CR41: 2050 | CS41: -0.08731152545 | CT41: 0 | CU41: 0 | CV41: 0 | CW41: 0 | CX41: 0 | CZ41: 2050 | DA41: =scenarios!J46 -> 0.2603700737 | DB41: =scenarios!R46 -> -0.3595262229 | DC41: =scenarios!Z46 -> -0.1352464294 | DD41: =scenarios!AH46 -> -0.3595262229 | DE41: =scenarios!AP46 -> 0.07428760632 | DF41: =scenarios!BB46 -> 0.01243256349 | DG41: =CA41/scenarios!$B46*1000000 -> 0.2810095713 | DH41: =CB41/scenarios!$B46*1000000 -> 0.1843463209 | DI41: =CC41/scenarios!$B46*1000000 -> 1.104218914 | DJ41: =CD41/scenarios!$B46*1000000 -> 0.1288131096 | DL41: 2042 | DM41: 5.264389423 | DN41: -1.623801018 | DO41: 3.021886996 | DP41: 0.5777854813 | DQ41: 3.959895627 | DR41: 0.7869310254 | DS41: 6.845804235 | DT41: 6.94237954 | DU41: 20.00042879 | DV41: 17.9628
BT42: 2051 | BU42: =scenarios!E47 -> 2.313401988 | BV42: =scenarios!L47 -> -3.5 | BW42: =scenarios!T47 -> -1.844410178 | BX42: =scenarios!AB47 -> -3.5 | BY42: =scenarios!AJ47 -> 0.3960957229 | BZ42: =scenarios!AX47 -> 0.09534221316 | CA42: ='IPCC SR15 paths P1-P4'!C48 -> 2.45529798 | CB42: ='IPCC SR15 paths P1-P4'!E48 -> 1.39703901 | CC42: ='IPCC SR15 paths P1-P4'!G39 -> 9.975087924 | CD42: ='IPCC SR15 paths P1-P4'!I48 -> -0.1554 | CF42: 2051 | CG42: =IF($BU41>'goal seek'!$F$31,$BU42/$BU41-1,#N/A) -> -0.08731152545 | CH42: =IF(BV41>'goal seek'!$F$28,BV42/BV41-1,#N/A) ->  | CI42: =IF(BW41>'goal seek'!$F$28,BW42/BW41-1,#N/A) ->  | CJ42: =IF(BX41>'goal seek'!$F$28,BX42/BX41-1,#N/A) ->  | CK42: =IF(BY41>'goal seek'!$F$28,BY42/BY41-1,#N/A) ->  | CL42: =IF(BZ41>'goal seek'!$F$28,BZ42/BZ41-1,#N/A) ->  | CM42: -0.102476927 | CN42: -0.22153949 | CO42: -0.07205106368 | CP42: -1.123923445 | CR42: 2051 | CS42: -0.08731152545 | CT42: 0 | CU42: 0 | CV42: 0 | CW42: 0 | CX42: 0 | CZ42: =BT42 -> 2051 | DA42: =scenarios!J47 -> 0.2364943193 | DB42: =scenarios!R47 -> -0.3577977895 | DC42: =scenarios!Z47 -> -0.1885502527 | DD42: =scenarios!AH47 -> -0.3577977895 | DE42: =scenarios!AP47 -> 0.04049204974 | DF42: =scenarios!BB47 -> 0.009746638034 | DG42: =CA42/scenarios!$B47*1000000 -> 0.2510000543 | DH42: =CB42/scenarios!$B47*1000000 -> 0.1428164199 | DI42: =CC42/scenarios!$B47*1000000 -> 1.019732688 | DJ42: =CD42/scenarios!$B47*1000000 -> -0.01588622186 | DL42: 2043 | DM42: 4.804747552 | DN42: -2.91057767 | DO42: 2.377842544 | DP42: -0.2934684895 | DQ42: 3.369302996 | DR42: 0.6253788624 | DS42: 6.332033422 | DT42: 6.29890931 | DU42: 18.78952888 | DV42: 15.8742
